{"text_format":"1","workbook":"xlsx","n_sheets":9,"sheets":["メニュー","基本情報","再生医療等製品","加重平均ツール","法人マスタ","国マスタ","再生医療等製品マスタ","chosahyosystem","外国製造業者マスタ"],"not_rendered":{"charts":0,"images":1,"macros":1,"external_links":0,"defined_names":15,"comments":2,"pivot_tables":0},"unopened":[],"bounds":{"document_bytes":16777216,"sheet_cells":100000,"rows_first":2000,"rows_last":500,"rows_between":2000,"halvings":0,"cell_chars":16384,"cell_head_chars":4096},"cells_cut":0,"cells_raw":0,"read":"whole","date_system":"1900"}

{"sheet":"メニュー","index":0,"n_rows":2,"n_cols":2,"rows_kept":2,"cut":false,"hidden":false,"merged":[[1,1,2,19]]}
[]
[null,"記入担当者用メニュー"]

{"sheet":"基本情報","index":1,"n_rows":13,"n_cols":6,"rows_kept":13,"cut":false,"hidden":false,"merged":[[9,2,9,3],[0,0,0,5],[1,0,1,1],[1,2,1,3],[10,2,12,2],[10,0,12,1],[2,0,6,0],[2,2,2,3],[7,2,7,3],[8,2,8,3],[7,0,7,1],[8,0,8,1],[3,2,3,3],[4,2,4,3],[5,2,5,3],[6,2,6,3],[9,0,9,1]]}
["基本情報シート"]
["項番",null,"項目",null,"記入欄","エラー内容"]
[1,"(1)","年",null,"2018"]
[null,"(2)","月",null,"11"]
[null,"(3)","区分"]
[null,"(4)","法人番号"]
[null,"(5)","製造販売業者　業者コード"]
[2,null,"製造販売業者　名称",null,{"$f":"IFERROR(VLOOKUP($E$6,法人リスト,2,FALSE),\"\")","v":""}]
[3,null,"製造販売業者　所在地",null,{"$f":"IFERROR(VLOOKUP($E$6,法人リスト,3,FALSE),\"\")","v":""}]
[4,null,"報告義務者職名・氏名"]
[5,null,"記入担当者氏名・連絡先","氏名"]
[null,null,null,"E-mail"]
[null,null,null,"電話"]

{"sheet":"再生医療等製品","index":2,"n_rows":19,"n_cols":124,"rows_kept":19,"cut":false,"hidden":false,"merged":[[0,80,0,86],[0,87,0,95],[6,7,7,10],[6,12,7,24],[0,68,0,76],[0,77,0,79],[15,4,16,13],[11,37,11,48],[11,49,11,79],[11,28,11,36],[11,80,13,85],[11,86,11,88],[0,103,0,111],[4,101,5,111],[15,14,16,20],[14,47,17,48],[14,49,17,51],[14,52,17,60],[14,61,14,76],[0,61,0,67],[0,49,0,51],[0,52,0,60],[0,30,0,38],[0,39,0,46],[12,28,13,36],[12,49,13,79],[12,37,13,48],[12,86,12,89],[11,89,11,111],[6,89,6,98],[9,80,10,85],[13,86,13,88],[9,86,10,111],[15,61,16,67],[17,21,17,29],[12,90,12,111],[18,68,18,76],[18,77,18,86],[18,87,18,95],[18,96,18,102],[18,103,18,111],[17,68,17,76],[17,77,17,79],[17,80,17,86],[17,87,17,95],[17,96,17,102],[0,2,0,3],[0,4,0,13],[0,14,0,20],[0,21,0,29],[6,35,7,63],[18,2,18,13],[18,14,18,20],[18,21,18,67],[17,14,17,20],[17,61,17,67],[11,12,11,14],[11,15,11,27],[12,12,13,14],[12,15,13,27],[11,2,13,2],[11,3,11,6],[12,3,13,6],[11,7,11,11],[12,7,13,11],[14,2,14,20],[17,2,17,3],[17,4,17,13],[15,2,16,3],[0,123,0,125],[14,114,17,114],[14,113,17,113],[15,87,16,95],[15,96,16,102],[4,32,5,66],[15,68,16,76],[17,103,17,111],[14,21,14,46],[14,77,14,95],[14,96,14,111],[15,112,16,112],[15,77,16,79],[15,80,16,86],[15,39,16,46],[15,30,16,38],[15,21,16,29],[17,39,17,46],[17,30,17,38],[13,89,13,111],[15,103,16,111],[6,74,7,76],[0,96,0,102],[5,89,5,98]]}
[null,0,null,null,null,null,null,null,null,null,null,null,null,null,null,null,null,null,null,null,null,null,null,null,null,null,null,null,null,null,{"$f":"IFERROR(VLOOKUP(V1,再生医療等製品リスト,2, FALSE),\"\")","v":""},null,null,null,null,null,null,null,null,null,null,null,null,null,null,null,null,{"$f":"IFERROR(VLOOKUP(V1,再生医療等製品リスト,3, FALSE),\"\")","v":""},{"$f":"IFERROR(VLOOKUP(V1,再生医療等製品リスト,4, FALSE),\"\")","v":""},null,null,null,null,null,null,null,null,null,null,null,null,null,null,null,null,null,null,null,{"$f":"BA1*BJ1/1000","v":0},null,null,null,null,null,null,null,null,null,null,null,null,null,null,null,null,null,null,{"$f":"BA1*CC1/1000","v":0},null,null,null,null,null,null,null,null,{"$f":"DI1+BJ1-CC1","v":0},null,null,null,null,null,null,{"$f":"BA1*CS1/1000","v":0},null,null,null,null,null,null,null,null,null,null,null,null,null,null,null,null,null,null,null,"jpn"]
[]
[]
[]
[null,null,null,null,null,"第四号様式〔第8条〕",null,null,null,null,null,null,null,null,null,null,null,null,null,null,null,null,null,null,null,null,null,null,null,null,null,null,"薬事工業生産動態統計調査",null,null,null,null,null,null,null,null,null,null,null,null,null,null,null,null,null,null,null,null,null,null,null,null,null,null,null,null,null,null,null,null,null,null,null,null,null,null,null,null,null,null,null,null,null,null,null,null,null,null,null,null,null,null,null,null,null,null,null,null,null,null,null,null,null,null,null,null,"枚目／全　　枚"]
[null,null,null,null,null,null,null,null,null,null,null,null,null,null,null,null,null,null,null,null,null,null,null,null,null,null,null,null,null,null,null,null,null,null,null,null,null,null,null,null,null,null,null,null,null,null,null,null,null,null,null,null,null,null,null,null,null,null,null,null,null,null,null,null,null,null,null,null,null,null,null,null,null,null,null,null,null,null,null,null,null,null,null,null,null,null,null,null,null,"提　出　月　日"]
[null,null,null,null,null,null,null,"㊙",null,null,null,null,"統計法に基づく基幹統計調査",null,null,null,null,null,null,null,null,null,null,null,null,null,null,null,null,null,null,null,null,null,null,"第 Ⅳ 票　再生医療等製品生産  (輸入)  月報",null,null,null,null,null,null,null,null,null,null,null,null,null,null,null,null,null,null,null,null,null,null,null,null,null,null,null,null,null,null,null,null,null,null,null,null,null,null,"再",null,null,null,null,null,null,null,null,null,null,null,null,null,null,"翌　月　１5　日"]
[]
[null,null,null,null,null,null,null,null,null,null,null,null,null,null,null,null,null,null,null,null,null,null,null,null,null,null,null,null,null,null,null,null,null,null,null,null,null,null,null,null,null,null,null,null,null,null,null,null,null,null,null,null,null,null,null,null,null,null,null,null,null,null,null,null,null,null,null,null,null,null,null,"厚生労働省医政局"]
[null,null,null,null,null,null,null,null,null,null,null,null,null,null,null,null,null,null,null,null,null,null,null,null,null,null,null,null,null,null,null,null,null,null,null,null,null,null,null,null,null,null,null,null,null,null,null,null,null,null,null,null,null,null,null,null,null,null,null,null,null,null,null,null,null,null,null,null,null,null,null,null,null,null,null,null,null,null,null,null,"4　報告義務者職名・氏名",null,null,null,null,null,{"$f":"基本情報!E10","v":0}]
[]
[null,null,"1符　号","（1）年",null,null,null,"（2）月",null,null,null,null,"（3）区分",null,null,"（4）　法人番号",null,null,null,null,null,null,null,null,null,null,null,null,"（5）製造販売業者　業者コード",null,null,null,null,null,null,null,null,"2 製造販売業者　名称",null,null,null,null,null,null,null,null,null,null,null,"3 製造販売業者　所在地",null,null,null,null,null,null,null,null,null,null,null,null,null,null,null,null,null,null,null,null,null,null,null,null,null,null,null,null,null,null,"5　記入担当者氏名・連絡先",null,null,null,null,null,"氏名:　　　　",null,null,{"$f":"基本情報!E11","v":0}]
[null,null,null,{"$f":"基本情報!E3","v":"2018"},null,null,null,{"$f":"基本情報!E4","v":"11"},null,null,null,null,{"$f":"基本情報!E5","v":0},null,null,{"$f":"基本情報!E6","v":0},null,null,null,null,null,null,null,null,null,null,null,null,{"$f":"基本情報!E7","v":0},null,null,null,null,null,null,null,null,{"$f":"基本情報!E8","v":""},null,null,null,null,null,null,null,null,null,null,null,{"$f":"基本情報!E9","v":""},null,null,null,null,null,null,null,null,null,null,null,null,null,null,null,null,null,null,null,null,null,null,null,null,null,null,null,null,null,null,null,null,null,null,null,null,"E-mail:     ",null,null,null,{"$f":"基本情報!E12","v":0}]
[null,null,null,null,null,null,null,null,null,null,null,null,null,null,null,null,null,null,null,null,null,null,null,null,null,null,null,null,null,null,null,null,null,null,null,null,null,null,null,null,null,null,null,null,null,null,null,null,null,null,null,null,null,null,null,null,null,null,null,null,null,null,null,null,null,null,null,null,null,null,null,null,null,null,null,null,null,null,null,null,null,null,null,null,null,null,"電話:       ",null,null,{"$f":"基本情報!E13","v":0}]
[null,null,"6　製造業者情報",null,null,null,null,null,null,null,null,null,null,null,null,null,null,null,null,null,null,"7　製品情報",null,null,null,null,null,null,null,null,null,null,null,null,null,null,null,null,null,null,null,null,null,null,null,null,null,"8　\n記入単位",null,"9\n税込/税抜",null,null,"10\n販売単価\n（円）",null,null,null,null,null,null,null,null,"11　生産（輸入）",null,null,null,null,null,null,null,null,null,null,null,null,null,null,null,"12　出荷",null,null,null,null,null,null,null,null,null,null,null,null,null,null,null,null,null,null,"13　月末在庫",null,null,null,null,null,null,null,null,null,null,null,null,null,null,null,"前月在庫","エラー内容","担当者"]
[null,null,"製造\n区分",null,"製造業許可・登録・認定番号",null,null,null,null,null,null,null,null,null,"委託額",null,null,null,null,null,null,"一般的名称コード",null,null,null,null,null,null,null,null,"一般的名称",null,null,null,null,null,null,null,null,"品名",null,null,null,null,null,null,null,null,null,null,null,null,null,null,null,null,null,null,null,null,null,"数量",null,null,null,null,null,null,"金額\n（千円）",null,null,null,null,null,null,null,null,"出荷先国・地域\nコード",null,null,"数量",null,null,null,null,null,null,"金額\n（千円）",null,null,null,null,null,null,null,null,"数量",null,null,null,null,null,null,"金額\n（千円）",null,null,null,null,null,null,null,null,"数量"]
[]
[null,null,"(1)",null,"(2)",null,null,null,null,null,null,null,null,null,"(3)",null,null,null,null,null,null,"(1)",null,null,null,null,null,null,null,null,"(2)",null,null,null,null,null,null,null,null,"(3)",null,null,null,null,null,null,null,null,null,null,null,null,null,null,null,null,null,null,null,null,null,"(1)",null,null,null,null,null,null,"(2)",null,null,null,null,null,null,null,null,"(1)",null,null,"(2)",null,null,null,null,null,null,"(3)",null,null,null,null,null,null,null,null,"(1)",null,null,null,null,null,null,"(2)",null,null,null,null,null,null,null,null,"(1)"]
[null,null,"計",null,null,null,null,null,null,null,null,null,null,null,{"$f":"IF(ROW()<=19, \"\",SUM(INDIRECT(\"O19:U\"&(ROW()-1))))","v":""},null,null,null,null,null,null,null,null,null,null,null,null,null,null,null,null,null,null,null,null,null,null,null,null,null,null,null,null,null,null,null,null,null,null,null,null,null,null,null,null,null,null,null,null,null,null,null,null,null,null,null,null,null,{"$f":"IF(ROW() <= 19, \"\", SUM(INDIRECT(\"BQ19:BY\"&(ROW()-1))))","v":""},null,null,null,null,null,null,null,null,null,null,null,null,null,null,null,null,null,null,{"$f":"IF(ROW() <= 19, \"\", SUM(INDIRECT(\"CJ19:CR\"&(ROW()-1))))","v":""},null,null,null,null,null,null,null,null,null,null,null,null,null,null,null,{"$f":"IF(ROW()<=19, \"\", SUM(INDIRECT(\"CZ19:DH\"&(ROW()-1))))","v":""}]

{"sheet":"加重平均ツール","index":3,"n_rows":11,"n_cols":11,"rows_kept":11,"cut":false,"hidden":false,"merged":[]}
[{"$f":" ROW() -3","v":-2},null,null,null,null,null,{"$f":"E1*F1","v":0}]
[null,null,null,null,null,null,null,null,"計算結果"]
[null,"項番","品名","販売先","販売単価（円）","販売数量","販売金額",null,"項番","品名","販売単価（円）"]
[{"$f":" ROW() -3","v":1},null,null,null,null,null,{"$f":"E4*F4","v":0}]
[2,null,null,null,null,null,0]
[3,null,null,null,null,null,0]
[4,null,null,null,null,null,0]
[5,null,null,null,null,null,0]
[6,null,null,null,null,null,0]
[7,null,null,null,null,null,0]
[8,null,null,null,null,null,0]

{"sheet":"法人マスタ","index":4,"n_rows":3914,"n_cols":3,"rows_kept":3914,"cut":false,"hidden":false,"merged":[]}
["法人番号","商号又は名称","所在地"]
[1010001000435,"アミン株式会社","東京都文京区本郷二丁目２７番２０号本郷センタービル"]
[1010001000591,"五十嵐医科工業株式会社","東京都文京区本郷３-２５-２"]
[1010001000690,"株式会社インターメディカル","東京都台東区入谷一丁目１６番８号トンボ刃物製作所ビル"]
[1010001000831,"株式会社ＭＩＣメディカル","東京都港区虎ノ門三丁目４番７号虎ノ門３６森ビル"]
[1010001000988,"株式会社エイコー","東京都台東区上野３-１７-１０"]
[1010001001994,"株式会社キーラー・アンド・ワイナー","東京都文京区本郷３－３５－３　本郷ＵＣビル"]
[1010001002761,"株式会社コスミックコーポレーション","東京都文京区小石川２丁目７番３号富坂ビル"]
[1010001002860,"コルチトーン補聴器株式会社本社","東京都文京区本郷４-１-５"]
[1010001003099,"株式会社阪本高生堂","東京都文京区関口１-１５-１２"]
[1010001004188,"センシンメディカル株式会社","東京都文京区本郷３-４０-３トーセービル１階"]
[1010001004353,"第一医科株式会社","東京都文京区本郷２-２７-１６"]
[1010001004403,"大洋製薬株式会社","東京都文京区本郷３-１４-１６"]
[1010001005046,"ティック株式会社","東京都北区王子本町一丁目１７番６号鈴木ビル"]
[1010001005921,"株式会社日本凍結乾燥研究所清瀬工場","東京都清瀬市松山３-１-５"]
[1010001005921,"日本ビーシージー製造株式会社日本ＢＣＧ研究所","東京都清瀬市松山３-１-５"]
[1010001006333,"株式会社バイタル","東京都品川区東品川三丁目１７番６号シーサイドⅤ"]
[1010001006928,"株式会社フタバ","東京都文京区本郷３-３７-１４"]
[1010001007323,"松田医科工業株式会社","東京都文京区湯島２-１３-４"]
[1010001007521,"円田医科工業株式会社","東京都文京区湯島１-９-７"]
[1010001007612,"ミズホ株式会社","東京都文京区本郷３-３０-１３"]
[1010001007884,"ゼロシーセブン株式会社","東京都港区赤坂五丁目４番７号ザ・ヘキサゴン"]
[1010001008651,"ウシオ電機株式会社","東京都千代田区丸の内１-６-５丸の内北口ビルディング"]
[1010001008734,"日産化学工業株式会社","東京都千代田区神田錦町三丁目７番地１"]
[1010001008833,"日本曹達株式会社","東京都千代田区大手町二丁目２番１号"]
[1010001014633,"株式会社協和","東京都新宿区西新宿１-２２-２新宿サンエービル"]
[1010001015953,"国際交易株式会社","東京都千代田区麹町３-１２-８"]
[1010001016530,"ゴージョージャパン株式会社","東京都千代田区内神田一丁目６番６号ＭＩＦビル"]
[1010001021927,"大鵬薬品工業株式会社本社","東京都千代田区神田錦町１-２７"]
[1010001026397,"株式会社ハウ","東京都北区田端５-２-７ジュリストビル"]
[1010001032131,"リーブル株式会社","東京都千代田区岩本町２-１-１８フォロ・エムビル"]
[1010001034813,"株式会社資生堂本社","東京都中央区銀座７-５-５"]
[1010001034813,"資生堂プロフェッショナル株式会社本社","東京都中央区銀座７-５-５"]
[1010001035010,"わかもと製薬株式会社","東京都中央区日本橋本町２丁目２番２号"]
[1010001041355,"協和メデックス株式会社本社","東京都中央区晴海１-８-１０"]
[1010001041867,"教文館管財株式会社","東京都中央区銀座四丁目５番１号教文館ビル内"]
[1010001049679,"住友化学園芸株式会社","東京都中央区日本橋小網町１番８号　茅場町<hka>たか</hka>木ビル５階"]
[1010001056667,"ベルジュラックジャポン株式会社","東京都中央区日本橋馬喰町１-４-８関根ビル"]
[1010001063242,"株式会社トライテック","東京都品川区南大井１-２０-１７マニフィック南大井ビル"]
[1010001063630,"株式会社テクノピア","東京都千代田区西神田３-１-２ウインド西神田"]
[1010001064166,"クー・サイエンスビューティー株式会社","東京都中央区銀座２-１６-１１片帆ビル"]
[1010001065214,"信和アルコール産業株式会社","東京都中央区日本橋小舟町６番６号小倉ビル６階"]
[1010001068992,"日本ポラデジタル株式会社","東京都文京区湯島２-１６-１０マスビルディング"]
[1010001070701,"パーカッショネア・ジャパン株式会社","東京都千代田区神田美土代町５番地２第２日成ビル６階"]
[1010001074462,"ダイレックス・ジャパン株式会社","東京都文京区本郷２-２６-１１ＫＡＺＥＮ第２ビル"]
[1010001075907,"サクラファインテックジャパン株式会社","東京都中央区日本橋浜町二丁目３１番１号浜町センタービル"]
[1010001075907,"ＹＬバイオロジクス株式会社","東京都中央区日本橋浜町二丁目３１番１号浜町センタービル"]
[1010001075980,"株式会社フェローテックホールディングス","東京都中央区日本橋２-３-４日本橋プラザビル"]
[1010001078991,"フェニックスサイエンス株式会社","東京都中央区新川１-２０-１三和商事ビル"]
[1010001081021,"株式会社メディコム","東京都杉並区高円寺南１-７-３山手杉並ビル"]
[1010001081112,"スミスメディカル・ジャパン株式会社","東京都港区赤坂七丁目１番１号青山安田ビル"]
[1010001081806,"フロンティアフーズ株式会社","東京都千代田区神田小川町３-３-２マツシタビル"]
[1010001085245,"株式会社トレードワークス","東京都渋谷区渋谷３-２８-１３渋谷新南口ビル７階"]
[1010001089519,"新成物産株式会社","東京都中央区日本橋兜町１３番２号兜町偕成ビル"]
[1010001091383,"日本ジェネリック株式会社","東京都千代田区丸の内１-９-１グラントウキョウノースタワー"]
[1010001091672,"ＥＰＪメディカルサービス株式会社","東京都中央区日本橋小伝馬町７番１６号小川ビル"]
[1010001094015,"ケーシーアイ株式会社","東京都千代田区紀尾井町３番１２号紀尾井町ビル"]
[1010001098866,"株式会社ピカソナチュラルズ","東京都中央区銀座一丁目１６番３号"]
[1010001100607,"株式会社ウイスマー","東京都文京区本郷３-３-１２ケイズビルディング"]
[1010001102231,"株式会社シヅメメディカル","東京都文京区本郷３-１２-３石山ビル"]
[1010001103790,"コロプラスト株式会社","東京都千代田区九段南２-１-３０イタリア文化会館ビル"]
[1010001104401,"株式会社銀座・トマト","東京都中央区銀座八丁目１０番４号和孝銀座８丁目ビル"]
[1010001114821,"株式会社エフワークス","東京都中央区日本橋茅場町一丁目１３番２１号"]
[1010001114904,"株式会社プレイス","東京都世田谷区若林二丁目１７番９号第２エメラルドアオキビル"]
[1010001116636,"日本メダック株式会社","東京都中央区日本橋小舟町１２番１２号日本橋中屋ビル"]
[1010001119894,"ＥｕｒｏＶｉｓｉｏｎ株式会社","東京都中央区日本橋浜町１-３-１２第７センタープラザビル"]
[1010001120646,"ベアエッセンシャル株式会社","東京都中央区銀座二丁目４番９号ＳＰＰ銀座ビル"]
[1010001123715,"ＨＯＬＴジャパン株式会社","東京都中央区日本橋茅場町一丁目１番８号小浦第２ビル"]
[1010001131916,"デヴィコア・メディカル・ジャパン株式会社","東京都千代田区神田駿河台４-２-５トライエッジ御茶ノ水"]
[1010001133227,"株式会社ＡｉｍｅｄｉｃＭＭＴ","東京都港区港南１-２-７０品川シーズンテラス"]
[1010001133227,"日東電工株式会社グローバルマーケティングセンター","東京都港区港南１-２-７０品川シーズンテラス"]
[1010001133227,"ロシュ・ダイアグノスティックス株式会社","東京都港区港南１-２-７０品川シーズンテラス"]
[1010001133227,"ロシュＤＣジャパン株式会社","東京都港区港南１-２-７０品川シーズンテラス"]
[1010001133904,"株式会社メディテック","東京都渋谷区代々木２-１５-１２クランツ南新宿"]
[1010001137764,"株式会社プロシード","東京都渋谷区渋谷２-１０-１３東信青山ビル"]
[1010001137954,"株式会社高研","東京都文京区後楽一丁目４番１４号後楽森ビル"]
[1010001138044,"バイオジェネシス株式会社","千葉県市川市市川一丁目４番２号Ｔ・Ｚビル"]
[1010001138102,"株式会社ＵＮＩＮＴＥＲＮＡＴＩＯＮＡＬ","東京都千代田区丸の内一丁目８番２号鉄鋼ビルディング"]
[1010001138102,"シャイアー・ジャパン株式会社","東京都千代田区丸の内一丁目８番２号鉄鋼ビルディング"]
[1010001146427,"高砂貿易株式会社","東京都千代田区麹町１-８"]
[1010001146451,"昭和薬品化工株式会社","東京都中央区京橋二丁目１７番１１号三栄ビル別館"]
[1010001149132,"株式会社日本医療機器開発機構","東京都中央区日本橋本町二丁目３番１１号日本橋ライフサイエンスビルディング"]
[1010001150239,"ニップファーマ株式会社","東京都中央区京橋一丁目１番６号越前屋ビル"]
[1010001151253,"株式会社惠東方","東京都中央区銀座三丁目９番１号吉澤ビル別館"]
[1010001165443,"あゆみ製薬株式会社","東京都中央区銀座四丁目１２番１５号歌舞伎座タワー"]
[1010001179666,"株式会社パール","東京都江東区冬木２０-１５"]
[1010001180087,"Ｍｅファルマ株式会社","東京都中央区京橋二丁目４番１６号明治京橋ビル"]
[1010001180087,"ＭｅｉｊｉＳｅｉｋａファルマ株式会社","東京都中央区京橋二丁目４番１６号明治京橋ビル"]
[1010001180946,"協和キリンフロンティア株式会社","東京都千代田区大手町一丁目９番２号大手町フィナンシャルシティグランキューブ"]
[1010001183981,"株式会社エイオンインターナショナル","東京都千代田区麹町二丁目３番３号ＦＤＣ麹町ビル"]
[1010003023038,"ヒューフレディ・ジャパン合同会社","東京都千代田区外神田６-１３-１０プロステック秋葉原"]
[1010003023574,"バイエアメディカル合同会社","東京都港区元赤坂一丁目２番７号　赤坂Ｋタワー"]
[1010101009392,"フレア株式会社","東京都八王子市中野山王１-１７-１９"]
[1010101010326,"ＧＶＳジャパン株式会社","東京都新宿区西新宿７-１０-１２ＫＫＤビル４階"]
[1010401011973,"株式会社三和製作所","東京都江戸川区中央四丁目１１番８号アルカディア親水公園ビル"]
[1010401013061,"株式会社新協","東京都新宿区筑土八幡町６-５"]
[1010401013549,"株式会社シバタ","東京都台東区上野５-２５-１７"]
[1010401022715,"株式会社日本色材工業研究所","東京都港区三田５丁目３番１３号"]
[1010401025874,"株式会社フィリップス・ジャパン","東京都港区港南２-１３-３７フィリップスビル"]
[1010401027169,"株式会社ペリカン石鹸","東京都港区西新橋三丁目１０番７号"]
[1010401027788,"株式会社マイクロテック","東京都台東区松が谷１丁目８番９号松が谷パークサイドビル"]
[1010401042515,"ブレインラボ株式会社","東京都港区芝浦３-２-１６田町イーストビル"]
[1010401046094,"ローデンストック・ジャパン株式会社","東京都港区芝大門１丁目２番１号大門ＫＳビル７Ｆ"]
[1010401057034,"シンバイオ製薬株式会社","東京都港区虎ノ門三丁目２番２号虎ノ門３０森ビル"]
[1010401066852,"株式会社ナック","東京都世田谷区等々力２丁目６番５号"]
[1010401067355,"アボットバスキュラージャパン株式会社","東京都港区三田３-５-２７"]
[1010401068675,"株式会社ＬＳＩメディエンス","東京都千代田区内神田一丁目１３番４号ＴＨＥＫＡＩＴＥＫＩビル"]
[1010401069161,"株式会社ツムラ本社","東京都港区赤坂二丁目１７番１１号"]
[1010401069517,"富士フイルムメディカル株式会社","東京都港区西麻布二丁目２６番３０号"]
[1010401069517,"富士フイルム株式会社ライフサイエンス事業部","東京都港区西麻布二丁目２６番３０号"]
[1010401081174,"サントリーウエルネス株式会社","東京都港区台場２-３-３"]
[1010401084004,"ＢＡＳＦジャパン株式会社","東京都港区六本木６-１０-１六本木ヒルズ森タワー"]
[1010401084516,"エレクタ株式会社","東京都港区芝浦３-９-１芝浦ルネサイトタワー"]
[1010401091917,"株式会社シード","東京都文京区本郷二丁目４０番２号"]
[1010401101295,"旭化成ゾールメディカル株式会社","東京都港区西新橋２-１-１興和西新橋ビル"]
[1010401107268,"アスペンジャパン株式会社","東京都千代田区九段北一丁目８番１０号住友不動産九段ビル"]
[1010401107268,"片倉コープアグリ株式会社","東京都千代田区九段北一丁目８番１０号住友不動産九段ビル"]
[1010401136044,"株式会社ジーテック","東京都東大和市清水４－１１０７－１０"]
[1010402009505,"有限会社東京メディカルサービス","東京都渋谷区松濤１-２２-１３ル・コート松濤１０２"]
[1010501000744,"株式会社井田ラボラトリーズ","東京都新宿区市谷本村町１-１"]
[1010501000744,"株式会社ジャンパール","東京都新宿区市谷本村町１-１"]
[1010501000744,"株式会社セザンヌ化粧品","東京都新宿区市谷本村町１-１"]
[1010501000892,"石田香粧株式会社","東京都台東区下谷３-１２-１"]
[1010501006717,"株式会社セントラル科学貿易","東京都江東区亀戸１-２８-６タニビル"]
[1010501006717,"株式会社インボディ・ジャパン","東京都江東区亀戸１-２８-６タニビル"]
[1010501022350,"ベルトールドジャパン株式会社","東京都台東区柳橋１-２６-６サンブリッジビル"]
[1010501030964,"株式会社エス・エム・アイ・ジャパン","東京都台東区鳥越１-４-３ミハマビル４階"]
[1010501032465,"株式会社ＳｕｒｇｉｃａｌＮｅｔｗｏｒｋＳｙｓｔｅｍｓ","東京都台東区寿三丁目１５番１５号水新ビル"]
[1010601016863,"ライオン株式会社","東京都墨田区本所１-３-７"]
[1010601017655,"シネロン・キャンデラ株式会社","東京都中央区銀座六丁目８番７号交詢ビル"]
[1010601035335,"日本メジフィジックス株式会社東京本社","東京都江東区新砂３-４-１０"]
[1010601037422,"ミルテニーバイオテク株式会社","東京都江東区冬木１６-１０ＮＥＸ永代ビル"]
[1010601041069,"東京化粧品株式会社","東京都江東区木場二丁目１７番１３号第二亀井ビル４階"]
[1010601041969,"株式会社フラッパー","東京都墨田区太平１-１９-７宮方ビル"]
[1010701003893,"共創未来ファーマ株式会社","東京都品川区広町一丁目４番４号"]
[1010701007226,"中溝貴金属工業株式会社","東京都品川区西五反田３-１６-７"]
[1010701013059,"株式会社シンシア","東京都中央区日本橋箱崎町３０-１タマビル日本橋箱崎"]
[1010701016235,"株式会社エキップ","東京都品川区大崎１-６-３"]
[1010701017852,"ペントロンジャパン株式会社","東京都品川区大井４-１３-１７レ・ジュ大井町"]
[1010701018347,"株式会社ＣＰコスメティクス","東京都新宿区北新宿二丁目２１番１号新宿フロントタワー"]
[1010701018347,"株式会社スタイリングライフ・ホールディングス","東京都新宿区北新宿二丁目２１番１号新宿フロントタワー"]
[1010701018347,"マシモジャパン株式会社","東京都新宿区北新宿二丁目２１番１号新宿フロントタワー"]
[1010701019774,"日本ベーリンガーインゲルハイム株式会社","東京都品川区大崎二丁目１番１号ＴｈｉｎｋＰａｒｋＴｏｗｅｒ"]
[1010701021409,"ビオメリュー・ジャパン株式会社","東京都港区赤坂二丁目１７番７号赤坂溜池タワー２階"]
[1010701026531,"株式会社オーファンパシフィック","東京都港区芝浦１-１-１浜松町ビルディング"]
[1010701026531,"シミックホールディングス株式会社","東京都港区芝浦１-１-１浜松町ビルディング"]
[1010701028247,"株式会社東栄","東京都墨田区墨田３-３７-７"]
[1010801006441,"太陽商事株式会社","東京都港区芝５-３０-９藤ビル"]
[1010801009626,"株式会社パーマリンケミカル","東京都大田区大森本町２-７-４"]
[1010901003017,"株式会社金冠堂","東京都世田谷区三軒茶屋１-３４-１４"]
[1010901030119,"株式会社マエダ","東京都足立区西新井本町５-４-１２"]
[1010901035431,"株式会社サニープレイス","東京都台東区蔵前４-６-８サニープレイスビル"]
[1011001022155,"町田製薬株式会社","東京都渋谷区笹塚１-３５-１"]
[1011001037888,"株式会社ポップ","東京都渋谷区東３-１９-６グランドール塚本"]
[1011001038127,"株式会社ナチュラル","東京都台東区東上野六丁目１０番８号ワタナベビル"]
[1011001039273,"株式会社白寿生科学研究所","東京都渋谷区富ヶ谷１-３７-５"]
[1011001041196,"株式会社エム・ピー・アイ","東京都港区三田１-２-１７ＭＳビル２階"]
[1011001062548,"株式会社ハピネス","東京都豊島区池袋本町４-１２-６"]
[1011001064627,"ファイザー株式会社","東京都渋谷区代々木三丁目２２番７号新宿文化クイントビル"]
[1011001067869,"ヴィセラ・ジャパン株式会社","東京都港区北青山３-９-８ＹＯＮ-ＫＡビル"]
[1011001069510,"株式会社ワイズラボ","東京都港区白金台５-１８-１８"]
[1011001072836,"株式会社アルム","東京都渋谷区渋谷三丁目２７番１１号祐真ビル新館２Ｆ"]
[1011001107311,"株式会社ドクターシーラボ","東京都渋谷区広尾１-１-３９恵比寿プライムスクエア"]
[1011001116832,"メダティス株式会社","東京都渋谷区恵比寿南１-１-１ヒューマックス恵比寿ビル"]
[1011003002452,"アレクシオンファーマ合同会社","東京都渋谷区恵比寿一丁目１８番１４号恵比寿ファーストスクエア"]
[1011101001810,"株式会社イシバシ","東京都新宿区西早稲田１-５-１２"]
[1011101008013,"三宝製薬株式会社","東京都新宿区下落合２-３-１８"]
[1011101008896,"司生堂製薬株式会社","東京都新宿区下落合２-１２-１０"]
[1011101012056,"大日技研株式会社目白事業所","東京都豊島区南長崎４-４-１"]
[1011101015174,"株式会社東京物理療法研究所","東京都新宿区四谷１-２-３０第２四谷中村ビル"]
[1011101025280,"株式会社ランクアップ","東京都中央区銀座３-１０-７ヒューリック銀座三丁目ビル７階"]
[1011101025586,"株式会社インテグラル","東京都品川区上大崎２-２５-２新目黒東急ビル"]
[1011101028894,"ショット日本株式会社東京営業部","東京都新宿区四谷四丁目１６番地３川辺新宿御苑前ビル"]
[1011101032954,"株式会社ウイン","東京都八王子市北野町５６５-８"]
[1011101038646,"ジーダブリュー株式会社","東京都新宿区大久保２-７-１大久保フジビル７Ｆ"]
[1011101040899,"アクロバイオ株式会社","東京都新宿区原町三丁目６１番地桂ビル"]
[1011101047449,"株式会社フジメディカル","東京都新宿区四谷４-１細井ビル"]
[1011101047787,"株式会社トコピア","東京都新宿区市谷薬王寺町６０大竹ビル"]
[1011101051590,"株式会社千代田","東京都杉並区南荻窪三丁目２９番１２号"]
[1011101054222,"株式会社ネクサス","東京都江東区青海二丁目七番四号ｔｈｅＳＯＨＯ８２９"]
[1011101054841,"日本メディコ株式会社","千葉県千葉市若葉区桜木６-５-３９"]
[1011101055708,"株式会社ＴＲアンドＫ","東京都新宿区四谷２-９ＮＫ第７ビル"]
[1011101060674,"株式会社ピーター・ブレーム・ジャパン","東京都新宿区西新宿六丁目２４番１号西新宿三井ビルディング"]
[1011101071184,"株式会社エムエス","東京都文京区本郷３丁目２６番１２号"]
[1011101075581,"ＳＤＮＩコスモ株式会社","東京都新宿区住吉町１番２３号サンメゾン大谷"]
[1011101077594,"株式会社エビス","東京都新宿区下落合３-１２-１８桔梗屋ビル"]
[1011101084327,"株式会社ＮＤＣ","東京都立川市栄町４丁目４２番１"]
[1011201000869,"株式会社エム・イー・システム","東京都中野区弥生町２-１３-４"]
[1011201001272,"協和株式会社","東京都府中市小柳町１-２０-１"]
[1011301000513,"株式会社イー・エス・エス本社","東京都杉並区天沼２-４-７"]
[1011301006329,"藤永製薬株式会社","東京都千代田区丸の内３-３-１新東京ビル"]
[1011301012871,"株式会社前田豊吉商店","東京都杉並区南荻窪１－２２－１５"]
[1011301017219,"横河医療ソリューションズ株式会社","東京都杉並区荻窪四丁目３０番１６号藤澤ビルディング"]
[1011301020503,"株式会社Ｉ＆Ｉ","東京都板橋区徳丸３-２４-５"]
[1011302004455,"有限会社新興光器製作所","東京都文京区本郷２-１２-２"]
[1011401004348,"株式会社デンテック","東京都板橋区清水町５３-５"]
[1011401005354,"株式会社ビーライン","東京都町田市中町一丁目２番２号森町ビル"]
[1011401006542,"山本製作所","東京都品川区小山台１-１３-７"]
[1011401007367,"不二薬工株式会社板橋工場","東京都板橋区坂下１-２４-１８"]
[1011401011022,"株式会社スカイネット","東京都文京区本郷３-４２-５ボア本郷ビル８階"]
[1011401013167,"フジデンタル株式会社","東京都北区中里二丁目１４番８号"]
[1011401017960,"株式会社グランディール","東京都中野区東中野二丁目２０番１３号　スペースデュオ３０１"]
[1011402007291,"有限会社林製作所","東京都足立区新田３-１５-４"]
[1011402009049,"有限会社安田製作所","東京都葛飾区東立石３-１８-９"]
[1011501006013,"カネヨ石鹸株式会社","東京都荒川区東尾久６-３３-１０"]
[1011501007250,"大和化学工業株式会社東京工場","東京都江戸川区中央４-１７-２８"]
[1011501007853,"株式会社東陽化学研究所","東京都荒川区西尾久７-１７-１１"]
[1011501008703,"細渕電球株式会社","東京都荒川区西日暮里１-２７-１２"]
[1011501014890,"株式会社トップ","東京都足立区千住中居町１９－１０"]
[1011501016425,"株式会社田中医科器械製作所","東京都北区田端新町２-１４-１８"]
[1011502009196,"有限会社菅原歯科精器工業","東京都荒川区西尾久２-１９-２"]
[1011502013074,"有限会社イオス","東京都八王子市大船町６６０"]
[1011601000130,"アウス株式会社","東京都練馬区氷川台４丁目２番１号"]
[1011601004817,"株式会社東和プロオプチィカル","東京都板橋区徳丸６-８-１２"]
[1011701007141,"株式会社朋美","東京都江戸川区西小岩５-１１-２"]
[1011801000112,"株式会社アカオ","東京都葛飾区青戸４-２５-１２"]
[1011801001498,"幸和ピンセット工業株式会社","東京都葛飾区堀切１-３３-１"]
[1011801005144,"株式会社吉田製作所","東京都墨田区江東橋１-３-６"]
[1011801013246,"株式会社ウメダ衛材製造所","東京都足立区梅田４丁目５番４号"]
[1011801021942,"株式会社センステック","千葉県流山市駒木５０８-４"]
[1011801022429,"株式会社真和","東京都台東区上野五丁目１５番１４号御徒町ＣＹビル"]
[1011801023724,"株式会社ファルマ","東京都世田谷区羽根木１-３-１１ボゾリサーチビル"]
[1011801025299,"株式会社ＲＡＩＤＥＮ","東京都葛飾区高砂８丁目２８番１７号"]
[1011801025365,"株式会社ヨシダ","東京都台東区上野７-６-９"]
[1012301001666,"株式会社テクノマックス化研","東京都町田市森野１-１１-１６渋谷第一ビル"]
[1012401000320,"オメガウェーブ株式会社","東京都府中市片町２-２０-３サンノーブルビル２０１"]
[1012401001789,"株式会社ユニメック","東京都府中市府中町３-３-９ウェルズ桜通りＣ号"]
[1012401002696,"リオン株式会社","東京都国分寺市東元町３-２０-４１"]
[1012401013116,"株式会社明健社","東京都三鷹市井口２-１０-４８"]
[1012401017059,"アイリス株式会社","東京都千代田区丸の内一丁目６番６号　日本生命丸の内ビル２２階"]
[1012401025375,"株式会社ＯＰＵＳ","東京都国分寺市西恋ヶ窪二丁目５番２５号グリーンボックスビル"]
[1012402001788,"有限会社ディー・エー・アイヴィジョン","東京都国立市西３-３-２７ＫＵＮＩ３２７Ａ-１０１"]
[1012701000862,"株式会社ヒラサワ","東京都文京区湯島２-２４-７"]
[1012701002090,"ヱルミ化学工業株式会社","東京都西東京市向台町４-２２-３４"]
[1012701005102,"株式会社ソーシン清瀬営業所","東京都清瀬市松山１-１３-２３清瀬太陽ビル"]
[1012701009466,"株式会社フローレンス","東京都中野区中野三丁目３番５号"]
[1012701013245,"株式会社エムビーエス","東京都千代田区外神田６-１６-３外神田ＭＮビル"]
[1012702012849,"有限会社ＴＭＣ","東京都北区東十条２-４-４"]
[1012801000358,"株式会社カワイ美肌研究所","東京都東大和市立野２-１-１"]
[1012801003088,"フタミ・エム・イー工業株式会社","東京都武蔵村山市伊奈平１-４６-３"]
[1012801008376,"和成株式会社","東京都港区麻布台１-１-２０-４１０"]
[1012802010967,"有限会社バイタル","東京都練馬区石神井台２-５-１８"]
[1013101005907,"株式会社グラフィコ","東京都品川区大崎一丁目６番１号ＴＯＣ大崎"]
[1013101005907,"株式会社グラフィコ銀座オフィス","東京都中央区築地４-２-７フェニックス東銀座"]
[1013102000493,"多摩メディカル有限会社","東京都福生市志茂２１３番地４エミネント福生"]
[1013201001566,"キップ薬品株式会社","東京都目黒区大岡山１-３４-１４"]
[1013201004552,"株式会社ノブレス","茨城県稲敷郡阿見町阿見５３８４-１"]
[1013203001589,"合同会社コンピエーレ","東京都目黒区中目黒一丁目１０番２２中目黒ハイツ１１０４号"]
[1013301004353,"株式会社サイニクス生産本部","東京都板橋区中丸町４９-６"]
[1013301008767,"常盤化学工業株式会社","東京都豊島区上池袋４-１６-２２"]
[1013301009328,"ＪＰＳ株式会社","東京都豊島区南池袋二丁目３１番５号南大和ビル"]
[1013301010905,"株式会社シャロン","東京都葛飾区細田４-２３-２０"]
[1013301011399,"株式会社三田屋製作所埼玉工場","埼玉県川越市芳野台２-８-１２"]
[1013301021027,"株式会社シー・エム・エル","東京都豊島区西池袋４-１９-４"]
[1013301028971,"株式会社ファーマ２１","大阪府大阪市都島区都島中通２-７-１９"]
[1013301033732,"株式会社ＥＭＩ","東京都新宿区西新宿６-１２-７ストーク新宿"]
[1013401006431,"株式会社コサカ","東京都練馬区豊玉中２-１８-１４"]
[1013402000838,"有限会社多摩精機宇津木工場","東京都八王子市宇津木町７９０"]
[1013402007024,"有限会社木村製作所","東京都台東区根岸４-１１-４"]
[1020001002703,"株式会社エスタ","神奈川県横浜市青葉区荏田西２-３-２"]
[1020001021034,"株式会社東京技研横浜工場","神奈川県横浜市都筑区東山田４-４２-３７"]
[1020001027295,"ソルブ株式会社営業本部","神奈川県横浜市港北区新横浜２-２-１５パレアナビル４Ｆ"]
[1020001032733,"株式会社美工房","神奈川県横浜市保土ヶ谷区宮田町１丁目１１番１１"]
[1020001033517,"株式会社ナスカ","神奈川県横浜市青葉区元石川町５４２１-１"]
[1020001034903,"株式会社コア","神奈川県横浜市港北区新吉田東８-４４-２３"]
[1020001042724,"マテリアライズジャパン株式会社","神奈川県横浜市神奈川区栄町８-１ヨコハマポートサイドビル"]
[1020001079312,"株式会社デントス","神奈川県川崎市中原区小杉町一丁目５２６番６号コスモ武蔵小杉２０４"]
[1020001079725,"オンキヨー＆パイオニア株式会社","東京都墨田区横網一丁目１０番５号　ＫＯＫＵＧＩＫＡＮ　ＦＲＯＮＴ　ＢＵＩＬＤＩＮＧ"]
[1020001086473,"パイオニア株式会社","東京都文京区本駒込２-２８-８文京グリーンコート"]
[1020002068958,"コレクトスコープ有限会社","神奈川県横浜市青葉区桂台１-１２-９"]
[1020002083271,"有限会社サンライズ","神奈川県横浜市鶴見区鶴見中央４-８-１２"]
[1021001013962,"株式会社マーク電子","神奈川県相模原市緑区橋本台１-３２-１"]
[1021001016057,"株式会社カルディオメド","神奈川県相模原市緑区二本松４-２７-２８-３０１"]
[1021001044801,"株式会社プラス","神奈川県横浜市金沢区幸浦二丁目２１番地７"]
[1021001060063,"オルプ株式会社","神奈川県藤沢市辻堂新町二丁目17番22～204号"]
[1030001010754,"株式会社ＩＣＳＴ","埼玉県さいたま市中央区上落合５丁目１７-１Ｓ-４タワー"]
[1030001019283,"ユニオンテック株式会社岩槻事業所","埼玉県さいたま市岩槻区金重２２８-７"]
[1030001022972,"株式会社愛粧堂","東京都台東区東上野一丁目１４番５号ユーエムビル７階"]
[1030001028326,"株式会社エイ・アイ・シー","東京都渋谷区渋谷三丁目１２番１８号渋谷南東急ビル"]
[1030001040116,"日科ミクロン株式会社本社工場","埼玉県三郷市早稲田三丁目１６番５号"]
[1030001056418,"中山工業株式会社小鹿野工場","埼玉県秩父郡小鹿野町小鹿野５８０番地"]
[1030001061459,"株式会社ＴＳＳ","東京都大田区東蒲田２-２９-１４"]
[1030001065682,"株式会社日生クリーン化粧品医薬部外品事業部","埼玉県吉川市大字川野１５３番１"]
[1030001068685,"株式会社井上精機","埼玉県坂戸市千代田５-３-１３"]
[1030001077505,"株式会社メディカル電子工業","埼玉県川口市戸塚１-１１-１３"]
[1030001086092,"株式会社柴崎製作所","埼玉県深谷市北根１２-５"]
[1030001086638,"株式会社ライフ","埼玉県越谷市登戸町１５-５山新ビル"]
[1030001092545,"彩資生株式会社","埼玉県狭山市柏原４１８-３"]
[1030001099425,"カーターテクノロジーズ株式会社川口メディカルアトリエ","埼玉県川口市柳崎１-１８-１１柳崎マンション１０３"]
[1030001107377,"岩崎電気株式会社埼玉製作所","埼玉県行田市壱里山町１-１"]
[1030001110406,"株式会社レゾナバイオＬＡＢ沖縄","沖縄県うるま市字州崎５‐１沖縄バイオ産業振興センター２０７"]
[1030001116675,"株式会社ルマン","埼玉県ふじみ野市元福岡１-１０-２"]
[1030001124026,"株式会社綾花","埼玉県川越市芳野台２丁目８番５９"]
[1030001124026,"株式会社光未来","埼玉県川越市芳野台２丁目８番５９"]
[1030001124026,"株式会社ちふれ化粧品","埼玉県川越市芳野台２丁目８番５９"]
[1030002017617,"有限会社トーマメディカル","埼玉県さいたま市緑区大字大間木１７２-５"]
[1030002071507,"ファルダーン・エンタープライズ有限会社","埼玉県加須市外田ヶ谷８２"]
[1040001004846,"千葉日酸株式会社","千葉県千葉市稲毛区長沼町３０２ー４"]
[1040001018326,"株式会社ニチオン","千葉県船橋市栄町２-１２-４"]
[1040001026650,"セントラル工業株式会社","千葉県市川市香取２-７-７"]
[1040001031700,"株式会社シュア八街工場","千葉県八街市上砂字大外野４３-５８"]
[1040001033102,"スター・ジャパン合同会社","千葉県市川市二俣７１７-３０"]
[1040001060550,"ネクスメッドインターナショナル株式会社","千葉県千葉市美浜区中瀬二丁目６番地"]
[1040001067298,"株式会社豊栄","千葉県柏市風早１丁目９番７"]
[1040001069154,"株式会社アドバンジェン","千葉県柏市柏四丁目６番３号新栄ビル"]
[1040001072100,"株式会社ティーアンドエス","千葉県野田市七光台４３３-１"]
[1040001075631,"ＭＥＦサージテック株式会社","千葉県流山市南流山６-２４-１３タカオビル１Ｆ"]
[1050001006759,"コロナ電気株式会社","茨城県ひたちなか市東石川３５１７"]
[1050001042449,"株式会社双葉","茨城県水戸市住吉町１５４-２"]
[1060001003383,"株式会社ナッシュ","栃木県宇都宮市下栗町２２９１-３"]
[1060001010545,"株式会社ナカニシ","栃木県鹿沼市下日向７００"]
[1060001016443,"株式会社タスク惣社第一工場","栃木県栃木市惣社町１４８５-１１"]
[1060002032381,"有限会社栃木高圧ガス","栃木県栃木市国府町３２"]
[1070001008159,"ＮＥＯＭＡＸエンジニアリング株式会社","群馬県高崎市吉井町多比良２９７７番地"]
[1070001011963,"株式会社モテキ・インダストリィズ","群馬県甘楽郡甘楽町大字小幡２９０番地の５"]
[1070001021302,"株式会社オーラコスメティックス","群馬県邑楽郡千代田町大字萱野字壱丁田２０３-１"]
[1070001022085,"株式会社ワークジョイ","群馬県館林市近藤町５９２-５"]
[1070001028652,"株式会社ラディアントコスメ","群馬県邑楽郡千代田町赤岩１３５７"]
[1070002031234,"有限会社滅菌センターミヤチ","群馬県太田市新田小金井町３１８-１"]
[1080001015253,"増田樹脂化学工業株式会社","静岡県焼津市坂本２２１番地の１"]
[1080001017002,"株式会社マルタカテクノ","静岡県藤枝市八幡字広通５５０番１"]
[1080002017348,"南メディカル研究所株式会社","静岡県藤枝市田沼一丁目１番２-７０１号"]
[1080101000337,"大村興業株式会社原工場","静岡県沼津市原町中１丁目１-５"]
[1080101001599,"株式会社百一酸素","静岡県沼津市沼北町２丁目１５番３３号"]
[1080101005518,"クレオ工業株式会社","静岡県駿東郡清水町徳倉２３３０-８２"]
[1080101009196,"株式会社トライテック","静岡県富士市入山瀬６１６-１"]
[1080101010253,"ピジョンホームプロダクツ株式会社","静岡県富士市中里２６０８番地の３１"]
[1080101017298,"株式会社メクスト","静岡県沼津市岡一色７２５番地の１"]
[1080401011488,"ジーニアルライト株式会社","静岡県浜松市中区常盤町１４５-１三井生命浜松ビル８階"]
[1100001006191,"サクラ精機株式会社","長野県千曲市大字八幡１１２２-８"]
[1100001012982,"キッセイ薬品工業株式会社","長野県松本市芳野１９番４８号"]
[1100001017833,"日野製薬株式会社","長野県木曽郡木祖村大字薮原１５９８"]
[1100001021587,"株式会社ベネフィット","長野県上伊那郡箕輪町中曽根５９９"]
[1110001003493,"東伸洋行株式会社","新潟県新潟市真砂３丁目２３番地２号"]
[1110001006422,"株式会社佐文工業所本社工場","新潟県新潟市江南区元町２丁目１番地４１号"]
[1110001007387,"株式会社テクノリンク","新潟県新潟市秋葉区荻島２－３０－１５"]
[1110001022709,"株式会社関茂助商店","新潟県長岡市柏町２丁目７番６号"]
[1120001002783,"ワダカルシウム製薬株式会社","大阪府大阪市鶴見区今津南２-７-３６"]
[1120001003559,"株式会社シンエイ","大阪府大阪市中央区玉造２-２６-６６"]
[1120001004961,"大杉製薬株式会社","大阪府大阪市阿倍野区天王寺町南１-１-２"]
[1120001004961,"高砂薬業株式会社","大阪府大阪市阿倍野区天王寺町南１-１-２"]
[1120001007601,"株式会社三協","大阪府大阪市淀川区三津屋北２丁目１９-２"]
[1120001008599,"株式会社ホーエイ","大阪府茨木市小柳町８番１１号"]
[1120001008954,"ライディック株式会社","大阪府大阪市都島区片町１丁目５番１３号大手前センチュリービル"]
[1120001011512,"日本アルツ製薬株式会社","大阪府大阪市東住吉区西今川１丁目９-２１"]
[1120001013624,"前田産業株式会社","大阪府大阪市福島区福島８丁目１６番２０号"]
[1120001014275,"石原産業株式会社","大阪府大阪市西区江戸堀一丁目３番１５号"]
[1120001015389,"株式会社タイヨウ","大阪府大阪市城東区森之宮２-４-２９"]
[1120001019142,"ヤマト産業株式会社","大阪府大阪市生野区巽北４丁目１１-１７"]
[1120001024605,"内外歯材株式会社","大阪府大阪市天王寺区逢阪２丁目３-１０"]
[1120001025454,"三口産業株式会社","大阪府大阪市天王寺区玉造本町６-５"]
[1120001029769,"プランドゥシー・メディカル株式会社","大阪府大阪市都島区都島中通１-１６-１６"]
[1120001030792,"株式会社山洋","大阪府富田林市中野町東２-２-６"]
[1120001032525,"株式会社クロバーコスメイク柏原工場","大阪府柏原市円明町１０００番７８"]
[1120001033473,"株式会社ババ","大阪府大阪市西成区南津守５-６-１２"]
[1120001039982,"株式会社マックス","大阪府八尾市植松町２丁目９番２９号"]
[1120001040387,"米田薬品株式会社","大阪府大阪市浪速区塩草３丁目２番２号"]
[1120001045114,"株式会社大和","大阪府堺市堺区一条通１７番２６号"]
[1120001046896,"株式会社ファイン","大阪府大阪市東淀川区下新庄５丁目６番２８号"]
[1120001048983,"岡崎鑛産物株式会社大阪工場","大阪府大阪市大正区南恩加島５丁目１１-２０"]
[1120001050568,"フタバ化学株式会社","大阪府大阪市西淀川区柏里２丁目３-１２"]
[1120001054750,"桐灰化学株式会社","大阪府大阪市淀川区新高１－１０－５"]
[1120001059196,"ルーベン化粧品株式会社本社","大阪府大阪市淀川区西宮原１-８-２４新大阪第３ドイビル５Ｆ"]
[1120001060113,"株式会社飛鳥電機製作所","大阪府大阪市北区天神橋８-７-１１"]
[1120001061978,"奥田製薬株式会社","大阪府大阪市北区天満１丁目４-５"]
[1120001065426,"スーガン株式会社","大阪府大阪市北区東天満１-１２-１０"]
[1120001066267,"第一商事株式会社本社工場","大阪府大阪市住吉区長居東３-８-２８"]
[1120001067827,"東洋紡エンジニアリング株式会社大阪テクニカルセンター","大阪府泉大津市高津町５-１１"]
[1120001071011,"三田理化工業株式会社","大阪府大阪市北区大淀中２-８-２"]
[1120001083056,"株式会社ファロス","大阪府堺市堺区一条通２０番１５号"]
[1120001090234,"株式会社マンダム本社","大阪府大阪市中央区十二軒町５-１２"]
[1120001101668,"株式会社プローデント","大阪府大阪市旭区清水４丁目１３-６"]
[1120001102625,"株式会社河村伊之助商店","大阪府大阪市平野区喜連東１-８-８"]
[1120001106188,"サンブルームコスメ株式会社","大阪府大阪市福島区鷺洲５-２-３"]
[1120001107161,"株式会社コスメテックジャパン","大阪府大阪市中央区上町１丁目４番１号"]
[1120001107161,"株式会社明色化粧品","大阪府大阪市中央区上町１丁目４番１号"]
[1120001107161,"株式会社桃谷順天館","大阪府大阪市中央区上町１丁目４番１号"]
[1120001113515,"株式会社トレンド・クリエーション・ジャパン","大阪府大阪市天王寺区茶臼山町１番１１号"]
[1120001118051,"メディサ新薬株式会社","大阪府大阪市淀川区宮原五丁目２番２７号"]
[1120001122160,"株式会社アズスタイル","大阪府大阪市中央区南船場１-１３-３"]
[1120001122904,"株式会社マーズデザイン","大阪府大阪市淀川区西中島３丁目３番２号"]
[1120001131863,"株式会社公知貿易","大阪府大阪市中央区道修町２-４-１２"]
[1120001135740,"セントラル製薬株式会社事業所","大阪府大阪市北区天満１丁目４番５号"]
[1120001144106,"株式会社ユニオン","大阪府大阪市平野区長吉六反１丁目４-１２"]
[1120001144510,"株式会社メディコン","大阪府大阪市中央区平野町２-５-８"]
[1120001145698,"株式会社サイエンスリン","大阪府大阪市東淀川区西淡路１丁目１番３５号"]
[1120001145698,"株式会社日本免疫粧研","大阪府大阪市東淀川区西淡路１丁目１番３５号"]
[1120001156712,"株式会社松屋","大阪府大阪市東成区大今里南５丁目１０-７"]
[1120001165779,"株式会社カレン","大阪府大阪市住吉区我孫子東２-３-１０"]
[1120001170036,"株式会社タレックス","大阪府大阪市東住吉区今川５-１-３２"]
[1120001170036,"タレックス光学工業株式会社","大阪府大阪市東住吉区今川５-１-３２"]
[1120001171728,"大阪ケミカル株式会社","大阪府大阪市北区西天満５丁目２番１８号"]
[1120001174375,"株式会社ルック","大阪府大東市諸福８-２-１４"]
[1120001178847,"株式会社エスポワークル","大阪府摂津市新在家１丁目３１番９号"]
[1120001186486,"株式会社リレート","大阪府八尾市東山本新町三丁目７番１９号"]
[1120001189233,"株式会社インクリース研究所大阪支社","大阪府大阪市淀川区西中島３-８-２１新大阪パークサイドビル７階"]
[1120001189828,"株式会社メディカルニクス","大阪府大阪市淀川区西宮原１-８-２９"]
[1120001191288,"株式会社アクトメディック","大阪府大阪市中央区瓦屋町２丁目３番１号岸和田第３ビル３階３０２号室"]
[1120001196535,"株式会社基礎化粧品研究所","大阪府大阪市西区北堀江１丁目６番４-４０１号"]
[1120001204099,"株式会社クルード","大阪府大阪市西区北堀江１-１９-１"]
[1120001204099,"株式会社ブランシュシュ","大阪府大阪市西区北堀江１-１９-１"]
[1120001206483,"株式会社ソーマ本社","大阪府大阪市中央区谷町７-１-９"]
[1120101004011,"株式会社タイキ大阪本社","大阪府大阪市都島区都島北通１-２-１６"]
[1120101004011,"株式会社Ｈｕｇ＆Ｓｍｉｌｅ","大阪府大阪市都島区都島北通１-２-１６"]
[1120101032268,"チョーヤ梅酒株式会社","大阪府羽曳野市駒ケ谷１６０-１"]
[1120101034041,"株式会社ユーズテック","大阪府大阪市淀川区宮原３-３-３４新大阪ＤＯＩビル２Ｆ"]
[1120101041698,"株式会社ツムラ","大阪府和泉市三林町１５５-２"]
[1120101042003,"株式会社モリタ","大阪府吹田市垂水町３丁目３３番１８号"]
[1120101045492,"株式会社ジェイクラフト","大阪府和泉市テクノステージ３丁目１番１１号"]
[1120901001488,"東和放射線防護設備株式会社","大阪府茨木市耳原２丁目３-１７"]
[1120901007188,"タヤインターナショナル株式会社","大阪府吹田市江の木町２番３１号"]
[1120901009151,"株式会社奥原陰陽霊器製作場","大阪府吹田市樫切山１２-１"]
[1120901014837,"株式会社プラネット","大阪府和泉市仏並町１１３番地"]
[1120901017286,"株式会社キュアホープ","大阪府大阪市淀川区西中島７-１７新大阪上野東洋ビル１１階"]
[1120901021445,"株式会社ニイタカ","大阪府大阪市淀川区新高１-８-１０"]
[1120901023706,"株式会社コーワ","大阪府豊中市大黒町１-７-５"]
[1120901026964,"株式会社ウェイナ総合研究所","大阪府豊中市利倉２-２０-１３"]
[1120902000324,"有限会社　エフエム","大阪府東大阪市東石切町１丁目２－２３"]
[1122001001328,"株式会社奥村商店","大阪府堺市堺区新在家町東２丁２番１１号"]
[1122001002326,"小西製薬株式会社","大阪府東大阪市上石切町２-３３-１１"]
[1122001002706,"三鳩化学工業株式会社","大阪府東大阪市荒川３丁目９-９"]
[1122001002929,"株式会社三香堂","大阪府東大阪市日下町４丁目２-５９"]
[1122001003555,"昭和光学株式会社","大阪府東大阪市俊徳町２丁目５-２０"]
[1122001004652,"株式会社孝安産業","大阪府東大阪市高井田９-５"]
[1122001020708,"田中精機株式会社","大阪府柏原市円明町２１７-２５"]
[1122001027892,"株式会社Ｋ＆Ｓ","大阪府和泉市黒鳥町３-３-７"]
[1122001030418,"株式会社美粧ＡＫＡＲＩ","大阪府大東市住道１-６-７"]
[1122002015970,"康和薬通有限会社柏原工場","大阪府柏原市円明町１０００-３７"]
[1130001002865,"株式会社近畿レントゲン工業社","京都府京都市上京区室町通上立売上る室町頭町２５９番地"]
[1130001011676,"株式会社堀場製作所","京都府京都市南区吉祥院宮の東町２番地"]
[1130001012732,"三栄メディシス株式会社","京都府京都市山科区小山鎮守町１４番地１"]
[1130001013045,"デンケン・ハイデンタル株式会社本社工場","京都府京都市山科区大宅石郡町１３０"]
[1130001018928,"マルホ発條工業株式会社新光悦工場","京都府南丹市園部町瓜生野京都新光悦村２２"]
[1130001019521,"日本眼鏡光学株式会社","京都府京都市下京区西酢町５番地"]
[1130001028943,"株式会社國枝商店","京都府京都市中京区河原町通二条下る一之船入町５３８"]
[1130001032235,"ウィル・グラン化粧品株式会社","京都府京都市下京区烏丸通五条下る大坂町３９１番地"]
[1130001047976,"セルヴァン製造宇治株式会社","京都府宇治市槇島町十一１３８番地"]
[1140001014281,"株式会社水島酸素商会","兵庫県神戸市兵庫区高松町２番２８号"]
[1140001014570,"株式会社神戸工業試験場播磨事業所","兵庫県加古郡播磨町新島４７-１３"]
[1140001024801,"プロクター・アンド・ギャンブル・ジャパン株式会社","兵庫県神戸市中央区小野柄通七丁目１番１８号"]
[1140001038677,"高井医療器株式会社","兵庫県揖保郡太子町佐用岡４７１-１"]
[1140001043264,"ネクスト・ワン株式会社","兵庫県加古川市加古川町粟津８０５-３"]
[1140001046192,"株式会社ファイン","兵庫県赤穂郡上郡町野桑大和谷７００-３"]
[1140001047100,"株式会社クリエーション製薬","兵庫県神戸市中央区布引町２丁目１‐７３階"]
[1140001050772,"株式会社ハンシン","兵庫県尼崎市平左衛門町１８－２５"]
[1140001052240,"ケン・メディカル株式会社","兵庫県尼崎市南武庫之荘１丁目２２番１８号"]
[1140001053313,"ホウケミカル株式会社研究所","兵庫県尼崎市武庫町２丁目２-２５"]
[1140001062306,"株式会社理創化研","兵庫県姫路市網干区北新在家２５０番地"]
[1140001071661,"株式会社ライトニックス","兵庫県西宮市甲東園２丁目２番６号"]
[1140001081875,"株式会社ハイレックスコーポレーション","兵庫県宝塚市栄町１丁目１２番２８号"]
[1140001083847,"日本薬品開発株式会社","兵庫県伊丹市北伊丹７丁目９８番地"]
[1150001010296,"池尻製薬株式会社","奈良県高市郡高取町大字下子島３８６番地"]
[1150001010453,"共立薬品工業株式会社","奈良県高市郡高取町清水谷１０８５番地"]
[1150001010627,"大師製薬株式会社","奈良県橿原市四分町７９-２"]
[1150001010965,"萬金薬品工業株式会社","奈良県高市郡明日香村野口３１７"]
[1150001011344,"薬王製薬株式会社","奈良県磯城郡田原本町２４５番地"]
[1150001012697,"広陵化学工業株式会社","奈良県北葛城郡広陵町大字中１６７番地"]
[1150001013844,"株式会社きぬや薬舗","奈良県御所市今住４７５"]
[1150001013992,"三星製薬株式会社","奈良県御所市１５３番地"]
[1150001015923,"美吉野製薬株式会社","奈良県吉野郡大淀町大字大岩６９２番地"]
[1160001002490,"タカラバイオ株式会社","滋賀県草津市野路東七丁目４番３８号"]
[1160001010205,"福地製薬株式会社日野工場","滋賀県蒲生郡日野町大字寺尻８２４番地"]
[1160001012696,"株式会社近江ケミファー","滋賀県草津市志那町３番地の４"]
[1170001005699,"株式会社クロシオインターナショナル","和歌山県海南市野上中７８-１"]
[1170001005872,"紀陽除虫菊株式会社本社工場","和歌山県海草郡下津町上１１３５"]
[1170001007043,"株式会社キンエイクリエイト","和歌山県有田郡広川町下津木７２-１"]
[1170001007381,"株式会社中尾酸素","和歌山県有田市千田字左近４８３ー２"]
[1180001001887,"株式会社グッドマン","愛知県名古屋市中区栄四丁目５番３号　ＫＤＸ名古屋栄ビル　５階"]
[1180001003487,"イリヤ化学株式会社","愛知県名古屋市千種区小松町６丁目２７番地"]
[1180001007067,"名古屋酸素株式会社小碓工場","愛知県名古屋市港区小碓１-１２"]
[1180001012083,"株式会社コーワ","愛知県海部郡甚目寺町大字西今宿字平割一、２２番地"]
[1180001017009,"株式会社スズケン","愛知県丹羽郡大口町外坪１-５８-１"]
[1180001025465,"株式会社酒井商店","愛知県名古屋市西区城西２-２１-１２"]
[1180001026307,"東海機器工業株式会社","愛知県北名古屋市宇福寺長田７３番地"]
[1180001035051,"オリオン電機株式会社","愛知県名古屋市中区栄五丁目８番２４号"]
[1180001042568,"株式会社アルファコーポレーション","愛知県名古屋市東区泉１-８-１６"]
[1180001049571,"株式会社クエスト","愛知県半田市横山町１５７-１"]
[1180001053508,"株式会社ルチア","愛知県名古屋市中村区那古野１-４５-５ルチア東田ビル"]
[1180001068002,"株式会社ピーディーアール","愛知県長久手市上川原６番地７"]
[1180001069280,"株式会社エイコー","愛知県名古屋市西区則武新町二丁目２２番３号"]
[1180001069280,"株式会社エイコー","愛知県名古屋市中村区竹橋町１０-１７"]
[1180001086912,"株式会社Ｆａｃｔｏｒｉａ風の谷工場","岐阜県海津市海津町平原６９１番地"]
[1180001092638,"株式会社東洋発酵","愛知県大府市吉川町１丁目３９番地１"]
[1180001096696,"株式会社リケン眼鏡","愛知県津島市藤浪町５-５１"]
[1180001100739,"株式会社トーメーコンタクトレンズ","愛知県名古屋市西区則武新町二丁目１９番１１号"]
[1180001102306,"インタービューティー株式会社","愛知県瀬戸市熊野町３５"]
[1180001104491,"株式会社エムテック六ツ師工場","愛知県北名古屋市六ツ師女夫越３番地"]
[1180001122403,"株式会社ドリーム","愛知県名古屋市東区徳川町４０３番地Ｉ・Ｃ・Ｃクオリアビル３階"]
[1180002004575,"大晃生薬有限会社","愛知県名古屋市千種区松軒一丁目５番１２号"]
[1180002070262,"有限会社エンドテック","愛知県春日井市町屋町字上仲田３９７８番地４"]
[1180002073678,"有限会社スピリット","愛知県尾張旭市東栄町二丁目６番地２６"]
[1180301001422,"東海光学株式会社本社工場","愛知県岡崎市恵田町字下田５-２６"]
[1180301006751,"日本ガスコム株式会社","愛知県豊橋市神野新田町字ニノ割４番地１"]
[1180301007403,"株式会社ユー・ティー・エム　名古屋営業所","愛知県名古屋市守山区天子田３丁目９０１番地"]
[1180301018771,"トヨタ自動車株式会社広瀬工場パートナーロボット棟","愛知県豊田市西広瀬町桐ケ洞５４３番地"]
[1190001008758,"株式会社蘭","三重県伊賀市小田町西出１６８２-２"]
[1190001016117,"株式会社フローラ","三重県四日市市馳出町３丁目３９番地"]
[1200001007139,"昭和電機産業株式会社","岐阜県各務原市テクノプラザ２丁目２番"]
[1200001023433,"株式会社トキワ中津川工場","岐阜県中津川市桃山町３-２０"]
[1200001023441,"株式会社トーカイ羽島本部","岐阜県羽島市正木町須賀赤松２６２７番地"]
[1200002021378,"土屋製砥有限会社","岐阜県土岐市鶴里町細野５４３-２"]
[1210001000431,"株式会社エル・ローズ研究棟","福井県福井市三郎丸４-２００"]
[1210001004837,"コスメラボ株式会社","福井県福井市文京４丁目２３番１号"]
[1210001004837,"日華化学株式会社","福井県福井市文京４丁目２３番１号"]
[1210001011511,"株式会社オーシンエムエルピー","福井県越前市矢放町１４-１９"]
[1210001011899,"藤井防災エネルギー株式会社","福井県越前市国府二丁目５番１０号"]
[1210001012947,"株式会社視泉堂","福井県鯖江市丸山町２丁目５１６番地"]
[1210001013400,"株式会社若吉製作所","福井県鯖江市杉本町３６号２番地"]
[1210001013557,"株式会社ＧＬＡＳＳＡＲＴ","福井県鯖江市中野町２５７-１６-１"]
[1210002004621,"有限会社ウェルダンオプチカル","福井県福井市花堂南１-５-１２"]
[1210002013424,"有限会社マグティク","福井県鯖江市杉本町３６-２-２０"]
[1220001000538,"株式会社みやもり","石川県野々市市上林５-２９-１"]
[1220001003235,"伸晃化学株式会社","石川県金沢市藤江南２丁目４番地"]
[1220001004150,"辰巳化学株式会社","石川県金沢市久安３丁目４０６番地"]
[1220001006287,"北陸化成株式会社","石川県白山市相川新町６５５番地１"]
[1230001001650,"立山マシン株式会社","富山県富山市下番３０"]
[1230001002236,"日医工株式会社","富山県富山市総曲輪１丁目６番２１"]
[1230001002236,"日医工ファーマ株式会社","富山県富山市総曲輪１丁目６番２１"]
[1230001008002,"明治製薬株式会社","富山県滑川市中川原７７"]
[1230001008506,"鶴居薬品工業株式会社","富山県南砺市野尻４５７-１"]
[1230001015221,"株式会社アムノス富山工場","富山県下新川郡朝日町草野２８７番地１"]
[1230001017250,"富山めぐみ製薬株式会社","富山県富山市三番町３-１０"]
[1240001010907,"マケン石鹸株式会社","広島県広島市南区宇品神田四丁目５番１３号"]
[1240001027133,"株式会社ヤマサキ","広島県広島市中区舟入本町３-７"]
[1240001038444,"広島高圧ガス株式会社","広島県尾道市長者原２-１６５-３１"]
[1240001039632,"清水化学株式会社","広島県三原市木原４丁目５-１"]
[1250001003447,"株式会社特殊ガス商会宇部営業所","山口県宇部市西梶返１-９-７"]
[1260001001417,"オージー技研株式会社","岡山県岡山市中区海吉１８３５番地７"]
[1260001011366,"株式会社タイヨーデンタル","岡山県岡山市瀬戸町沖２８４-１"]
[1260001013156,"株式会社クラレくらしき研究センター","岡山県倉敷市酒津２０４５-１"]
[1260001019269,"ラシェル製薬株式会社新見工場","岡山県新見市唐松字川原林１７４９-６"]
[1270002008699,"有限会社ルウ研究所","鳥取県米子市夜見町１６５７"]
[1290001015892,"株式会社パラマ・テック","福岡県福岡市東区多の津１-７-５"]
[1290001028028,"株式会社レピュア","福岡県福岡市南区皿山３丁目２番５０号"]
[1290001043134,"株式会社ゼンシン久留米研究開発センター","福岡県久留米市百年公園１番１号福岡バイオインキュベーションセンター４０５号"]
[1290001045147,"株式会社九研","福岡県飯塚市勢田２５９３番地２１"]
[1290001049544,"福岡酸素株式会社","福岡県久留米市東町３３番地２１"]
[1290001061350,"株式会社ＧＲＡＮＤＺ","福岡県福岡市東区水谷３丁目２８の１５"]
[1290801002603,"ＴＯＴＯ株式会社お客様本部","福岡県北九州市小倉北区中島２-１-１"]
[1290801009821,"株式会社エア・ガシズ北九州","福岡県北九州市八幡西区築地町１６-６０"]
[1290801010465,"株式会社フィード","福岡県遠賀郡遠賀町尾崎字馬場久保４２０-１"]
[1300001000505,"天恵堂製薬株式会社","佐賀県佐賀市蓮池町大字蓮池２３４"]
[1300001003359,"牛津製薬株式会社","佐賀県小城市牛津町大字下砥川１-２"]
[1310005000145,"長崎県製薬協同組合","長崎県長崎市本河内３丁目１１番１号"]
[1320001002169,"日本ヒューマンメディク株式会社","大分県大分市賀来北２丁目１６番３４号"]
[1320001008406,"株式会社ホックス","大分県速見郡日出町大字大神９７４８番地の６"]
[1330001008322,"フェアリー薬研株式会社","熊本県熊本市南区薄場三丁目４番８号１Ｆ"]
[1340001000906,"鹿児島酸素株式会社","鹿児島県鹿児島市南栄３丁目２６番"]
[1340002025704,"有限会社角野製薬所","鹿児島県肝属郡吾平町上名５７５６番地"]
[1370201003004,"株式会社倉元製作所","宮城県栗原市若柳武鎗字花水前１番地１"]
[1380001010686,"北陽電機株式会社","埼玉県北本市北本１丁目１５６番地"]
[1380001022772,"株式会社リーリンジャパン","福島県東白川郡塙町大字塙字代官町５２-１"]
[1390001004299,"エムテックスマツムラ株式会社医療機器事業部マイクロトモグラフィー","山形県天童市北久野本一丁目７番４３号"]
[1400001005329,"株式会社新興製作所","岩手県花巻市大畑第９地割９２番地６"]
[1410001008941,"横手精工株式会社平鹿事業所","秋田県横手市平鹿町中吉田字下藤根３４"]
[1420001009518,"マルマンコンピュータサービス株式会社","青森県弘前市大字宮川三丁目５番地２"]
[1430001008956,"株式会社セロテック","北海道千歳市泉沢１００７-６７"]
[1430001012891,"大陽日酸北海道株式会社苫小牧工場","北海道苫小牧市字柏原３２-３８"]
[1430001026181,"株式会社バイオエコーネット","北海道札幌市中央区南４条西７丁目６番地"]
[1430001028104,"株式会社プリズム・メディカル","北海道札幌市中央区北６条西１６丁目１-５"]
[1430001055197,"株式会社第一岸本臨床検査センター","北海道苫小牧市日吉町二丁目３番９号"]
[1430001056063,"株式会社ナチュラルアイランド","北海道札幌市中央区北一条西２８-２-３５"]
[1430002051848,"エルポート・サイエンス有限会社","北海道砂川市西豊沼２７４番地４"]
[1470001007806,"勇心酒造株式会社","香川県綾歌郡宇多津町２２１２番地"]
[1470001010388,"昭和紙工株式会社","香川県観音寺市豊浜町和田浜４４１"]
[1470001015222,"メロディ・インターナショナル株式会社","香川県高松市林町２２１７番地４４ネクスト香川３０４"]
[1470002011138,"有限会社ハッピーハンズラテックスグローブス","香川県綾歌郡綾川町畑田１３２８番地１"]
[1480001004942,"大塚テクノ株式会社鷲敷工場","徳島県那賀郡那賀町小仁宇字大坪３３０"]
[1480001005057,"富田製薬株式会社本社工場","徳島県鳴門市瀬戸町明神字丸山８５-１"]
[1480001006393,"応用酵素医学研究所株式会社沖洲工場","徳島県徳島市東沖洲二丁目１番７号"]
[1500001007827,"昭和刷子株式会社","愛媛県喜多郡内子町平岡甲４００-１"]
[1500001009815,"ケーアイ株式会社","愛媛県西条市朔日市８３３-３"]
[2010001000368,"株式会社アドビック","東京都文京区湯島二丁目３１番２４号福田ハイツ２０３号"]
[2010001000764,"株式会社イナミ","東京都文京区本郷３丁目２４番２号"]
[2010001000814,"岩片医療器株式会社","東京都文京区本郷３-１８-１６岩片ビル"]
[2010001002991,"酒井医療株式会社","東京都新宿区山吹町３５８-６"]
[2010001003387,"株式会社ジェイメック","東京都文京区湯島３-３１-３湯島東宝ビル"]
[2010001004162,"泉工医科貿易株式会社","東京都文京区湯島三丁目２１番４号"]
[2010001004773,"株式会社イノメディックス","東京都文京区小石川４-１７-１５"]
[2010001005012,"株式会社テーエム松井","東京都文京区湯島三丁目４番１３号"]
[2010001006027,"日本エー・シー・ピー株式会社","東京都清瀬市中里二丁目１６２４番地３"]
[2010001006258,"株式会社根本商会","東京都文京区本郷２-１０-６"]
[2010001008130,"ユフ精器株式会社","東京都文京区湯島２丁目３１番２０号"]
[2010001008592,"タカイ医科工業株式会社","東京都文京区湯島２-３１-２５"]
[2010001011316,"株式会社伊勢半","東京都千代田区五番町７番地"]
[2010001015787,"ケンテック株式会社","東京都新宿区早稲田南町５２-２-３０３"]
[2010001017825,"旭化成メディカル株式会社","東京都千代田区神田神保町一丁目１０５番地神保町三井ビルディング"]
[2010001017825,"旭化成シンメッド株式会社","東京都千代田区神田神保町一丁目１０５番地神保町三井ビルディング"]
[2010001017825,"フォトロンＭ＆Ｅソリューションズ株式会社","東京都千代田区神田神保町一丁目１０５番地神保町三井ビルディング"]
[2010001018550,"株式会社実正","東京都足立区梅田６-９-６"]
[2010001020449,"スノーデン株式会社","東京都千代田区岩本町３-７-１６"]
[2010001024219,"東洋理研株式会社本社","東京都千代田区東神田一丁目１４番１６号コンフォルト東京２０１"]
[2010001026009,"ニュージャパンヒヤリングエイド株式会社","東京都新宿区神楽坂４-５-１"]
[2010001026900,"株式会社白鵬","東京都千代田区麹町１丁目３番地２３"]
[2010001028632,"株式会社風雲堂","東京都千代田区神田小川町１-２"]
[2010001046345,"シオノケミカル株式会社","東京都中央区八重洲二丁目１０番１０号新八重洲ビル"]
[2010001048242,"株式会社清心丹","東京都中央区日本橋人形町１-４-１０人形町センタービル"]
[2010001053696,"ニベア花王品質保証","東京都中央区日本橋茅場町１-１４-１０"]
[2010001065386,"株式会社コーブリッジ","東京都千代田区麹町三丁目３番地４ＫＤＸ麹町ビル"]
[2010001067770,"株式会社リムフィックス","東京都文京区本郷三丁目３番１２号ケイズビルディング"]
[2010001070279,"タルゴジャポン株式会社","東京都千代田区一番町１９番地ノーサイ会館"]
[2010001071483,"株式会社ミハマメディカル東京支店","東京都文京区音羽２丁目１１番１９号オトワＫＳビル"]
[2010001074420,"株式会社アクティブメディカル","東京都文京区西片１-１５-１５ＫＤＸ春日ビル"]
[2010001074420,"サイノシュアー株式会社","東京都文京区西片１-１５-１５ＫＤＸ春日ビル"]
[2010001074420,"日本マーチン株式会社","東京都文京区西片１-１５-１５ＫＤＸ春日ビル"]
[2010001074932,"シンジェンタジャパン株式会社","東京都中央区晴海一丁目８番１０号オフィスタワーＸ"]
[2010001082877,"日本美容化学株式会社","東京都中央区銀座３-８-１２銀座ヤマトビル"]
[2010001083306,"ＩｎｎｏｖａＶｉｓｉｏｎ株式会社","東京都中央区東日本橋２-９-２コセイビル"]
[2010001085995,"ジャパンクオリティ株式会社","東京都中野区野方５-２７-１１ヴィラージュＮ"]
[2010001086481,"株式会社バイテック・グローバル・ジャパン","東京都中央区月島２-１４-１２月島セントラルビル"]
[2010001087208,"株式会社サビーナ自然化粧品","東京都中央区銀座８-１８-１日交銀座木挽町ビル２階"]
[2010001092629,"株式会社ニチレイバイオサイエンス","東京都中央区築地六丁目１９番２０号ニチレイ東銀座ビル"]
[2010001104012,"株式会社ユニバーサルビュー","東京都千代田区平河町１-７-１１第二大盛丸平河町ビル"]
[2010001109052,"ＩｖｏｃｌａｒＶｉｖａｄｅｎｔ株式会社","東京都文京区本郷１-２８-２４ＩＳ弓町ビル"]
[2010001122204,"日本アルコール産業株式会社","東京都中央区日本橋小舟町６番６号小倉ビル"]
[2010001133548,"株式会社ＣＭＩ","東京都渋谷区恵比寿４-２０-３恵比寿ガーデンプレイスタワー１８階"]
[2010001135668,"ＭＳＤ株式会社","東京都千代田区九段北一丁目１３番１２号北の丸スクエア"]
[2010001137573,"株式会社ジャパンビューティプロダクツ","東京都中央区銀座２-６-４"]
[2010001146285,"コンセプトアイズ株式会社","東京都中央区日本橋本町３-３-６ワカ末ビル７階"]
[2010001159031,"ＮｅｉｌＭｅｄＰｈａｒｍａｃｅｕｔｉｃａｌｓ株式会社","東京都大田区東海四丁目７番１１号株式会社明正・大井営業所内"]
[2010001167430,"キッズメディカル株式会社","東京都文京区本郷２-２７-１２本郷アサヒビル"]
[2010001167950,"株式会社メディアーク","東京都墨田区両国一丁目１４番７号松井ビル"]
[2010001172711,"株式会社柳韓堂","東京都中央区銀座六丁目１２番１３号大東銀座ビル"]
[2010002049900,"株式会社コスメティークレゾネ","東京都渋谷区神宮前５-２９-９めぐみハイマンション"]
[2010003013764,"レメイト・バスキュラー合同会社","東京都千代田区九段南２-９-４久保寺ツインタワービル"]
[2010101007180,"株式会社励明園本舗東京工場","東京都八王子市下恩方町４２４-８"]
[2010401003193,"株式会社イプサ","東京都港区赤坂７-１-１６オーク赤坂ビル"]
[2010401005702,"大網株式会社小石川事業所","東京都文京区小石川４-２１-１１大網小石川ビル"]
[2010401011411,"佐藤製薬株式会社","東京都港区元赤坂一丁目５番２７号"]
[2010401011411,"メディックスサトウ株式会社","東京都港区元赤坂一丁目５番２７号"]
[2010401021749,"日昭産業株式会社","東京都港区虎ノ門４-３-１３ヒューリック神谷町ビル"]
[2010401023712,"アイ・エル・ジャパン株式会社","東京都港区三田１-３-３０三田神田ビル"]
[2010401023877,"株式会社ハイメック","東京都多摩市永山６-１１-９"]
[2010401033141,"岩谷瓦斯株式会社","大阪府大阪市北区西天満四丁目８番１７号"]
[2010401044444,"ラ・プレリージャパン株式会社","東京都中央区新川１-８-８アクロス新川ビル"]
[2010401046465,"ジンマー・バイオメット合同会社","東京都港区芝公園二丁目１１番１号住友不動産芝公園タワー"]
[2010401046465,"ソレイジア・ファーマ株式会社","東京都港区芝公園二丁目１１番１号住友不動産芝公園タワー"]
[2010401047109,"株式会社ホギメディカル","東京都港区赤坂２-７-７"]
[2010401048841,"株式会社アットワーキング","東京都千代田区神田多町二丁目７番地翔和多町ビル１階"]
[2010401052001,"株式会社ディーアール","東京都千代田区神田小川町二丁目２番地２小川町Ｂ５ビル"]
[2010401059079,"日本アルコン株式会社","東京都港区赤坂２-１７-７赤坂溜池タワー"]
[2010401059079,"日本アルコン株式会社","東京都江東区東陽７-５-８東陽町ＭＬプラザ"]
[2010401059079,"株式会社ピエールファーブルジャポン","東京都港区赤坂２-１７-７赤坂溜池タワー"]
[2010401067908,"三井化学アグロ株式会社","東京都中央区日本橋一丁目１９番１号日本橋ダイヤビルディング"]
[2010401087278,"シースター株式会社","東京都港区港南一丁目８番４０号Ａ-ＰＬＡＣＥ品川"]
[2010401093383,"株式会社リベルタ","東京都渋谷区桜丘町２６番１号セルリアンタワー５Ｆ"]
[2010401098465,"ＵＳＣＩジャパン株式会社","東京都渋谷区代々木三丁目２８番６号いちご西参道ビル"]
[2010401098787,"株式会社エルサプライ","東京都中央区八丁堀四丁目４番３号　松の翠ビル"]
[2010401099430,"サンファーマ株式会社","東京都港区芝公園１-７-６"]
[2010401111418,"株式会社ＤｏｍｉｅｒＤＥＣＯ","東京都港区南麻布四丁目２番３４号天現寺スクエア"]
[2010401114619,"コアビューティー株式会社","東京都品川区西五反田七丁目２２番１７号ＴＯＣビル"]
[2010401124312,"株式会社多磨バイオ","東京都武蔵野市境２-２-１８グランクレステ４０２"]
[2010401128321,"ＡｍｉｃｕｓＴｈｅｒａｐｅｕｔｉｃｓ株式会社","東京都千代田区大手町１-５-１大手町ファーストスクエアイーストタワー４階"]
[2010401135243,"アルジョ・ジャパン株式会社","東京都港区東新橋２-１１-３第２小川ビル"]
[2010401138881,"株式会社カスタム","東京都千代田区外神田三丁目６番１２号"]
[2010402035938,"株式会社ウエリングトン＆アソシエイツ","東京都港区赤坂２-２２-１８福吉町アネックスビル"]
[2010501006047,"株式会社シャンティ","東京都新宿区市谷本村町１-１住友市ヶ谷ビル"]
[2010501006740,"株式会社センチュリー","東京都新宿区高田馬場４-１６-９ケイワビル"]
[2010501007292,"田中産業株式会社","東京都荒川区荒川６－２６－５"]
[2010501010585,"日本ルフト株式会社","東京都台東区東上野５-１-８上野富士ビル"]
[2010501015072,"株式会社モリムラ","東京都台東区上野３－１７－１０"]
[2010501022052,"株式会社マティス","東京都港区港南２-１２-２７イケダヤ品川ビル"]
[2010501027423,"株式会社フィヨーレコスメティクス","東京都台東区三筋二丁目２３番６号瀧川株式会社第二本社ビル"]
[2010501027984,"株式会社タマ美容化学","東京都台東区小島２-１８-１４"]
[2010501029378,"クレシオ株式会社","東京都台東区蔵前三丁目１番１０号蔵前セントラルビル７階"]
[2010601001484,"株式会社クロダプロダクツ","東京都江東区北砂３-４-４"]
[2010601010270,"株式会社黒ばら本舗","東京都墨田区本所２-１７-７"]
[2010601010535,"小堺製薬株式会社","東京都墨田区両国四丁目３６番９号"]
[2010601013397,"玉の肌石鹸株式会社","東京都墨田区緑３-８-１２"]
[2010601017349,"株式会社川崎医科器械製作所","東京都墨田区東駒形３-２４-６"]
[2010601030129,"株式会社トップラン","東京都大田区蒲田５-２８-２ＭＣＭビル"]
[2010601032728,"ベックマン・コールター株式会社","東京都江東区有明三丁目５番７号ＴＯＣ有明ウエストタワー"]
[2010601040169,"クロス・メディカルサービス株式会社","東京都墨田区両国四丁目２番８号ヤマシタビル"]
[2010601040672,"イワタ株式会社","東京都墨田区立花五丁目３番１７号"]
[2010601048204,"アサヒグループ食品株式会社本社","東京都渋谷区恵比寿南２-４-１アサヒグループカルピス恵比寿ビル"]
[2010601051356,"株式会社ＴＣＣ","東京都文京区本郷三丁目３１番６号アークエムビル"]
[2010601053501,"リバーフィールド株式会社","東京都新宿区左門町２０番地四谷メディカルビル"]
[2010602014444,"有限会社東京製網所","東京都墨田区本所３-５-５"]
[2010701005229,"センチュリーメディカル株式会社","東京都品川区大崎１-１１-２ゲートシティ大崎イーストタワー"]
[2010701007159,"ドルニエメドテックジャパン株式会社","東京都品川区上大崎３-８-５目黒エステートビル"]
[2010701013207,"株式会社ビーエムシー東京営業所","東京都中央区日本橋茅場町１-１１-２フジビル１６３階"]
[2010701020806,"株式会社アルビオン","東京都中央区銀座１-７-１０ヒューリック銀座ビル"]
[2010701020806,"株式会社テクノラボ","東京都中央区銀座１-７-１０ヒューリック銀座ビル"]
[2010701020987,"日本ライフライン株式会社","東京都品川区東品川２-２-２０天王洲郵船ビル"]
[2010701023560,"フレゼニウスカービジャパン株式会社","東京都港区虎ノ門五丁目１３番１号虎ノ門４０ＭＴビル"]
[2010801002357,"株式会社おもちゃ箱","東京都大田区田園調布南２６-１２"]
[2010801004782,"三宝化学株式会社","東京都大田区萩中２丁目６番１７号"]
[2010801005070,"ジェイオーコスメティックス株式会社","東京都大田区大森西３-１２-１０"]
[2010801018444,"メディカルテック株式会社","東京都大田区大森西一丁目１９番１６号"]
[2010801019277,"ケーディーアイコンズ株式会社","東京都大田区大森南４-６-１５テクノＦＲＯＮＴ森ヶ崎"]
[2010801019310,"プレミアハートジャパン株式会社","東京都港区南麻布５丁目３番３号串山ビル"]
[2010802005631,"有限会社小山製作所","東京都江戸川区北小岩２-２０-２１"]
[2010901008411,"東陽化成株式会社","東京都世田谷区駒沢１-１７-１７真成ビル５階"]
[2010901014995,"日本・バイオ株式会社","東京都世田谷区梅丘３-１４-１４"]
[2010902005944,"有限会社近藤生産性技術所","東京都世田谷区桜新町２-１４-１１"]
[2011001000580,"株式会社アイメトリクス・ジャパン","東京都渋谷区道玄坂一丁目１６番７号ハイウェービル"]
[2011001017690,"株式会社日本生物製剤","東京都渋谷区富ヶ谷１丁目４４番４号"]
[2011001018598,"皮膚臨床薬理研究所株式会社","東京都渋谷区南平台町１７-７たばこ商業協同組合ビル３階"]
[2011001036303,"ロタレックス・ジャパン株式会社","東京都台東区台東一丁目２７番１１号やわらぎビル６Ｆ"]
[2011001037549,"アクテリオンファーマシューティカルズジャパン株式会社","東京都港区赤坂９-７-１ミッドタウン・タワー"]
[2011001041633,"クーパービジョン・ジャパン株式会社本社","東京都渋谷区恵比寿２-３６-１３"]
[2011001042441,"株式会社ジヴァスタジオ","東京都渋谷区神宮前６-１７-１１ＪＰＲ原宿ビル"]
[2011001042441,"株式会社マードゥレクス","東京都渋谷区神宮前６-１７-１１ＪＰＲ原宿ビル"]
[2011001047432,"株式会社オンリースタイル","東京都新宿区北新宿１-５-２佐藤ビル２階"]
[2011001053918,"株式会社オードレマン","東京都中央区銀座５-１４-１６銀座アビタシオン"]
[2011001061672,"株式会社ミナモ","東京都渋谷区猿楽町５-１７第一ニシオビル"]
[2011001064659,"株式会社良導絡研究所","東京都渋谷区幡ヶ谷二丁目２４番１号遠山ビル"]
[2011001099036,"エルピクセル株式会社","東京都文京区本郷７-３-１東京大学アントレプレナープラザ"]
[2011001102336,"株式会社ＵＰＰＥＲＨＯＵＳＥ","東京都渋谷区恵比寿二丁目２８番７号ＳｈｕＢＬＤＧ１１５２"]
[2011001106444,"株式会社ＰＥＮＴＡＳ","東京都渋谷区渋谷三丁目２７番１１号祐真ビル新館"]
[2011001118175,"アルプ株式会社","東京都羽村市緑ヶ丘３-３-１０"]
[2011002016898,"有限会社ヌーベル","東京都葛飾区堀切１-１８-１株式会社ナウケミカル内"]
[2011101014794,"東洋メディック株式会社","東京都新宿区東五軒町２-１３"]
[2011101016254,"日本光電工業株式会社","東京都新宿区西落合１-３１-４"]
[2011101016312,"株式会社ニチゲン","東京都新宿区新小川町８-１３中里ビル"]
[2011101017533,"カールツァイスメディテック株式会社本社","東京都新宿区四谷本塩町１３番１１号"]
[2011101017533,"カールツァイスビジョンジャパン株式会社","東京都新宿区四谷本塩町１３番１１号"]
[2011101021238,"株式会社ビューティーエクスペリエンス","東京都世田谷区用賀４-１０-１世田谷ビジネススクエアタワー"]
[2011101038570,"コアフロント株式会社","東京都新宿区市谷本村町２-１１外濠スカイビル"]
[2011101050039,"株式会社ディーピーシー","東京都千代田区三崎町三丁目６番１２号ＫＤＸ神田三崎町ビル"]
[2011101050071,"ジーニアアンドアーレイ株式会社バイオメディカル事業部","東京都新宿区新宿１-４-１２シティ御苑ビル"]
[2011101054106,"株式会社アイカ","東京都港区赤坂九丁目１番７号赤坂レジデンシャル３６３号"]
[2011101056358,"株式会社ＮＴＴデータ・アイ医療福祉事業部","東京都江東区豊洲３-３-９豊洲センタービルアネックス"]
[2011101064492,"ＴＭＳＣ株式会社","東京都千代田区二番町１番地２番町ハイム６０１"]
[2011101070788,"株式会社キュア・アップ","東京都中央区日本橋小伝馬町１２-５小伝馬町ＹＳビル４階"]
[2011201002146,"ザナチュラルラボラトリー株式会社","東京都中野区本町三丁目６番８号"]
[2011201009810,"ＡｒｔｈｒｅｘＪａｐａｎ合同会社","東京都新宿区西新宿二丁目４番１号新宿ＮＳビル"]
[2011201012863,"ブラン製薬株式会社","埼玉県入間市狭山ケ原２１９番地４"]
[2011301001873,"救心製薬株式会社","東京都杉並区和田１-２１-７"]
[2011302007003,"有限会社日本整形機器","東京都杉並区和泉３-４９-６"]
[2011401003522,"株式会社セキムラ","東京都板橋区志村１-２８-１"]
[2011401004727,"株式会社都北医療器製作所","東京都板橋区蓮沼町５１-６"]
[2011401005345,"株式会社ビーアンドアイ","東京都文京区本郷二丁目２５番１４号　第一ライトビル"]
[2011401006896,"株式会社ライト製作所","東京都板橋区前野町一丁目４７番３号"]
[2011401016383,"博実技研株式会社","東京都千代田区内神田３－２－１喜助内神田３丁目ビル２０２"]
[2011402006978,"有限会社沼田光機製作所","東京都板橋区前野町４－２－１"]
[2011501005476,"株式会社イトー医科器械","東京都荒川区東日暮里６-４９-１５ディユバレビル"]
[2011501016242,"メディレックス株式会社","東京都北区中里二丁目６番１４号駒込ＮＡＣビル"]
[2011602007628,"有限会社ナビーム","東京都練馬区春日町５-３３-５"]
[2011701010045,"株式会社ＹＫＣ","東京都千代田区五番町１２-４-４０２五番町コート"]
[2011701016570,"株式会社カズサ","千葉県長生郡白子町南日当２４２４-６"]
[2011702013633,"有限会社ユーマンネットワーク東京営業所","東京都江東区青海２-７-４ｔｈｅＳＯＨＯ"]
[2011801003378,"東豊薬品株式会社","東京都葛飾区西新小岩４-１５-３"]
[2011801004764,"ミマスクリーンケア株式会社","東京都葛飾区西新小岩４-１２-１１"]
[2011801008162,"サンデン医科工業株式会社","東京都足立区鹿浜６丁目１７番９号"]
[2011801008740,"株式会社Ｊメイク　第二工場","東京都足立区六月２－１２－１　第６コンクラビル"]
[2011801011868,"株式会社星医療酸器","東京都足立区入谷７-１１-１８"]
[2011801022353,"東京光電株式会社","東京都足立区綾瀬五丁目２４番５号スエヒロビル３階"]
[2011801028631,"株式会社タグチ","東京都文京区千石１-２９-１２千石片岡ビル"]
[2011802003071,"有限会社齋藤デンタル工業","東京都葛飾区堀切２-５６-８"]
[2011802005159,"有限会社辻製作所","東京都葛飾区東立石４丁目３４-４"]
[2011802026543,"株式会社シーアンドケイ","東京都葛飾区堀切八丁目２４番１２号"]
[2012301002291,"株式会社ベル・コーポレーション品川営業所","東京都品川区南大井３-１９-３トップ大森３０６号室"]
[2012401000889,"多摩岡産業株式会社","東京都府中市白糸台２-３２-２"]
[2012401002332,"株式会社泰平工業研究所","東京都国分寺市本多５-２５-３０"]
[2012401007810,"株式会社ジーシー","東京都板橋区蓮沼町７６番１号"]
[2012401011093,"株式会社クリプトン","東京都新宿区四谷４-３-１２第１２大鉄ビル"]
[2012401011647,"日機装サーモ株式会社","東京都武蔵野市境二丁目４番２４号武蔵境フコク生命ビル"]
[2012401016877,"株式会社エクスプロア","東京都小金井市前原町三丁目４０番２０-２１０号小金井ビューハイツ"]
[2012401020292,"株式会社クレハ本社別館","東京都新宿区百人町三丁目２６番２号"]
[2012701007774,"シチズン・システムズ株式会社","東京都西東京市田無町６-１-１２"]
[2012701008979,"株式会社ベルフサイエンス研究所","東京都西東京市ひばりが丘北三丁目３番３０号エクレールひばり５０５"]
[2012801002320,"株式会社タチエスＨ＆Ｐ羽村工場","東京都羽村市栄町三丁目４番地３"]
[2013101003835,"株式会社デントロケミカル","東京都青梅市今井３-２-１２"]
[2013201001565,"株式会社キタニ","東京都目黒区目黒本町２-５-３"]
[2013201004477,"日腸工業株式会社","東京都目黒区自由が丘２-４-１６"]
[2013201005764,"ミラリジャパン株式会社","東京都千代田区二番町４番地５住友不動産二番町ファーストビル７階"]
[2013201006060,"株式会社ヤヨイ","東京都文京区本郷２-１８-４"]
[2013201018270,"ミーレ・ジャパン株式会社","東京都目黒区目黒一丁目２４番１２号　オリックス目黒ビル"]
[2013301001102,"一元製薬株式会社","東京都豊島区要町３-４-１０"]
[2013301005441,"株式会社霜鳥研究所","東京都豊島区池袋２-４７-３キウレイコンビル８階"]
[2013401004302,"日本バイオセンサーズ株式会社","東京都千代田区内幸町１-１-７ＮＢＦ日比谷ビル"]
[2020001001365,"相模アセチレン株式会社","神奈川県横浜市瀬谷区目黒町８-５"]
[2020001008815,"スターキージャパン株式会社","神奈川県横浜市港北区新横浜２-６-２３"]
[2020001009788,"銀河株式会社","神奈川県横浜市西区岡野２-６-２７"]
[2020001017436,"株式会社サガミ","神奈川県横浜市鶴見区上末吉３-３-３０"]
[2020001018186,"東邦酸素工業株式会社","神奈川県横浜市鶴見区江ヶ崎町１１番３４号"]
[2020001042186,"東芝マテリアル株式会社","神奈川県横浜市磯子区新杉田町８"]
[2020001042186,"東芝エネルギーシステムズ株式会社磯子エンジニアリングセンター","神奈川県横浜市磯子区新杉田町８"]
[2020001043515,"株式会社クロスウェル","神奈川県横浜市西区岡野１-15-９-301"]
[2020001066350,"株式会社ジョブ","神奈川県横浜市港北区新横浜３-２２-４ジョブ新横浜ビル"]
[2020001082158,"株式会社コスモテック","神奈川県横浜市磯子区磯子台２６-１"]
[2020001086737,"ｂｉｏｓｙｎｃ株式会社","神奈川県横浜市港北区新横浜２-１４-４"]
[2020001118770,"ＯＲＴメディカル株式会社","神奈川県横浜市港北区新横浜二丁目７番地１９竹生第２ビル９階"]
[2020002050428,"有限会社皮膚薬化学研究所","神奈川県横浜市西区北幸２-１-６"]
[2021001022657,"タイヨウ株式会社","神奈川県平塚市紅谷町８-１６-８０６"]
[2021001027210,"株式会社ピクシー中央研究所","神奈川県綾瀬市上土棚中３-７-１"]
[2021001037894,"東和酵素株式会社平塚工場","神奈川県平塚市達上ケ丘１-６"]
[2021001040782,"東海産業株式会社","神奈川県茅ヶ崎市茅ヶ崎３-１-１４"]
[2021001055500,"株式会社リリアム大塚","神奈川県相模原市中央区千代田四丁目１２番６号"]
[2021002027597,"有限会社マチダ","神奈川県秦野市曽屋４３０-５"]
[2030001007568,"株式会社ヘレナ研究所","埼玉県さいたま市浦和区常盤９-２１-１９"]
[2030001018549,"株式会社東京チタニウム","埼玉県さいたま市岩槻区古ケ場２-２-９"]
[2030001029521,"株式会社宣工社ロジスティクスセンター","埼玉県所沢市日比田７２１-３"]
[2030001030660,"浦和工業株式会社","埼玉県久喜市河原井町１２"]
[2030001041633,"株式会社鈴商総合ガスセンター","埼玉県上尾市大字平塚７３番地"]
[2030001048629,"リサ株式会社","埼玉県志木市館２-５-２志木ニュ-タウン鹿島ビル３Ｆ"]
[2030001053769,"田中ゴム株式会社","埼玉県春日部市増田新田３９１-２８"]
[2030001054957,"株式会社サクサン","埼玉県川越市砂新田８０-３８"]
[2030001062027,"ジェーピーイー株式会社","埼玉県北本市宮内７-１７６"]
[2030001067281,"株式会社ニチリョー越谷本社工場","埼玉県越谷市西方２７６０-１"]
[2030001074294,"株式会社柿沼製作所","埼玉県川口市南鳩ヶ谷１ー３２ー２０"]
[2030001074823,"株式会社コスミックエムイー","埼玉県川口市芝下二丁目３１番３号"]
[2030001077099,"株式会社ベステック","埼玉県朝霞市栄町３-３-２７"]
[2030001085184,"株式会社福島オーツー深谷支店","埼玉県深谷市菅沼１２３７番地１"]
[2030001116303,"株式会社アクセスバイオジャパン","東京都台東区浅草橋五丁目４番１号ツバメグロースビル"]
[2030002090943,"サンリード硝子有限会社","埼玉県越谷市平方南町２-２"]
[2040001001099,"株式会社オーケー光学","千葉県千葉市花見川区宇那谷町１５０４-９"]
[2040001002758,"株式会社サックス","千葉県千葉市稲毛区園生町８９３-１８"]
[2040001033076,"タメック株式会社","千葉県浦安市東野二丁目２３番６号モア・ステージ新浦安１２４"]
[2040001033332,"エス・アンド・ブレイン株式会社","千葉県浦安市富岡３-３Ｆ４１５"]
[2040001040196,"ハイム化粧品株式会社","千葉県松戸市上本郷２８９-３"]
[2040001049147,"第一クラリティ株式会社","千葉県佐倉市宮前３-４-３"]
[2040001050988,"株式会社山忠","千葉県木更津市潮浜１丁目１７番地１６"]
[2040001080878,"帝国通商株式会社","千葉県市川市富浜一丁目４番１４号"]
[2040002050335,"有限会社田川電気研究所","千葉県松戸市松戸１１３-１-１０８"]
[2040002091362,"有限会社深井製作所","千葉県柏市豊四季３１０-８"]
[2050001031203,"株式会社ユーホーニイタカ","茨城県常総市大生郷町６１３６番７"]
[2060001014727,"太陽金属工業株式会社","栃木県下都賀郡野木町潤島８００-２６"]
[2060001020618,"フォルテグロウメディカル株式会社","栃木県佐野市大橋町１６４７"]
[2060001026037,"株式会社遺伝子治療研究所","神奈川県川崎市川崎区殿町３丁目２５番２２号"]
[2060002014949,"有限会社佐藤化成工業所","栃木県日光市岩崎１４７１"]
[2070001005304,"株式会社サカエ","群馬県藤岡市鬼石３５７"]
[2070001005304,"株式会社サカエ","群馬県藤岡市東平井１４１０番１"]
[2070001014404,"株式会社アペックス","群馬県高崎市上並榎町２５８-２"]
[2070001018124,"サンテック株式会社","群馬県渋川市中村１１５１番地"]
[2080001001979,"株式会社仁生堂","静岡県静岡市駿河区大谷二丁目５番１号"]
[2080001008735,"東海アセチレン株式会社","静岡県静岡市清水区三保５１１番地の６"]
[2080001009221,"株式会社三保製薬研究所","静岡県静岡市清水区中河内１５１３"]
[2080001013421,"株式会社トップランド本社工場","静岡県島田市金谷猪土居３１８３-２"]
[2080001014031,"南部化成株式会社吉田事業所","静岡県榛原郡吉田町神戸３５８５"]
[2080101000996,"株式会社タウンズ","静岡県伊豆の国市神島７６１番１"]
[2080101001210,"東海部品工業株式会社富士メディテックセンター","静岡県駿東郡長泉町下長窪１００２-１"]
[2080101001243,"東静電子制御株式会社","静岡県沼津市松長６２６-９"]
[2080101001755,"株式会社ホリックス","静岡県沼津市足高２９４-４６"]
[2080101003941,"株式会社ア・ジャストポリマー","静岡県御殿場市神場二丁目３２番地"]
[2080101006060,"沼津酸素工業株式会社","静岡県駿東郡清水町柿田９５４"]
[2080101006127,"深澤電工株式会社","静岡県駿東郡長泉町桜堤３-６-１４"]
[2080101006787,"株式会社ヒューマン・エンジニアリング","静岡県三島市新谷１６６-３"]
[2080101007422,"株式会社ダイテックジャパン","静岡県沼津市大平６６７-７"]
[2080101011283,"株式会社エム・イー・リサーチ","静岡県富士宮市小泉２３７２-６"]
[2080401004193,"浜松ホトニクス株式会社常光製作所","静岡県浜松市東区常光町８１２番地"]
[2080401005893,"ローランドディー．ジー．株式会社","静岡県浜松市北区新都田一丁目１番３号"]
[2080401010290,"ハマ電工株式会社","静岡県浜松市浜北区豊保２４５-１"]
[2080401017526,"フェイスラボ株式会社","静岡県袋井市久能１９３４番地の２"]
[2090001000831,"古守工業株式会社","山梨県甲府市住吉４-６-２４"]
[2090001006548,"株式会社富士エス・エル・アイ","山梨県甲府市川田町９４６‐１"]
[2100001003989,"株式会社黒姫和漢薬研究所","長野県上水内郡信濃町大字柏原４３８２番地"]
[2100001004962,"ファミリー・サービス・エイコー株式会社","長野県長野市居町４３番地１"]
[2100001012817,"エンジニアリングシステム株式会社","長野県松本市笹賀５６５２-８３"]
[2100001015175,"株式会社デンソーエアクール穂高工場","長野県安曇野市穂高北穂高２０２７-９"]
[2100001021529,"株式会社信濃ケミカル","長野県上伊那郡箕輪町大字中箕輪７５００"]
[2100001027435,"株式会社メディソレーユ","長野県東筑摩郡筑北村東条１４６６-１"]
[2120001014530,"香椎化学工業株式会社本社","大阪府大阪市城東区成育２-１４-２４"]
[2120001016114,"株式会社富士眼鏡機械製作所","大阪府大阪市城東区鴫野東３丁目２７番２６号"]
[2120001018102,"大和熔材株式会社","大阪府大阪市生野区巽南３-２-１０"]
[2120001018275,"株式会社東邦","大阪府大阪市生野区巽東２-１９-１９"]
[2120001021667,"株式会社マーク・マックス","大阪府泉南市信達牧野１０００-７１Ｂ３０３"]
[2120001039767,"株式会社フジ医療器大阪工場","大阪府南河内郡太子町太子２３７２-９５"]
[2120001046078,"浪速酸素株式会社八尾工場","大阪府八尾市楽音寺４丁目８０"]
[2120001049980,"株式会社田中科学","大阪府大阪市西淀川区歌島一丁目十九番二号"]
[2120001054849,"共和薬品工業株式会社","大阪府大阪市淀川区西中島５-１３-９"]
[2120001063899,"小太郎漢方製薬株式会社","大阪府大阪市北区中津２丁目５番２３号"]
[2120001071745,"株式会社ユニメディック","大阪府大阪市北区西天満３-６-２８オクタス西天満ビル２階"]
[2120001077346,"アルフレッサファーマ株式会社","大阪府大阪市中央区石町２-２-９"]
[2120001077461,"武田薬品工業株式会社本社","大阪府大阪市中央区道修町４-１-１"]
[2120001085902,"株式会社ナリスアップコスメティックス","大阪府大阪市福島区海老江５丁目１番６号"]
[2120001089184,"株式会社ベルリーナ","大阪府大阪市中央区高麗橋２-５-１０"]
[2120001092080,"大阪ガスリキッド株式会社","大阪府大阪市中央区北浜四丁目７番１９号住友ビルディング第３号館５階"]
[2120001095983,"サンセイ株式会社","大阪府大阪市城東区今福西４-２-２９"]
[2120001097963,"株式会社マスコール","大阪府枚方市招提大谷３丁目１１-１"]
[2120001098714,"ニチリンケミカル株式会社","大阪府大阪市北区堂島２-２-２"]
[2120001100652,"ゴールデンダンス株式会社","大阪府大阪市城東区古市３-２２-１９"]
[2120001101519,"太陽堂製薬株式会社","大阪府大阪市西区西本町二丁目６番１１号"]
[2120001119032,"ホロスリン製薬株式会社","大阪府大阪市生野区小路２-８-９"]
[2120001123075,"株式会社サンメディカル本社","大阪府大阪市北区浮田１丁目５-１２"]
[2120001128173,"株式会社ＨＢＣサイエンス研究所","大阪府大阪市東成区東中本３-１３-９"]
[2120001137406,"株式会社日本ウエルネス","大阪府大阪市北区堂島２丁目１-３１京阪堂島ビル"]
[2120001137406,"株式会社ベネシード","大阪府大阪市北区堂島２丁目１-３１京阪堂島ビル"]
[2120001141110,"株式会社アンフィ","大阪府大阪市北区天満二丁目１番２０号天満松茂ビル５階"]
[2120001141993,"イフイング株式会社","東京都中央区銀座六丁目１０番１号ＧＩＮＺＡＳＩＸ"]
[2120001142950,"株式会社ＵＬＴＩ-Ｍｅｄｉｃａｌ","大阪府大阪市生野区巽西３-３-２"]
[2120001146381,"株式会社ＡＭＩ","大阪府大阪市平野区長吉川辺３-１４-２１"]
[2120001151786,"ホソカワミクロン株式会社","大阪府枚方市招提田近一丁目９番地"]
[2120001153312,"アクアプロセス株式会社","大阪府交野市星田北１丁目３８番１７号"]
[2120001155366,"株式会社エー・アイ・シー","大阪府大阪市平野区加美西２丁目７-１８"]
[2120001156538,"ビタカイン製薬株式会社","大阪府守口市橋波西之町２丁目５-１６"]
[2120001176577,"株式会社クラヴァ―フィア―","大阪府柏原市円明町１０００-１３３"]
[2120001177377,"株式会社ＥｌＤｏｒａｄｏ","大阪府大阪市中央区西心斎橋１-５-５アーバンＢＬＤ心斎橋６階"]
[2120001181841,"株式会社プロスパー","大阪府八尾市北亀井町一丁目６番９号"]
[2120001185132,"メディカルアークス株式会社","大阪府大阪市北区天満２-１２-３ヴィレッジリバー南森町３-Ｃ"]
[2120001185495,"株式会社フロジュ-ル","大阪府枚方市津田山手２丁目４番１号"]
[2120001191147,"株式会社ＱＵＩＸ","大阪府大阪市中央区内本町一丁目２番５号"]
[2120001193515,"ピジョン化学工業株式会社","大阪府枚方市北中振１‐３５‐１４‐２０３"]
[2120101002187,"甲陽化成株式会社","大阪府堺市堺区山本町１丁１７番"]
[2120101002848,"ケアライフ・メディカルサプライ株式会社","大阪府堺市西区浜寺石津町西２丁１番６号"]
[2120101022359,"ビューティードア株式会社","大阪府富田林市錦織東１丁目５-２２"]
[2120101022359,"ビューティードア株式会社","大阪府堺市堺区北庄町２丁２-２２"]
[2120101024719,"株式会社セレクション","大阪府大阪市港区弁天３丁目２番２１号"]
[2120101025329,"株式会社セイワ・プロ","大阪府松原市別所２丁目３-２０"]
[2120101026517,"株式会社共和","大阪府泉佐野市鶴原４-４-８１"]
[2120101031351,"浅岡紙器株式会社","大阪府南河内郡河南町大字白木１０８４-１番地"]
[2120101049947,"株式会社ＮＡＫＡＧＡＷＡ","大阪府大阪市阿倍野区阪南町３-２６-２"]
[2120101053008,"株式会社テクノライジング","大阪府堺市北区野遠町６１-５"]
[2120901002618,"株式会社日昌医療器","大阪府茨木市豊川５丁目２６番６号"]
[2120901005736,"オッペン化粧品株式会社","大阪府吹田市岸部南２-１７-１"]
[2120901006692,"株式会社ジー．エム．イー．","大阪府大阪市東淀川区西淡路３丁目８番６号"]
[2120901007344,"大幸薬品株式会社","大阪府吹田市内本町３丁目３４-１４"]
[2120901009860,"ニッシン化研株式会社","大阪府摂津市学園町１-７-４６"]
[2120901013482,"株式会社イーエスティージャパン","大阪府吹田市南金田１-４-３１"]
[2120901023647,"ケンビ株式会社","大阪府豊中市原田中１-１４-４８"]
[2120901024265,"株式会社スハダコスメチックス","大阪府豊中市上新田１-３-１８"]
[2120901033497,"株式会社エーゼット大阪工場","大阪府大阪市鶴見区茨田大宮１-７-５９"]
[2120902002006,"有限会社デントレード","大阪府茨木市下穂積４-１３-１０６・１０７・１０８"]
[2122001020954,"三和化学工業株式会社","大阪府柏原市高井田４６７"]
[2122001026662,"株式会社リアクトシステム","大阪府東大阪市高井田西２-４-６"]
[2130001009307,"サンパルコ株式会社","京都府京都市東山区福稲上高松町６４-２"]
[2130001012236,"日本新薬株式会社","京都府京都市南区吉祥院西ノ庄門口町１４番地"]
[2130001012707,"株式会社佐伯製作所","京都府京都市山科区西野山百々町２５４-１"]
[2130001015503,"ファイテン株式会社","京都府京都市伏見区羽束師菱川町４９０-３"]
[2130001015503,"ファイテン株式会社","京都府京都市伏見区羽束師菱川町４９１-１"]
[2130001020486,"京中貿易株式会社","京都府京都市中京区神泉苑通御池下る神泉苑町１番地２"]
[2130001020932,"株式会社サンコンタクトレンズ","京都府京都市中京区麩屋町夷川上ル笹屋町４７５番地"]
[2130001031822,"株式会社グッドスマイルインターナショナル","京都府京都市左京区岩倉忠在地町３６２-１"]
[2130001033942,"株式会社セファメディックス","京都府久世郡久御山町大字佐古小字外屋敷９１番地の３"]
[2130001047141,"株式会社テック技販","京都府宇治市大久保町西ノ端１番地２２"]
[2140001004884,"株式会社シミズテック","兵庫県神戸市西区室谷２-２-６"]
[2140001009438,"株式会社ディンギー","兵庫県神戸市中央区浜辺通五丁目１番１４号"]
[2140001015675,"株式会社アジュバンコスメジャパン","兵庫県神戸市中央区下山手通五丁目５番５号"]
[2140001016467,"株式会社千代田精機","兵庫県神戸市長田区東尻池町７-９-２１"]
[2140001021574,"株式会社ボナンザ","兵庫県神戸市中央区港島中町６-１３-１"]
[2140001028215,"株式会社オフテクス","兵庫県神戸市中央区港島南町５丁目２番４"]
[2140001056579,"日本精機宝石工業株式会社","兵庫県美方郡新温泉町芦屋１００"]
[2140001066090,"株式会社ｓｔａｒｃｈｉｐ","兵庫県姫路市栗山町１７４番地２"]
[2140001067147,"桐灰小林製薬株式会社","兵庫県三田市テクノパーク１８-９"]
[2140001098943,"株式会社スパイク","兵庫県神戸市中央区港島六丁目２番地２"]
[2140001101723,"株式会社メディナチュラボ","兵庫県神戸市中央区加納町６丁目３番１号"]
[2150001009230,"株式会社植野ガス","奈良県桜井市大字粟殿６０"]
[2150001010601,"全国薬品工業株式会社","奈良県橿原市今井町２-１-２"]
[2150001010683,"株式会社タカトリ","奈良県橿原市新堂町３１３-１"]
[2150001012449,"岡本株式会社","奈良県北葛城郡広陵町大字大塚１５０番地の１"]
[2150001012473,"大峰堂薬品工業株式会社","奈良県大和高田市大字根成柿５７４番地"]
[2150001013372,"株式会社伏山酸素商会","奈良県香芝市五位堂６丁目６番地"]
[2150001013728,"和平製薬株式会社","奈良県葛城市辨之庄３８０-１"]
[2150001013892,"至誠堂製薬株式会社","奈良県御所市茅原２２０番地の１"]
[2160001005526,"株式会社滋賀松風","滋賀県甲賀市信楽町黄瀬２２９６"]
[2160001013537,"山科精器株式会社","滋賀県栗東市東坂５２５番地"]
[2160001014790,"日本レース株式会社","滋賀県草津市野路東三丁目７番３１号"]
[2160001020368,"大昭製薬株式会社","滋賀県甲賀市甲賀町大原市場１６８番地"]
[2160002001945,"有限会社山岡医科器械製作所","滋賀県大津市国分２丁目２７番３３号"]
[2170001001276,"剤盛堂薬品株式会社","和歌山県和歌山市太田二丁目８番３１号"]
[2170001002299,"東洋除虫菊株式会社和歌山工場","和歌山県和歌山市平井１２５番地"]
[2170001002299,"東洋薬品工業株式会社","和歌山県和歌山市平井１２５番地"]
[2170001007109,"加賀インセクティサイド株式会社","和歌山県有田郡湯浅町湯浅１６４３"]
[2170001007471,"株式会社旭ケミカル","和歌山県有田市新堂２６７"]
[2170001007471,"三和インセクティサイド株式会社","和歌山県有田市新堂２６７"]
[2180001000483,"サンテック株式会社","愛知県小牧市大字大草字年上坂５８２３番地"]
[2180001007297,"不二精工株式会社","愛知県名古屋市港区新船町２丁目１番地"]
[2180001017841,"日陶科学株式会社","愛知県名古屋市東区徳川二丁目１８番３号"]
[2180001017940,"バイオリサーチセンター株式会社","愛知県名古屋市東区泉二丁目２８番２４号東和高岳ビル４Ｆ"]
[2180001019978,"株式会社たかふね工業","愛知県名古屋市中川区九重町６番１７号"]
[2180001023600,"株式会社サンコール春日井工場","愛知県春日井市高森台４丁目１６-１１"]
[2180001034779,"エルテック株式会社","愛知県名古屋市中区錦２-１８-５白川第６ビル２階"]
[2180001037583,"大和製薬株式会社","富山県富山市水橋二杉１-２"]
[2180001047475,"株式会社中京メディカル","愛知県名古屋市熱田区神宮三丁目８番２０号神宮東熱田ビル７階"]
[2180001053390,"株式会社ムーランエムーラン","愛知県名古屋市中村区椿町１６番８号ノノガワ名駅ビル２Ｆ"]
[2180001069775,"株式会社松栄電子研究所","愛知県豊明市沓掛町一長田２６番１４５"]
[2180001074214,"株式会社ジーシーデンタルプロダクツ","愛知県春日井市鳥居松町２-２８５"]
[2180001081094,"ニチエー株式会社","愛知県稲沢市日下部花ノ木町１-１"]
[2180001095945,"株式会社ヘルスケミカル","愛知県常滑市久米字池田１７９番地"]
[2180001105159,"株式会社メリーサイト","愛知県名古屋市中区栄四丁目１４番２号久屋パークビル５階"]
[2180001116131,"株式会社ランウェイ","愛知県名古屋市中区丸の内三丁目５番２４号ノノガワビル６階"]
[2180001119679,"株式会社ＡＬＶＡＣ","愛知県春日井市東野町５丁目１６番地３"]
[2180001130330,"オムピジャパン株式会社","愛知県名古屋市中区葵３-２１-１３クラリティズビル３Ｆ"]
[2180002043614,"有限会社エムコーポレーション","愛知県名古屋市中村区名駅三丁目１８番５号モンマートビル１階"]
[2180002049165,"有限会社プロップ","愛知県名古屋市緑区大高町字寅新田１３８-１"]
[2180301012699,"英昌化学工業株式会社","愛知県安城市三河安城東町２丁目１０番地１"]
[2190001009945,"株式会社ＥＮＴＯＲＲＥＳ","三重県津市江戸橋１丁目８２番地３"]
[2200001004770,"マイクロアルジェコーポレーション株式会社","岐阜県岐阜市曙町４-１５"]
[2200001007039,"株式会社キャラマス","岐阜県加茂郡坂祝町酒倉１０６３番地"]
[2200001011321,"株式会社日健総本社","岐阜県羽島市福寿町浅平１-３２"]
[2200001012146,"日興製薬株式会社江吉良工場","岐阜県羽島市江吉良町１５９３番地"]
[2200001016270,"株式会社タニサケ","岐阜県揖斐郡池田町片山２９５７-１"]
[2200001019026,"カイインダストリーズ株式会社","岐阜県関市小屋名１１１０"]
[2200001019447,"ニッケン刃物株式会社","岐阜県関市東貸上１２-２"]
[2200001020909,"日本ラミナリア株式会社","岐阜県多治見市坂上町五丁目１５番地"]
[2210001001065,"株式会社クォードコーポレーション","福井県福井市下河北町第１１号１３番地"]
[2210001001206,"株式会社コーテック","福井県福井市成和２丁目１１１８"]
[2210001003747,"増永眼鏡株式会社","福井県福井市今市町第４号１５番地"]
[2210001009257,"株式会社クリエーション","福井県福井市和田２丁目１０１５-１"]
[2210001012764,"株式会社加藤八","福井県鯖江市吉江町１０５番地"]
[2210001012772,"金子眼鏡株式会社","福井県鯖江市宮前２丁目３０２-２"]
[2210001012855,"株式会社コンベックス","福井県鯖江市丸山町３-４-２３"]
[2210001012979,"株式会社シャルマン","福井県鯖江市川去町６-１"]
[2210001013845,"イオックス株式会社","福井県福井市中野町第１３号４番地"]
[2220001000157,"中村留精密工業株式会社光学・メディカル事業部","石川県白山市部入道町ホ１４番地３"]
[2230001001179,"新新薬品工業株式会社","富山県富山市今市３２４番地"]
[2230001002648,"ファーマパック株式会社","富山県富山市小中１６３番地"]
[2230001004719,"株式会社池田模範堂","富山県中新川郡上市町神田１６番地"]
[2230001012110,"株式会社パナケイア製薬","富山県高岡市中田４５７６番地"]
[2240001001632,"大木化学工業株式会社","広島県広島市西区東観音町１-１６"]
[2240001023288,"株式会社コーポレーションパールスター","広島県東広島市安芸津町三津４４２４番地"]
[2240001036562,"株式会社ハマダ","広島県安芸郡府中町茂陰一丁目９番４１号"]
[2240001037800,"因の島ガス株式会社","広島県尾道市因島田熊町５０３７"]
[2260001004501,"株式会社イーアールディー","岡山県岡山市北区富吉２９１４-１"]
[2260001020564,"ツチダ産業株式会社","岡山県津山市一方３３５-１"]
[2260001021430,"日本オリーブ株式会社","岡山県瀬戸内市牛窓町牛窓３９１１-１０"]
[2270001003898,"株式会社ビック・ツール","鳥取県西伯郡日吉津村日吉津３８"]
[2290001003376,"正晃テック株式会社ソフトウェア開発センター","福岡県福岡市中央区渡辺通二丁目４番８号福岡小学館ビル"]
[2290001003657,"株式会社ＮＩＫＫＥＮ本社","福岡県福岡市中央区天神１-１３-１７"]
[2290001015322,"西日本エムシー株式会社","福岡県福岡市博多区豊２丁目４番１８号"]
[2290001027904,"株式会社パドル","福岡県福岡市西区西の丘３丁目１７-４"]
[2290001037639,"株式会社アイム","福岡県福岡市東区香椎浜４-１-８-２０８"]
[2290001039908,"株式会社ジウン","福岡県福岡市東区多の津１丁目１４番１号ＦＲＣビル９階"]
[2290001046994,"株式会社Ｋ２","福岡県筑紫野市針摺中央２丁目１７-１"]
[2290001055228,"龍宮株式会社","福岡県うきは市吉井町新治２７８"]
[2290001061564,"株式会社ＤｅｎｔａｌＢａｎｋ","福岡県大野城市御笠川２丁目８番９号"]
[2290801007452,"日本食品株式会社","福岡県福岡市東区箱崎７丁目９番５８号"]
[2290801018961,"株式会社ジオメディ","福岡県福岡市博多区博多駅南一丁目７番２２号ブックローン福岡ビル"]
[2300001006138,"株式会社大石膏盛堂","佐賀県鳥栖市本町１丁目９３３番地"]
[2300001006311,"株式会社ミズホメディー","佐賀県鳥栖市藤木町５番地の４"]
[2300001006377,"西海製薬株式会社","佐賀県三養基郡基山町大字宮浦１９２番地"]
[2310001005683,"株式会社武田商事","長崎県佐世保市大和町９３９-１０"]
[2310001005873,"株式会社日本理工医学研究所","長崎県佐世保市新行江町８００番地"]
[2320002012414,"有限会社岩見商事","大分県別府市西野口町６番５号"]
[2330001000014,"株式会社アイディエス","熊本県熊本市長嶺東８丁目１４番地３０号"]
[2330001001466,"熊本酸素株式会社","熊本県熊本市下硯川町２２０５番地"]
[2330001019797,"株式会社ピカッシュ","熊本県菊池郡菊陽町大字原水２８４９番地１"]
[2340001011885,"株式会社マルマエ","鹿児島県出水市高尾野町大久保３８１６番４１"]
[2340002020877,"有限会社サト商会","鹿児島県奄美市名瀬鳩浜町９３"]
[2350001006199,"安井株式会社","宮崎県東臼杵郡門川町大字加草２７２５番地"]
[2360002011692,"有限会社コズグロジャパン","沖縄県うるま市字州崎５-１沖縄バイオ産業振興センター２０１号室"]
[2370001013532,"アクアメッドジャパン株式会社","宮城県仙台市宮城野区鉄砲町中２－１２"]
[2390001011121,"テクノ・モリオカ株式会社","山形県長井市成田２６１３番地"]
[2430001027708,"株式会社リー・プロ","北海道札幌市中央区北１条西３丁目３番地３３ＲｅｅＰＲＯビル"]
[2440001001661,"函館酸素株式会社","北海道函館市浅野町１番３号"]
[2470001002450,"高松帝酸株式会社","香川県高松市朝日町５丁目１４番１号"]
[2480001006434,"株式会社ボード・イースト徳島営業所","徳島県板野郡北島町鯛浜字川久保１９６-３コーポシャルム１階"]
[2480001007432,"株式会社サプロス","徳島県美馬市穴吹町口山字宮内２９１-１"]
[2480001010072,"整菌ラボ株式会社","香川県高松市春日町１３３７-３"]
[2500001010367,"株式会社ララ","愛媛県新居浜市大生院１６１番地"]
[2500001014723,"株式会社リブドゥコーポレーション愛媛新居浜事業所","愛媛県新居浜市観音原町乙１１８番地の１"]
[3010001007081,"株式会社ベリタス","東京都港区浜松町一丁目１０番１４号住友東新橋ビル３号館５階"]
[3010001007081,"株式会社ベリタス","東京都港区芝２-２９-１４一星芝公園ビルディング４階"]
[3010001007404,"株式会社フォアテック","東京都文京区本郷３－１８－１１　ＴＹビル"]
[3010001007750,"武藤化学株式会社","東京都文京区本郷２-１０-７"]
[3010001011554,"ウェルチ・アレン・ジャパン株式会社","東京都千代田区神田錦町３-１５錦精社ビル"]
[3010001016132,"興研株式会社","東京都千代田区四番町７番地"]
[3010001016487,"株式会社コクゴ","東京都足立区谷在家２-５-１２"]
[3010001016850,"日本化薬株式会社","東京都千代田区丸の内二丁目１番１号明治安田生命ビル"]
[3010001019531,"株式会社ジェイ・トラスト","東京都中央区八丁堀２-２０-１藤和八丁堀ビル"]
[3010001022031,"玉川衛材株式会社","東京都千代田区岩本町２-２-１６"]
[3010001034183,"東京歯科産業株式会社","東京都千代田区外神田６-１０-５"]
[3010001037194,"インタークロス株式会社","東京都豊島区西池袋５-５-２１ザ・タワー・グランディア"]
[3010001049495,"宝通商株式会社","東京都中央区日本橋本町４-７-１０エイチ・アール・ネットビル"]
[3010001054074,"ノボノルディスクファーマ株式会社","東京都千代田区丸の内２丁目１番１号明治安田生命ビル"]
[3010001057531,"松吉医科器械株式会社","東京都文京区湯島３-１４-９湯島ビル"]
[3010001058067,"株式会社三晴社","東京都中央区日本橋大伝馬町３-１２サンセイビル"]
[3010001060262,"株式会社ラフィーネインターナショナル生産統括本部","東京都中央区日本橋本町一丁目４番３号ヴィラアート日本橋"]
[3010001061178,"株式会社東京エム・アイ商会","東京都中央区新川１-５-１３伊成ビル"]
[3010001065105,"株式会社メディカル・パイン","東京都千代田区神田猿楽町２-７-１新樹ビル"]
[3010001073280,"株式会社モリア・ジャパン","東京都文京区本郷３-２４-２"]
[3010001086134,"レールダルメディカルジャパン株式会社","東京都千代田区一番町８住友不動産一番町ビル"]
[3010001091786,"バイエルクロップサイエンス株式会社","東京都千代田区丸の内一丁目６番５号丸の内北口ビル"]
[3010001092355,"株式会社クイックレスポンス","東京都千代田区外神田２-１７-３"]
[3010001100596,"株式会社メイフラワー","東京都千代田区神田神保町一丁目２番地５和栗ハトヤビル"]
[3010001105348,"エイツーヘルスケア株式会社","東京都文京区小石川一丁目４番１号住友不動産後楽園ビル"]
[3010001106809,"株式会社リベルワークス","東京都文京区関口一丁目４７番１２号江戸川橋ビル"]
[3010001108136,"株式会社かがやくコスメ","東京都中央区明石町８番１号聖路加タワー"]
[3010001108136,"日本製薬株式会社","東京都中央区明石町８番１号聖路加タワー"]
[3010001113425,"株式会社メディカライズ","東京都千代田区猿楽町二丁目６番８号ＭＲＣビル"]
[3010001116989,"メダクタジャパン株式会社","東京都千代田区麹町３-７-４秩父屋ビル"]
[3010001128547,"株式会社インテグリティ・ヘルスケア","東京都中央区日本橋蛎殻町一丁目２７番５号ヤマトビル２階"]
[3010001131880,"Ｊｐｉジャパン株式会社","東京都文京区本郷３-４３-１８サンワイズビル"]
[3010001134826,"株式会社ニューロシューティカルズ","東京都文京区本郷３-２４-６ＡＸＩＳ本郷"]
[3010001138892,"セオリアファーマ株式会社","東京都中央区日本橋室町三丁目３番１号Ｅ．Ｔ．Ｓ．室町ビル"]
[3010001145294,"株式会社フォーディクス","東京都文京区本郷一丁目３３番６号　Ｇｅｍｉｎｉｓ　Ⅱ　５Ｆ"]
[3010001148116,"株式会社アトスメディカルジャパン","東京都中央区新川一丁目３番１７号新川三幸ビル"]
[3010001152200,"ブレスト・ヘルスケア株式会社","宮崎県宮崎市大字加江田４３１３番地８"]
[3010001161770,"セルトリオン・ヘルスケア・ジャパン株式会社","東京都中央区明石町８番１号聖路加タワー２８階"]
[3010001163180,"サンケイ吉野株式会社","岐阜県多治見市京町二丁目１０８番地"]
[3010002001975,"有限会社栗田注射針製作所","東京都文京区本郷５丁目２５-７"]
[3010002002148,"向栄商事有限会社","東京都文京区本郷５-２３-３リヴェール本郷"]
[3010002051236,"有限会社ニューテック","東京都文京区関口１-８-６メゾン文京関口Ⅱ４階"]
[3010401019981,"トロフィー・ラジオロジー・ジャパン株式会社","東京都江東区冬木１１番１７号イシマビル"]
[3010401023315,"エダップテクノメド株式会社","東京都中央区新川１-３-１７新川三幸ビル"]
[3010401023570,"ノーベル・バイオケア・ジャパン株式会社","東京都品川区北品川４-７-３５御殿山トラストタワー"]
[3010401023570,"ラジオメーター株式会社","東京都品川区北品川４-７-３５御殿山トラストタワー"]
[3010401029428,"株式会社メテックス","東京都港区東麻布３-３-９アネックス麻布十番"]
[3010401032613,"日本バイナリー株式会社","東京都港区芝２-３-３芝二丁目大門ビル"]
[3010401035590,"株式会社幸大ハイテック","埼玉県羽生市大沼２丁目４５番地"]
[3010401041218,"ザイオソフト株式会社","東京都港区三田一丁目４番２８号三田国際ビル"]
[3010401041218,"ｓｅｖｅｎｄｒｅａｍｅｒｓｌａｂｏｒａｔｏｒｉｅｓ株式会社","東京都港区三田一丁目４番２８号三田国際ビル"]
[3010401044476,"ルンドベック・ジャパン株式会社","東京都港区虎ノ門五丁目１番４号東都ビル７階"]
[3010401057552,"ライカマイクロシステムズ株式会社","東京都新宿区高田馬場１-２９-９東亜ＤＫＫ株式会社別館オフィスビル"]
[3010401071264,"株式会社野口医学研究所","東京都港区虎ノ門一丁目２２番１３号　虎ノ門秋山ビル"]
[3010401077237,"レキットベンキーザー・ジャパン株式会社","東京都品川区東五反田３-２０-１４住友不動産高輪パークタワー"]
[3010401083202,"フォレスタデント・ジャパン株式会社","東京都港区赤坂２-１０-１２生駒硝子ビル２階"]
[3010401084209,"株式会社ＤＥＫＡＪＡＰＡＮ","神奈川県川崎市中原区北谷町５１番６北谷町白石ビル"]
[3010401093143,"日本ゴア株式会社メディカル・プロダクツ・ディビジョン","東京都港区港南１-８-１５Ｗビル"]
[3010401098522,"インテュイティブサージカル合同会社","東京都港区赤坂一丁目１２番３２号アーク森ビル"]
[3010401102432,"ＰＳＰ株式会社","東京都港区西麻布四丁目１６番１３号西麻布六本木通ビル"]
[3010401104437,"エフアイエスメディカル株式会社","東京都港区東麻布２-３３-５第４松坂ビル"]
[3010401121829,"セルソース株式会社","東京都港区西麻布三丁目２番１号北辰ビル"]
[3010401123024,"丸美化粧品株式会社","東京都港区新橋六丁目１２番７号新橋ＳＤビル"]
[3010401127025,"武内製薬株式会社本社","東京都港区元赤坂一丁目３番２６号元赤坂ＭＩビル"]
[3010401136240,"株式会社ＮＯＢＯＲＩ","東京都港区三田三丁目１１番２４号国際興業三田第２ビル"]
[3010403009667,"モデーアジャパン合同会社","東京都港区芝公園三丁目４番３０号３２芝公園ビル"]
[3010501003076,"メタセコスメリィー株式会社","東京都台東区浅草橋３-２０-１８第８菊星タワービル"]
[3010501007399,"高田製薬株式会社大宮工場","埼玉県さいたま市西区宮前町２０３-１"]
[3010501009528,"中川装身具工業株式会社","東京都台東区柳橋一丁目２９番７号"]
[3010501011145,"光製薬株式会社","東京都台東区今戸２-１１-１５"]
[3010501029641,"東京理化学テクニカルセンター株式会社","東京都品川区東大井一丁目８番２１号"]
[3010601016622,"株式会社ユリカ","東京都墨田区東墨田２-１-９"]
[3010601029715,"ワイデックス株式会社","東京都墨田区堤通１-１９-９リバーサイド隅田セントラルタワー"]
[3010603002785,"合資会社勝田金属製作所","東京都墨田区文花１丁目６番１０号"]
[3010701003776,"サクラ産業株式会社","東京都品川区東中延２-１０-７"]
[3010701004312,"シーメンスヘルスケア株式会社","東京都品川区大崎１-１１-１ゲートシティ大崎ウエストタワー"]
[3010701005797,"株式会社武田薬化学研究所","東京都品川区大井７-２３-３"]
[3010701006705,"株式会社東光社","東京都北区東田端１-２ー１２"]
[3010701026059,"シミック株式会社","東京都港区芝浦一丁目１番１号浜松町ビルディング"]
[3010702011209,"ネスレスキンヘルス有限会社","東京都品川区上大崎３-５-８アクロス目黒タワー"]
[3010801008072,"東亜電機工業株式会社","東京都大田区仲池上２-３０-４"]
[3010801009129,"日東工器株式会社","東京都大田区仲池上２-９-４"]
[3010801010912,"株式会社保科製作所","東京都文京区本郷２-１６-１３"]
[3010801011456,"ミクロ株式会社","東京都東村山市久米川町４-８-１"]
[3010901006455,"株式会社ゼットイオン研究所","東京都世田谷区深沢五丁目１番８号ハマックスビル"]
[3010901022980,"エルムテクノロジー株式会社","東京都足立区保木間三丁目３７番３号樹里庵１階"]
[3010902001587,"インデックス有限会社","東京都世田谷区奥沢４-１４-６"]
[3011001011321,"株式会社ジーエイチスリールーマニア","東京都渋谷区代々木２-２３-１ニューステイトメナー９４４号室"]
[3011001014010,"株式会社メディカルタウン","東京都文京区本郷３-２４-８第一今村ビル"]
[3011001015116,"テルモ株式会社","東京都渋谷区幡ヶ谷２-４４-１"]
[3011001018168,"ネオ製薬工業株式会社","東京都渋谷区広尾３-１-３"]
[3011001029776,"株式会社ビービーラボラトリーズ","東京都渋谷区神宮前６-１９-１６越一ビル"]
[3011001032788,"株式会社丸隆","東京都渋谷区笹塚１-６２-３アルス笹塚ビル"]
[3011001041459,"株式会社エトバス","東京都中央区銀座七丁目１７番１５号オーク銀座木挽町ビル"]
[3011001057199,"インフォコム株式会社本社","東京都渋谷区神宮前２-３４-１７住友不動産原宿ビル"]
[3011001059360,"株式会社ＩｎｔｅｇｒａｔｅｄＤｅｖｅｌｏｐｍｅｎｔＡｓｓｏｃｉａｔｅｓ","東京都千代田区霞が関三丁目２番５号霞が関ビルディング"]
[3011001059360,"株式会社エクソーラメディカル","東京都千代田区霞が関三丁目２番５号霞が関ビルディング"]
[3011001059360,"株式会社ＲＡＹＪＡＰＡＮ","東京都千代田区霞が関三丁目２番５号霞が関ビルディング"]
[3011001066943,"ジェネシスヘルスケア株式会社","東京都渋谷区恵比寿四丁目２０番３号恵比寿ガーデンプレイスタワー２６階"]
[3011002002996,"有限会社カドゥー","東京都千代田区平河町１-９-３愛三ビル"]
[3011101015874,"日祥株式会社","東京都千代田区神田須田町２-３-１ＮＢＦ神田須田町ビル"]
[3011101030436,"ＨＯＹＡＴｅｃｈｎｏｓｕｒｇｉｃａｌ株式会社","東京都新宿区四谷４-２８-４ＹＫＢエンサインビル"]
[3011101037893,"日本リマ株式会社","東京都新宿区西新宿一丁目２５番１号新宿センタービル"]
[3011101045756,"株式会社ドクターライン","東京都羽村市富士見平１-９-１３エルグレイス"]
[3011101050343,"エヌ・エル・オー株式会社","東京都新宿区西新宿３-７-１新宿パークタワー"]
[3011101050343,"ＣａｒｄｉｎａｌＨｅａｌｔｈＪａｐａｎ合同会社","東京都新宿区西新宿３-７-１新宿パークタワー"]
[3011101054245,"株式会社エックスワン","東京都港区南青山五丁目４番２７号ＢＡＲＢＩＺＯＮ１０４"]
[3011101062157,"マキチエ株式会社","東京都中央区日本橋茅場町一丁目２番４号日本ビルディング本館"]
[3011101080836,"株式会社ＪＭＤＥ","東京都千代田区神田平河町１番地第３東ビル"]
[3011103000461,"合資会社釜屋商店","東京都中央区日本橋小網町６番１号"]
[3011201002896,"相互産業株式会社横浜営業所","神奈川県横浜市金沢区幸浦２-１８-５"]
[3011201019395,"株式会社ノーザメディック","東京都中野区中央一丁目２１番４号ノーザビル"]
[3011202011327,"金蘭兄弟有限会社","東京都中野区本町三丁目２８番１６号ＯＭＳビル"]
[3011301007151,"モリヤ産業株式会社","東京都杉並区和田３-３６-７ジョイハイツ東高円寺"]
[3011301017596,"ファーストメディカル株式会社","東京都杉並区高円寺北２-３-１５オフィスアイ"]
[3011401000790,"サンシステム株式会社","東京都千代田区外神田６-１０-６"]
[3011401003026,"株式会社シマ研究所","東京都板橋区前野町１-１６-４"]
[3011401003141,"株式会社昭和化学","東京都板橋区前野町一丁目２１番１２号"]
[3011401003661,"第一照明株式会社","東京都板橋区坂下１-３２-２６"]
[3011401004585,"株式会社東洋化学研究所","東京都板橋区板橋４-２５-１２"]
[3011401005708,"ベラビューティ工業株式会社","東京都板橋区小豆沢４-２５-７"]
[3011501001557,"コデン株式会社","東京都豊島区巣鴨１-４-１６"]
[3011501005046,"株式会社ロバート・リード商会","東京都大田区平和島１-１-２株式会社エヌ・ティ・ティ・ロジスコ平和島物流センタ"]
[3011501007100,"スターメディカル株式会社","東京都荒川区西日暮里５-１４-１２太陽ビル"]
[3011601000987,"株式会社エステノーバ","埼玉県比企郡小川町大字高谷２４５２-２０"]
[3011701003353,"株式会社三協電機","東京都江戸川区南篠崎町四丁目１５番１７号"]
[3011701004319,"すみれ医療株式会社","東京都江戸川区北葛西１-２２-１９"]
[3011701006439,"株式会社ハセガワ・ビコー","東京都江戸川区松本２-４１-４"]
[3011801000837,"株式会社岡村製作所","東京都千代田区永田町２-１３-５赤坂エイトワンビル"]
[3011801003633,"株式会社日本医広","東京都葛飾区立石２－１４－１"]
[3011801003947,"株式会社花島シーマン","東京都葛飾区青戸５丁目２５番２号"]
[3011801011909,"本町化学工業株式会社","東京都足立区中央本町１-２-１１"]
[3012301000815,"コスモテック株式会社","東京都文京区本郷２-３-９ツインビューお茶の水ビル"]
[3012401000574,"サーモニクス株式会社","東京都府中市美好町２-４６-５"]
[3012401007925,"シロー化学株式会社","東京都調布市富士見町４-３９-９"]
[3012401015449,"栄和産業株式会社","東京都江東区深川１-１-５和倉ビル"]
[3012701009316,"株式会社メッツ","東京都足立区千住仲町１-７"]
[3013101001210,"株式会社ユニフローズ","東京都あきる野市山田４０５番地３"]
[3013201000590,"株式会社インディバ・ジャパン","東京都目黒区碑文谷５-１５-１"]
[3013201017445,"インサイシブジャパン株式会社","東京都大田区田園調布２-１１-１２"]
[3013201017445,"株式会社ＪＢＡ","東京都大田区田園調布２-１１-１２"]
[3013201018848,"株式会社ハーマンズ","東京都大田区田園調布２-５０-１０鹿島ビル"]
[3013301001984,"株式会社エーデント","東京都豊島区巣鴨１-２４-３小島ビル"]
[3013301008492,"東南製薬株式会社","東京都豊島区池袋３-３２-１"]
[3013301010077,"白十字株式会社","東京都豊島区高田３-２３-１２"]
[3013401006413,"東京貿易メディシス株式会社","東京都日野市東豊田一丁目１４番２１号"]
[3020001005844,"アールテック株式会社","神奈川県横浜市金沢区福浦２-４-１"]
[3020001041096,"株式会社パーキンエルマージャパン","神奈川県横浜市保土ヶ谷区神戸町１３４"]
[3020001041716,"株式会社ウインズコーポレーション","神奈川県横浜市港北区大豆戸町１１９１番地の１"]
[3020001042672,"株式会社スマートプラクティスジャパン","神奈川県大和市大和東２-２-１３"]
[3020001043522,"アネスト岩田株式会社","神奈川県横浜市港北区新吉田町３１７６"]
[3020001063966,"株式会社アクティ","神奈川県川崎市中原区下新城一丁目１１-２６ケイ・ハウス西館１０２号"]
[3020001076530,"メディサイエンス・エスポア株式会社","神奈川県川崎市幸区新塚越１-２"]
[3020001082859,"Ａｕｄｍｅｔ株式会社","神奈川県川崎市幸区堀川町５８０番地ソリッドスクエア"]
[3020001090936,"メディカル・ブレイン株式会社","神奈川県横浜市都筑区茅ヶ崎東三丁目２６番２号２０２号室"]
[3020001093055,"メディコノヴァス株式会社","神奈川県横浜市中区南仲通三丁目３５番地"]
[3020001103870,"メディテクノジャパン株式会社","神奈川県川崎市川崎区南町１番地８林ビル川崎６０４"]
[3020001114587,"ＨＭＴバイオメディカル株式会社","神奈川県横浜市港北区新横浜三丁目１９番地５"]
[3021001026574,"株式会社ミック・ケミストリー","神奈川県座間市ひばりが丘５-４８-１６"]
[3021001028744,"ダイリン株式会社","神奈川県大和市代官２丁目１２番４７号"]
[3021001030733,"株式会社丼親堂","神奈川県座間市相武台一丁目２３番２３号"]
[3021001033892,"南開工業株式会社","神奈川県南足柄市壗下３５０番地"]
[3030001003608,"株式会社三幸製作所","埼玉県さいたま市西区中針６５２番地"]
[3030001006841,"ハナコメディカル株式会社","埼玉県さいたま市浦和区元町２-２４-１１"]
[3030001017112,"株式会社タバタエンジニアリング","東京都江戸川区谷河内１－９－４"]
[3030001020669,"豊幸電子株式会社寄居工場","埼玉県大里郡寄居町大字寄居７５８番地"]
[3030001022104,"株式会社エフエムディ","埼玉県戸田市川岸３-４-１９"]
[3030001045674,"サンエー精工株式会社朝霞事業所","埼玉県朝霞市泉水２-１０-１４"]
[3030001052002,"株式会社平山製作所","埼玉県春日部市豊野町２-６-５"]
[3030001062959,"北里第一三共ワクチン株式会社","埼玉県北本市荒井六丁目１１１番地"]
[3030001065607,"株式会社サティス製薬本社工場","埼玉県吉川市中井５７番地１"]
[3030001071118,"ヴィタリス製薬株式会社","埼玉県比企郡吉見町下細谷９６"]
[3030001074608,"株式会社クラーク","埼玉県八潮市柳之宮屋敷通２２３番地２"]
[3030002038025,"有限会社小肥注射針製作所","埼玉県久喜市江面１５６０-４"]
[3030002059814,"有限会社サンフォート","埼玉県坂戸市溝端町１７-２０"]
[3030002063535,"有限会社バーツール","埼玉県富士見市大字鶴馬３２２９番地６"]
[3040001001949,"グランメイト株式会社","千葉県千葉市中央区祐光四丁目２番１号"]
[3040001002567,"株式会社三恵","千葉県市原市八幡海岸通１９６９-３３，３４"]
[3040001005702,"株式会社西尾","千葉県千葉市中央区本町３-３-３"]
[3040001009901,"株式会社イオンギア","千葉県千葉市中央区中央４-１０-８"]
[3040001018893,"株式会社名優","千葉県八千代市ゆりのき台３-９-２"]
[3040001030007,"株式会社マナビス","千葉県浦安市千鳥１５-９"]
[3040001068030,"株式会社サプリメント","千葉県我孫子市中峠台８番地の７"]
[3040001068311,"株式会社フォーカルコーポレーション","千葉県柏市十余二５８１-１"]
[3040001096477,"株式会社榊メディカル","千葉県野田市中野台１６９番地１榊ビル"]
[3040002021954,"有限会社小池製作所","千葉県船橋市浜町１-３７-６"]
[3040002098670,"有限会社フジノ・アート","千葉県野田市中野台２７番地４"]
[3050001003011,"株式会社三幸ポライト","茨城県東茨城郡城里町石塚１１８４-３"]
[3050001013943,"橘医療器株式会社","茨城県猿島郡境町３８９"]
[3050002017290,"有限会社エム・ディー・エス","茨城県結城郡八千代町平塚２０３０"]
[3060001000619,"宇都宮化成工業株式会社","栃木県宇都宮市岩曽町１２１５番地"]
[3070001009114,"ＡｄａＢｉｏ株式会社","群馬県高崎市剣崎町２１-２"]
[3070001017843,"日本精密測器株式会社","群馬県渋川市中郷２５０８-１３"]
[3070001020260,"矢島工業株式会社","群馬県太田市新野町９４４"]
[3080002004419,"有限会社荷居屋","静岡県静岡市清水区江尻東１丁目３-１３"]
[3080101001969,"株式会社ユーエムエー","千葉県松戸市横須賀２丁目１９番６号"]
[3090001006051,"株式会社ジャパン開発","山梨県笛吹市境川町藤垈１４３８"]
[3090002001547,"有限会社振動切削研究所","山梨県甲府市伊勢４-１-１"]
[3090002009961,"有限会社八光社","山梨県大月市賑岡町奥山１８６９-１"]
[3100001009275,"株式会社ＥＭＩファクトリー","長野県北佐久郡御代田町大字御代田２７９４番地の１"]
[3100001010225,"株式会社八光","長野県千曲市大字磯部１４９０"]
[3100001011553,"ミヤリサン製薬株式会社坂城工場","長野県埴科郡坂城町大字中之条１０２番地１５"]
[3100001011719,"株式会社サンクロン","長野県上田市御嶽堂８８４"]
[3100001012089,"株式会社タカギセイコー","長野県中野市岩船３３０-２"]
[3100001019778,"ミクナスファインエンジニアリング株式会社湖畔工場","長野県岡谷市湖畔３-２-２３"]
[3100001026790,"株式会社ユタカ松本工場","長野県松本市和田南西原４０１０-１２"]
[3100002030874,"レイクＲ＆Ｄ株式会社","長野県岡谷市本町三丁目８番７号"]
[3110001017566,"プロスパー株式会社","新潟県柏崎市大字軽井川２０２８番地６"]
[3110001020735,"菱有工業株式会社高田工場","新潟県上越市板倉区稲増１９２番地５"]
[3110001027383,"ＪＭＲ株式会社","新潟県新潟市西蒲区漆山８４６０-１"]
[3120001001206,"株式会社ミルボン","大阪府大阪市都島区善源寺町２-３-３５"]
[3120001001404,"株式会社ｏｎｅＡ","大阪府大阪市鶴見区放出東３丁目３０番２０号"]
[3120001006964,"井元特殊冶金株式会社交野工場","大阪府交野市倉治３丁目１-４"]
[3120001007938,"大扇産業株式会社","大阪府大阪市都島区都島本通１-１５-１７"]
[3120001009562,"株式会社キャットアイ","大阪府大阪市東住吉区桑津２丁目８-２５"]
[3120001016006,"株式会社美粧ケミカル","大阪府大阪市城東区中央１-１１-３２"]
[3120001018670,"不二精機株式会社","大阪府大阪市中央区瓦町４-８-４井門瓦町第２ビル５階"]
[3120001025502,"株式会社ミリオナ化粧品","大阪府東大阪市加納３-１４-３２"]
[3120001025683,"山本ビニター株式会社","大阪府大阪市天王寺区上汐六丁目３番１２号"]
[3120001027325,"株式会社木幡計器製作所","大阪府大阪市大正区南恩加島５丁目８番６号"]
[3120001033942,"山本美材株式会社","大阪府大阪市住吉区苅田７丁目３番１１号"]
[3120001035377,"攝津製油株式会社化成品工場","大阪府堺市西区築港新町１丁５番１０"]
[3120001042720,"協和ガス株式会社大阪工場","大阪府東大阪市西堤本通東１丁目４-６"]
[3120001052678,"浜理薬品工業株式会社","大阪府大阪市東淀川区柴島１丁目４番２９号"]
[3120001057693,"白水貿易株式会社","大阪府大阪市淀川区新高１丁目１番１５号"]
[3120001061514,"株式会社ＯＳＧコーポレーション本社","大阪府大阪市北区天満１-２６-３"]
[3120001064541,"三協エアテック株式会社","大阪府大阪市北区芝田２丁目５番６号"]
[3120001069103,"パラメディック・ジャパン株式会社","大阪府大阪市北区南扇町１-２"]
[3120001077477,"大日本住友製薬株式会社","大阪府大阪市中央区道修町二丁目６番８号"]
[3120001083558,"株式会社大同工業所","大阪府東大阪市楠根１-６-４５"]
[3120001087781,"ニプロファーマ株式会社","大阪府大阪市中央区道修町二丁目２番７号"]
[3120001090901,"モアコスメティックス株式会社大阪工場","大阪府堺市美原区木材通４丁目１２番１５号"]
[3120001091305,"山善製薬株式会社本社","大阪府大阪市中央区道修町２-２-４"]
[3120001091321,"山甚物産株式会社","大阪府大阪市中央区本町一丁目５番６号山甚ビル"]
[3120001091874,"吉見製薬株式会社","大阪府大阪市中央区船越町２丁目１-１７"]
[3120001096089,"株式会社ヴィダジャパンコスメ","大阪府大阪市中央区博労町２-６-１１"]
[3120001097228,"株式会社サポート","大阪府八尾市上之島町北１-６０-３"]
[3120001107036,"株式会社エクセル・クリエイツ","大阪府大阪市中央区南船場１丁目１６番１３号堺筋ベストビル"]
[3120001108637,"株式会社ダンロップホームプロダクツ","大阪府大阪市中央区博労町四丁目６番１０号"]
[3120001109437,"株式会社ハホニコ","大阪府大阪市天王寺区北山町１-１"]
[3120001109775,"株式会社ザ・ハーバル","大阪府大阪市中央区谷町二丁目７番８号"]
[3120001112952,"株式会社日本ジョセフィン社","大阪府大阪市中央区谷町９-３-７"]
[3120001127133,"株式会社Ｔ-Ｆａｒｍ","大阪府大阪市西区京町堀１丁目１０番１２号"]
[3120001128651,"株式会社レイマー","大阪府大阪市中央区安土町１丁目８番１５号"]
[3120001129303,"三共医療機株式会社","大阪府大阪市平野区加美東６-１４-２２"]
[3120001142339,"株式会社ドリームファクトリー商品管理センター","大阪府大阪市浪速区日本橋５-１３-３川北ビル２Ｆ"]
[3120001145977,"株式会社物流情報システム","大阪府大阪市住之江区南港南１―１―１９８"]
[3120001149235,"大塚電子株式会社","大阪府枚方市招提田近３丁目２６番３号"]
[3120001155902,"昭和製薬株式会社","大阪府守口市南寺方東通１丁目４番１２号"]
[3120001185156,"ゼク・テック株式会社","大阪府大阪市都島区東野田町二丁目９番１０号"]
[3120001200220,"株式会社メディカルブリッジ","大阪府大阪市淀川区西中島六丁目３番３２号"]
[3120001212174,"株式会社カジテック・メディカル","大阪府門真市四宮３丁目８番４３号"]
[3120002040013,"有限会社英倫商会","大阪府大阪市東住吉区駒川１丁目１４番１９号"]
[3120002048997,"有限会社スリーランド","大阪府大阪市北区豊崎３-６-８ＴＯビル９Ｆ"]
[3120002061380,"有限会社エム・アイ・ケイ","大阪府大阪市生野区巽中１丁目１５番９号"]
[3120101004455,"株式会社テクトロン","大阪府堺市中区土塔町１０４番地の１"]
[3120101007053,"福島工業株式会社本社","大阪府大阪市西淀川区御幣島３-１６-１１"]
[3120101008381,"大信貿易株式会社浜寺営業所","大阪府堺市西区浜寺公園町３-２３１-３"]
[3120101024156,"タキオン株式会社","大阪府大阪市中央区南船場一丁目１０番１２号"]
[3120101028413,"株式会社ヘアテック・ジャパン","大阪府堺市堺区遠里小野町２-３-１"]
[3120101037637,"松浪硝子工業株式会社","大阪府岸和田市八阪町２-１-１０"]
[3120101044542,"尾崎工業株式会社","大阪府阪南市尾崎町８丁目１６-３"]
[3120901006502,"サンエス工業株式会社","大阪府吹田市南吹田３-１-２５"]
[3120901028843,"アリオメディカル株式会社","大阪府豊中市原田中１丁目７-９"]
[3120901029230,"プレミアムプラスジャパン株式会社","大阪府豊中市原田南一丁目１３番５号"]
[3120901029981,"株式会社キュアケア","大阪府池田市鉢塚２丁目５－２６　ＬＯＦＴ１０　２階"]
[3122001003000,"三和薬品工業株式会社","大阪府東大阪市東石切町５丁目１-２０"]
[3122001006399,"マイティ株式会社","大阪府東大阪市友井５丁目４番２１号"]
[3122001016357,"平和電子工業株式会社","大阪府四條畷市下田原１５１０"]
[3122001017405,"株式会社岡本商会","大阪府大阪市中央区西心斎橋２-６-１５"]
[3122001017586,"共和化粧品工業株式会社","大阪府八尾市太田新町４-７６"]
[3122001018031,"大阪化成株式会社","大阪府大阪市西淀川区中島２丁目６-１１"]
[3122001021175,"株式会社ビナ薬粧","大阪府柏原市太平寺１-１２-１"]
[3122001022000,"株式会社クリークグローバル","大阪府八尾市植松町２-９-２９"]
[3122001024459,"プロト株式会社","大阪府八尾市太田新町３丁目１７８番地"]
[3130001004785,"株式会社阪村研究所","京都府京都市北区上賀茂ケシ山１"]
[3130001009314,"三洋化成工業株式会社京都工場","京都府京都市東山区本町１１丁目７２１番地"]
[3130001009982,"株式会社泉産業","京都府京都市南区吉祥院宮ノ西町１０番地"]
[3130001012326,"株式会社京都医療設計","京都府京都市下京区中堂寺南町１３４京都リサーチパーク２号館"]
[3130001013811,"株式会社衣川製作所","京都府京都市伏見区深草新門丈町１０６番地４"]
[3130001017481,"株式会社サミック・インターナショナル","東京都八王子市小宮町１７１-１"]
[3130001023926,"飛鳥メディカル株式会社開発センター","京都府京田辺市興戸地蔵谷１番地同志社大学連携型起業家育成施設２階"]
[3130001030344,"日東薬品工業株式会社","京都府向日市上植野町南開３５-３"]
[3130002025649,"有限会社テクノアメニティ","京都府亀岡市篠町柏原町頭５６"]
[3140001012176,"日本イーライリリー株式会社","兵庫県神戸市中央区磯上通７丁目１番５号"]
[3140001016697,"ビオフェルミン製薬株式会社","兵庫県神戸市西区井吹台東町７-３-４"]
[3140001022885,"神戸バイオメディクス株式会社","兵庫県神戸市中央区港島南町７-１-１６（神戸医療機器開発センター２階２０６室）"]
[3140001024956,"株式会社リアル","兵庫県神戸市兵庫区御所通１-３-１８"]
[3140001032199,"美研創新株式会社","兵庫県神戸市中央区港島南町５-５-２神戸国際ビジネスセンター３０９"]
[3140001079422,"成工計器株式会社","兵庫県川西市新田２-８-４０"]
[3140001079793,"新生電子株式会社尼崎事務所","兵庫県尼崎市西長洲町２丁目６番２５号"]
[3140001082203,"浦工株式会社","兵庫県宝塚市雲雀丘山手１-２-３０"]
[3140001087672,"株式会社トライアンドイー","兵庫県神戸市北区道場町日下部１７１６"]
[3140002032719,"有限会社ディーシーエルタニモト","兵庫県宍粟市山崎町須賀沢１２８３"]
[3140002068837,"有限会社三共酸素商会","兵庫県洲本市下内膳１３８"]
[3150001010419,"関西薬品工業株式会社","奈良県高市郡高取町清水谷４４０"]
[3150001010451,"近畿医薬品製造株式会社","奈良県高市郡高取町清水谷７１４"]
[3150001011862,"株式会社フェニックス","奈良県御所市大字東辻２１４番１"]
[3150001013883,"株式会社三光丸","奈良県御所市大字今住７００番地の１"]
[3150001013909,"大和製薬株式会社","奈良県御所市大字東佐味３３４-１"]
[3150001013974,"丸太中嶋製薬株式会社","奈良県御所市大字今住１７０"]
[3150001018544,"ＯＪＡＳＰＨＡＲＭＡ株式会社","奈良県五條市住川町１３２１番地"]
[3160001005343,"近江製薬株式会社","滋賀県甲賀市甲賀町田堵野９３５"]
[3160001007133,"株式会社山正","滋賀県長浜市内保町２３８番地２"]
[3160001008321,"滋賀カーバイド株式会社","滋賀県愛知郡愛荘町愛知川１４８５"]
[3160002006563,"有限会社シオン製作所","滋賀県長浜市月ヶ瀬町２７３"]
[3170001005854,"株式会社児玉兄弟商会","和歌山県海南市下津町丁２９番地"]
[3170001008171,"ゼネル薬工粉河株式会社","和歌山県紀の川市粉河８４０番地"]
[3170001011043,"日本製薬株式会社和歌山工場","和歌山県伊都郡かつらぎ町大薮字中島２２２"]
[3180001010275,"株式会社サンメディカル","愛知県名古屋市瑞穂区瑞穂通７-３３"]
[3180001010845,"日本特殊陶業株式会社小牧工場","愛知県小牧市大字岩崎２８０８"]
[3180001011694,"株式会社エスエスデンタル工業所貿易部","愛知県名古屋市中区上前津２-４-２０"]
[3180001018418,"名旭製薬株式会社大曽根工場","愛知県名古屋市北区大曽根三丁目１番３３号"]
[3180001020547,"株式会社日本コンタクトレンズ","愛知県名古屋市中川区好本町３-１０"]
[3180001023715,"株式会社伸和","愛知県名古屋市中区千代田二丁目１８番１０号"]
[3180001025315,"株式会社ケーアンドエス","愛知県刈谷市井ヶ谷町中前田９３-３"]
[3180001070823,"株式会社松葉","愛知県常滑市大野町２－１８４"]
[3180001120818,"日本メディカル薬品株式会社","愛知県名古屋市東区葵２丁目３番１５号ふぁみーゆ葵ビル５階"]
[3180301019702,"株式会社寺西電機製作所","愛知県名古屋市天白区野並２-１８７"]
[3180301023217,"株式会社タカスクリニックラボ","愛知県名古屋市中村区名駅四丁目２４番１６号広小路ガーデンアベニュー５階"]
[3190001008401,"エステートケミカル株式会社ゆめが丘工場","三重県伊賀市ゆめが丘７-６-１６"]
[3190001011454,"株式会社サカキＬ＆Ｅワイズ","三重県松阪市古井町３５番地"]
[3190001015884,"日本ケミカル工業株式会社","三重県四日市市生桑町３３６番地１"]
[3190001019324,"株式会社ＡｐｉｘｉａＪａｐａｎ","三重県いなべ市大安町大井田１３２４番地"]
[3200001003904,"長良化学工業株式会社真正工場","岐阜県本巣郡真正町上真桑字瀬古ノ前８８７-１"]
[3200001005776,"エーエムアール株式会社本社工場","岐阜県岐阜市大学北２丁目２１０番地１"]
[3200001017565,"ヤングビーナス薬品工業株式会社","岐阜県加茂郡坂祝町酒倉字芦渡２２１１-１"]
[3210001004158,"株式会社ヤマトオプチカル","福井県福井市文京６丁目４０８"]
[3210001011823,"株式会社トーシン眼鏡製作所","福井県越前市小野谷町４字１-１４"]
[3210001012697,"オリエント眼鏡株式会社","福井県鯖江市吉江町１０１"]
[3220001005270,"箔一産業株式会社","石川県金沢市打木町東１３４０"]
[3220001007060,"プロメディカル株式会社Ｍ．Ａ．Ｌａｂｏｒａｔｏｒｙ","石川県金沢市駅西本町１丁目１番３３号"]
[3220001008331,"株式会社ＰＭＣ","石川県金沢市駅西新町２-１５-３７ＫＯＨＷＡ１０２ビル２Ｆ"]
[3220001015162,"株式会社ケイズ本社工場","石川県金沢市専光寺町ニ１８８番地"]
[3220001017860,"吉田司株式会社","石川県かほく市内日角ハ７２番地２"]
[3220002013999,"有限会社能登製薬所","石川県七尾市南藤橋町子部６３"]
[3230001000997,"サカヰ産業株式会社富山総合ガスセンター","富山県富山市高木２４８１-６"]
[3230001002267,"日本薬剤株式会社","富山県富山市東中野町一丁目１番１号"]
[3230001003273,"前田薬品工業株式会社富山工場","富山県富山市向新庄町一丁目１８番４７号"]
[3230001004874,"大協薬品工業株式会社","富山県富山市水橋畠等１７３"]
[3230001004965,"株式会社陽進堂","富山県富山市婦中町萩島３６９７-８"]
[3230001005815,"アニマート製薬株式会社","富山県富山市水橋町５５６番地"]
[3230001005815,"株式会社渡邊薬品","富山県富山市水橋町５５６番地"]
[3230001007506,"シロウマサイエンス株式会社","富山県下新川郡入善町青木５７７７番地"]
[3230001008974,"株式会社ゴールドウイン","富山県小矢部市清沢２１０番地"]
[3230001011375,"株式会社能作","富山県高岡市オフィスパーク８-１"]
[3230001011838,"株式会社Ｔ・Ｍ・Ｃ","富山県高岡市城東２丁目４-２７"]
[3230002004188,"有限会社薬師製薬","富山県富山市中央通り３丁目１番１５号"]
[3240001004460,"シージーケー株式会社芸南工場","広島県広島市佐伯区湯来町白砂９５-７"]
[3240001017594,"株式会社プロノテック","広島県廿日市市地御前一丁目２１番２３号"]
[3240001018270,"株式会社ＭＤＴジャパン","広島県広島市中区上八丁堀５番２５号"]
[3240001026182,"中国酸素株式会社本社工場","広島県呉市仁方皆実町３-１３"]
[3240001026356,"二反田薬品工業株式会社","広島県呉市吉浦新町２丁目５番２号"]
[3240001030036,"株式会社大平製作所","広島県福山市北本庄１-８-１４"]
[3240001035035,"株式会社ミウラ","広島県広島市中区南千田東町３番９号広島千田ビル"]
[3250001006134,"日本歯科薬品株式会社","山口県下関市西入江町２番５号"]
[3260001001431,"オオタ株式会社","岡山県岡山市今保８２"]
[3260001004070,"大和酸素株式会社","岡山県岡山市北区中撫川１４"]
[3260001011075,"帝人ナカシマメディカル株式会社","岡山県岡山市東区上道北方６８８-１"]
[3260001013047,"株式会社玉華堂","岡山県倉敷市玉島長尾３-２７４-３"]
[3290001009653,"株式会社豆腐の盛田屋","福岡県福岡市博多区博多駅前三丁目２番８号"]
[3290001039502,"株式会社ジィ・エム","福岡県糟屋郡粕屋町甲仲原二丁目１７番１１号"]
[3290001045104,"エオリア株式会社","福岡県嘉麻市山野１３６０"]
[3290801008508,"リーフ株式会社","福岡県北九州市小倉北区三萩野二丁目８番１７号"]
[3290801012245,"シャボン玉石けん株式会社","福岡県北九州市若松区南二島２丁目２３番１号"]
[3300001007936,"株式会社マイテクニカル","福岡県北九州市小倉南区下曽根２丁目１０-２６-４０３"]
[3320001001375,"エスティケイテクノロジー株式会社","大分県大分市大字三佐２４６８番地１０"]
[3320001011424,"株式会社みょうばん湯の花製造","大分県別府市大字鶴見明礬１３３５番地"]
[3330001000450,"内村酸素株式会社嘉島事業所","熊本県上益城郡嘉島町大字上仲間字塘添２２７-９"]
[3330001013816,"吉住酸素工業株式会社新港工場","熊本県八代市新港町一丁目７番８"]
[3330001016950,"株式会社Ｐ・マインド","熊本県熊本市北区徳王二丁目８番６号"]
[3330003002404,"合資会社吉田整骨院製薬所","熊本県玉名市伊倉北方３１０-４"]
[3340001004822,"株式会社健康家族","鹿児島県鹿児島市平之町１０番２号"]
[3350001006966,"日之出酸素株式会社","宮崎県延岡市桜園町８６番地１"]
[3360001006148,"株式会社ポイントピュール","沖縄県島尻郡久米島町字真謝４８６-１２"]
[3360001014241,"ＥＳＴＥＣＫＪＡＰＡＮ株式会社","沖縄県那覇市首里山川町１-５１"]
[3370001008192,"サンケミファ株式会社落合事業所","宮城県仙台市青葉区芋沢字大竹新田８-１"]
[3370001012062,"株式会社コスモスウェブ愛子工場","宮城県仙台市青葉区下愛子字横町前３３-２６"]
[3370001017532,"仙台小林製薬株式会社","宮城県黒川郡大和町松坂平４丁目３番地"]
[3370601002529,"ゼライス株式会社本社・仙台港工場","宮城県多賀城市栄４-４-１"]
[3380001004686,"株式会社エヌジェイアイ","福島県郡山市富久山町八山田字前林１０-４光ビル１０２号"]
[3380001004728,"ゼノアックリソース株式会社","福島県郡山市安積町笹川字平ノ上１番地の１"]
[3380001005057,"株式会社コーケン福島事業所","福島県福島市岡島字上ノ平１番１２号"]
[3380001012458,"古河シンチテック株式会社","福島県いわき市好間町上好間字小館２０"]
[3380001019040,"日本健康灸株式会社","福島県会津若松市柳原町三丁目５番１１号"]
[3390001000131,"コーアイセイ株式会社","山形県山形市若葉町１３-４５"]
[3390001007382,"株式会社庄内クリエート工業藤島工場","山形県鶴岡市藤浪一丁目７５-１"]
[3440001006008,"水の素株式会社","北海道山越郡長万部町字双葉４７-１"]
[3470001003209,"日本メディカル株式会社","香川県高松市松並町９３８番地１タケダビル３Ｆ"]
[3470001011426,"帝國製薬株式会社","香川県東かがわ市三本松５６７番地"]
[3470001011509,"株式会社メドレックス","香川県東かがわ市西山４３１-７"]
[3490001001466,"チカミミルテック株式会社製造・物流センター","高知県吾川郡いの町枝川１９６１-１"]
[3490001002134,"明星産商株式会社","高知県南国市岡豊町八幡４１１番地１"]
[3500001014895,"株式会社ディプロ","愛媛県四国中央市土居町北野２１６５番地"]
[4010001000003,"科研製薬株式会社","東京都文京区本駒込二丁目２８番８号"]
[4010001001380,"ヱルマ販売株式会社","東京都文京区湯島２-３１-６湯島堀井ビル"]
[4010001001653,"オリジン医科工業株式会社","東京都文京区西片１-２０-７"]
[4010001004862,"チェスト株式会社","東京都文京区本郷３-２５-１１"]
[4010001005704,"永島医科器械株式会社","東京都文京区本郷５-２４-１"]
[4010001005836,"株式会社日本コクレア","東京都文京区本郷２-３-７お茶の水元町ビル"]
[4010001006396,"パシフィックメディコ株式会社","東京都千代田区岩本町３-５-１２ユニゾ岩本町３丁目ビル南館"]
[4010001006859,"福川産業株式会社","東京都文京区本郷４-１-１玉屋ビル"]
[4010001007304,"松岡メディテック株式会社","東京都文京区本郷２-２２-３ＭＭＣビル"]
[4010001007477,"ブラッコ・エーザイ株式会社","東京都文京区大塚３丁目１１番６号"]
[4010001008392,"リードメディカルサイエンス株式会社","東京都文京区湯島二丁目１４番４号ＳＴビル"]
[4010001008772,"三菱電機株式会社","東京都千代田区丸の内二丁目７番３号東京ビル"]
[4010001010745,"今津薬品工業株式会社","東京都千代田区神田須田町２-１９"]
[4010001011529,"株式会社ウエルズ","東京都千代田区神田多町２-３-５森屋ビル"]
[4010001012931,"大木製薬株式会社","東京都千代田区神田鍛冶町３-３大木ビル"]
[4010001013112,"欧和通商株式会社","東京都文京区湯島２-３１-２２"]
[4010001019811,"株式会社シービック","東京都港区南青山二丁目２番３号南青山Ｍ-ＳＱＵＡＲＥ"]
[4010001020728,"株式会社誠鋼社","東京都千代田区三崎町２-７-６浅見ビル"]
[4010001028721,"平和物産株式会社","東京都千代田区丸の内２-２-１"]
[4010001032310,"株式会社レインボーオプチカル研究所","東京都千代田区平河町２-１１-１ロンステートビル"]
[4010001034760,"花王株式会社茅場町事業場本館","東京都中央区日本橋茅場町一丁目１４番１０号"]
[4010001034760,"カネボウコスミリオン株式会社","東京都中央区日本橋茅場町一丁目１４番１０号"]
[4010001034760,"株式会社カネボウ化粧品","東京都中央区日本橋茅場町一丁目１４番１０号"]
[4010001035783,"株式会社アトックス","東京都港区芝四丁目１１番３号芝フロントビル"]
[4010001036930,"イスクラ産業株式会社","東京都中央区日本橋１-１４-２"]
[4010001038142,"株式会社エスアールディ","東京都中央区八丁堀３-４-８ＲＢＭ京橋ビル"]
[4010001041831,"株式会社希松","東京都中央区新川１-２２-１１"]
[4010001041831,"株式会社ナチュラルサイエンス","東京都中央区新川１-２２-１１"]
[4010001045031,"株式会社サンギ","東京都中央区築地３-１１-６"]
[4010001046995,"シャンボーテ関東工場","茨城県ひたちなか市栄町１-２-２"]
[4010001047936,"セイコーオプティカルプロダクツ株式会社","東京都中央区八丁堀一丁目９番９号セイコー八重洲通ビル"]
[4010001052143,"鳥居薬品株式会社","東京都中央区日本橋本町３-４-１トリイ日本橋ビル"]
[4010001052143,"日本たばこ産業株式会社医薬事業部","東京都中央区日本橋本町３-４-１トリイ日本橋ビル"]
[4010001053001,"株式会社ナガセビューティケァ","東京都中央区日本橋本町１-２-８長瀬産業本町ビル"]
[4010001057794,"株式会社マツモト交商","東京都中央区日本橋室町１-１３-７ＰＭＯ日本橋室町"]
[4010001074294,"メドエルジャパン株式会社","東京都千代田区神田駿河台２-１-２０お茶の水ユニオンビル"]
[4010001084104,"株式会社ニッピコラーゲン化粧品","東京都足立区千住緑町一丁目１番１号"]
[4010001084797,"ツカモトエイム株式会社","東京都中央区日本橋本町１-６-５ツカモトビル"]
[4010001085267,"株式会社ユーシンメディカル","東京都文京区本郷二丁目２６番３号本郷松崎ビル"]
[4010001087940,"株式会社スリー・ディー・マトリックス","東京都千代田区麹町３-２-４麹町ＨＦビル"]
[4010001089128,"ヤンセンファーマ株式会社","東京都千代田区西神田３-５-２"]
[4010001097915,"アンファー株式会社","東京都千代田区丸の内２-７-２ＪＰタワー"]
[4010001101503,"株式会社アグリマート東京営業所","東京都中央区京橋３-１２-２京橋第２有楽ビル"]
[4010001105792,"ラトックシステムエンジニアリング株式会社","東京都文京区関口一丁目２４番８号東宝江戸川橋ビル４階"]
[4010001106378,"セルジーン株式会社","東京都千代田区丸の内二丁目７番２号ＪＰタワー"]
[4010001106378,"大和製罐株式会社","東京都千代田区丸の内二丁目７番２号ＪＰタワー"]
[4010001112392,"株式会社アイグラン","東京都文京区本郷３-２７-１本郷モトフジビル"]
[4010001114843,"ＳＡＮＳＨＯ株式会社","東京都中央区日本橋１-２-１０東洋ビル"]
[4010001122334,"統一超商東京マーケティング株式会社","東京都中央区日本橋小網町３-１１日本橋ＳＯＹＩＣ４階"]
[4010001132102,"株式会社ティーアールファーマ","東京都中央区日本橋本町１-１-８ＫＤＸ新日本橋ビル"]
[4010001134016,"レオファーマ株式会社","東京都千代田区岩本町三丁目１１番６号ＰＭＯ秋葉原"]
[4010001134107,"リヴァノヴァ株式会社","東京都千代田区永田町２-１１-１山王パークタワー"]
[4010001153718,"アステラス・アムジェン・バイオファーマ株式会社","東京都千代田区丸の内１-７-１２サピアタワー"]
[4010001160482,"ＢＥＳＴＬＩＦＥ株式会社","東京都港区南青山２-１８-２竹中ツインビルＡ-４Ｆ株式会社フューテック内"]
[4010001168187,"ハイファイブ株式会社","東京都中央区日本橋久松町４番６号杉山ビル"]
[4010001185455,"太陽ファルマ株式会社","東京都千代田区丸の内一丁目６番５号丸の内北口ビルディング"]
[4010002004250,"有限会社トキオン","東京都文京区本郷３-１７-７丸尾駐車場ビル"]
[4010002027986,"アクセスポイントテクノロジーズ有限会社","東京都千代田区麹町３-１-１５浅野ビル別館"]
[4010101000191,"アジレント・テクノロジー株式会社芝浦オフィス","東京都港区芝浦四丁目１６番３６号住友芝浦ビル"]
[4010101002056,"ゾンネボード製薬株式会社","東京都八王子市散田町５-７-１４"]
[4010101007229,"ホットアルバムコム株式会社","東京都八王子市東町１-１０グランデハイツ八王子３０３号"]
[4010401010205,"コスメテックスローランド株式会社","東京都港区赤坂１-１２-３２アーク森ビル"]
[4010401011491,"ノバルティスファーマ株式会社","東京都港区虎ノ門一丁目２３番１号虎ノ門ヒルズ森タワー"]
[4010401018074,"株式会社ディーエイチシー","東京都港区南麻布２-７-１"]
[4010401021499,"旭化成アドバンス株式会社","東京都港区新橋六丁目１７番２１号住友不動産御成門駅前ビル"]
[4010401021648,"株式会社日立ハイテクノロジーズ東京テクニカルセンタ","東京都港区芝公園二丁目４番１号芝パークビルＢ館"]
[4010401028379,"株式会社マルタカ","東京都中央区銀座６-１６-１２丸高ビル"]
[4010401028627,"エア・ウォーター炭酸株式会社","東京都港区新橋４-２１-３新橋東急ビル"]
[4010401052809,"株式会社ロイヤルコスメティックス","東京都港区六本木３-１６-１５"]
[4010401058319,"株式会社イムコア","東京都港区東新橋２-４-６パラッツオシエナ"]
[4010401062304,"株式会社エル・エム・エス","東京都文京区本郷３-６-７田中ビル"]
[4010401062304,"株式会社エル・エム・エス","東京都文京区本郷３-６-９大澤ビル"]
[4010401069976,"Ｏｐｔｏｓ株式会社","東京都港区芝四丁目１０番５号スター・カンパニーズ・ビルディング"]
[4010401079918,"株式会社ヴィダ","東京都墨田区菊川三丁目２１番１１号レジデンス須賀菊川"]
[4010401079934,"株式会社バスクリン","東京都千代田区九段北四丁目１番７号九段センタービル"]
[4010401085164,"株式会社日本ＦＥＥＬＩＮＧ","東京都港区赤坂７-９-７バルビゾン７４ビル"]
[4010401093349,"銀座ステファニー化粧品株式会社","東京都港区新橋１-１０-６新橋Ｍ-ＳＱＵＡＲＥ"]
[4010401101557,"ＢｉｏＭａｒｉｎＰｈａｒｍａｃｅｕｔｉｃａｌＪａｐａｎ株式会社","東京都渋谷区代々木二丁目１１番１７号ラウンドクロス新宿"]
[4010401102737,"株式会社ＳＨＵＣＯＳＭＥＴＩＣＳ","東京都中央区銀座２-１６-２"]
[4010401104601,"ハーモニープラン株式会社","東京都港区赤坂四丁目８番８号伊東ビル"]
[4010401112694,"株式会社ミス・パリ","東京都中央区銀座５-１０-２ＧＩＮＺＡＭＩＳＳＰＡＲＩＳ"]
[4010401119491,"クリスメディカルソリューションズ株式会社","東京都世田谷区奥沢３-３５-１１奥沢アパートメンツ"]
[4010501001822,"株式会社エムエムアンドニーク","東京都台東区柳橋１-１６-６"]
[4010501021845,"株式会社ニュービジョンコーポレーション","東京都台東区下谷１-１０-３ＮＶビル"]
[4010601012331,"株式会社大協精工佐野栄工場","栃木県佐野市栄町３-５"]
[4010601012496,"電通セントラル株式会社","東京都墨田区菊川３-２２-１２"]
[4010601013032,"アルケア株式会社本社","東京都墨田区錦糸１-２-１アルカセントラル１９階"]
[4010601013619,"東粧ケミカル株式会社","東京都葛飾区西新小岩３-３５-２"]
[4010601030366,"ユビックス株式会社","東京都江東区青海２-４-３２ＴＩＭＥ２４ビル"]
[4010601035530,"株式会社天真堂","東京都江東区木場二丁目１７番１３号第二亀井ビル"]
[4010601037709,"株式会社東和製作所","東京都大田区大森西４-１４-１１"]
[4010601038038,"株式会社ケミラボル","東京都墨田区東向島三丁目１６番４号"]
[4010601039655,"株式会社モリプランニング","東京都江東区亀戸５-３８-４"]
[4010601041297,"ジェイシード株式会社","千葉県千葉市中央区末広４-２４-１ドミール末広１００号"]
[4010701009005,"ボシュロム・ジャパン株式会社","東京都品川区南大井６-２６-２"]
[4010701012561,"株式会社スターパック","東京都板橋区三園１-４６-３"]
[4010701019185,"バイオ・ラッドラボラトリーズ株式会社","東京都品川区東品川２-２-２４天王洲セントラルタワー"]
[4010701024128,"ソノヴァ・ジャパン株式会社","東京都品川区東品川２-５-８天王洲パークサイドビル"]
[4010701026909,"インテグロ株式会社","東京都中央区勝どき５-３-１勝どきザ・タワー"]
[4010701031611,"Ｊｅｉｓｙｓ　Ｍｅｄｉｃａｌ　Ｊａｐａｎ株式会社","東京都品川区西五反田５－５－７　ケーエムビル"]
[4010901002981,"協和薬品工業株式会社","岐阜県岐阜市野一色２-８-６"]
[4010901005167,"ジェイ・ヒューイット株式会社","東京都新宿区四谷１‐１９‐２四谷セントラルビル"]
[4010901005828,"株式会社ジャフコ","東京都世田谷区駒沢１丁目１７番１５号渡会ビル"]
[4010901009234,"日廣薬品株式会社","東京都世田谷区北沢４-１５-１"]
[4010902002023,"有限会社ウエルフェア研究所","東京都世田谷区等々力７－１３－６"]
[4011001008993,"三共理化工業株式会社","東京都渋谷区代々木１-５５-５三共ビル"]
[4011001017846,"日本デイリーヘルス株式会社","東京都渋谷区千駄ヶ谷５-２７-３やまとビル"]
[4011001021575,"株式会社ホーマーイオン研究所","東京都渋谷区神泉町１７-２"]
[4011001028273,"日本ビー・エックス・アイ株式会社","東京都渋谷区南平台町１３番１０号ＢＸＩビル"]
[4011001042794,"ガイア・エヌピー株式会社本社","東京都渋谷区猿楽町１１-６サンローゼ代官山"]
[4011001042893,"ベントレップ・サンテ株式会社","東京都渋谷区千駄ヶ谷３-２２-８"]
[4011001062776,"ＵＬＴＲＡＤＥＮＴＪＡＰＡＮ株式会社","東京都渋谷区本町一丁目７番５号初台村上ビル"]
[4011101004067,"オガワ精機株式会社","東京都新宿区大久保２-２-９２２山京ビル"]
[4011101016203,"株式会社日本医用レーザー研究所","東京都新宿区信濃町３５番地信濃町煉瓦館"]
[4011101030625,"株式会社三井コスメティックス","東京都新宿区四谷坂町１２番１５号"]
[4011101036928,"サーモフィッシャーダイアグノスティックス株式会社","東京都港区芝浦４-２-８住友不動産三田ツインビル東館"]
[4011101040236,"日本ポール株式会社東京営業所","東京都新宿区西新宿六丁目５番１号アイランドタワー"]
[4011101053873,"株式会社ピーシーエヌ","東京都新宿区四谷四丁目３４番１号新宿御苑前アネックス"]
[4011101060696,"Ｍ．Ｉジャパン株式会社","東京都新宿区新宿６-２９-２０ＭＡＴＳＵＤＡビル"]
[4011102018784,"有限会社フォーメディックス","東京都新宿区西早稲田１-１４-１４ふじビル"]
[4011201011070,"株式会社典雅","東京都港区三田１-７-１パークコート麻布十番ザ・タワー２０１"]
[4011201014503,"株式会社アルマード","東京都中央区京橋３-６-１８東京建物京橋ビル"]
[4011301014832,"株式会社ネモト・センサエンジニアリング","東京都杉並区高井戸東４-１０-９"]
[4011401001210,"株式会社岡部製作所営業部","東京都新宿区山吹町３３６-１山吹町徳住ビル"]
[4011401003900,"株式会社竹内製作所","東京都調布市多摩川１-３３-１"]
[4011401004725,"株式会社トプコン","東京都板橋区蓮沼町７５番１号"]
[4011402000954,"有限会社一木医療器製作所","東京都板橋区蓮根３-９-１３"]
[4011501005838,"株式会社オーラルケア","東京都荒川区西日暮里２-３２-９"]
[4011601004970,"株式会社中川製作所","東京都江戸川区松島一丁目３４番３号"]
[4011601005143,"株式会社日本シンコー","東京都中野区東中野４-１８-５"]
[4011601006083,"株式会社フューチャー・ウエイブ","東京都練馬区豊玉中３-２-１７"]
[4011701001620,"株式会社エンポリオ","東京都江戸川区東小岩一丁目３番１号"]
[4011701010233,"ピヤス株式会社","東京都江戸川区平井６-７３-９"]
[4011801011445,"富士医療測器株式会社","東京都足立区保木間１丁目８番１４号"]
[4011801012476,"株式会社ムツナミ","東京都足立区梅田６-１８-１２"]
[4012301006225,"株式会社シュア・グレイス","東京都町田市小山ヶ丘１-９-７"]
[4012301006225,"株式会社ティアーズ","東京都町田市小山ヶ丘１-９-７"]
[4012401001489,"株式会社府中技研","東京都府中市南町５-３８-３３"]
[4012401002792,"株式会社ウエルミー","東京都小金井市貫井北町３-２０-１０"]
[4012701002559,"ムサシノ製薬株式会社","東京都西東京市緑町１-４-２６"]
[4012803001260,"グローバスメディカルジャパン合同会社","東京都千代田区一番町１０番地２一番町Ｍビル"]
[4013101003965,"株式会社日向和田精密製作所","東京都青梅市日向和田３-６９８"]
[4013201017551,"株式会社ＴＢＣ","東京都杉並区上井草２-３４-２４"]
[4013301006867,"大正製薬株式会社","東京都豊島区高田３-２４-１"]
[4013301007262,"株式会社タマノ","東京都板橋区中丸町１８番１０号"]
[4013301010381,"ピジョン株式会社","東京都中央区日本橋久松町４番４号ピジョンビル"]
[4013301021338,"株式会社ファインケメティックス","東京都中央区日本橋堀留町２-３-１４堀留ＴＨビル"]
[4013301021453,"株式会社ピュアソン","東京都豊島区池袋二丁目６３番４山ノ紀ビル"]
[4013301030124,"株式会社ディーエムピー","東京都板橋区高島平９-１６-３株式会社ジェイディビーネットワーク内"]
[4013401002304,"ＧＥヘルスケア・ジャパン株式会社","東京都日野市旭が丘４-７-１２７"]
[4020001006255,"株式会社サンライフ","神奈川県相模原市南区相武台３-２８-１１"]
[4020001008235,"株式会社リュミエリーナ","東京都中央区銀座七丁目９番１７号銀座ヤマトビル"]
[4020001019711,"オータックス株式会社","神奈川県横浜市港北区新羽町１２１５番地"]
[4020001026138,"フィード株式会社","神奈川県横浜市西区みなとみらい２-３-３クイーンズタワーＢ１９Ｆ"]
[4020001032202,"株式会社テクノメディカ","神奈川県横浜市都筑区仲町台５丁目５番１号"]
[4020001064542,"株式会社ニューオプト","神奈川県川崎市多摩区宿河原２-２８-１８"]
[4020001068766,"株式会社アステム","神奈川県川崎市高津区溝口２-１４-６シマヤビル３Ｆ"]
[4020001069525,"株式会社スペック・システム","神奈川県川崎市中原区上丸子山王町２-１３２６藤光ビル２Ｆ"]
[4020001079879,"株式会社明日香特殊検査研究所","神奈川県川崎市高津区溝口五丁目３番６７号"]
[4020001087766,"アイミー株式会社","神奈川県横浜市港北区新横浜一丁目７番地９"]
[4020001092205,"株式会社ＮＭＴＪａｐａｎ","神奈川県横浜市中区元町四丁目１７９番地３Ｆ"]
[4020001109644,"株式会社カナケン","神奈川県横浜市青葉区美しが丘２－１７－３９"]
[4021001002392,"株式会社ワコー商事","神奈川県藤沢市善行７-３-５"]
[4021001012160,"株式会社相模化学金属","神奈川県相模原市緑区橋本台三丁目１２番１８号"]
[4021001013349,"株式会社常盤産業本社工場","神奈川県相模原市南区麻溝台７-２４-３５"]
[4021001020007,"株式会社セルタン","神奈川県厚木市金田１６５５"]
[4021001026788,"近代化学株式会社","神奈川県海老名市門沢橋三丁目１９番３号"]
[4030001007483,"株式会社富士薬品","埼玉県さいたま市大宮区桜木町四丁目３８３番地"]
[4030001022169,"株式会社リブアンドラブ","埼玉県蕨市北町５-７-１２"]
[4030001023869,"片瀬工業株式会社","埼玉県所沢市山口２５７-５"]
[4030001039502,"株式会社アステック","埼玉県東松山市元宿２丁目３６番地２０"]
[4030001042241,"株式会社ミツバ","埼玉県桶川市南２ー５ー６"]
[4030001045137,"大和光機工業株式会社","埼玉県朝霞市膝折町２丁目１４番４３号"]
[4030001059962,"株式会社メテク","埼玉県川越市芳野台一丁目１０３番地６６"]
[4030001071298,"メディコス製薬株式会社","埼玉県比企郡滑川町大字都２５番地９６"]
[4030001071620,"株式会社イムノ・プローブ","埼玉県比企郡嵐山町鎌形１３３１-３"]
[4030001073402,"株式会社竹内製作所","埼玉県川口市東領家４-２-１２"]
[4030001092245,"株式会社ティエムトレーディング","埼玉県朝霞市根岸台七丁目３１番３２号"]
[4030001095074,"アドバンスジャパン株式会社","埼玉県川口市大字東本郷１１８-１"]
[4030001103225,"武蔵医研株式会社","埼玉県川口市上青木３-１２-１８産業技術総合センター５０５研究室"]
[4030001116466,"あおライト株式会社","埼玉県さいたま市大宮区土手町２-８４-１"]
[4030002016871,"有限会社八洲エンジニアリング","埼玉県さいたま市中央区大戸三丁目１１番９号"]
[4030002068599,"有限会社須田医科器械製作所","埼玉県春日部市豊野町２―３０―２"]
[4040001027571,"株式会社マーナーコスメチックス市川工場","千葉県市川市原木１丁目３番３１号"]
[4040001035491,"株式会社サイモン","千葉県松戸市上本郷４１２３"]
[4040001036465,"株式会社日本メディックス柏工場","千葉県柏市若白毛１１５７"]
[4040001071818,"株式会社サンメディカル","千葉県野田市目吹９６"]
[4040002043601,"有限会社堤製作所","千葉県鎌ケ谷市東初富１-７-２"]
[4050001026606,"株式会社共和製作所","茨城県常陸太田市大平町９３０-３"]
[4050001028494,"ＩＬＳ株式会社","茨城県守谷市久保ケ丘一丁目２番地１"]
[4060001005922,"マニー株式会社清原工場","栃木県宇都宮市清原工業団地８番３号"]
[4070001021761,"神薬工業株式会社","群馬県館林市赤生田町２２８０"]
[4080001019771,"セレブレイト株式会社","静岡県藤枝市田沼一丁目１番２-７０２号"]
[4080001022206,"株式会社アールテック","静岡県浜松市北区新都田一丁目４番１０号"]
[4090001005589,"株式会社ホリスティックホールディングス","東京都品川区西五反田１-１４-１シンセービル"]
[4090001007924,"山陽精工株式会社","山梨県大月市猿橋町小沢１４３５"]
[4100001014423,"サンリン株式会社穂高支店","長野県安曇野市穂高牧１７６-９"]
[4100001016345,"株式会社遠赤技研","長野県安曇野市豊科４４７１-１"]
[4100001018201,"株式会社エスエヌディ本社工場","長野県諏訪市大字四賀３２２５-２"]
[4100001019232,"宮坂ゴム株式会社ＦＮＰ事業部","長野県茅野市玉川１１４００-１０７９"]
[4100001019389,"岡谷酸素株式会社技術部","長野県松本市市場６-２０"]
[4100001021709,"扶桑化学株式会社","長野県上伊那郡辰野町大字伊那富７３６２-２０"]
[4100001030486,"野村メディカルデバイス株式会社","長野県塩尻市広丘野村２５１ー１１"]
[4110001003648,"新潟アイ・ジー・エス株式会社新潟工場","新潟県北蒲原郡聖籠町東港１丁目１６４番地４"]
[4110001005909,"株式会社リリー","新潟県新潟市東区豊３丁目３番４８号"]
[4110001022929,"株式会社ＪＶＣケンウッド長岡","新潟県長岡市東高見１丁目２番地１"]
[4110001023191,"株式会社中津山熱処理","新潟県長岡市南陽１-１０８９-１０"]
[4120001000314,"株式会社ナプラ","大阪府大阪市旭区高殿４丁目１６番１９号"]
[4120001000479,"沢井製薬株式会社信頼性保証本部","大阪府大阪市淀川区宮原五丁目２番３０号"]
[4120001009693,"株式会社スハダ美容研究所","大阪府大阪市北区南森町２-２-９南森町八千代ビル１０階"]
[4120001010684,"日宏化学薬品株式会社","奈良県生駒郡斑鳩町大字高安５００番地"]
[4120001012177,"株式会社クロバーコーポレーション","大阪府大阪市東成区神路２-１-４"]
[4120001015411,"大興化成株式会社","大阪府大阪市城東区成育１丁目７-２７"]
[4120001017432,"株式会社香粧園","大阪府大阪市生野区巽北１丁目２５番４号"]
[4120001033231,"常盤薬品工業株式会社","大阪府大阪市中央区安土町３-５-１２"]
[4120001038164,"小厚化成株式会社","大阪府大阪市浪速区恵美須西２丁目９番１３号"]
[4120001042884,"株式会社クラブコスメチックス本社","大阪府大阪市西区西本町２-６-１１"]
[4120001043379,"山一株式会社","大阪府大阪市西区土佐堀１丁目４番１１号"]
[4120001049888,"生晃栄養薬品株式会社","大阪府大阪市西淀川区姫里２-３-２８"]
[4120001056645,"株式会社大和工場","大阪府大阪市淀川区西三国４-３-７５"]
[4120001058666,"ミナト医科学株式会社","大阪府大阪市淀川区新北野３丁目１３-１１"]
[4120001064111,"株式会社阪本漢法製薬","兵庫県尼崎市名神町１丁目５番１２号"]
[4120001070786,"マルホ株式会社","大阪府大阪市北区中津１丁目５-２２"]
[4120001071231,"株式会社メディコスヒラタ","大阪府大阪市西区江戸堀３-８-８メディコスヒラタセンタービル"]
[4120001074928,"株式会社インターメドジャパン","大阪府大阪市中央区道修町一丁目６番７号北浜ＭＩＤビル"]
[4120001074928,"株式会社ジェイエスエス","大阪府大阪市中央区道修町一丁目６番７号北浜ＭＩＤビル"]
[4120001077402,"小林製薬株式会社","大阪府茨木市豊川１-３０-３"]
[4120001077402,"ジュジュ化粧品株式会社","大阪府茨木市豊川１-３０-３"]
[4120001077617,"日本臓器製薬株式会社","大阪府大阪市中央区平野町２丁目１-２沢の鶴ビル"]
[4120001080851,"ジェクス株式会社本社","大阪府大阪市中央区谷町２丁目３番１２号"]
[4120001084126,"株式会社タニモト","大阪府堺市中区毛穴町１５５-２"]
[4120001087129,"ハクゾウメディカル株式会社","大阪府大阪市中央区徳井町２丁目４番９号"]
[4120001093390,"日本粉末薬品株式会社","大阪府東大阪市宝町１３-３６"]
[4120001094777,"株式会社メディオン・リサーチ・ラボラトリーズ","大阪府大阪市淀川区新高３-１０-１４"]
[4120001096708,"株式会社アイデンス","大阪府大阪市中央区船越町１-６-６"]
[4120001103331,"株式会社ソフトウェア・サービス","大阪府大阪市淀川区西宮原２丁目６番１号"]
[4120001113529,"サンライズケミカル株式会社","大阪府大阪市中央区難波千日前１４-２５"]
[4120001116845,"湘栄ジャパン株式会社","大阪府大阪市阿倍野区昭和町２-１９-２８"]
[4120001117711,"株式会社ナノファイン","大阪府大阪市東淀川区下新庄５丁目７番８号"]
[4120001119575,"株式会社フィールドアンドデバイス","大阪府大阪市中央区道修町２-１-１０"]
[4120001126563,"オーディック株式会社","大阪府大阪市福島区福島７ー１４ー２０大阪みづほビル８Ｆ"]
[4120001128931,"株式会社ワイエムピー・ムンダス","大阪府大阪市中央区和泉町１-１-１４"]
[4120001133080,"株式会社美美研究所関西工場","大阪府大阪市城東区成育３丁目９-１８"]
[4120001137032,"株式会社エムジェイ","大阪府大阪市生野区巽南５丁目８番１１号"]
[4120001137172,"メディコスプロダクツ株式会社","大阪府大阪市北区西天満４-１４-３"]
[4120001137172,"サイエンスラボ株式会社","大阪府大阪市北区西天満４-１４-３"]
[4120001143360,"日本メディカルネクスト株式会社","大阪府大阪市中央区今橋二丁目５番８号トレードピア淀屋橋"]
[4120001147080,"大成歯科工業株式会社","大阪府交野市星田北４丁目３８-７"]
[4120001147452,"株式会社エム・ジー大阪","大阪府寝屋川市葛原２-１６-１"]
[4120001152477,"株式会社エージェイシー大阪工場","大阪府大阪市城東区成育３丁目１６-７成育ビル２階"]
[4120001156057,"ソフトキューブ株式会社","大阪府守口市京阪本通２-３-５"]
[4120001157708,"株式会社タカゾノＣＳセンター","大阪府枚方市津田山手２丁目９番２０号"]
[4120001157872,"東和薬品株式会社","大阪府門真市新橋町２番１１号"]
[4120001159068,"コニカミノルタメディカルソリューションズ株式会社","大阪府門真市元町２２番６号"]
[4120001174785,"株式会社Ａｉｍｓ","大阪府大阪市北区天満二丁目７番２２号"]
[4120001174785,"株式会社ｅｌｌｉｑｕｅｎｃｅ‐Ｊａｐａｎ","大阪府大阪市北区天満二丁目７番２２号"]
[4120001179768,"日本医療薬品株式会社","大阪府大阪市西区新町一丁目１０番７号"]
[4120001182350,"株式会社フランネル","大阪府大阪市中央区南船場１-３-１４"]
[4120002001154,"有限会社シャンテ","大阪府大阪市西区立売堀２丁目１-９日建ビル３Ｆ"]
[4120002051158,"有限会社五光","大阪府茨木市彩都あさぎ七丁目７番１５号彩都バイオインキュベータ２０６"]
[4120002059300,"有限会社デンタルウェーブ","大阪府大阪市北区中崎西１-４-２２梅田東ビル３１５"]
[4120101024915,"イオン製薬株式会社","大阪府松原市一津屋６-３-１"]
[4120101026746,"株式会社オキナ","大阪府大阪市天王寺区大道５―７―２０"]
[4120101027133,"エフピー株式会社","大阪府松原市西大塚１-３-４０"]
[4120101027133,"藤本製薬株式会社","大阪府松原市西大塚１-３-４０"]
[4120101031036,"株式会社デリシアスエーシー","大阪府富田林市中野町東２丁目１番５４号"]
[4120101036308,"株式会社大阪レンズラボラトリ","大阪府堺市中区深井水池町３２５５番地"]
[4120101047057,"株式会社ナカベヤ","大阪府泉南市新家２８９２番地"]
[4120901005750,"オリオン粧品工業株式会社","大阪府吹田市寿町２-９-１３"]
[4120901011542,"株式会社テクノ高槻","大阪府高槻市八丁西町８番１６号"]
[4120901014256,"株式会社健美舎","大阪府吹田市広芝町９番２８号　江坂三生ビル５階"]
[4120901019726,"株式会社タイヨー","大阪府摂津市東正雀２-１８"]
[4120901019800,"鶴原製薬株式会社","大阪府池田市豊島北１丁目１６番１号"]
[4122001005350,"東久漢方薬品株式会社","大阪府東大阪市加納４丁目１１番３０号"]
[4122001005490,"株式会社ニチエイ","大阪府堺市南区原山台５丁１１番２号"]
[4122001005747,"日成興産株式会社","大阪府東大阪市新庄西８番１７号"]
[4122001007834,"株式会社ヤマダ薬研","大阪府東大阪市菱屋西４-１-１９"]
[4122001018253,"木村石鹸工業株式会社","大阪府八尾市北亀井町２丁目１番３０号"]
[4130001000313,"エコー医科器材株式会社","京都府京都市右京区嵯峨釈迦堂門前瀬戸川町２番地４"]
[4130001000899,"サンコール株式会社","京都府京都市右京区梅津西浦町１４番地"]
[4130001009833,"日本酵素薬品株式会社","京都府京都市東山区福稲上高松町６４番地の５"]
[4130001010155,"大蔵製薬株式会社","京都府宇治市槙島町十一６５-１"]
[4130001011509,"株式会社ビーエムジー","京都府京都市南区東九条南松ノ木町４５番地"]
[4130001012424,"株式会社エヌアンドピー","京都府京都市山科区大宅中小路町２６番地"]
[4130001014692,"株式会社松風プロダクツ京都","京都府久世郡久御山町市田新珠城２１番地１"]
[4130001016177,"株式会社Ｋｉｓｔ","京都府京都市伏見区横大路一本木１９番地"]
[4130001043659,"舞鶴大同ガス株式会社","京都府舞鶴市字清道小字瀬谷７４-３"]
[4130002011714,"リツリン酵素有限会社","京都府京都市下京区河原町通正面下る万屋町３３４番地"]
[4140001007530,"河野医科器械株式会社","兵庫県神戸市中央区布引町２丁目２番２５号河野ビル"]
[4140001008388,"澁谷油脂株式会社","兵庫県神戸市中央区筒井町２丁目１‐３３"]
[4140001021985,"株式会社パルス","兵庫県神戸市東灘区向洋町中６-９神戸ファッションマート５Ｅ-１０"]
[4140001022777,"デキシコウインジャパン株式会社","兵庫県神戸市中央区港島南町５-５-２ＫＩＢＣ"]
[4140001025771,"株式会社ナリスコスメティックフロンティア","兵庫県神戸市東灘区向洋町西５丁目１０番４号"]
[4140001027058,"ＫｉＳＣＯ株式会社","兵庫県神戸市中央区港島南町５-３-６"]
[4140001037412,"ボディーオーラ株式会社","兵庫県明石市魚住町中尾１０３２番地"]
[4140001052213,"株式会社Ｒｅ・工房","兵庫県尼崎市大浜町２丁目５番２号"]
[4140001053285,"豊和ＥＳ株式会社","兵庫県尼崎市猪名寺二丁目２１番３２号"]
[4140001063227,"小林カプセル株式会社","兵庫県姫路市山吹２-５-２５"]
[4140001069694,"株式会社鳴尾化学研究所","兵庫県西宮市浜甲子園２丁目１３番１８号"]
[4140001071353,"近畿酸素株式会社","兵庫県篠山市菅１５５-１"]
[4140001082573,"Ｒｅ＆Ｄｏ株式会社","兵庫県神戸市北区山田町小部北ノ谷６２"]
[4140001085238,"ムネ製薬株式会社","兵庫県淡路市尾崎８５９"]
[4140001098181,"摩耶堂製薬株式会社","兵庫県神戸市西区玉津町居住６５番地１"]
[4150001007125,"株式会社西丘ブラシ製作所","奈良県生駒郡平群町下垣内１７２番"]
[4150001013486,"三ッ星靴下株式会社","奈良県大和高田市大谷３１３番地"]
[4160001000120,"株式会社イキ","滋賀県大津市茶戸町２番６号"]
[4160001000368,"株式会社大木工藝","滋賀県大津市中野３丁目４番１３号"]
[4160001001498,"日本電気硝子株式会社滋賀高月事業場コンシューマーガラス事業部製造部","滋賀県長浜市高月町高月１９７９番地"]
[4160001005177,"日新製薬株式会社","滋賀県甲賀市水口町宮の前２番６２号"]
[4160001006745,"せんねん灸株式会社浅井工場","滋賀県長浜市内保町７７"]
[4160001015944,"株式会社イマック","滋賀県守山市幸津川町１５５１番地"]
[4170001001415,"株式会社サン・ファクター","和歌山県和歌山市萬町１４番地"]
[4170001005960,"シープ歯科工業株式会社","和歌山県海草郡野上町下佐ー１０５８"]
[4170001007379,"オズ株式会社","和歌山県有田市新堂３８６"]
[4170001011001,"ゼネル薬工伊都株式会社","和歌山県伊都郡かつらぎ町笠田東１５３ー１"]
[4180001026683,"日本メナード化粧品株式会社","愛知県名古屋市中区丸の内３-１８-１５"]
[4180001026758,"株式会社長谷川綿行師勝工場","愛知県北名古屋市二子四反地９７７―２"]
[4180001031907,"中島化学産業株式会社","愛知県名古屋市中村区名駅二丁目２９番２０号"]
[4180001033085,"名南歯科貿易株式会社","愛知県名古屋市中川区舟戸町２番２６号"]
[4180001038324,"槌屋ケミカル株式会社","愛知県知立市山町五八山１１番地１"]
[4180001073882,"春日井ガスセンター株式会社","愛知県春日井市上田楽町字北条２５９６番地１"]
[4180001076324,"日本製薬工業株式会社","愛知県小牧市小木東一丁目１８６番地"]
[4180001079095,"東名ブレース株式会社","愛知県瀬戸市坊金町２７１番地"]
[4180001082917,"株式会社スタッフス","愛知県一宮市奥町字蘇東５５番地"]
[4180301005362,"ガステックサービス株式会社","愛知県豊橋市駅前大通一丁目５５番地サーラタワー"]
[4180301005635,"株式会社三恵薬品","愛知県豊橋市入船町２１番地"]
[4180301007094,"本多電子株式会社","愛知県豊橋市大岩町字小山塚２０番地"]
[4180301008373,"西島メディカル株式会社東郷工場","愛知県愛知郡東郷町諸輪字百々５１-９２"]
[4180301008828,"昭和医科工業株式会社","愛知県豊橋市中橋良町６１番地向坂産業ビル２０２号室"]
[4180301011063,"株式会社ジャパン・ティッシュ・エンジニアリング","愛知県蒲郡市三谷北通六丁目２０９番地の１"]
[4180301011237,"株式会社ニデック拾石工場","愛知県蒲郡市拾石町前浜３４-１４"]
[4180301022267,"株式会社アサヒ商会","愛知県名古屋市天白区元八事四丁目１６５"]
[4190001009729,"バウシュ咬合紙ジャパン株式会社","大阪府池田市城南一丁目４番２号"]
[4190001016782,"株式会社菱化デンタル","三重県四日市市富士町１-１５０"]
[4200001002987,"大生堂薬品工業株式会社岐南工場","岐阜県岐阜市六条大溝３-３-１７"]
[4200001003993,"日本養蜂株式会社","岐阜県岐阜市加納富士町１丁目２番地"]
[4200001005718,"吉岡株式会社","岐阜県岐阜市茜部菱野１-６０"]
[4200001019478,"林刃物株式会社","岐阜県関市緑ヶ丘２-３-７"]
[4200001025113,"平和メディク株式会社第二工場","岐阜県高山市山田町１３８２-６"]
[4200001025113,"平和メディク株式会社本社","岐阜県高山市下切町１８０"]
[4200002010064,"有限会社東海薬粧北方製造所","岐阜県本巣郡北方町北方１２-３"]
[4210001000536,"株式会社エニックス","福井県福井市文京６-２１-５"]
[4210001012127,"株式会社岩本","福井県今立郡今立町相木１０-２１"]
[4210001012928,"サンアイ技研株式会社","福井県鯖江市神中町２-３-１２"]
[4210001013257,"株式会社ホプニック研究所","福井県鯖江市下野田町２７-４６"]
[4210001015690,"株式会社レオフレスコ","福井県福井市種池町第１号１５番地４７"]
[4210002012885,"有限会社金谷眼鏡","福井県鯖江市幸町２丁目４-４２"]
[4220001004692,"株式会社ナウ","石川県金沢市いなほ１丁目１２番地"]
[4220001005402,"株式会社林寺メディノール","石川県金沢市笠舞本町２-２６-７"]
[4230001001227,"株式会社島伊兵衛薬品","富山県富山市梅沢町１丁目７番１３号"]
[4230001001301,"ジャパンメディック株式会社","富山県富山市横越１６８番地"]
[4230001001499,"ダイト株式会社","富山県富山市八日町３２６番地"]
[4230001001763,"テイカ製薬株式会社","富山県富山市荒川一丁目３番２７号"]
[4230001008065,"株式会社ＨＢＣ","富山県滑川市小林２５０番地１"]
[4230001008065,"株式会社ライフメディック","富山県滑川市小林２５０番地１"]
[4230001012678,"株式会社廣昌堂","富山県射水市水戸田２８４１"]
[4230002012066,"有限会社松原粉末薬品","富山県高岡市常国１８５の２"]
[4240001003908,"株式会社山貴","広島県広島市安佐南区祇園三丁目２８番２４号"]
[4240001004402,"株式会社ジェイ・シー・ティ","広島県広島市安佐南区祇園一丁目２８番７号"]
[4240001006092,"大宝医科工業株式会社","広島県広島市安佐北区三入１-２５-９"]
[4240001015754,"株式会社エムネス","広島県広島市南区東雲本町一丁目２番２７号"]
[4240001015845,"株式会社システムフレンド","広島県広島市佐伯区五日市駅前１丁目１１番２０号"]
[4240001020671,"シーオーツープラス株式会社","広島県広島市東区曙２丁目８番３号"]
[4240001022560,"株式会社サンヨーコーポレーション","広島県東広島市豊栄町安宿３６２０番地"]
[4240001027221,"藤井商事株式会社","広島県福山市箕沖町１０５-３"]
[4240002047656,"有限会社ＭＩＺＯＵＥＰＲＯＪＥＣＴＪＡＰＡＮ","広島県府中市高木町３０５番地１"]
[4250001002280,"村田株式会社","山口県防府市大字浜方字鶴浜３５９-６"]
[4260001000738,"株式会社ＨプラスＢライフサイエンス","東京都千代田区神田鍛冶町３-６-１神田千歳Ｃ５０ビル"]
[4260001006693,"矢切薬品株式会社国ヶ原工場","岡山県岡山市北区御津国ケ原小屋谷２番"]
[4270002009422,"有限会社ＦＵＮＡＺＡＷＡ","鳥取県米子市福市２８９-１"]
[4290001005651,"株式会社福岡薬工社西新工場","福岡県福岡市早良区西新１丁目４ー２８"]
[4290001010750,"株式会社はぴねすくらぶ","福岡県福岡市中央区赤坂一丁目１４番６号"]
[4290001019783,"芙蓉開発株式会社","福岡県福岡市博多区山王１丁目１０番２９号"]
[4290001019817,"株式会社メディカルプログレス","福岡県福岡市博多区博多駅前４丁目２４番２３号第７森谷ビル５階"]
[4290001021277,"株式会社ネクシス","福岡県福岡市博多区美野島３丁目１７-２７-１"]
[4290001031689,"株式会社Ｂ．ＣＯＣＯＲＯ","福岡県福岡市中央区舞鶴１丁目３-１４"]
[4290001033371,"株式会社ピュール","福岡県糸島市泊７２３-１"]
[4290001040376,"株式会社三松","福岡県筑紫野市岡田３丁目１０番９号"]
[4290001044550,"株式会社ホウリン","福岡県朝倉郡筑前町原地蔵２２２０番地１"]
[4290001049772,"株式会社渡辺商会","福岡県久留米市野中町１２８８番地"]
[4290001059895,"Ｔ．Ｈ．Ｍアライアンス株式会社","福岡県福岡市中央区天神１丁目９番１７号福岡天神フコク生命ビル１５階"]
[4290001078012,"ＮｅｗｒｏＣａｒｅＩｎｓｔｉｔｕｔｅＪａｐａｎ株式会社","福岡県福岡市東区多の津二丁目４-５"]
[4290801012112,"不二貿易株式会社","福岡県北九州市若松区響町一丁目９０番１号"]
[4300001000097,"ウサイエン製薬株式会社","佐賀県佐賀市材木１丁目４-６"]
[4300001004998,"祐徳薬品工業株式会社","佐賀県鹿島市大字納富分２５９６-１"]
[4310001006457,"株式会社ジャパンアクアテック","長崎県佐世保市小佐々町黒石３３９-４１"]
[4320001004204,"株式会社キューメイ研究所","大分県竹田市大字三宅１１１６"]
[4320001006225,"オンリ-株式会社","大分県佐伯市宇目大字南田原字桑の原２３０９-１"]
[4320001012512,"株式会社ヤマト","大分県杵築市大字狩宿字御塔１６６７番２"]
[4320002019754,"有限会社くす無憂扇","大分県玖珠郡九重町大字野上２８６１番地の３２"]
[4330001001010,"キョーリキ株式会社","熊本県熊本市飛田３丁目３-６５"]
[4330001010515,"リバテープ製薬株式会社","熊本県熊本市植木町岩野４５"]
[4330002003336,"熊本共立製薬有限会社","熊本県熊本市南区近見７丁目１０-１"]
[4340001001067,"鹿児島熔材株式会社","鹿児島県鹿児島市下荒田３-１７-２７"]
[4340001013938,"サツマガス工業株式会社","鹿児島県鹿屋市旭原町３５８９-１２"]
[4360001000637,"株式会社オカノ","沖縄県那覇市安謝１-２３-８"]
[4360001002740,"株式会社沖縄教育出版","沖縄県那覇市牧志１-２-２４"]
[4370001002509,"青葉化成株式会社泉開発研究所","宮城県仙台市泉区明通４丁目１９-１"]
[4370001013596,"株式会社ＩＦＧ","宮城県仙台市青葉区折立一丁目１４番９号"]
[4380001014271,"株式会社シンテック","福島県いわき市錦町江栗前２５番地"]
[4380002003273,"有限会社福島熔材工業所佐倉工場","福島県福島市佐倉下字笊内１６-７"]
[4380002025458,"有限会社橋本医療器械製作所","福島県いわき市小川町西小川字渕沢１０９"]
[4380002034896,"清水薬草有限会社工場","福島県喜多方市字押切南二丁目１５番地"]
[4390001009956,"株式会社タカハタ電子","山形県米沢市窪田町窪田１１８８"]
[4400001006241,"北良株式会社","岩手県北上市和賀町後藤２-１０６-１６０"]
[4400001013122,"株式会社エムハート","岩手県盛岡市中央通２-１１-１２"]
[4410001006686,"株式会社ユゼ","秋田県鹿角市八幡平字駒林２４１番地"]
[4420001009003,"株式会社工藤酸素店","青森県弘前市金属町３-３"]
[4450001002129,"東芝ホクト電子株式会社","北海道旭川市南５条通２３丁目１９７５番地"]
[4470001009048,"レルテック医療器株式会社第一工場","香川県坂出市川津町３７９５番地１"]
[4480001001086,"長生堂製薬株式会社","徳島県徳島市国府町府中９２番地"]
[4480001004568,"株式会社ヨコタコーポレーション機械工場","徳島県吉野川市川島町学字辻７-１"]
[4480001005392,"犬伏製薬株式会社","徳島県板野郡藍住町東中富傍示６４-６"]
[4490001005417,"松田医薬品株式会社南国工場","高知県南国市左右山ヒル沢谷２２９-１"]
[4500001003162,"西日本薬業株式会社","愛媛県松山市南吉田町２１８６番地１"]
[4500001014192,"株式会社アイテック","愛媛県大洲市新谷乙１３８２番地"]
[4500002002386,"有限会社楠本産業","愛媛県松山市石風呂町３７７"]
[5010001000002,"オカモト株式会社","東京都文京区本郷三丁目２７番１２号"]
[5010001000010,"ニチバン株式会社本社","東京都文京区関口２-３-３目白坂ＳＴビル"]
[5010001001710,"株式会社カイノス","東京都文京区本郷２-３８-１８"]
[5010001003839,"ジャパンフォーカス株式会社","東京都文京区本郷４-３７-１８いろは本郷ビル"]
[5010001004333,"ゾンネ医科工業株式会社","東京都文京区本郷５-１９-７"]
[5010001005232,"株式会社イーウェーブ","東京都文京区湯島２-３２-３宮川ビル１階"]
[5010001006008,"日本ライトサービス株式会社","東京都文京区本郷３-４２-１三友ビル"]
[5010001006437,"株式会社半田屋商店","東京都文京区本郷３-３７-４"]
[5010001010868,"イオナインターナショナル株式会社","東京都中央区日本橋小舟町９番１７号中央ビル"]
[5010001024827,"株式会社ドレーヌ","東京都中央区日本橋浜町二丁目４５番４号ハイパーク日本橋ビル５階"]
[5010001026476,"バイリーンクリエイト株式会社","東京都中央区築地五丁目６番４号浜離宮三井ビルディング"]
[5010001030387,"水戸工業株式会社","東京都千代田区神田北乗物町６番地水戸ビル"]
[5010001033101,"日本ケミファ株式会社本社","東京都千代田区岩本町２-２-３"]
[5010001033101,"日本薬品工業株式会社本社","東京都千代田区岩本町２-２-３"]
[5010001033646,"日本フェンオール株式会社　八王子事業所","東京都八王子市戸吹町２３２"]
[5010001034867,"東レ株式会社本社","東京都中央区日本橋室町二丁目１番１号"]
[5010001034966,"アステラス製薬株式会社本社事業場","東京都中央区日本橋本町二丁目５番１号日本橋アステラス三井ビルディング"]
[5010001043546,"株式会社コスメラボ","東京都中央区銀座３-５-１２"]
[5010001055046,"株式会社ビーエス・ラボ","三重県伊勢市黒瀬町１４２５"]
[5010001055046,"御木本製薬株式会社","三重県伊勢市黒瀬町１４２５"]
[5010001066200,"株式会社ハーバー研究所","東京都千代田区神田須田町一丁目２４番地１１ＨＡＢＡビル"]
[5010001070598,"レスメド株式会社","東京都千代田区岩本町三丁目２番４号岩本町ビル"]
[5010001083303,"ノーベルファーマ株式会社","東京都中央区日本橋小舟町１２-１０共同ビル（堀留）"]
[5010001084078,"株式会社ジェネライツ","東京都千代田区鍛冶町２-３-２神田センタービル４階"]
[5010001084094,"日本フイリン株式会社","東京都中央区日本橋馬喰町２-７-１３第８東洋ビル４階"]
[5010001084367,"コニカミノルタ株式会社東京サイト日野","東京都日野市さくら町１番地"]
[5010001088921,"株式会社ジェイピーテック","東京都千代田区神田佐久間河岸４６-３ＵＦビル５"]
[5010001089985,"ユーメド貿易株式会社","東京都文京区本郷３-３９-９山本ビル"]
[5010001090968,"シャネル株式会社","東京都中央区銀座三丁目５番３号"]
[5010001097286,"サイトリ・セラピューティクス株式会社","東京都千代田区大手町一丁目１番１号大手町パークビルディング"]
[5010001100314,"メディア株式会社","東京都文京区本郷三丁目２６番６号ＮＲＥＧ本郷三丁目ビル"]
[5010001103556,"株式会社そーせい","東京都千代田区麹町二丁目１番地ＰＭＯ半蔵門"]
[5010001110585,"株式会社ア・ベター・コミュニケーション","東京都中央区日本橋小網町１７番１５号"]
[5010001121277,"パントロン・ワン株式会社","東京都千代田区三番町３番地３三番町３-３ビル"]
[5010001125138,"株式会社松本医科器械","東京都文京区湯島４-１-１１南山堂ビル"]
[5010001125666,"ゲンナイ製薬株式会社","東京都中央区新川二丁目９番６号シュテルン中央ビル"]
[5010001127489,"株式会社ヘリックスジャパン","東京都新宿区新宿１-３-８ＹＫＢ新宿御苑"]
[5010001128066,"ステリスジャパン株式会社","東京都千代田区麹町五丁目１番地ＮＫ真和ビル"]
[5010001131012,"日本アキュレイ株式会社","東京都千代田区大手町２‐２‐１新大手町ビル"]
[5010001141399,"ディー・シー・シー株式会社","東京都千代田区内神田三丁目２番１２号クリハラビル５階"]
[5010001141738,"ＡＪＭＤ株式会社","東京都中央区日本橋久松町４番７号久松町ロータリービル"]
[5010001143189,"ミルマテリアルズ株式会社","東京都文京区本郷４-１-１１デンタビル"]
[5010001145994,"ジャパンワクチン株式会社","東京都千代田区四番町６東急番町ビル"]
[5010001146621,"株式会社ミユキ技研","東京都文京区本郷三丁目１８番１４号本郷ダイヤビル６Ｆ"]
[5010001149062,"株式会社ボーテ福原","東京都中央区銀座８-１２-１３豊川ビル"]
[5010001158369,"エスウイング株式会社","東京都千代田区岩本町二丁目１６番１６号レジェンド岩本町ビルＢ館"]
[5010001158996,"富士ソフト・ティッシュエンジニアリング株式会社","東京都墨田区江東橋二丁目１９番７号　富士ソフト錦糸町ビル"]
[5010001159103,"ＷｒｉｇｈｔＭｅｄｉｃａｌＪａｐａｎ株式会社","東京都中央区日本橋人形町二丁目３３番８号アクセスビル"]
[5010001163393,"ＳＩＭＰＬＥＸＱＵＡＮＴＵＭ株式会社","東京都港区高輪三丁目４番１３号レフォルマ高輪"]
[5010001163864,"ダヴィンチテック株式会社","東京都文京区関口一丁目２１番１９号九條ビル"]
[5010001174184,"ミカサエックスレイ株式会社","東京都文京区小石川５-１０-５"]
[5010001177666,"日本バイオテクノファーマ株式会社","東京都中央区日本橋本町２-６-１３山三ビル"]
[5010001178648,"株式会社根本ディーキューシー","東京都文京区本郷３-５-４朝日中山ビル"]
[5010001183053,"株式会社セルバスヘルスケア・ジャパン","東京都文京区本郷三丁目５番２号第二田中ビル１階"]
[5010001185108,"株式会社ＡＶＳ","東京都渋谷区笹塚一丁目５０番１号笹塚ＮＡビル"]
[5010002040154,"日本ライズ・メディカル有限会社","東京都文京区湯島２-１４-１岡田ビル"]
[5010101001164,"日本アッシュ株式会社","東京都八王子市大和田町二丁目７番７号第一キクヤビル"]
[5010101002328,"田倉繃帯工業株式会社","東京都八王子市千人町３-１７-１０"]
[5010401044516,"デルタ電子株式会社","東京都港区芝大門二丁目１番１４号"]
[5010401046958,"株式会社エスト・コミュ本社","東京都港区北青山３-９-２ＡＱＵＡビル"]
[5010401072434,"レネロファーマ株式会社","東京都港区南麻布五丁目１０番２４号第二佐野ビル"]
[5010401079438,"パナソニック株式会社","東京都港区東新橋１丁目５番１号パナソニック東京汐留ビル"]
[5010401090031,"パシフィックブリッジメディカル株式会社","東京都港区東新橋二丁目１０番１０号東新橋ビル"]
[5010401092044,"アドレンズ・ジャパン株式会社","東京都渋谷区千駄ヶ谷４-１６-７北参道ＤＴビル６階"]
[5010401092738,"アボットメディカルジャパン株式会社","東京都港区東新橋一丁目５番２号汐留シティセンター"]
[5010401092738,"三井化学株式会社","東京都港区東新橋一丁目５番２号汐留シティセンター"]
[5010401101226,"株式会社フロンティアステージ","東京都港区芝浦３-２０-２山楽ビル"]
[5010402036462,"有限会社Ｗａｖｅｌｅｎｇｔｈｓ","東京都港区三田３-７-１６御田八幡ビル"]
[5010403011836,"ハートフロー・ジャパン合同会社","東京都港区西新橋一丁目１８番６号クロスオフィス内幸町１３階"]
[5010403013072,"ＧｌａｕｋｏｓＪａｐａｎ合同会社","東京都港区港南二丁目１６番４号品川グランドセントラルタワー"]
[5010403013519,"Ｊａｐａｎ　ＭＤＣ合同会社","東京都世田谷区砧２－１６－１　ガーデニエール砧ＷＥＳＴ"]
[5010501032775,"株式会社ビュークイル","東京都台東区池之端一丁目６番１７号"]
[5010501037015,"株式会社シャルマリー","東京都台東区柳橋一丁目１５番４コンフォルト浅草橋"]
[5010501040514,"ウィメンズヘルス・ジャパン株式会社","東京都台東区浅草橋三丁目２６番５号"]
[5010601020184,"ヤーマン株式会社","東京都江東区古石場１-４-４"]
[5010601020184,"ヤーマン株式会社","東京都江東区東陽２丁目４-２新宮ビル４階"]
[5010601027857,"原ヘルス工業株式会社本社工場","東京都江東区佐賀１-１-１４ハラリバーサイドビル"]
[5010601027956,"松山油脂株式会社","東京都墨田区東墨田２-１７-８"]
[5010601028772,"メディカランド株式会社","東京都江東区有明３-６-１１東京ファッションタウンビル東館８階"]
[5010601034762,"ＮＳファーファ・ジャパン株式会社","東京都墨田区菊川三丁目２１番８号"]
[5010601036461,"メデラ株式会社","東京都渋谷区笹塚二丁目２６番２号"]
[5010602004269,"有限会社スワメデイカル","東京都江東区亀戸４-１２-１１"]
[5010603006454,"合同会社日本臨床歯科補綴研究所","東京都江東区木場３-４-１７"]
[5010701009029,"星製薬株式会社","東京都品川区西五反田７丁目２２番１７号"]
[5010701010077,"ユニオンツール株式会社","東京都品川区南大井六丁目１７番１号"]
[5010701014499,"株式会社竹虎","神奈川県横浜市瀬谷区卸本町９２７９-６９"]
[5010701020233,"イグザクテック株式会社","東京都中央区日本橋３-１５-２鹿児島ビル"]
[5010701022857,"株式会社ＤＥＣＥＮＣＩＡ","東京都品川区西五反田二丁目２番１０号ポーラ第二五反田ビル"]
[5010701024242,"株式会社日本バイオニクス","東京都品川区西五反田５-２-４レキシントン・プラザ西五反田"]
[5010801002882,"株式会社共和電業","東京都調布市調布ヶ丘３-５-１"]
[5010801003690,"香栄化学株式会社","東京都大田区東雪谷５丁目１０番５号"]
[5010801011454,"株式会社ミクロン池上工場","東京都大田区池上２丁目１７番７号"]
[5010901021717,"株式会社ヒロソフィー","東京都港区芝四丁目６番４号ヒロソフィー三田ビル"]
[5010901024760,"株式会社テクノビューティーサプライ三郷工場","埼玉県三郷市戸ヶ崎２-２２０"]
[5010901025610,"株式会社サロンドケイコ","東京都世田谷区奥沢四丁目１０番１２号花園荘"]
[5010901036624,"近藤テック株式会社","東京都世田谷区桜新町二丁目１４番１１号近藤ビル"]
[5011001003580,"エクセム株式会社","東京都渋谷区代々木１-５８-２アクシア代々木４０２号"]
[5011001004505,"株式会社エレガンスコスメティックス","東京都新宿区西新宿１-２５-１新宿センタービル"]
[5011001004505,"ジャパンローヤルゼリー株式会社","東京都新宿区西新宿１-２５-１新宿センタービル"]
[5011001005222,"オリンパス株式会社","東京都八王子市石川町２９５１"]
[5011001005222,"オリンパスメディカルシステムズ株式会社八王子事業所","東京都八王子市石川町２９５１"]
[5011001022333,"株式会社マルコム","東京都渋谷区本町四丁目１５番１０号"]
[5011001026788,"ドーバー酒造株式会社","東京都渋谷区上原三丁目４３番３号"]
[5011001029122,"株式会社ナファ生活研究所","東京都渋谷区千駄ヶ谷三丁目３７番３号"]
[5011001030278,"株式会社ヤマノビューティケミカル","埼玉県八潮市南後谷２００-１１"]
[5011001030419,"テルモ・ビーエスエヌ株式会社","東京都新宿区西新宿３-２０-２東京オペラシティタワー"]
[5011001038759,"オーバスネイチメディカル株式会社","東京都渋谷区上原三丁目６番１１号代々木上原ペアシティ"]
[5011001067089,"ＪＭＳ株式会社","東京都大田区下丸子１-３-８コーポラス中野"]
[5011001110880,"株式会社琥珀肌","東京都渋谷区代々木１-３０-７ヤマノ２４ビル"]
[5011001116102,"アナミジャパン株式会社","東京都新宿区神楽坂四丁目８番地神楽坂プラザビル"]
[5011002032372,"有限会社プライムファイン","東京都新宿区払方町１９-１エムジー市ヶ谷"]
[5011101002912,"エコラボ合同会社","東京都新宿区高田馬場１-３１-１８高田馬場センタービル"]
[5011101004438,"カールツァイスマイクロスコピー株式会社","東京都新宿区四谷本塩町２番８号"]
[5011101013686,"株式会社デントロニクス","東京都新宿区高田馬場１-３０-１５ＶＯＲＴ高田馬場Ⅰ"]
[5011101016202,"日本エヤークラフトサプライ株式会社","東京都新宿区愛住町３番地３"]
[5011101035037,"持田ヘルスケア株式会社","東京都新宿区市谷本村町２番１２号"]
[5011101045093,"株式会社ＯＥＭ","東京都港区赤坂１-９-１３三会堂ビル５階"]
[5011101052511,"株式会社ダイアナ","東京都渋谷区富ヶ谷１-３５-２３"]
[5011101054821,"株式会社サージカル・スパイン","東京都新宿区市谷田町２-１９-１ＮＢＣビル"]
[5011101066701,"アリミノインターナショナル株式会社","東京都新宿区下落合一丁目５番２２号アリミノビル"]
[5011101076122,"カイロス株式会社","東京都千代田区神田駿河台二丁目３番１６号駿河台スカイビル"]
[5011201017199,"株式会社ＡＣＲＯ","東京都品川区西五反田２-２７-４明治安田生命五反田ビル"]
[5011501002900,"中外製薬株式会社","東京都中央区日本橋室町２-１-１三井二号館"]
[5011501003353,"トミー株式会社","東京都府中市緑町３-１６-７天虎ビル"]
[5011501008022,"中山式産業株式会社","東京都荒川区南千住６-５６-１０"]
[5011601004466,"東京アロエ株式会社","東京都練馬区栄町１５－４"]
[5011601005571,"株式会社ハセガワメディカル","東京都文京区湯島二丁目１６番１０号加藤ビル"]
[5011701006107,"日本臨牀器械工業株式会社","東京都江戸川区北小岩３丁目４番１号"]
[5011701008441,"株式会社ロビアン","東京都江戸川区篠崎町２-５４-７"]
[5011701008796,"エリット株式会社","東京都江戸川区西葛西５‐６‐１７パルクビルⅡ６０１"]
[5011702008770,"有限会社新村製作所","東京都江戸川区平井６丁目８番８号"]
[5011801003342,"東色ピグメント株式会社","東京都葛飾区立石６丁目３７番１４号"]
[5011801009133,"株式会社セムコ","東京都足立区梅田４丁目１６-８"]
[5011801010669,"株式会社中澤金属製作所","東京都足立区舎人４-７-２"]
[5011801012624,"株式会社森山Ｘ線用品","東京都足立区扇１-５２-１２"]
[5011802026549,"有限会社錦部製作所","東京都葛飾区堀切１-１９-１"]
[5012301002867,"株式会社志成データム","東京都町田市小山ヶ丘二丁目２番地５まちだテクノパーク内センタービル"]
[5012401001538,"株式会社ヘルス","東京都府中市宮町２-１５-１３第１５三ツ木ビル"]
[5012401009011,"京立電機株式会社","東京都狛江市岩戸南２-３-１７"]
[5012401013038,"三鷹光器株式会社","東京都三鷹市野崎１-１８-８"]
[5012401023111,"ノボキュア株式会社","東京都千代田区丸の内一丁目９番１号グラントウキョウノースタワー"]
[5012401031733,"株式会社ＴＯＫＩＯＬａｂ","東京都府中市分梅町３-６１-７"]
[5012801004462,"フランスベッド株式会社","東京都昭島市中神町１１４８-５"]
[5013201006693,"株式会社東京鼻科学研究所","東京都目黒区鷹番２-１０-７"]
[5013202003194,"有限会社シック・カンパニー","東京都目黒区目黒本町２-２２-１１安東ビル"]
[5013301031435,"株式会社ナレッジシステム東京本社","東京都千代田区九段北１-１３-１九段中坂ビル"]
[5013401001494,"バイオリンクス株式会社横浜工場","神奈川県横浜市都筑区高山１８-６"]
[5013401001494,"メディカルリンク株式会社","神奈川県横浜市都筑区高山１８-６"]
[5013401005347,"京西テクノス株式会社","東京都多摩市愛宕４-２５-２"]
[5013401007368,"株式会社日本ライトメッド本社","東京都渋谷区幡ヶ谷二丁目２２番１号オアーキスタケビ"]
[5020001057165,"セラビジョン・ジャパン株式会社","神奈川県横浜市西区北幸１-１１-５相鉄ＫＳビル９階"]
[5020001071281,"トーシンデンタル株式会社","神奈川県川崎市幸区北加瀬２丁目５番１２号"]
[5020001090166,"プログレックス株式会社","神奈川県横浜市港南区日野南３－２－６１"]
[5020001091247,"ＯＲＴＨＯＲＥＢＩＲＴＨ株式会社","神奈川県横浜市都筑区茅ヶ崎中央１０-１ヴェルドミール２０３号"]
[5021001001682,"株式会社ニッセイエコ","神奈川県藤沢市用田４７８-１ニッセイ新館ビル"]
[5021001017836,"株式会社プロトンコーポレーション","神奈川県相模原市中央区淵野辺一丁目１２番３号"]
[5021001033305,"株式会社友和製作所","神奈川県小田原市栢山道下２１３６"]
[5021001052073,"株式会社エルエーピー","神奈川県厚木市妻田西１-１９-２２"]
[5030001000594,"株式会社池田歯科機械","埼玉県蕨市錦町４-６-３４"]
[5030001002822,"株式会社興伸工業","埼玉県上尾市大字平方字雨沼１０００番地１"]
[5030001006798,"株式会社ハーベス本社","埼玉県さいたま市浦和区常盤９-２１-１４パークサイドガクヤビル"]
[5030001018042,"株式会社ティー・アンド・アイ","埼玉県さいたま市岩槻区仲町１-１-２３"]
[5030001019593,"ダイケンインターナショナル株式会社","埼玉県さいたま市岩槻区西町五丁目２番２５号"]
[5030001021129,"東洋器材科学株式会社","埼玉県蕨市南町４-７-１０"]
[5030001021475,"株式会社コープクリーン","埼玉県蕨市錦町１-１７-１８"]
[5030001024263,"資生ケミカル株式会社","埼玉県所沢市下安松９６１-１"]
[5030001030063,"株式会社ニプロ・トランソニック","埼玉県所沢市松葉町１１番１号"]
[5030001036390,"メディカテック株式会社","埼玉県八潮市中央１丁目１１-２８"]
[5030001040830,"ネオメディカル株式会社","埼玉県三郷市三郷２丁目３-１１"]
[5030001045375,"株式会社セイブテクノ","埼玉県朝霞市上内間木１０７"]
[5030001045961,"株式会社　テイエムアイ","埼玉県新座市新座１－２－１０"]
[5030001047322,"株式会社光英科学研究所","埼玉県和光市新倉５-１-２５"]
[5030001060614,"ケンツメディコ株式会社","埼玉県本庄市児玉町共栄５５２番地１"]
[5030001064020,"株式会社東邦技研","埼玉県越谷市大字大林６５７"]
[5030001068764,"コージンバイオ株式会社","埼玉県坂戸市千代田５丁目１番地３"]
[5030001076412,"株式会社ドリテック商品センター","埼玉県越谷市流通団地２-３-９"]
[5030001079514,"株式会社メトラン","埼玉県川口市川口２丁目１２番１８号"]
[5030001081809,"アイソン株式会社","埼玉県川口市中青木３-１２-２１"]
[5030001113578,"株式会社タキザワ漢方廠","埼玉県さいたま市大宮区堀の内町２丁目６２３-１"]
[5030002046018,"メディカルテクニカ有限会社","埼玉県草加市谷塚町１４０８番地２５"]
[5030002075693,"有限会社レックス","埼玉県戸田市上戸田三丁目２４番２４号"]
[5030002078218,"有限会社メドライフ","埼玉県富士見市大字勝瀬８７３-８"]
[5040001010667,"株式会社ユーデント","千葉県千葉市美浜区浜田２丁目２５番地"]
[5040001014222,"株式会社エーベルス","千葉県千葉市緑区越智町７７０-３８"]
[5040001017010,"風間精機株式会社","千葉県船橋市南本町２２-９"]
[5040001027001,"株式会社東邦化学研究所市原第二工場","千葉県市原市青柳北一丁目２番１号"]
[5040001032901,"東レ・メディカル株式会社","東京都中央区日本橋本町二丁目４番１号"]
[5040001037231,"株式会社ラムテック","千葉県松戸市新松戸三丁目４０８番地４"]
[5040001038667,"日本フリッツメディコ株式会社","千葉県流山市南流山６丁目９番地３"]
[5040001062527,"ヤマサ醤油株式会社","千葉県銚子市新生町２-１０-１"]
[5040001065471,"共栄製薬株式会社","千葉県柏市西柏台１-１５-４"]
[5040002004998,"ピーティーアンドサヒインターナショナル株式会社","千葉県千葉市稲毛区山王町４１２-２"]
[5050001018008,"株式会社背戸製作所","茨城県つくば市杉木２８３-１"]
[5060001008073,"株式会社シオダ","栃木県那須烏山市東原５３番地"]
[5060001015136,"株式会社イーアンドエム","栃木県下野市下石橋２４６-１５"]
[5060001020111,"株式会社ラスティング","栃木県足利市堀込町１９８３番地"]
[5070001007941,"株式会社ＪＩＭＲＯ","群馬県高崎市西横手町３５１-１"]
[5070001009731,"株式会社リブレックス","群馬県高崎市北原町２４の１"]
[5070001013254,"株式会社群馬コイケ","群馬県伊勢崎市長沼町２２２の１番地"]
[5070001017560,"カンサン株式会社","群馬県渋川市中村１１１８"]
[5070001023749,"株式会社草津温泉浴剤製造所","群馬県吾妻郡草津町大字草津字白根４６４-２４９"]
[5080001002149,"株式会社シャンソン化粧品","静岡県静岡市駿河区国吉田２-５-１０"]
[5080001005242,"株式会社メディカルプロジェクト","静岡県静岡市葵区大鋸町１番地の１２"]
[5080101003773,"株式会社ＳＯＣ","静岡県沼津市大岡２７９２-３"]
[5080101007733,"株式会社ＫＳＩ","静岡県御殿場市板妻７３４番地５"]
[5080101010869,"株式会社サンキョーメディック","静岡県富士市伝法５７３-１３"]
[5080101011611,"東洋カプセル株式会社","静岡県富士宮市中里東町５６０"]
[5080101014515,"杉本工業株式会社","静岡県下田市６丁目３７番４４号"]
[5080401006518,"株式会社システム・ジェーピー","静岡県浜松市東区下石田町１０２５番地の１"]
[5080401014545,"エルソルプロダクツ株式会社","静岡県掛川市淡陽８番地"]
[5100001009587,"上田日本無線株式会社本社工場","長野県上田市踏入２-１０-１９"]
[5100001011923,"株式会社相生電子第二工場","長野県下高井郡木島平村大字往郷９８８-１"]
[5100001012104,"株式会社東和","長野県中野市大字中野１６９８-２"]
[5100001012979,"キッセイコムテック株式会社","長野県松本市和田４０１０-１０"]
[5110001003779,"ニイガタ機電株式会社","新潟県新潟市島見町３２６８番地１８"]
[5110001022606,"株式会社シマキュウ","新潟県長岡市原町１丁目５番地１５"]
[5110002011533,"有限会社ワンリッチインターナショナル","新潟県新潟市西区笠木３１５７番地１"]
[5110002019007,"有限会社小山田製作所","新潟県燕市寿町４番２号"]
[5120001000643,"株式会社センジョー","大阪府大阪市旭区大宮５丁目６番１２号"]
[5120001001006,"株式会社ビー・エス・ピー","大阪府大阪市旭区高殿５-１３-１０"]
[5120001003282,"株式会社キンバト","大阪府大阪市生野区巽西２丁目５-５"]
[5120001008356,"服部ヒーティング工業株式会社","大阪府大阪市都島区高倉町２丁目３-１５"]
[5120001009783,"サラヤ株式会社本社","大阪府大阪市東住吉区湯里２丁目２番８号"]
[5120001012044,"シーホネンス株式会社","大阪府大阪市東成区深江北３-１０-１７"]
[5120001013109,"東洋ビューティ株式会社","大阪府大阪市東成区東中本３-１３-８"]
[5120001013521,"株式会社エンジニア","大阪府大阪市東成区東今里２丁目８番９号"]
[5120001017191,"関西理研化学株式会社","大阪府大阪市生野区巽中３丁目３-３"]
[5120001025574,"株式会社　モモセ歯科商会","大阪府大阪市天王寺区南河堀町６－３５"]
[5120001032703,"三粧化研株式会社","大阪府大阪市住吉区杉本１-７-２５"]
[5120001043857,"株式会社ショーエイコーポレーション大阪第２センター","大阪府大阪市西成区千本南２丁目１６番３９号"]
[5120001046067,"ナック商会株式会社","大阪府大阪市西区立売堀５-７-１３"]
[5120001051819,"参天製薬株式会社","大阪府大阪市北区大深町４-２０"]
[5120001051819,"参天アイケア株式会社","大阪府大阪市北区大深町４-２０"]
[5120001051827,"株式会社サンブレン","大阪府大阪市東淀川区下新庄４丁目５番３２号"]
[5120001055778,"スキルインフォメーションズ株式会社","大阪府大阪市東淀川区東中島１丁目１７番２６号"]
[5120001057709,"バイエル薬品株式会社","大阪府大阪市北区梅田２-４-９"]
[5120001059606,"旭化成株式会社","東京都千代田区神田神保町１-１０５神保町三井ビルディング"]
[5120001059639,"高圧ガス工業株式会社","大阪府大阪市北区中崎西２丁目４番１２号"]
[5120001064515,"三基商事株式会社","大阪府大阪市北区梅田１丁目２番２-８００号"]
[5120001066569,"大成化工株式会社茨木事業所","大阪府茨木市藤の里２丁目１１番６号"]
[5120001067360,"帝人フロンティア株式会社","大阪府大阪市北区中之島三丁目２番４号"]
[5120001073730,"株式会社アックス","大阪府大阪市東住吉区中野１丁目１４番７号"]
[5120001075272,"永大薬業株式会社","大阪府大阪市城東区東中浜８-５-１０"]
[5120001076262,"大前眼鏡株式会社","大阪府大阪市中央区南船場二丁目１２番１０号ダイゼンビル２階"]
[5120001077450,"住友電気工業株式会社大阪製作所","大阪府大阪市此花区島屋１-１-３"]
[5120001077459,"タカラベルモント株式会社大阪本社","大阪府大阪市中央区東心斎橋２-１-１"]
[5120001077541,"扶桑薬品工業株式会社本社事務所","大阪府大阪市城東区森之宮２ー３ー１１"]
[5120001079356,"株式会社小島漢方","大阪府大阪市中央区常盤町２丁目２-１９"]
[5120001080470,"三晶株式会社","大阪府大阪市中央区城見二丁目１番６１号ツイン２１ＭＩＤタワー２３階"]
[5120001082137,"鈴粉末薬品株式会社工場","大阪府東大阪市山手町１１番１６号"]
[5120001082640,"株式会社セブンツーセブン","大阪府大阪市中央区瓦町３-４-９"]
[5120001089396,"堀井薬品工業株式会社","大阪府大阪市中央区内淡路町１丁目２番６号"]
[5120001101185,"株式会社イヌイメデイックス","大阪府東大阪市本庄２-１-４"]
[5120001103859,"ワンポイント株式会社","大阪府大阪市中央区南船場３-２-２２麻綱ビル８階"]
[5120001106119,"セラピ株式会社","大阪府大阪市北区曽根崎２丁目２番１号梅新２１ビル６階"]
[5120001124194,"ステラファーマ株式会社","大阪府大阪市中央区高麗橋３-２-７ＯＲＩＸ高麗橋ビル"]
[5120001152204,"株式会社スミレ工作所","大阪府寝屋川市仁和寺本町２-１-８"]
[5120001156238,"千代田化学工業株式会社","大阪府大阪市東住吉区今川５丁目８番２号"]
[5120001160859,"化研生薬株式会社","大阪府大阪市旭区赤川二丁目７番４号沢井ビル４階"]
[5120001170354,"アインテレックス株式会社","大阪府大阪市都島区片町２丁目８番１４号"]
[5120001179817,"株式会社グラヴィータ","大阪府大阪市中央区淡路町三丁目６番３号"]
[5120001202702,"株式会社ＭＧＭＴ","大阪府大阪市西成区南津守五丁目２番５５号"]
[5120101032454,"株式会社ボンビ生産棟５号館","大阪府羽曳野市恵我之荘３-３-１４"]
[5120101037791,"株式会社エアーメディックス","大阪府泉南市りんくう南浜４-１９"]
[5120101041216,"和泉薬品工業株式会社","大阪府和泉市芦部町１８１"]
[5120101045828,"株式会社Ｄｒ．ＦＵＫＵＺＵＭＩ","大阪府大阪市中央区谷町１-５-６サンユー天満橋ビル７階"]
[5120101046925,"株式会社日本歯科金属","大阪府泉大津市池浦町５丁目１３番３０号"]
[5120101047436,"株式会社アイビーティジェイ","大阪府泉佐野市湊２-１-１３"]
[5120101048599,"株式会社メディカルアーク","大阪府堺市美原区太井４８３番地２"]
[5120901001419,"株式会社ディーアイ本社営業所","大阪府富田林市大字佐備９４番地"]
[5120901001757,"株式会社ピーアンドピーエフ茨木工場","大阪府茨木市西河原２丁目２１-２２"]
[5120901007688,"株式会社ナチュラルフィールドサプライ","大阪府吹田市千里山高塚９-４"]
[5120901014701,"株式会社瑞光メディカル","大阪府摂津市鳥飼上４丁目３番地５０号"]
[5120901017679,"株式会社Ｔ・Ｕ・Ｍ","大阪府茨木市真砂２-１３-６"]
[5120901030987,"株式会社エスディーメディカル","大阪府茨木市南目垣３-３-１"]
[5120901038709,"株式会社西山製作所立売堀工場","大阪府大阪市西区立売堀６丁目９番７号"]
[5122001007024,"株式会社福西衛材","大阪府東大阪市長堂３丁目１６番３号"]
[5122001018673,"三和化研工業株式会社","大阪府八尾市太田新町２丁目４１"]
[5122001019878,"不易糊工業株式会社","大阪府八尾市竹渕東２-６２"]
[5122001020919,"コルペエコー株式会社","大阪府柏原市田辺１-２-１５"]
[5130001011549,"株式会社ファーマフーズ","京都府京都市西京区御陵大原１番地４９"]
[5130001011664,"株式会社ホスピタルサービス","京都府京都市南区上鳥羽北塔ノ本町２ＳＭＧビル２Ｆ"]
[5130001025094,"株式会社ファルコバイオシステムズ","京都府久世郡久御山町田井西荒見１７番地の１"]
[5130001030251,"株式会社大日本精機本社工場","京都府長岡京市神足棚次８番地"]
[5130001033774,"株式会社ジーアンドエー","京都府宇治市宇治善法１２２-５９"]
[5130001040416,"株式会社ｎｏａ","京都府京都市中京区壬生馬場町２８アルテビル壬生１Ｆ"]
[5130001048871,"すこやかメディカル株式会社","京都府京都市中京区六角通室町西入玉蔵町１２１番地美濃利ビル"]
[5140001002852,"株式会社神戸サンソ","兵庫県神戸市東灘区魚崎南町３-２-２"]
[5140001002852,"ＨｙｏｇｏＧａｓＳｕｐｐｌｙＣｅｎｔｅｒ株式会社","兵庫県神戸市東灘区魚崎南町３-２-２"]
[5140001018411,"三資堂製薬株式会社","兵庫県神戸市垂水区潮見が丘１-１-１０"]
[5140001027544,"株式会社シン・コーポレイション神戸ワークス","兵庫県神戸市北区小倉台１丁目１６-８０"]
[5140001027874,"株式会社カルディオ","兵庫県神戸市中央区港島南町１丁目５-５神戸バイオメディカル創造センター（ＢＭＡ）２階"]
[5140001035605,"株式会社茂久田商会","兵庫県神戸市中央区港島南町４丁目７番５号"]
[5140001043137,"多木化学株式会社本社工場","兵庫県加古郡播磨町宮西３４６番地"]
[5140001044787,"平和メディクヘルスケア株式会社","兵庫県加古郡稲美町加古１４８３番地の２"]
[5140001048664,"皇漢堂製薬株式会社尼崎第一工場","兵庫県尼崎市長洲本通２丁目８番２７号"]
[5140001049613,"大源製薬株式会社","兵庫県尼崎市元浜町５丁目７９番地"]
[5140001070065,"株式会社ピカソ美化学研究所","兵庫県西宮市池田町９番２０号"]
[5140001070065,"株式会社ビューティコスメティックス","兵庫県西宮市池田町９番２０号"]
[5140001070263,"古野電気株式会社フルノＩＮＴセンター","兵庫県西宮市西宮浜２-２０"]
[5140001078182,"オリラボ株式会社","兵庫県神戸市中央区御幸通８-１-６"]
[5140001084247,"株式会社ＨＳＣ　ＣＯＬＬＡＧＥＮ","兵庫県川西市中央町７－２４"]
[5140002023047,"株式会社エヌグラス","兵庫県神戸市中央区浜辺通５丁目１番１４号"]
[5150001010524,"佐藤薬品工業株式会社","奈良県橿原市観音寺町９番地の２"]
[5150001010557,"株式会社新生","奈良県橿原市大軽町３６０"]
[5150001014599,"大同薬品工業株式会社","奈良県葛城市新村２１４番地の１"]
[5150001018286,"株式会社アエレ","奈良県御所市大字東辻２１４番地１"]
[5160001011744,"日野薬品工業株式会社","滋賀県蒲生郡日野町大字上野田１１９番地"]
[5160002002098,"有限会社齋藤歯研工業所","滋賀県大津市和邇今宿８１７-１"]
[5170001007353,"ライオンケミカル株式会社和歌山工場","和歌山県有田市辻堂１-１"]
[5180001001405,"株式会社養日化学研究所名古屋営業所","愛知県名古屋市守山区金屋２-３９３"]
[5180001013235,"株式会社原田商店","愛知県一宮市千秋町加納馬場字高須５０"]
[5180001016221,"株式会社ネイチャーズウェイ","愛知県名古屋市中区錦一丁目２番２３号"]
[5180001016824,"株式会社三和化学研究所","愛知県名古屋市東区東外堀町３５番地"]
[5180001018218,"ホーユー株式会社","愛知県名古屋市東区徳川一丁目５０１番地"]
[5180001024967,"株式会社オオタキ","愛知県名古屋市西区山木一丁目１２８番地の１"]
[5180001041236,"美和医療電機株式会社美和町工場","愛知県海部郡美和町大字花正字郷中２５"]
[5180001045121,"フィルメック株式会社","愛知県名古屋市守山区天子田３-１０９"]
[5180001046697,"株式会社ニッテン","愛知県名古屋市南区桜本町４０番地の２"]
[5180001060533,"本草製薬株式会社","愛知県名古屋市天白区古川町１２５番地"]
[5180001062884,"株式会社セリシス研究開発部","愛知県名古屋市中区丸の内三丁目５番２４号ノノガワビル３階"]
[5180001079193,"富士石膏株式会社","愛知県瀬戸市東安戸町１１"]
[5180001094663,"株式会社エヌシィシィ","愛知県名古屋市中区栄２丁目９-１５三井住友海上名古屋しらかわビル１０Ｆ"]
[5180001108274,"株式会社Ｃ・Ｃ・Ａ・Ａ","愛知県名古屋市守山区苗代二丁目４-２７"]
[5180002054154,"有限会社近藤研究所","愛知県名古屋市昭和区台町３-１０-５"]
[5190001008548,"中外医薬生産株式会社ゆめぽりす工場","三重県伊賀市ゆめが丘七丁目５番地の５"]
[5190001010462,"橋本電子工業株式会社","三重県松阪市高須町３８６６-１２"]
[5190001015528,"株式会社中部メディカル","三重県四日市市松原町３３番５号"]
[5190001016848,"株式会社Ｈ＆Ｂ本社","東京都新宿区若松町１０番１号ＹＳビル"]
[5200001007424,"日本超音波工業株式会社","岐阜県各務原市蘇原瑞穂町３丁目６６番地"]
[5200001009783,"一丸ファルコス株式会社","岐阜県本巣市浅木３１８番地１"]
[5200001028726,"株式会社オーランド","岐阜県岐阜市吉野町６丁目３１番地ザ・ライオンズ一条タワー岐阜１７０８号室"]
[5210001001442,"サカセ化学工業株式会社","福井県福井市下森田町３字５番地"]
[5210001004222,"安永コンピュータシステム株式会社","福井県福井市花堂南２-２０-３"]
[5210001007027,"株式会社村井","福井県坂井市坂井町福島９字表中道１の１"]
[5210001012753,"春日堂製薬株式会社","福井県鯖江市吉谷町１６-３２-１"]
[5210001012811,"株式会社キッソオ","福井県鯖江市丸山町４丁目３０５-２"]
[5210001012935,"サンエー光学株式会社","福井県鯖江市神中町１-６０１"]
[5210001013041,"株式会社タイホウ","福井県鯖江市上野田町１８-１"]
[5210001013132,"株式会社西村プレシジョン","福井県鯖江市丸山町３丁目４-１９"]
[5210001013181,"福井絹商事株式会社","福井県鯖江市水落町２-７-１３"]
[5210001013231,"藤田光学株式会社","福井県鯖江市神中町１-５-２２"]
[5210001013256,"株式会社ボストンクラブ","福井県鯖江市三六町１‐４‐３１‐２"]
[5220001007001,"株式会社村谷機械製作所","石川県金沢市東蚊爪町１丁目３２番地"]
[5220001011960,"小松電子株式会社","石川県小松市安宅町甲１３５"]
[5220001013676,"株式会社ルバンシュ","石川県能美市旭台２丁目５番３"]
[5230001000434,"株式会社エム・アンド・エム","富山県富山市花園町１丁目１番５号"]
[5230001000434,"五洲薬品株式会社","富山県富山市花園町１丁目１番５号"]
[5230001000434,"日本エンザイム工業株式会社","富山県富山市花園町１丁目１番５号"]
[5230001000434,"日本浴剤工業株式会社","富山県富山市花園町１丁目１番５号"]
[5230001000723,"キョクトウ株式会社","富山県富山市牛島新町８番１０号"]
[5230001004848,"富士化学工業株式会社郷柿沢工場","富山県中新川郡上市町郷柿沢１番地"]
[5240001000235,"アイメディア株式会社","広島県広島市東区若草町１２番１号アクティブインターシティ広島９Ｆ"]
[5240001004384,"株式会社ジェイ・エム・エス","広島県広島市中区加古町１２番１７号"]
[5240001006942,"中外テクノス株式会社電機総合技術センター","広島県広島市西区中広町３-１３-５"]
[5240001006942,"中外テクノス株式会社　電機システム事業本部","広島県広島市西区横川新町１０－２１"]
[5240001007057,"堤田貴金属工業株式会社","広島県広島市西区中広町２-１４-２３"]
[5240001017015,"株式会社フォレスト・ワン","千葉県船橋市前原西２丁目３２番５号"]
[5250001006140,"ＪＲＣＳ株式会社","山口県下関市東大和町１丁目２番１４"]
[5260001008895,"株式会社西日本オキシテック","岡山県岡山市北区大安寺南町１丁目１３番７号"]
[5270001002006,"気高電機株式会社","鳥取県鳥取市気高町宝木１５６１-８"]
[5270001003623,"八幡物産株式会社二本木工場","鳥取県米子市二本木４９８番地の２"]
[5290001000957,"株式会社岡部","福岡県福岡市南区野間四丁目４番３２号"]
[5290001011962,"株式会社エムアンドディ","福岡県福岡市南区塩原１-２８-２４"]
[5290001015419,"日土物産株式会社","福岡県福岡市博多区東比恵２丁目１８-９"]
[5290001023017,"新日本製薬株式会社","福岡県福岡市中央区大手門１-４-７"]
[5290001023017,"新日本製薬株式会社","福岡県福岡市博多区吉塚８-７-１１"]
[5290001032372,"株式会社ヴィンテージ・ジャパン","福岡県福岡市中央区大名１-１５-３０"]
[5290001035755,"株式会社美健ラボ","東京都千代田区内幸町一丁目１番７号ＮＢＦ日比谷ビル"]
[5290001035755,"株式会社フォーマルクライン","東京都千代田区内幸町一丁目１番７号ＮＢＦ日比谷ビル"]
[5290001036423,"株式会社メディックスジャパン","福岡県古賀市青柳町３６１-１"]
[5290001040557,"関西酵素株式会社","福岡県大野城市仲畑２丁目８番４１号"]
[5290001040714,"三省製薬株式会社","福岡県大野城市大池２-２６-７"]
[5290001045754,"ミンクルプロダクツ株式会社","福岡県飯塚市横田８６９-１"]
[5290001049771,"渡辺プロパンガス株式会社","福岡県久留米市野中町１２８８"]
[5290001065075,"株式会社ソーワメディカル","福岡県福岡市東区三苫５丁目３-１大産三苫駅ビル１０２"]
[5290801003424,"北大貿易株式会社","福岡県北九州市小倉南区下曽根新町１３-１"]
[5290801010817,"株式会社ローズ・コーポレーション","福岡県北九州市八幡西区御開１-１４-９"]
[5290801015122,"豊前高圧ガス株式会社","福岡県豊前市大字八屋３２２-５２"]
[5310001012520,"コスモ技研株式会社","長崎県東彼杵郡波佐見町稗木場郷字前畑３４番地１１"]
[5320201000027,"うすき製薬株式会社","大分県臼杵市大字市浜９９７の１"]
[5330001011181,"株式会社再春館製薬所","熊本県上益城郡益城町寺中１３６３番地１"]
[5330001014309,"クロックス株式会社","熊本県水俣市百間町一丁目１番２７号"]
[5330002011701,"有限会社渡部晴光堂","熊本県熊本市水前寺２丁目１６番２４号"]
[5340001001108,"カクイ株式会社","鹿児島県鹿児島市唐湊四丁目１６番１号"]
[5350001001783,"宮崎酸素株式会社","宮崎県宮崎市祇園２丁目１４０番地１"]
[5350001009158,"ニドー工業株式会社","宮崎県都城市一万城町２６号３番地"]
[5360001009025,"株式会社仲本エンタープライズ","沖縄県宜野湾市新城２-４５-６"]
[5360001017226,"株式会社沖縄医療機器開発事業","沖縄県豊見城市字高安４１３-１大漁マンション２０１"]
[5360002018685,"有限会社ＳＯＪ","沖縄県中頭郡北中城村字喜舎場４０８"]
[5370001006319,"ライズ株式会社","宮城県仙台市宮城野区榴岡３丁目９番地１５"]
[5370001007432,"株式会社オーヤマ","宮城県仙台市青葉区中央２丁目１番７号"]
[5380001001780,"株式会社ユミヤマ","福島県福島市瀬上町字下新田３９番地の１"]
[5380001002960,"グリム・エナジー株式会社","福島県伊達郡川俣町大字鶴沢字西ノ平１"]
[5380002020680,"有限会社山川光学レンズ製作所","福島県須賀川市木之崎字二俣３８-１"]
[5390001002027,"山形酸素株式会社立谷川事業所","山形県山形市大字漆山字伊達城４３４２-１"]
[5390001002191,"ヤスミツ産業株式会社","山形県山形市大字漆山４８３-３"]
[5400001005630,"イーエヌ大塚製薬株式会社本社","岩手県花巻市二枚橋第４地割３番地５号"]
[5400001009706,"セルスペクト株式会社","岩手県盛岡市北飯岡一丁目１０番８２号"]
[5410001009077,"株式会社アクトラス","秋田県横手市旭川２丁目２-３２"]
[5420001001495,"株式会社東酸","青森県青森市原別五丁目１１番５６号"]
[5420001010661,"株式会社光城精工","青森県平川市大光寺一滝本５４番地１"]
[5430001068393,"メディカルフォトニクス株式会社","北海道札幌市北区北２１条西１２丁目コラボ北海道"]
[5450002003323,"高嶋屋有限会社","北海道旭川市流通団地三条四丁目２０番地３号"]
[5470001007604,"株式会社伏見製薬所","香川県丸亀市中津町１６７６番地"]
[5470001007612,"富士産業株式会社","香川県丸亀市田村町１３０１番地"]
[5470001009848,"株式会社カナエテクノス","香川県観音寺市柞田町丁９３番地２７"]
[5470001014071,"ＬＯＯＫＳ株式会社","香川県高松市丸の内１１番１０号開発ビル"]
[5480001000401,"お多福産業株式会社","徳島県徳島市新南福島２丁目４番２５号"]
[5480001001440,"四国大陽日酸株式会社徳島営業所","徳島県徳島市北田宮１丁目８-７４"]
[5480001003453,"株式会社デンタス","徳島県徳島市問屋町４８番地"]
[5480001003866,"北島酸素土成工場","徳島県阿波市土成町土成字殿開４９-１"]
[5480001005219,"株式会社大塚製薬工場","徳島県鳴門市撫養町立岩字芥原１１５"]
[5480001007495,"株式会社小川生薬三野工場","徳島県三好市三野町清水１３９９"]
[5490001007750,"株式会社プラス・メッド","高知県高知市北御座１１番７号"]
[5500001003665,"株式会社北海クリーンサービス","愛媛県松山市朝生田町７丁目８番２号"]
[5500001009927,"四国アセチレン工業株式会社本社","香川県丸亀市富士見町２-６-１１"]
[5500001010273,"株式会社フクヨー愛媛","愛媛県新居浜市萩生２９６０番地の５"]
[5500001014753,"服部製紙株式会社金生第一工場","愛媛県四国中央市金生町山田井１７１-１"]
[5500002022342,"有限会社ＳＰＣ新居浜工場","愛媛県新居浜市多喜浜６丁目１番３９号"]
[6010001000001,"エーザイ株式会社","東京都文京区小石川４-６-１０"]
[6010001000075,"アイエスケー株式会社","東京都文京区湯島４-９-１２"]
[6010001000793,"ｅａｓｔｓｉｄｅｍｅｄ株式会社","東京都文京区本郷３-２４-５"]
[6010001001536,"オカダ医材株式会社","東京都文京区湯島２-１７-５"]
[6010001001536,"メディカルエルスト株式会社","東京都文京区湯島２-１７-５"]
[6010001001726,"カールストルツ・エンドスコピー・ジャパン株式会社","東京都千代田区富士見２-７-２ステージビルディング"]
[6010001002443,"株式会社健光社","東京都文京区本郷３-４３-１７"]
[6010001003904,"株式会社スギヤマゲン","東京都文京区大塚２-１-１５学園台ハイツ"]
[6010001003986,"スター・プロダクト株式会社","東京都文京区本郷７-２-３鉄門ビル"]
[6010001005371,"株式会社東洋薬行","東京都文京区本郷６丁目１９番７号離合社ビル"]
[6010001005545,"株式会社特殊免疫研究所","東京都文京区後楽一丁目１番１０号"]
[6010001005727,"中村医科工業株式会社","東京都文京区本郷２-３５-２３"]
[6010001006147,"西河貿易株式会社事業所","東京都文京区本郷３-２７-１本郷モトフジビル３Ｆ"]
[6010001007327,"株式会社町田製作所","千葉県我孫子市我孫子一丁目１５－１２"]
[6010001008548,"株式会社六濤","東京都文京区本郷３-１４-３ＶＯＲＴ本郷Ⅱ"]
[6010001008754,"東洋鋼鈑株式会社本社","東京都千代田区四番町２番地１２"]
[6010001016410,"株式会社皇漢薬品研究所","東京都千代田区東神田２-１-３"]
[6010001020197,"住商アグロインターナショナル株式会社","東京都中央区晴海一丁目８番１２号晴海アイランドトリトンスクエアオフィスタワーＺ"]
[6010001023282,"ティーアンドケー株式会社","東京都中央区日本橋堀留町一丁目５番７号ユービル"]
[6010001036747,"岩城製薬株式会社","東京都中央区日本橋本町四丁目８番２号"]
[6010001048783,"富士フイルムＲＩファーマ株式会社","東京都中央区京橋二丁目１４番１号兼松ビルディング"]
[6010001056010,"フォーデイズ株式会社","東京都中央区日本橋茅場町一丁目１３番２１号日本橋茅場町阪神ビル"]
[6010001059293,"株式会社山崎帝国堂柏工場","千葉県柏市豊四季７３-１"]
[6010001060334,"理研新薬株式会社","東京都中央区日本橋富沢町１２番７号第３篠原ビル"]
[6010001066414,"高砂医科工業株式会社","東京都文京区本郷３-４２-２ネオマイム本郷"]
[6010001068278,"イービストレード株式会社","東京都千代田区神田多町二丁目１番地神田進興ビル"]
[6010001070861,"ライフウォッチ・ジャパン株式会社","東京都中央区八丁堀４-１２-７サニービル"]
[6010001081487,"イルミナ株式会社","東京都港区芝５-３６-７三田ベルジュビル"]
[6010001081487,"ストローマン・ジャパン株式会社","東京都港区芝５-３６-７三田ベルジュビル"]
[6010001088219,"ホロジックジャパン株式会社","東京都文京区後楽１-４-２５日教販ビル"]
[6010001094316,"株式会社ネクスト２１","東京都文京区本郷三丁目３８番１号"]
[6010001098829,"イチジク製薬株式会社","東京都墨田区東駒形４-１６-６"]
[6010001099257,"株式会社ドクターズチョイス","東京都千代田区富士見二丁目７番２号ステージビルディング"]
[6010001101360,"日本ストライカー株式会社","東京都文京区後楽２-６-１飯田橋ファーストタワー"]
[6010001102887,"株式会社コスメナチュラルズ","東京都中央区銀座１-１６-３"]
[6010001109362,"クー・メディカル・ジャパン株式会社","東京都千代田区神田須田町２-２-５ＣＴＮビル"]
[6010001121284,"株式会社ビーティーケイ","東京都中央区八重洲一丁目９番１３号八重洲ヤヨイビル"]
[6010001129088,"ＥＡファーマ株式会社","東京都中央区入船二丁目１番１号住友入船ビル"]
[6010001129121,"アリスタヘルスアンドニュートリションサイエンス株式会社","東京都中央区明石町８番１号セントルークスタワー"]
[6010001129377,"友愛製薬株式会社","東京都中央区日本橋小伝馬町１０-１１日本橋府川ビル６階"]
[6010001134245,"ビーバービジテックインターナショナルジャパン株式会社","東京都中央区日本橋人形町２-１３-９ＦＯＲＥＣＡＳＴ人形町"]
[6010001136654,"株式会社コスメテックス","東京都中央区銀座６-１３-１６銀座ウォールビル"]
[6010001138782,"リブト株式会社","東京都八王子市明神町四丁目９番１号チサンマンション八王子"]
[6010001142322,"フロムアイズ株式会社","東京都千代田区神田多町二丁目７番地大橋ビル"]
[6010001143452,"株式会社グッドライブス","東京都文京区白山五丁目１９番７号ヒルズ白山"]
[6010001155522,"興和株式会社東京支店","東京都中央区日本橋本町三丁目４番１４号"]
[6010001157865,"株式会社ミレニアメディカル","東京都中央区新川一丁目２番８号第五山京ビル"]
[6010001168227,"株式会社リコオテクノ","東京都千代田区内神田一丁目７番４号晃永ビル"]
[6010001177104,"株式会社Ｂｒｉｌｌｉａｎｔ　Ｌａｂｏ","東京都中央区銀座二丁目６番４号　竹中銀座ビルディング"]
[6010002004091,"有限会社東京医科電機製作所","東京都文京区本郷３-３０-５"]
[6010003019295,"オーソ・クリニカル・ダイアグノスティックス株式会社","東京都品川区大崎一丁目１１番２号ゲートシティ大崎イーストタワー"]
[6010003019295,"三菱ケミカル・クリンスイ株式会社","東京都品川区大崎一丁目１１番２号ゲートシティ大崎イーストタワー"]
[6010101000479,"株式会社ウドノ医機楢原工場","東京都八王子市楢原町１４５３-２"]
[6010101009594,"ＩｎＳｉｇｈｔｅｃＪａｐａｎ株式会社","東京都八王子市明神町三丁目２０番６号八王子ファーストスクエア１１階"]
[6010401002142,"エイエムオー・ジャパン株式会社","東京都港区虎ノ門５丁目１３番１号虎ノ門４０ＭＴビル"]
[6010401010054,"株式会社黒龍堂","東京都港区芝公園２-６-１５"]
[6010401015268,"スミス・アンド・ネフュー株式会社","東京都港区芝公園二丁目４番１号芝パークビルＡ館"]
[6010401015268,"ＮｅｒｉｕｍＩｎｔｅｒｎａｔｉｏｎａｌＪａｐａｎ合同会社","東京都港区芝公園二丁目４番１号芝パークビルＡ館"]
[6010401015557,"ゼオンメディカル株式会社","東京都千代田区丸の内１-６-２新丸の内センタービル"]
[6010401016712,"アッヴィ合同会社","東京都港区三田三丁目５番２７号住友不動産三田ツインビル西館"]
[6010401023758,"株式会社ハウスオブローゼ","東京都港区赤坂２-２１-７"]
[6010401027692,"株式会社ホリスター","東京都品川区東品川二丁目２番８号スフィアタワー天王洲"]
[6010401044894,"ドクタープログラム株式会社","東京都渋谷区幡ヶ谷一丁目３４番１４号宝ビル"]
[6010401046791,"株式会社ＫＥＡ工房","東京都中央区銀座八丁目９番１２号銀座リヨンビル３Ｆ"]
[6010401051602,"ベラソンメディカル株式会社","東京都港区赤坂７-３-３７プラース・カナダ１階"]
[6010401061849,"クラシエホームプロダクツ株式会社","東京都港区海岸三丁目２０番２０号ヨコソーレインボータワー"]
[6010401061849,"クラシエ製薬株式会社","東京都港区海岸三丁目２０番２０号ヨコソーレインボータワー"]
[6010401070206,"ＤＥＳＴＩＮＹＩＮＴＥＲＮＡＴＩＯＮＡＬ株式会社","東京都港区南青山三丁目４番８号ＴｒｅｄｉＣａｓａ南青山"]
[6010401073902,"株式会社トクホン","東京都豊島区高田三丁目２６番３号大正製薬株式会社厚生棟"]
[6010401084916,"株式会社ｉｎｔｅｒｖｉａ","東京都港区海岸３-１８-２６ペガソ２１海岸ビル"]
[6010401084965,"株式会社レガルシィ","東京都港区虎ノ門一丁目５番９号虎ノ門ＮＰビル８階"]
[6010401090625,"ライフテクノロジーズジャパン株式会社","東京都港区芝浦四丁目２番８号住友不動産三田ツインビル東館"]
[6010401090690,"キンバレー株式会社","東京都港区虎ノ門４－３－１３ヒューリック神谷町ビル"]
[6010401091466,"フレゼニウスメディカルケアジャパン株式会社","東京都港区虎ノ門五丁目１３番１号虎ノ門４０ＭＴビル３階"]
[6010401091540,"株式会社フリーキラ製薬","東京都港区白金台二丁目２６番１０号"]
[6010401109210,"東進ファルマ株式会社","東京都港区赤坂七丁目５番２７号赤坂パインクレスト"]
[6010401114648,"ＢＴＬＪａｐａｎ株式会社","大阪府大阪市淀川区西中島５-３-１０タナカ・イトーピア新大阪ビル１０階"]
[6010401124903,"レイサーチ・ジャパン株式会社","東京都千代田区内幸町一丁目３番１号幸ビルディング"]
[6010401126445,"ＬＴＬファーマ株式会社","東京都新宿区西新宿６-１０-１日土地西新宿ビル１３階"]
[6010405002452,"日本赤十字社血液事業本部","東京都港区芝公園一丁目２番１号日本赤十字社別館"]
[6010405010777,"一般社団法人日本血液製剤機構本社","東京都港区浜松町二丁目４番１号世界貿易センタービル７階"]
[6010501018930,"佐藤歯材株式会社","東京都台東区東上野１-１５-３佐藤ビル"]
[6010501022882,"ツーウェイワールド株式会社","東京都渋谷区神宮前三丁目１番１７号"]
[6010501028129,"ＪＰクリード株式会社","東京都台東区西浅草１-７-１９葉梨ビル"]
[6010502019481,"有限会社プレシジョン・テクニック","東京都台東区北上野２-２８-２プリムラハセビル"]
[6010601005390,"株式会社東京センサ","東京都江東区木場２-１７-１３第二亀井ビル"]
[6010601009020,"オーベクス株式会社","東京都墨田区両国４-３１-１１ヒューリック両国ビル"]
[6010601023038,"コスモ・バイオ株式会社","東京都江東区東陽２-２-２０東陽駅前ビル"]
[6010601027939,"株式会社ヨシオカ","東京都墨田区堤通１-７-１３"]
[6010601029027,"株式会社浅田＜ｈｋａ＞あめ＜／ｈｋａ＞村山工場","東京都東村山市久米川町５-２９-７"]
[6010601039488,"メッド・アライアンス株式会社","東京都江東区東雲一丁目９番１９-２０１号"]
[6010601041857,"株式会社日本歯科商社東京本社","東京都墨田区石原１-１９-５"]
[6010701002180,"オルビス株式会社","東京都品川区平塚２-１-１４"]
[6010701003476,"コノコ医療電機株式会社","東京都千代田区麹町４-５-２０"]
[6010701007700,"日本歯研工業株式会社","東京都品川区西五反田５-１-１０"]
[6010701016271,"株式会社ＭＴＧメディカル","東京都品川区旗の台２-１-６スリーエフビル"]
[6010701016271,"株式会社ＭＴＧメディカル","東京都中央区日本橋兜町５番１号兜町第１平和ビル５階"]
[6010701024539,"ココロカ株式会社","東京都品川区南品川二丁目２番１３号南品川ＪＮビル"]
[6010701025248,"日本サード・パーティ株式会社東京テクニカルラボセンタ","東京都品川区西五反田７-２２-１７ＴＯＣビル"]
[6010701025248,"ＰＩＡ株式会社","東京都品川区西五反田７-２２-１７ＴＯＣビル"]
[6010801000811,"池上通信機株式会社","東京都大田区池上五丁目６番１６号"]
[6010802008408,"有限会社大響機工","東京都大田区大森西二丁目１７番２９号"]
[6010901010438,"株式会社フェニックスデント","東京都世田谷区中町５-３８-３立昇苑"]
[6010901029932,"株式会社華翔コスメ","東京都中央区日本橋浜町二丁目１０番９号日本橋浜町２丁目ビル"]
[6011001006277,"キユーピー株式会社ファインケミカル本部","東京都調布市仙川町二丁目５番地７仙川キユーポート"]
[6011001015220,"東亜薬品工業株式会社","東京都渋谷区笹塚２-１-１１"]
[6011001038675,"株式会社インターメスティック本社","東京都港区北青山三丁目６番１号オーク表参道６Ｆ"]
[6011001041019,"株式会社アジアネットワークス","東京都渋谷区富ヶ谷１-８-３安達ビジネスパークビル３０２"]
[6011001062361,"ヴィーブヘルスケア株式会社","東京都港区赤坂一丁目８番１号赤坂インターシティＡＩＲ"]
[6011001062361,"グラクソ・スミスクライン・コンシューマー・ヘルスケア・ジャパン株式会社","東京都港区赤坂一丁目８番１号赤坂インターシティＡＩＲ"]
[6011001062361,"グラクソ・スミスクライン株式会社","東京都港区赤坂一丁目８番１号赤坂インターシティＡＩＲ"]
[6011001119161,"株式会社アユーララボラトリーズ","東京都渋谷区代々木二丁目１番５号ＪＲ南新宿ビル"]
[6011003002126,"日本アムウェイ合同会社","東京都渋谷区宇田川町７-１"]
[6011101002779,"エイボン・プロダクツ株式会社","東京都新宿区西新宿３-２０-２東京オペラシティ"]
[6011101008215,"株式会社サリエンス","東京都渋谷区千駄ヶ谷５-２８-１０"]
[6011101016060,"ニュースキンジャパン株式会社","東京都新宿区西新宿６-５-１新宿アイランドタワービル"]
[6011101022579,"リンカイ株式会社","東京都新宿区南元町１９番地信濃町外苑ビル３階"]
[6011101030466,"株式会社エーティーディー・ジャパン","東京都豊島区巣鴨１-１４-１３炭七ビル"]
[6011101033493,"ガルデルマ株式会社","東京都品川区上大崎三丁目５番８号アクロス目黒タワー"]
[6011101056131,"株式会社ハナミスイ","東京都新宿区西新宿六丁目１５番１号セントラルパークタワー・ラ・トゥール新宿"]
[6011101058474,"株式会社インクリース研究所","東京都中央区日本橋馬喰町１-５-６イマスオフィス馬喰町"]
[6011101060884,"華通ワールド株式会社","東京都新宿区津久戸町１番８号神楽坂ＡＫビル"]
[6011101070198,"持田製薬販売株式会社第２本社","東京都新宿区四谷一丁目７番地"]
[6011101071774,"株式会社サイキンソー","東京都渋谷区代々木１－３６－１オダカビル"]
[6011201007100,"不二化成株式会社","東京都中野区本町３-９-３"]
[6011202003841,"有限会社中央理化学研究所","東京都中野区弥生町４-１４-１１"]
[6011301022115,"株式会社エフアールエフジャパン","東京都杉並区上高井戸１-１４-４"]
[6011401005366,"東日本メディカルガス株式会社","東京都板橋区前野町３-１７-２０"]
[6011401011133,"プライムテック株式会社","東京都文京区小石川１-３-２５小石川大国ビル"]
[6011401015761,"ＭＣヘルスケア株式会社","東京都板橋区板橋一丁目４８番１１号ロジエビル"]
[6011501003757,"株式会社バイオデント","東京都荒川区西日暮里２-３３-１９"]
[6011501005547,"株式会社インプラテックス","東京都荒川区西日暮里２-３３-１９ＹＤＭ日暮里ビル"]
[6011501008640,"株式会社ヘルスガイド","東京都荒川区町屋８-６-１３"]
[6011501008723,"株式会社ホワイトメディカル","東京都荒川区東日暮里５-４８-２第一ビル"]
[6011501009993,"インターリハ株式会社","東京都北区上中里１-３７-１５大林フローラ上中里"]
[6011601001702,"菊池衛材株式会社","東京都練馬区春日町３-３４-２６"]
[6011601003079,"株式会社老舗恵命堂東京支店","東京都中央区八丁堀２-２４-２八丁堀第一生命ビル"]
[6011601006619,"三笠製薬株式会社","東京都練馬区豊玉北二丁目３番１号"]
[6011602003615,"有限会社小池器械店","東京都練馬区南田中３-２３-１２"]
[6011701006485,"バロテックハニュウダ株式会社","東京都江戸川区松江４-１１-１０"]
[6011801001840,"株式会社佐藤アンプル製作所","富山県下新川郡入善町上飯野２４１"]
[6011801003738,"日興ファインズ工業株式会社","東京都葛飾区青戸４-２１-１２"]
[6011801008448,"株式会社鹿浜製作所","東京都足立区鹿浜四丁目２２番１７号"]
[6011801029139,"株式会社ピークジャパン医療機器事業部","東京都港区元赤坂一丁目３番９号Ｋ-Ｆｒｏｎｔビル"]
[6011801031342,"パッションナー株式会社","東京都足立区入谷７-１９-３ヒカリビル"]
[6011802002978,"有限会社小山医科工業","東京都葛飾区奥戸５-２４-１１"]
[6011802012985,"サイメンデザイン有限会社","東京都足立区千住曙町４１番１-２９０２号シテヌーブ北千住３０Ａ棟"]
[6012301005737,"株式会社医療福祉研究所","東京都荒川区西尾久２-３７-７中村ビル"]
[6012401005026,"東海プラネット株式会社","東京都国分寺市本町２-２３-５ラフィーネ込山３"]
[6012401007443,"オスカー株式会社本社工場","東京都江東区佐賀１-１-１４ハラリバーサイドビル４階"]
[6012401009753,"エア・ウォーター・メディエイチ株式会社","東京都府中市四谷５-１７-８田澤倉庫"]
[6012402021385,"株式会社ＳＥＮＳＯＲＹ","東京都千代田区九段南三丁目５番３号九段サウスビル"]
[6012701000668,"株式会社東京企画販売","東京都小平市大沼町２-４７-３"]
[6013101004012,"株式会社ベネテックス","東京都青梅市新町八丁目３番地の９"]
[6013101004648,"株式会社ウェルビー","東京都中央区日本橋本町三丁目８番３号東硝ビル"]
[6013201005851,"目黒精工株式会社","東京都目黒区平町２-１８-１０"]
[6013201010439,"株式会社マグネタイザー","東京都文京区本駒込５-５７-４"]
[6013301028868,"株式会社レキシー","東京都豊島区巣鴨二丁目１１番１号巣鴨室町ビル４階"]
[6020001000017,"株式会社ファンケル","神奈川県横浜市中区山下町８９-１"]
[6020001011369,"株式会社三信商会","神奈川県横浜市都筑区池辺町３５７３-１"]
[6020001033000,"ジョンソン株式会社","神奈川県横浜市西区みなとみらい四丁目４番５号"]
[6020001035046,"株式会社パイオラックスメディカルデバイス","神奈川県横浜市戸塚区上矢部町２２６５-３"]
[6020001049847,"株式会社シルクス","神奈川県横浜市戸塚区品濃町５０３-４ＬＳ横濱グランガレリア３０８"]
[6020001065150,"株式会社クインテット","神奈川県厚木市恩名２丁目２１番５５号"]
[6020001076949,"株式会社アキュセラ","神奈川県川崎市麻生区栗木２丁目８番２２号"]
[6020002082178,"ブラウンテクノロジーズ株式会社","東京都大田区南六郷１-８-２ハイツアオキ第２２"]
[6021001019518,"株式会社オオロラ","神奈川県厚木市下川入８３１-２"]
[6021001022380,"インターナショナル・トイレツリース株式会社","神奈川県秦野市堀山下８８番地"]
[6021001040069,"大草薬品株式会社","神奈川県横須賀市森崎１-１７-１５"]
[6021001040267,"株式会社ケープ","神奈川県横須賀市平成町２-７ベイテックビル"]
[6021001053806,"株式会社ＳＨＯＮＡＮＣＯＳＭＥＴＩＣＳ","神奈川県平塚市四之宮１丁目６番１号"]
[6021002006283,"有限会社ハクヨウ","神奈川県藤沢市城南３-３-２３"]
[6030001000817,"株式会社イメージリサーチ","埼玉県さいたま市大宮区桜木町４-３１３アバニティ桜木２０１"]
[6030001008694,"株式会社サンメディカル郡山工場","福島県郡山市田村町上行合字西川原４７番地の１"]
[6030001029294,"タイホー株式会社","埼玉県入間市狭山ヶ原２３２－３"]
[6030001031473,"中央エアゾール化学株式会社幸手工場","埼玉県幸手市大字上吉羽２１００番地"]
[6030001031473,"パルティーレ株式会社","埼玉県幸手市大字上吉羽２１００番地"]
[6030001040359,"株式会社エミコン","埼玉県草加市松江六丁目６番５号"]
[6030001041480,"株式会社大東バルブ製作所","埼玉県上尾市大字原市１３１８番地"]
[6030001041877,"トヨスター株式会社","埼玉県上尾市大字上２６４-１"]
[6030001042009,"サン特殊化粧料株式会社","埼玉県桶川市下日出谷西二丁目８番地の４"]
[6030001043320,"株式会社アクテック伊奈事業所","埼玉県北足立郡伊奈町小室７０４４番地"]
[6030001049103,"株式会社セルリムーバー","埼玉県和光市南二丁目３番１３号和光理研インキュベーションプラザ３０５号"]
[6030001056479,"メディカルスペース株式会社","埼玉県入間郡三芳町大字上富字東草５５０番地１号"]
[6030001079397,"株式会社アクシオン・ジャパンテクニカルセンター","東京都豊島区池袋２-５０-８第三共立ビル"]
[6030001094784,"株式会社ニュートン","茨城県東茨城郡城里町石塚字北米７５番"]
[6030002026217,"有限会社野中製作所","埼玉県蕨市塚越６-１２-１４"]
[6030002043815,"有限会社川崎ピンセット","埼玉県草加市弁天５-３４-１５"]
[6030003007637,"合同会社ＷＳＰＴジャパン製造販売所","埼玉県三郷市早稲田４-９-３"]
[6040001018494,"株式会社　美光化学研究所　鎌ヶ谷工場","千葉県鎌ヶ谷市鎌ヶ谷９－１－４０"]
[6040001023437,"株式会社カタリメディック","千葉県船橋市北本町１-１７-２５ベンチャープラザ船橋"]
[6040001025086,"株式会社カンノ","千葉県流山市西初石五丁目６０番地の５（新Ｂ３２街区６）"]
[6040001026183,"株式会社河野製作所","千葉県市川市曽谷２-１１-１０"]
[6040001056668,"株式会社グローバルビジョン","東京都世田谷区赤堤１-２９-２"]
[6040001072153,"株式会社エムエーコーポレーション千葉工場","千葉県野田市柳沢４２-１３７"]
[6040002027040,"株式会社上山製作所","千葉県船橋市上山町２丁目２６４番地"]
[6040002069454,"有限会社中野デンタルサプライ","千葉県君津市中富９４７-１"]
[6050001003033,"株式会社タバタ","茨城県常陸大宮市工業団地６５１-２"]
[6050001012067,"エア・ウォーター・ゾル株式会社","茨城県小美玉市三箇８１７番地１"]
[6050001021695,"株式会社サンテクノ","茨城県行方市芹沢９９５番地１"]
[6050001026579,"ＰＨＰ茨城株式会社","茨城県常陸太田市岡田町２０６８番地１"]
[6060001016496,"栃木精工株式会社","栃木県栃木市平柳町２-１-５"]
[6070001008063,"株式会社バイロン高崎工場","群馬県高崎市大八木町８８８"]
[6070001009854,"管洸精器株式会社","群馬県安中市東上磯部１３８５"]
[6070001013253,"群馬合金株式会社","群馬県伊勢崎市境東新井１０４８番地１９"]
[6070001017568,"鹿島エレクトロニクス株式会社","群馬県北群馬郡吉岡町陣場２０３"]
[6080001001018,"花精化学工業株式会社","静岡県静岡市駿河区西島７６８番地"]
[6080001004904,"マミヤンアロエ株式会社","静岡県静岡市駿河区西脇３００番地の１"]
[6080001009127,"株式会社丸井商事","静岡県静岡市清水区東大曲町４番１８号"]
[6080001010506,"株式会社デルマ・ラボ","静岡県静岡市清水区袖師町９６０-７"]
[6080001019555,"株式会社ガイア","静岡県富士宮市青木７４２"]
[6080101007534,"三嶋電子第一工場","静岡県駿東郡清水町的場１９-１"]
[6080101009869,"ヤザキ工業株式会社","静岡県富士市松岡１７番地の３"]
[6080401003299,"テクノエレメント株式会社","静岡県浜松市東区小池町１５３２"]
[6080401013703,"株式会社キット","静岡県浜松市中区元城町２１６番地の１１鴻池元城ビル２階"]
[6090001000547,"株式会社ギリオン","山梨県甲府市青葉町１８-２０"]
[6090001007419,"株式会社アルテック","山梨県甲府市下小河原町４６７-１"]
[6090001009803,"株式会社シャローム","山梨県南都留郡忍野村忍草字立沢３０４１-６"]
[6100001007251,"株式会社佐々木工業","長野県佐久市中込３３０５"]
[6100001021772,"株式会社ファーポイント","長野県上伊那郡箕輪町大字中箕輪１４７５番地"]
[6100001025179,"ファーマックメディカル株式会社","長野県茅野市玉川８４９３-１"]
[6110001001518,"株式会社カネコ商会","新潟県新潟市入船町５丁目３９３５番地"]
[6120001002804,"大阪理学医療器株式会社","大阪府大阪市鶴見区放出東２丁目２２-２"]
[6120001005484,"シャープ株式会社","大阪府八尾市跡部本町４丁目１番３３号"]
[6120001009279,"株式会社うどんや風一夜薬本舗","大阪府大阪市東住吉区山坂１丁目１１-２"]
[6120001009650,"株式会社佳香園本社","大阪府大阪市東住吉区今川３-１２-１５"]
[6120001016069,"福井製薬株式会社","大阪府大阪市城東区今福東３丁目１-２６"]
[6120001019154,"山本化学工業株式会社","大阪府大阪市生野区中川５丁目１３番１１号"]
[6120001019253,"ロート製薬株式会社","大阪府大阪市生野区巽西１丁目８番１号"]
[6120001027784,"大正医科器械株式会社","大阪府大阪市大正区三軒家東２丁目２番２２号岡田ビル"]
[6120001029640,"原田産業株式会社本社別館","大阪府大阪市中央区南船場２丁目１０-２"]
[6120001031150,"大丸エナウィン株式会社本社","大阪府大阪市住之江区緑木１-４-３９"]
[6120001031555,"二島運輸株式会社","大阪府大阪市住之江区南港東４丁目１０番２７号"]
[6120001031786,"株式会社ユメディカ","大阪府大阪市北区紅梅町５番５号スペースエックスビル"]
[6120001033659,"平八産業株式会社","大阪府大阪市住吉区南住吉２-３-５"]
[6120001036133,"株式会社馬場酸素","大阪府大阪市福島区鷺洲４丁目６-２６"]
[6120001049564,"コスメクリエイトプロダクツ株式会社","大阪府大阪市西淀川区佃６-９-３６"]
[6120001052972,"丸菱産業株式会社","大阪府大阪市東淀川区南江口３丁目１４-９"]
[6120001056651,"大和特殊硝子株式会社","大阪府大阪市淀川区新高２丁目１番７号"]
[6120001057963,"株式会社ビプランツ","大阪府大阪市淀川区木川東３-１-２６"]
[6120001057963,"ラ・シンシア株式会社","大阪府大阪市淀川区木川東３-１-２６"]
[6120001068936,"パシフィックサプライ株式会社","大阪府大東市御領１丁目１２番１号"]
[6120001069496,"樋屋製薬株式会社大阪工場","大阪府大東市寺川３丁目３番６３号"]
[6120001074785,"岩瀬コスファ株式会社","大阪府大阪市中央区道修町１丁目７-１１"]
[6120001080593,"株式会社三洋八尾工場","大阪府八尾市楠根町５-６-１"]
[6120001083803,"タカビシ化学株式会社貝塚工場","大阪府貝塚市二色南町７ー３"]
[6120001085444,"東洋漢方製薬株式会社南大阪工園","大阪府富田林市中野町東２丁目１-１６"]
[6120001086681,"日進医療器株式会社","大阪府大阪市中央区道修町１丁目４番２号"]
[6120001090337,"株式会社美須化学研究所","大阪府大阪市中央区谷町６丁目２-１１"]
[6120001090898,"株式会社毛髪クリニックリーブ２１","大阪府大阪市中央区城見２-１-６１ツイン２１ＭＩＤタワー２２Ｆ"]
[6120001098875,"株式会社ニュー・コスメ","大阪府大阪市中央区徳井町二丁目３番２号"]
[6120001098875,"株式会社フェースコスメティック","大阪府大阪市中央区徳井町二丁目３番２号"]
[6120001103478,"株式会社シンコー・サイエンス・コーポレーション本社","大阪府大阪市生野区巽西１-１０-１６"]
[6120001106638,"シバタ化成株式会社","大阪府大阪市平野区長吉川辺３-１０-１０"]
[6120001135686,"株式会社メドメタレックス","大阪府大阪市西淀川区御幣島２-２０-１７"]
[6120001147632,"亀水化学工業株式会社","大阪府寝屋川市豊里町１７-１６"]
[6120001149026,"株式会社タカゾノテクノロジー","大阪府枚方市津田山手二丁目８番１号"]
[6120001170675,"株式会社ＨａｐｐｙＳｍｉｌｅＣｏｍｐａｎｙ","大阪府和泉市下宮町３７５番地プラネットＣＡセンター内２Ｆ"]
[6120001170758,"株式会社エムシートラスト","大阪府大阪市城東区放出西３-１０-２８"]
[6120002023972,"有限会社盛大堂製薬","大阪府大阪市西淀川区御幣島１丁目７-１５"]
[6120002061667,"有限会社日本光材","大阪府大阪市平野区長吉川辺４ー１ー５６"]
[6120002080329,"有限会社ミヤコ歯材社","大阪府門真市三ツ島６-１５-５"]
[6120003010391,"合同会社ＩＭジャパン","大阪府寝屋川市高柳三丁目７番２７号"]
[6120101003900,"全星薬品工業株式会社","大阪府大阪市阿倍野区旭町１丁目２番７号"]
[6120101005599,"中西ゴム工業株式会社","大阪府堺市中区深井北町９６"]
[6120101005731,"株式会社パイモア","大阪府堺市堺区新町５-２８"]
[6120101042956,"大和酵素株式会社","大阪府泉北郡忠岡町高月北２丁目３番１７号"]
[6120101043343,"株式会社エナテック","大阪府和泉市テクノステージ３丁目１０番１０号"]
[6120102025605,"株式会社森口合成","大阪府和泉市尾井町２丁目９番７号"]
[6120901000972,"資生堂ホネケーキ工業株式会社","大阪府茨木市三島丘１丁目５番１３号"]
[6120901001244,"丹平製薬株式会社本社","大阪府茨木市宿久庄２-７-６"]
[6120901013297,"トイレタリージャパンインク株式会社","東京都港区新橋一丁目５番１号ステファニー銀座中央通ビル８階"]
[6120901029269,"株式会社ＩＤＭ","大阪府大阪市北区西天満３丁目５番１０号"]
[6120901029285,"株式会社クライムメディカルシステムズ","大阪府豊中市新千里東町１丁目４番２号千里ライフサイエンスセンタービル１０階"]
[6122001001018,"株式会社エム・エフ・ユー","大阪府東大阪市川中５番２６号"]
[6122001003501,"株式会社ジュン美化学","大阪府東大阪市若江東６丁目７番地２８"]
[6122001016156,"川本産業株式会社","大阪府大阪市中央区谷町二丁目６番４号"]
[6122001016346,"富士よしの株式会社","大阪府四條畷市岡山東二丁目七番十一号"]
[6122001016370,"松村薬品工業株式会社","大阪府四條畷市中野本町２-３"]
[6122001018986,"タイガー医療器株式会社本社工場","大阪府八尾市南亀井町１丁目３-２１"]
[6122001020216,"三矢メディカル株式会社","大阪府八尾市竹渕東４丁目１７"]
[6122001020694,"和光電研株式会社","大阪府八尾市太田新町１丁目３３"]
[6130001009674,"株式会社松風","京都府京都市東山区福稲上高松町１１番地"]
[6130001010070,"株式会社ウミヒラ","京都府京都市南区久世殿城町１２６番地"]
[6130001015004,"株式会社ダテ・メディカルサービス","京都府京都市伏見区竹田北三ツ杭町４８番地"]
[6130001015037,"玉理化学株式会社","京都府京都市伏見区淀新町６０７番地"]
[6130001015887,"株式会社モリタ製作所","京都府京都市伏見区東浜南町６８０番地"]
[6130001016191,"京都機械工具株式会社","京都府久世郡久御山町佐山新開地１２８番地"]
[6130001019475,"株式会社京都西川","京都府京都市下京区河原町通松原上る幸竹町３８５"]
[6130001021002,"シーシーエス株式会社","京都府京都市上京区出水通室町東入中出水町４０１番地１"]
[6130001021068,"株式会社島津製作所","京都府京都市中京区西ノ京桑原町１番地"]
[6130001033261,"株式会社ロジック","京都府宇治市槇島町落合１２１-１"]
[6130001039102,"株式会社ＳｈｉｎＳｅｉ","京都府城陽市平川西六反４０番地の１"]
[6140001000905,"ＪＣＲファーマ株式会社","兵庫県芦屋市春日町３番１９号"]
[6140001001564,"株式会社ベイライン","兵庫県神戸市東灘区向洋町中６丁目９番地神戸ファッションマート３Ｅ-８、１１＆１２"]
[6140001008568,"株式会社シャルレ","兵庫県神戸市須磨区弥栄台三丁目１番２号"]
[6140001008980,"太虎精堂製薬株式会社","兵庫県神戸市中央区吾妻通２丁目１番２７号"]
[6140001012289,"日本ライト株式会社","兵庫県神戸市中央区御幸通４-１-１５"]
[6140001015928,"川崎エンジニアリング株式会社","兵庫県神戸市長田区川西通２-４"]
[6140001032031,"幸愛化学株式会社","兵庫県神戸市中央区港島南町五丁目２番地の８"]
[6140001032997,"コーリュウ株式会社","兵庫県神戸市長田区神楽町２丁目２番２２号シンタニビル３０２"]
[6140001035661,"横山製薬株式会社","兵庫県明石市相生町２丁目２番１６号"]
[6140001044373,"住友精化株式会社","兵庫県姫路市飾磨区入船町１番地"]
[6140001054819,"シオエ製薬株式会社尼崎工場","兵庫県尼崎市潮江３-１-１１"]
[6140001081771,"株式会社チュウオー","兵庫県宝塚市中筋１-９-３２"]
[6140001082869,"株式会社Ｉ-ｎｅ","大阪府大阪市中央区南船場３丁目１２番２２号"]
[6140001091374,"株式会社水９９研究所","兵庫県神戸市西区室谷２-７-５"]
[6150001001357,"株式会社大和サンソ","奈良県奈良市北之庄西町１-９-７"]
[6150001009441,"奈良精工株式会社","奈良県桜井市小夫３６８１番地"]
[6150001010696,"大和合同製薬株式会社","奈良県橿原市川西町６３２-１"]
[6150001011546,"高市製薬株式会社明日香工場","奈良県高市郡明日香村大字野口１０番地"]
[6150001013237,"西垣靴下株式会社","奈良県大和高田市大字大谷６１番地"]
[6150001013716,"ワキ製薬株式会社","奈良県北葛城郡広陵町南郷８９８"]
[6150001014854,"大和エレテック．株式会社","奈良県生駒郡三郷町立野北一丁目２-４４"]
[6150001016074,"株式会社コスメプロ","奈良県吉野郡吉野町大字志賀３９０"]
[6150002010654,"ドウエン株式会社","東京都中央区銀座三丁目７番１６号銀座ＮＳビル６階"]
[6160001007808,"ＳＫメディカル電子株式会社長浜工場","滋賀県長浜市七条町３０５番地の１"]
[6160001008038,"株式会社伊吹正","滋賀県愛知郡愛荘町愛知川１５７７-２"]
[6160001009812,"株式会社岡平製薬所","滋賀県蒲生郡日野町村井１２４６番地"]
[6160001018334,"株式会社ＡＣＴＹＰｏｗｅｒ栗東事業所","滋賀県栗東市下鈎５４３-２"]
[6170001003616,"株式会社和歌の浦井本薬房","和歌山県和歌山市和歌浦中２ー７ー１６"]
[6170001003748,"和歌山酸素株式会社小雑賀工場","和歌山県和歌山市小雑賀６５９"]
[6170001006453,"川村綿業株式会社","和歌山県和歌山市元寺町三丁目５７番地"]
[6170001011478,"新宮酸素株式会社","和歌山県新宮市新宮３５７２"]
[6180001007046,"名古屋エアゾール株式会社","愛知県愛西市落合町中河原１６２８-１"]
[6180001012459,"スズラン株式会社","愛知県名古屋市北区安井四丁目１番２９号"]
[6180001012649,"株式会社タカミツ","愛知県名古屋市北区上飯田東町４-６８-１"]
[6180001017524,"東海製薬株式会社","愛知県名古屋市中川区江松１-１０５"]
[6180001020057,"中央有機化学株式会社","愛知県名古屋市中川区万場５丁目１５１２番地"]
[6180001039139,"中北薬品株式会社製薬工場事業部","愛知県津島市白浜町字番場５２‐１"]
[6180001040311,"株式会社フタバ化学名古屋工場","愛知県名古屋市港区小碓４丁目４７５番地"]
[6180001053643,"株式会社ユネクス","愛知県名古屋市中区栄二丁目６番１号ＲＴ白川ビル４０１号"]
[6180001067783,"株式会社アクロス","愛知県長久手市菖蒲池１１２１番地"]
[6180001076207,"住友理工株式会社","愛知県小牧市東三丁目１番地"]
[6180001076396,"フジデノロ株式会社","愛知県小牧市多気南町３６１番地１"]
[6180001076917,"山本漢方製薬株式会社","愛知県小牧市多気東町１５６番地"]
[6180001078368,"知多鋼業株式会社春日井工場","愛知県春日井市前並町２丁目１２番地の４"]
[6180001078789,"熊野油脂株式会社","愛知県瀬戸市熊野町３５番地"]
[6180001084936,"株式会社リトル・サイエンティスト","愛知県一宮市開明字畑添１７番地１"]
[6180001094258,"協栄高圧ガス株式会社名古屋工場","愛知県東海市南柴田町ルノ割４２６-４"]
[6180001100577,"株式会社Ｆ．Ｓ．Ｃ","愛知県名古屋市中区丸の内２-１４-２０ザ・スクエアビル６Ｆ"]
[6180003011847,"国産治術イトオテルミー合名会社","愛知県一宮市今伊勢町本神戸字中町９６７"]
[6180301017513,"株式会社ダイトーマイテック","愛知県名古屋市中区栄三丁目１０番２２号東朋ビル４Ｆ"]
[6190001011047,"株式会社ヘルストンＥＭ＆Ｃ事業部","三重県多気郡多気町土羽字平林１１２３-３番地"]
[6190001015213,"杉浦高圧株式会社","三重県三重郡楠町大字小倉字横手１８０２"]
[6190001016541,"睦化学工業株式会社","三重県四日市市万古町８-９"]
[6190002020633,"有限会社菅原電機","三重県四日市市菅原町４９１-２"]
[6200001000733,"株式会社大島商会","岐阜県可児市大森字辻洞１３８６-１"]
[6200001007308,"ツキオカフィルム製薬株式会社","岐阜県各務原市テクノプラザ２丁目１１番地"]
[6200001007712,"テルモ・クリニカルサプライ株式会社","岐阜県各務原市川島竹早町３番地"]
[6200001008280,"株式会社ビー・アイ・テック医療機器開発製造事業所","岐阜県各務原市テクノプラザ２丁目２８番地"]
[6200001010930,"共同高圧ガス工業株式会社","岐阜県羽島郡岐南町平島９丁目２７番地"]
[6200001014130,"株式会社ハイルバーティ","岐阜県大垣市新田町４丁目４５番地"]
[6200001018932,"足立工業株式会社","岐阜県関市広見１１３-２"]
[6210001000344,"株式会社アルケー","福井県福井市今市町第１９号１番地５"]
[6210001003231,"株式会社　ふくしま　鯖江支店","福井県鯖江市神中町２丁目６－４５"]
[6210001007109,"小林化工株式会社","福井県あわら市矢地第５号１５番地"]
[6210001008321,"レンシン製薬株式会社","福井県坂井郡丸岡町友末１１-１４"]
[6210001012637,"アルファ株式会社","福井県鯖江市水落町７-２８-６"]
[6210001013172,"株式会社ビービーシー","福井県鯖江市吉谷町第１５号１１２番地"]
[6210001013313,"三好興業株式会社","福井県鯖江市北野町２-２０-５"]
[6210001016992,"スマークト株式会社","福井県福井市大手２-１７-１山川ビル５Ｆ"]
[6220001005805,"株式会社ヘルス","石川県金沢市湊１丁目５６番地"]
[6220001012578,"ライオンパワー株式会社","石川県小松市月津町ツ５番地"]
[6220001017825,"株式会社万喜","石川県かほく市松浜イ３１-１"]
[6230001001456,"第一薬品工業株式会社","富山県富山市草島１５-１"]
[6230001002215,"富山薬品株式会社","富山県富山市四方西岩瀬石瀬１７５"]
[6230001003147,"水橋保寿堂製薬株式会社","富山県富山市水橋山王町６３３"]
[6230001010077,"株式会社三協","富山県高岡市伏木国分１-７-１"]
[6230001012882,"養命製薬株式会社","富山県射水市布目沢６２２-６"]
[6240001004680,"株式会社シティライフ","広島県広島市西区小河内町二丁目２３番８号"]
[6240001024753,"株式会社啓文社製作所","広島県安芸高田市吉田町山手７３９―６"]
[6240001028440,"三興化学工業株式会社","広島県大竹市新町２丁目１１番４号"]
[6240001032368,"株式会社メック技研","広島県福山市芦田町柞磨１２５"]
[6240001038670,"株式会社ユニタック","広島県尾道市美ノ郷町本郷字新本郷１番６０号"]
[6250001009489,"サンアセ株式会社","山口県下松市大字平田３７９番地１"]
[6250001011643,"ホンノー薬品株式会社","山口県岩国市岩国１-１３-１２"]
[6260001002682,"山陽電子工業株式会社","岡山県岡山市中区長岡４番地７３"]
[6260001013795,"株式会社ゼネラルガスセンター","岡山県倉敷市水島西通一丁目１９３２番地"]
[6260001014364,"株式会社ニッコーテック","岡山県倉敷市安江４６１-８"]
[6260001021039,"株式会社ヤマダビーコスメティック","岡山県苫田郡鏡野町市場１９４番地"]
[6280001002482,"株式会社ひろせプロダクト","島根県安来市広瀬町下山佐３５６-３"]
[6290001001525,"株式会社全医療器","福岡県大野城市御笠川２-１７-２"]
[6290001021416,"スリー・アールシステム株式会社","福岡県福岡市博多区那珂５-８-１１"]
[6290001021597,"株式会社グループ二十一","福岡県福岡市博多区博多駅東３丁目１１―１５"]
[6290001022232,"株式会社オーエスアイコンサルタント","福岡県福岡市南区横手南町２４-１８"]
[6290001032751,"株式会社アイフレンド","福岡県福岡市東区若宮三丁目１番２８号"]
[6290001040440,"株式会社アシュラン","福岡県大野城市上大利５-２１-１"]
[6290001041637,"理研化成株式会社","福岡県春日市小倉７-５３"]
[6290001044136,"ニチバンメディカル株式会社","福岡県朝倉郡筑前町野町字禅門橋１７１３番地"]
[6290001048657,"九州メディカルサービス株式会社久留米営業所","福岡県久留米市東櫛原町１４２８佐藤コーポ１Ｆ"]
[6290001065041,"株式会社ｉ-ｍｅｄｉ","福岡県福岡市博多区博多駅東二丁目５番３７号博多ニッコービル７階"]
[6290001067434,"株式会社ドクターズ","福岡県福岡市博多区博多駅前一丁目５番１号"]
[6290801002020,"九州クリエートメディック株式会社","福岡県北九州市戸畑区牧山海岸２番４８号"]
[6290801012077,"株式会社小田工場","福岡県北九州市若松区西天神町４番８号"]
[6320001000630,"江藤酸素株式会社","大分県大分市乙津町１番１６号"]
[6320001001843,"株式会社デンケンＭＬ事業部","大分県国東市武蔵町手野１５６０番地"]
[6320001007188,"株式会社サラヴィオ化粧品","大分県別府市大字鶴見字実ノ屋敷１３５６番６"]
[6330005006672,"一般財団法人化学及血清療法研究所","熊本県熊本市北区大窪一丁目６番１号"]
[6330005006672,"ＫＭバイオロジクス株式会社","熊本県熊本市北区大窪一丁目６番１号"]
[6340001011130,"株式会社ドクターナチュレ","鹿児島県姶良市船津１５９５-２"]
[6350002003415,"有限会社日本ゲルマニウム研究所","宮崎県宮崎市瀬頭２丁目１１番１０号"]
[6370001001277,"ライブリー株式会社","宮城県仙台市泉区市名坂字原田１７６-２"]
[6370301002594,"ヤグチ電子工業株式会社","宮城県石巻市鹿又字嘉右衛門３０１"]
[6380001003371,"エコー電気株式会社","福島県白河市新夏梨１-２"]
[6390001004526,"日新製薬株式会社","山形県天童市清池東二丁目３番１号"]
[6390001006308,"荘内ガス株式会社北港充填工場","山形県酒田市松美町２番３９号"]
[6390001011051,"協同薬品工業株式会社山形工場","山形県東置賜郡川西町大字西大塚９３０"]
[6430001027670,"株式会社粧薬研究所","北海道札幌市白石区中央２条４丁目５３-１"]
[6430001053592,"ハーバー株式会社","北海道苫小牧市新開町４-３-２"]
[6450001002861,"株式会社北海道カワゾエカンパニー","北海道旭川市工業団地１条２丁目３７番８９"]
[6460101006282,"株式会社アストロステージ札幌支社","北海道札幌市中央区北１条西３丁目２番地井門札幌ビル"]
[6470001005276,"株式会社日本制がん研究所","香川県高松市国分寺町国分８５３-１"]
[6470001005375,"株式会社アイム綾川事務所","香川県綾歌郡綾川町小野２０８８"]
[6490001006132,"株式会社トリムエレクトリックマシナリー","高知県南国市蛍が丘１丁目５番２号"]
[6490001006792,"株式会社ミューズ","高知県室戸市室戸岬町１８２８番地３"]
[6500001001040,"エルマン薬粧株式会社","愛媛県松山市姫原３丁目７-５１"]
[6500001014991,"パンレックス株式会社","愛媛県四国中央市土居町北野２２０２番地"]
[6500001015057,"株式会社ジャパンギャルズ","愛媛県四国中央市三島中央２丁目１２番１０号"]
[7010001000314,"アズテック株式会社","東京都文京区後楽一丁目５番３号後楽国際ビルディング"]
[7010001001353,"エムピージャパン株式会社","東京都文京区湯島２-１-１５サカエビル"]
[7010001002178,"旭光物産株式会社","東京都文京区本郷１-３３-８ハウス本郷ビル"]
[7010001002962,"サイバネットシステム株式会社","東京都千代田区神田練塀町３番地富士ソフトビル"]
[7010001004620,"株式会社武井医科光器製作所","東京都文京区湯島１-２-１２ライオンズプラザお茶の水"]
[7010001004728,"大祐医科工業株式会社","東京都文京区本郷３-２３-１８"]
[7010001004851,"株式会社千代田テクノル","東京都千代田区外神田二丁目１６番２号第２ディーアイシービル"]
[7010001006682,"株式会社百日草ケミカルズ","東京都豊島区巣鴨一丁目３４番７号"]
[7010001006880,"フクダ電子株式会社","東京都文京区本郷３-３９-４"]
[7010001008670,"協和発酵キリン株式会社","東京都千代田区大手町一丁目６番１号"]
[7010001008844,"株式会社日立製作所ヘルスケアビジネスユニット","東京都台東区東上野二丁目１６番１号"]
[7010001012986,"大塚製薬株式会社","東京都千代田区神田司町２-９"]
[7010001014792,"杏林製薬株式会社本社","東京都千代田区神田駿河台四丁目６番地御茶ノ水ソラシティ"]
[7010001014792,"日本製紙クレシア株式会社","東京都千代田区神田駿河台四丁目６番地御茶ノ水ソラシティ"]
[7010001014792,"日本製紙パピリア株式会社本社","東京都千代田区神田駿河台四丁目６番地御茶ノ水ソラシティ"]
[7010001014818,"株式会社キースマック","東京都千代田区神田猿楽町２-２-８映文社ビル"]
[7010001029980,"高千穂製薬株式会社","東京都北区栄町４９-２Ｄ館"]
[7010001034790,"ゼリア新薬工業株式会社","東京都中央区日本橋小舟町１０-１１"]
[7010001043552,"株式会社コーセー","東京都中央区日本橋３-６-２"]
[7010001059565,"ヤマト科学株式会社","東京都江東区富岡２-１１-６ＨＡＳＥＭＡＮビル"]
[7010001066891,"フタバメディカル株式会社","東京都千代田区神田司町２-２-１０"]
[7010001085421,"メディカル・エキスパート株式会社","東京都中央区新川２-３０-１１新川ＯＭＫビル"]
[7010001094364,"富士レビオ株式会社八王子事業所","東京都八王子市小宮町５１番地"]
[7010001096591,"セティ株式会社","東京都千代田区霞が関３-６-７霞が関プレイス"]
[7010001100072,"株式会社カイマンデンタル","東京都千代田区一番町８-１５一番町ＭＹビル"]
[7010001101104,"ロクシタンジャポン株式会社","東京都千代田区平河町２-１６-１平河町森タワー"]
[7010001105261,"株式会社女性医療研究所","東京都豊島区駒込１-３１-１０１階"]
[7010001112745,"株式会社ビオメディクス","東京都中央区京橋二丁目７番１４号ビュレックス京橋"]
[7010001113743,"ＭＯＲＥＭｅｄｉｃａｌ株式会社","東京都中央区日本橋久松町１０番１０号久松ビル"]
[7010001117356,"株式会社ジー・エム・エス","東京都渋谷区本町３-１０-３清水橋矢部ビル２０１号"]
[7010001119880,"サムスン電子ジャパン株式会社","東京都千代田区富士見二丁目１０番２号飯田橋グラン・ブルーム"]
[7010001129673,"株式会社エスティーメディカル","東京都文京区本郷３-１３-１１恩田ビル"]
[7010001144796,"株式会社豊和堂シルクテック","東京都中央区明石町１番７号ラ・ヴェール明石町"]
[7010001150679,"株式会社Ｌ・Ｍ","東京都千代田区外神田２-１７-３アヤベビル"]
[7010001150679,"株式会社ナナラボ","東京都千代田区外神田２-１７-３アヤベビル"]
[7010001151479,"株式会社ＭＥＤＩＫ","東京都中央区新富一丁目８番２号９Ｆ"]
[7010001153070,"クリニジェン株式会社","東京都中央区日本橋１-１６-３日本橋木村ビル"]
[7010001161998,"株式会社ＳＧグローバルリンク","東京都千代田区九段北一丁目１５番２号九段坂パークビル"]
[7010001167723,"ＵＳＴＹＬＥ株式会社","東京都千代田区内神田一丁目１５番７号ユニゾ内神田一丁目ビル３階"]
[7010001169059,"株式会社レダ","東京都千代田区紀尾井町４番１号ニューオータニガーデンコート４階"]
[7010001171221,"株式会社ＤＬＳ総合研究所","東京都中央区京橋二丁目１番１号第二荒川ビル"]
[7010001181311,"ＭＤＶコンシューマー・ヘルスケア株式会社","東京都千代田区内神田一丁目１４番１０号ＰＭＯ内神田"]
[7010001185980,"ＷＯＮＴＥＣＨ　ＪＡＰＡＮ株式会社","東京都中央区八丁堀３－１６－６　東八重洲プレイス"]
[7010002004776,"有限会社ハナケン","東京都文京区湯島４-６-１２湯島ハイタウン"]
[7010002047890,"有限会社コラボレイツ","東京都文京区本郷３-３１-１４小池ビル"]
[7010005018674,"公益社団法人日本アイソトープ協会","東京都文京区本駒込二丁目２８番４５号"]
[7010401000632,"株式会社アイ・ディー・ディー","東京都港区南麻布二丁目１４番１９号オキノビル２０１"]
[7010401011472,"株式会社ＴＫＢ","東京都品川区勝島１－５－２１　東神倉庫内"]
[7010401013329,"シック・ジャパン株式会社","東京都品川区上大崎２-２４-９アイケイビル"]
[7010401024458,"ハリウッド株式会社","東京都港区六本木六丁目４番１号"]
[7010401029746,"株式会社ヤクルト本社医薬品事業本部","東京都中央区銀座７-１６-２１銀座木挽ビル"]
[7010401029746,"株式会社ヤクルト本社","東京都中央区銀座６-１８-２"]
[7010401030794,"株式会社ライズステップ","東京都港区浜松町１-９-１２三宅屋ビル"]
[7010401038020,"株式会社ピュア・メディカル","東京都港区三田３－４－３　三田第一長岡ビル"]
[7010401046394,"バイオジェン・ジャパン株式会社","東京都中央区日本橋一丁目４番１号日本橋一丁目三井ビルディング"]
[7010401046394,"バイオベラティブ・ジャパン株式会社","東京都中央区日本橋一丁目４番１号日本橋一丁目三井ビルディング"]
[7010401054488,"東京ガスケミカル株式会社","東京都港区芝公園２-４-１"]
[7010401056526,"アモーレパシフィックジャパン株式会社","東京都港区虎ノ門二丁目１番１号商船三井ビルディング"]
[7010401056807,"ハルモコスメティックス株式会社","東京都豊島区南大塚３-３３-１ＪＲ大塚南口ビル"]
[7010401056807,"リアル化学株式会社","東京都豊島区南大塚３-３３-１ＪＲ大塚南口ビル"]
[7010401063497,"株式会社トウザイコーポレーション","東京都港区西新橋一丁目１７番１５号北村ビル"]
[7010401072267,"日本液炭株式会社","東京都港区芝４-１-２３三田ＮＮビル８階"]
[7010401079849,"コンバテックジャパン株式会社","東京都港区六本木一丁目８番７号МＦＰＲ六本木麻布台ビル"]
[7010401083900,"株式会社フォラケア・ジャパン","東京都港区新橋五丁目１０番８号ＦＯＲＡビル"]
[7010401084857,"富士フイルムファーマ株式会社","東京都港区西麻布二丁目２６番３０号富士フイルム西麻布ビル"]
[7010401085657,"株式会社プランプラン","東京都港区南青山２-７-２１ＣＡＲＯ南青山"]
[7010401090707,"ノバ・バイオメディカル株式会社","東京都港区三田３-１３-１６三田４３ＭＴビル"]
[7010401099310,"株式会社ペー・ジェー・セー・デー・ジャパン","東京都港区南青山七丁目４番２号アトリウム青山"]
[7010401107130,"株式会社ＷＥＷＥＬＬ","東京都中央区日本橋茅場町２-８-８共同ビル市場通り"]
[7010401107816,"ＡＥＧＥＲＩＯＮＰＨＡＲＭＡＣＥＵＴＩＣＡＬＳ株式会社","東京都港区赤坂１-１２-３２アーク森ビル１２階"]
[7010401107816,"グローバルレギュラトリーパートナーズ合同会社","東京都港区赤坂１-１２-３２アーク森ビル１２階"]
[7010401124902,"ネオファーマジャパン株式会社本社","東京都千代田区富士見二丁目１０番２号飯田橋グランブルーム"]
[7010501009466,"株式会社東京歯材社","東京都台東区谷中二丁目５番２０号"]
[7010501029183,"株式会社インフィニットテクノロジー","東京都台東区上野二丁目１４番２７号上野の森ファーストビル"]
[7010501031949,"株式会社医健化学研究所","東京都板橋区小豆沢１-３-２宝ビル４階"]
[7010601026618,"株式会社ニコン・エシロール","東京都墨田区両国２-１０-８住友不動産両国ビル"]
[7010602002691,"有限会社杉原達二商店製薬部","東京都江東区亀戸４-４０-４"]
[7010602016931,"有限会社鴇田ゴム工業所","東京都墨田区文花２-２-１６"]
[7010701002964,"株式会社計算力学研究センター","東京都品川区戸越一丁目７番１号戸越ＮＩビル"]
[7010701004993,"株式会社スペースコスメ","東京都品川区西五反田六丁目１７番１６号"]
[7010701007625,"日本ウォーターズ株式会社東京本社","東京都品川区北品川１-３-１２第５小池ビル"]
[7010701010538,"ロゼット株式会社","東京都品川区東品川３-２６-１０"]
[7010701015140,"メルクセローノ株式会社","東京都目黒区下目黒１-８-１アルコタワー"]
[7010701015140,"メルク株式会社","東京都目黒区下目黒１-８-１アルコタワー"]
[7010701015826,"大陽日酸株式会社","東京都品川区小山１-３-２６"]
[7010701019488,"株式会社ジェーピー・インターナショナル","東京都大田区西糀谷１-２９-１ピアーチェウチムラパート８２０６号室"]
[7010701025222,"株式会社インジェックス・ジャパン","東京都品川区西五反田一丁目１１番１号アイオス五反田駅前９１２号室"]
[7010801012145,"株式会社ヤマト製作所","東京都大田区北馬込２-４０-１２"]
[7010801019289,"株式会社テクノロジーリンク","東京都大田区蒲田２-１０-１"]
[7010801020379,"株式会社ＯＳＳＴＥＭＪＡＰＡＮ","東京都大田区西蒲田５-２７-１４日研アラインビル"]
[7010801023547,"株式会社クリュートメディカルシステムズ","東京都新宿区津久戸町３番１１号ＴＨ１ビル飯田橋"]
[7010801026310,"株式会社スリーゼット","東京都千代田区神田須田町１-２４アイセ神田ビル５階"]
[7010801027291,"株式会社ＡＴＯＭＥＲ本社工場","東京都大田区中央八丁目３５番１５号"]
[7010802001816,"有限会社ウサミナノテクノロジー","東京都目黒区洗足１-１８-３ウサミナノビル"]
[7010802017705,"有限会社デンパックス","東京都町田市成瀬台２丁目１-７"]
[7010901001510,"株式会社ウテナ","東京都世田谷区南烏山１-１０-２２"]
[7010901006237,"スリーエムジャパン株式会社","東京都品川区北品川６-７-２９"]
[7010901024981,"株式会社デジタル・コア","東京都世田谷区砧五丁目８番３１号銀河"]
[7011001006945,"株式会社クリスタルジェミー","東京都渋谷区神宮前３-１７-２０"]
[7011001017109,"日機装株式会社","東京都渋谷区恵比寿四丁目２０番３号恵比寿ガーデンプレイスタワー"]
[7011001017109,"日油株式会社","東京都渋谷区恵比寿四丁目２０番３号恵比寿ガーデンプレイスタワー"]
[7011001020145,"株式会社フィッツコーポレーション","東京都港区北青山３-６-１オーク表参道ビル"]
[7011001056387,"ＣｏｏｋＪａｐａｎ株式会社","東京都中野区中野４-１０-１中野セントラルパークイースト"]
[7011001065454,"エスコ株式会社","東京都渋谷区桜丘町１３-４ＡＲＯＭＡ桜丘３０２"]
[7011001092647,"エルビュー株式会社","東京都港区赤坂一丁目７番１号　赤坂榎坂ビル"]
[7011101011787,"大興貿易株式会社","東京都新宿区西新宿二丁目７番１号小田急第一生命ビル"]
[7011101019599,"ＨＯＹＡ株式会社本社","東京都新宿区西新宿６-１０-１日土地西新宿ビル"]
[7011101023799,"株式会社ヴェルジェ","東京都中央区入船二丁目７番４号政光ビル"]
[7011101037279,"サノフィ株式会社","東京都新宿区西新宿三丁目２０番２号"]
[7011101045232,"株式会社オーティカ・インタ-ナショナル","東京都新宿区新宿１-９-５大台ビル４階"]
[7011101046965,"ＤＲ．Ｃ医薬株式会社","東京都新宿区西新宿六丁目２番３号新宿アイランドアネックス４０７号室"]
[7011101048177,"エマーゴ・ジャパン株式会社","東京都新宿区払方町１９番地１"]
[7011101053202,"エドワーズライフサイエンス株式会社","東京都新宿区西新宿六丁目１０番１号"]
[7011101060041,"株式会社ミノファーゲン製薬","東京都新宿区西新宿３-２-１１新宿三井ビルディング２号館"]
[7011101074207,"日本紅道株式会社","東京都港区虎ノ門一丁目２番８号虎ノ門琴平タワー"]
[7011202010275,"有限会社オーラルアカデミー","東京都中野区沼袋三丁目３０番１５号"]
[7011301007131,"株式会社モレーンコーポレーション","東京都中野区東中野五丁目１番１号ユニゾンモール"]
[7011401010803,"株式会社メディスター","東京都渋谷区代々木２-５-５新宿農協会館"]
[7011401016040,"シーマメディカル株式会社","東京都板橋区板橋４-７-１１"]
[7011402018713,"有限会社メドック","埼玉県川口市戸塚東四丁目５番１７号"]
[7011501007600,"翼工業株式会社","東京都荒川区南千住３―１１―３"]
[7011502003945,"有限会社ティーピー・オーソドンテックス・ジャパン","東京都北区西ヶ原１-４６-１３横河駒込ビル"]
[7011601002690,"三東医科工業株式会社","岡山県岡山市東区西大寺新地２９９"]
[7011601016567,"株式会社ユニバル","東京都練馬区東大泉３-３１-１１"]
[7011701002789,"小池酸素工業株式会社","東京都江東区大島九丁目１番１号"]
[7011701002797,"株式会社小池メディカル","東京都江戸川区松島１-２４-８"]
[7011702007069,"有限会社タガシン","東京都江戸川区西小松川町３５-１０"]
[7011702008686,"株式会社ナミキ・メディカルインストゥルメンツ","東京都江戸川区平井７-１４-１１"]
[7011801010758,"アダマンド並木精密宝石株式会社","東京都足立区新田１-１６-７"]
[7011801016474,"シャロンコスメティックス株式会社","東京都葛飾区細田５-８-１１"]
[7012401001222,"株式会社トレミー","東京都府中市本町４-３３-１５"]
[7012401009380,"株式会社ユニークメディカル","東京都狛江市和泉本町一丁目１３番５号"]
[7012401011312,"株式会社鈴木精工","東京都東大和市狭山２-１２６２"]
[7012401013366,"日本アメリケア株式会社","東京都新宿区下落合二丁目５番１６号和宏美術ビル"]
[7012401020726,"株式会社アコースティックイノベーションズ","東京都府中市小柳町５-８-１００"]
[7012401022912,"株式会社コデマス","東京都武蔵野市吉祥寺本町２-５-１０いちご吉祥寺ビル５階"]
[7012401025428,"チャートウェルヘルスケア株式会社","東京都新宿区西新宿３-７-１新宿パークタワーＮ３０Ｆ"]
[7012701002713,"株式会社エルコス那須工場","栃木県那須塩原市戸田字那須東原３５番地"]
[7012801001598,"ミミ-電子株式会社","東京都立川市栄町６-１６-１"]
[7012801002316,"立川酸素株式会社","東京都昭島市福島町２-２８-２０"]
[7012801003917,"株式会社ローザ特殊化粧料","東京都昭島市昭和町３-１０-１４"]
[7013201005405,"北海道水産工業株式会社目黒工場","東京都目黒区中目黒３-８-３"]
[7013201007839,"ユニリーバ・ジャパン株式会社","東京都目黒区上目黒二丁目１番１号中目黒ＧＴタワー"]
[7013201015916,"株式会社ＭＩＭＣ","東京都目黒区自由が丘二丁目１３番６号ＫＮ自由が丘プラザ"]
[7013301013621,"株式会社エムイーテクニカ","東京都豊島区巣鴨１-３４-４"]
[7013301020915,"株式会社ヌースフィット","東京都豊島区巣鴨１-２３-１０"]
[7013301021806,"大正アクティブヘルス株式会社","東京都豊島区高田三丁目２６番３号大正製薬株式会社厚生ビル"]
[7013301031367,"オーティーエス株式会社","埼玉県吉川市平沼１-１０-７"]
[7020001008505,"クリエートメディック株式会社　研究開発センター","神奈川県川崎市川崎区殿町３－２５－６"]
[7020001035045,"株式会社ＤＮＡチップ研究所","東京都港区海岸一丁目１５番１号スズエベイディアム５階"]
[7020001038056,"株式会社長寿乃里","神奈川県横浜市西区みなとみらい三丁目６番３号"]
[7020001038725,"株式会社パラエルモサ第２工場","神奈川県横浜市金沢区福浦２丁目９-１０"]
[7020001040284,"コーアバイオテックベイ株式会社","神奈川県横浜市港北区日吉七丁目１５番１３号"]
[7020001073920,"東芝情報システム株式会社","神奈川県川崎市川崎区日進町１番地５３"]
[7020001077434,"テカンジャパン株式会社","神奈川県川崎市幸区堀川町５８０-１６川崎テックセンター１７階"]
[7020001095667,"オリジオ・ジャパン株式会社","神奈川県横浜市中区日本大通１１横浜情報文化センター４Ｆ"]
[7020001102539,"株式会社ＧＥＮＯＲＡＹＪＡＰＡＮ","神奈川県横浜市港北区新横浜１‐４‐１５第一石橋ビル"]
[7020001117405,"ＵｎｉｔｅｄＢｉｏｍｅｃｈＪａｐａｎ株式会社本店","神奈川県横浜市西区北幸２-９-４０銀洋ビル"]
[7021001019772,"相模ゴム工業株式会社","神奈川県厚木市元町２-１"]
[7021001033311,"株式会社ユニバーサル技研","神奈川県小田原市寿町３-１-７"]
[7021001055982,"株式会社あいず","神奈川県伊勢原市上粕屋１００７番地の３"]
[7021002043508,"有限会社効仙薬湯本舗","神奈川県相模原市南区下溝３０７２-５"]
[7030001015855,"ニューベイシブジャパン株式会社","東京都中央区銀座７‐１４‐１３　日土地銀座ビル"]
[7030001031662,"株式会社ピノーレ","埼玉県幸手市東５丁目１８番２０号"]
[7030001035911,"株式会社オリエンタルマジック","埼玉県八潮市大曽根１３５０番地２"]
[7030001047923,"株式会社ランダルコーポレーション","埼玉県入間郡三芳町北永井４２１"]
[7030001047956,"株式会社アイメディ商事","埼玉県朝霞市朝志ヶ丘二丁目１０番３号"]
[7030001050472,"株式会社センチュリーアドバンス","埼玉県志木市中宗岡２-２７-１４"]
[7030001050869,"株式会社アクトメント","埼玉県春日部市南栄町７番地１号"]
[7030001053590,"株式会社デンタルフロンティアジャパン","東京都千代田区外神田５-６-１４マツヤビル１階"]
[7030001062575,"株式会社ビューザック","埼玉県鴻巣市箕田１３４６-４"]
[7030001079108,"シルックス株式会社","埼玉県川口市差間３-３２-１４"]
[7030001089429,"株式会社スイスロワール","埼玉県飯能市大字上畑字岩脇２３１-１"]
[7030001116463,"株式会社山下製作所","埼玉県北葛飾郡松伏町田中三丁目３番地４"]
[7030002065016,"メディカルテクノロジー有限会社","埼玉県朝霞市朝志ヶ丘４-１５-８"]
[7040001019120,"株式会社ルノン化学研究所","千葉県船橋市宮本８-１２-７"]
[7040001027395,"株式会社平田精機","千葉県鎌ヶ谷市くぬぎ山２-１０-１７"]
[7040001043129,"株式会社成田デンタル","千葉県千葉市美浜区中瀬２-６-１"]
[7040001044267,"株式会社エルクエスト","千葉県富里市大和７４１"]
[7040001044267,"キヤノンライフケアソリューションズ株式会社","千葉県富里市大和７４１"]
[7040001051619,"株式会社アイ・エス・ビー我孫子事業所","千葉県我孫子市柴崎台１-１０-１５"]
[7040001083182,"株式会社ポイント松飛台工場","千葉県松戸市松飛台２８６-１６"]
[7040002038359,"有限会社バルビゾン","千葉県船橋市本町５-８-５アメニティープラザ１０３号室"]
[7040002064272,"有限会社ワンアンドスリー・カミムラ","千葉県四街道市栗山字浅間８１２-２"]
[7050001010409,"株式会社ダイトテクス","茨城県稲敷郡阿見町香澄の里１-２"]
[7050001023377,"チョーワ株式会社日立研究所","茨城県日立市諏訪町２-１-４３"]
[7050001033764,"株式会社相互","東京都江東区塩浜二丁目２５番１４号"]
[7060001001010,"フォースエンジニアリング株式会社","栃木県宇都宮市下平出町１５７６-２"]
[7060001001010,"メドフォースジャパン株式会社","栃木県宇都宮市下平出町１５７６-２"]
[7060001012809,"デンツプライシロナ株式会社","東京都港区麻布台１-８-１０麻布偕成ビル"]
[7060001016644,"マイコール株式会社","栃木県栃木市皆川城内町３８８"]
[7070001001166,"株式会社玄妙洞本舗","群馬県前橋市六供町１０９７番地"]
[7070001006099,"株式会社アドテックス","群馬県高崎市倉賀野町２４５４番地１"]
[7070001006446,"関東液酸株式会社","群馬県高崎市倉賀野町３１５６"]
[7070001022600,"株式会社コスメ・ニスト","群馬県邑楽郡千代田町赤岩１３３９-２"]
[7070001031741,"サンノーバ株式会社","群馬県太田市世良田町３０３８-２"]
[7070002034504,"有限会社トミッツ","群馬県邑楽郡板倉町大字下五箇１８４２番地３"]
[7080001001363,"株式会社ケアリングジャパン","静岡県静岡市駿河区国吉田２-５-６７"]
[7080001010208,"株式会社コーヨー化成富士工場","静岡県富士市大渕１７１０-１"]
[7080101001156,"株式会社テクノサイエンス","静岡県沼津市一本松１２８-２"]
[7080101005644,"三丸機械工業株式会社","静岡県三島市長伏１５５番地の１３"]
[7080101005875,"平電機株式会社","静岡県駿東郡長泉町南一色６３２-８"]
[7080101006535,"株式会社アプト・マシナリー静岡営業所","静岡県沼津市西沢田５６"]
[7080101007517,"株式会社ＧｒｏｗＲｉｃｈ","静岡県沼津市大手町３-４-１６"]
[7080101009158,"東洋レヂン株式会社","静岡県富士市厚原字大石２１０４番地の１"]
[7080101009323,"株式会社ハヤブサ","静岡県富士宮市淀師字中アラク１１００番地の７"]
[7080102014462,"有限会社ティー・シー・ファルマ","静岡県富士市五貫島１０００-１"]
[7080401020269,"株式会社エクスプレステージ","静岡県袋井市愛野１２３４番地"]
[7080401020269,"ポーラ化成工業株式会社","静岡県袋井市愛野１２３４番地"]
[7090001006733,"盛泰株式会社","山梨県甲府市住吉二丁目４番８号アイダビル"]
[7090001010198,"株式会社雅精工","山梨県南都留郡富士河口湖町船津胎内６６０８"]
[7100001005618,"株式会社大和製作所","長野県須坂市大字小河原２２４３"]
[7100001007993,"株式会社ナルコーム","長野県佐久市蓬田１２５１-２３９"]
[7100001011005,"シナノケンシ株式会社","長野県上田市上丸子１０７８"]
[7100001015393,"株式会社イズモヘルス","長野県安曇野市明科七貴６０５７"]
[7100001017811,"長野県製薬株式会社","長野県木曽郡王滝村此の島１００-１"]
[7100001019824,"リジェンティス株式会社岡谷工場","長野県岡谷市川岸西１-４-１"]
[7100001020600,"伊那食品工業株式会社","長野県伊那市西春近５０７４番地"]
[7110001015665,"ツインバード工業株式会社","新潟県西蒲原郡吉田町大字西太田２０８４-２"]
[7120001000278,"株式会社カナエ","大阪府大阪市中央区城見１-２-２７クリスタルタワー２３階"]
[7120001006143,"株式会社ハープ","大阪府八尾市竹渕２丁目９８"]
[7120001006424,"マリビジョン株式会社","大阪府大阪市阿倍野区西田辺町１丁目１番１号"]
[7120001010780,"パール化研株式会社","大阪府大阪市東住吉区湯里５-１７-１１"]
[7120001023923,"セレック株式会社","大阪府大阪市天王寺区清水谷町１９-１０エムユービル５階"]
[7120001033195,"株式会社テシマ化研","大阪府和泉市テクノステージ３丁目９-２２"]
[7120001041859,"株式会社ｅｌｌｍａｎ‐Ｊａｐａｎ","大阪府大阪市西区京町堀一丁目８番３３号"]
[7120001044663,"株式会社セニルラボラトリーズ","大阪府大阪市東淀川区淡路５-１０-２０"]
[7120001044837,"大榮歯科産業株式会社","大阪府大阪市西区京町堀１-１０-１７"]
[7120001044993,"大日本除蟲菊株式会社本社","大阪府大阪市西区土佐堀１丁目４-１１"]
[7120001045819,"東洋薬粧株式会社","大阪府大阪市西区南堀江１丁目１６番９号"]
[7120001048615,"ワールドアトラス株式会社","大阪府大阪市西区北堀江１-１８-１７"]
[7120001055446,"株式会社サンクスフーズ","東京都千代田区内幸町１丁目１番１号帝国ホテルタワー"]
[7120001056403,"ニプロＥＳファーマ株式会社","大阪府大阪市北区本庄西３丁目９番３号"]
[7120001056403,"ニプロ株式会社","大阪府大阪市北区本庄西３丁目９番３号"]
[7120001073349,"アグサジャパン株式会社","大阪府大阪市中央区玉造１-２-３４"]
[7120001074660,"乾卯栄養化学株式会社","大阪府大阪市中央区道修町１-３-７"]
[7120001075766,"恵美須薬品化工株式会社西成工場","大阪府大阪市西成区出城２丁目２-２０"]
[7120001077374,"小野薬品工業株式会社","大阪府大阪市中央区久太郎町１-８-２"]
[7120001082721,"千寿製薬株式会社本社","大阪府大阪市中央区瓦町三丁目１番９号"]
[7120001083307,"大研医器株式会社","大阪府和泉市あゆみ野２-６-２"]
[7120001086219,"株式会社ナチュラルネットワーク","兵庫県西宮市若松町２-４"]
[7120001099914,"株式会社乾レンズ","大阪府大阪市生野区田島６丁目１７-３"]
[7120001106678,"島屋製薬株式会社","大阪府大阪市都島区都島中通２丁目１番７号"]
[7120001109037,"ドクターリセラ株式会社","大阪府大阪市東淀川区東中島１-７-１７"]
[7120001110606,"株式会社アイキャット","大阪府大阪市淀川区西中島３-１９-１５第３三ツ矢ビル"]
[7120001112676,"アシスト・ジャパン株式会社","東京都文京区大塚三丁目１１番６号大日本図書大塚三丁目ビル７階"]
[7120001118500,"ソルドジャパン株式会社","大阪府大阪市中央区北久宝寺町二丁目６番１０号"]
[7120001120217,"株式会社万雄","大阪府大阪市中央区瓦町２丁目４番１０号"]
[7120001122048,"株式会社疲労科学研究所","大阪府大阪市淀川区西中島七丁目１番２６号オリエンタル新大阪ビル"]
[7120001143812,"スリープウェル株式会社","大阪府大阪市北区豊崎３-２０-９"]
[7120001148588,"株式会社藤原歯科産業","大阪府寝屋川市葛原２丁目３-１１"]
[7120001149982,"株式会社タナカガーゼ","大阪府枚方市樋之上町２-３"]
[7120001156806,"株式会社メディオ","大阪府東大阪市今米２-７-６"]
[7120001194946,"タカラテレシステムズ株式会社","大阪府大阪市中央区日本橋１-１７-１７ピカソ日本一ビル８Ｆ"]
[7120002029416,"有限会社ウィルデント","大阪府大阪市北区菅原町１０-３２ＤＡＩＸビル７階"]
[7120002058729,"株式会社カネカ大阪本社","大阪府大阪市北区中之島二丁目３番１８号中之島フェスティバルタワー"]
[7120101004708,"太陽パーツ株式会社","大阪府堺市北区八下北１番２３号"]
[7120101029077,"株式会社Ｐ＆Ａ","大阪府大阪狭山市半田２-３１４-１"]
[7120101031306,"薬研開発株式会社","大阪府富田林市若松町東３丁目３番５７号"]
[7120101031388,"株式会社サンヨーメディカル　美原工場","大阪府堺市美原区木材通４－４－８"]
[7120101037369,"日本レンズ工業株式会社","大阪府岸和田市下松町２丁目３番２５号"]
[7120101037600,"株式会社ホッタレンズ","大阪府岸和田市下松町１-４-１"]
[7120101050603,"テクトロン株式会社出張事務所","大阪府堺市中区土塔町１０４-１"]
[7120102026387,"有限会社クサノハ化粧品","大阪府和泉市室堂町１２３-１"]
[7120901013726,"株式会社モリモト医薬","大阪府大阪市西淀川区御幣島５丁目８番２８号"]
[7120901020887,"フカイ工業株式会社","大阪府箕面市白島１丁目１番１６号"]
[7120901022859,"ジンマー・バイオメット・デンタル株式会社","大阪府豊中市寺内２-４-１緑地駅ビル"]
[7120901026083,"株式会社湯山製作所","大阪府豊中市名神口３-３-２２"]
[7120902010730,"有限会社チェスト","大阪府高槻市道鵜町４-２０-１０"]
[7122001000489,"井藤漢方製薬株式会社本社","大阪府東大阪市長田東２-４-１"]
[7122001000489,"パシフィック薬品株式会社","大阪府東大阪市長田東２-４-１"]
[7122001000704,"宇都宮製作株式会社","大阪府東大阪市本庄西１-５-１"]
[7122001005100,"株式会社ツー・エム化成","大阪府東大阪市元町２丁目３番６０号"]
[7122001005133,"辻子谷龍泉堂株式会社","大阪府東大阪市上石切町２-２６-３２"]
[7122001012088,"株式会社大阪製薬","大阪府東大阪市高井田本通三丁目２番４号"]
[7122001014745,"株式会社カム・ネッツ","大阪府東大阪市今米１丁目１７番１２号"]
[7122001019686,"ノーベル化学宏業株式会社","大阪府八尾市萱振町１丁目５８"]
[7122001029611,"株式会社ＱＩＢ","大阪府大東市諸福５-４-１２"]
[7122002005891,"有限会社まるいち","大阪府東大阪市荒川３-２７-４"]
[7130001002216,"理研化学工業株式会社伏見工場","京都府京都市伏見区深草向川原町４８番地"]
[7130001013106,"中野製薬株式会社","京都府京都市山科区東野北井ノ上町６番地の２０"]
[7130001013808,"株式会社保健科学西日本","京都府京都市伏見区羽束師古川町３２８"]
[7130001016892,"株式会社亀田利三郎薬舗","京都府京都市北区平野宮本町９５番地"]
[7130001022445,"株式会社フォーカス","京都府京都市中京区烏丸通六角下ル七観音町６３４"]
[7130001024920,"オムロンヘルスケア株式会社","京都府向日市寺戸町九ノ坪５３番地"]
[7130001027964,"金氏高麗人参株式会社","京都府京都市下京区堀川富永町６９２番"]
[7130001033087,"マイクロニクス株式会社","京都府久世郡久御山町田井新荒見２４番１"]
[7130001033319,"小川医理器株式会社","京都府久世郡久御山町大字佐古小字外屋敷９１"]
[7130001037105,"株式会社テクノリード","京都府木津川市相楽台五丁目８番２号２０４"]
[7130001040042,"株式会社プロテックス・ジャパン","京都府相楽郡精華町光台３-２-１"]
[7130001041734,"グンゼ株式会社","京都府綾部市青野町棗ケ市４６"]
[7130001044877,"レイソー・ジャパン株式会社","京都府京都市中京区衣棚通夷川下る竪大恩寺町７３９番地１"]
[7130002014292,"有限会社辰巳製作所","京都府京都市伏見区羽束師菱川町３３６番地１８"]
[7140001010382,"株式会社ノエビア","兵庫県神戸市中央区港島中町６丁目１３番の１"]
[7140001038416,"龍野コルク工業株式会社","兵庫県たつの市龍野町島田３２１"]
[7140001052061,"ユーアイ化成株式会社","兵庫県尼崎市田能６丁目１番３５号"]
[7140001053729,"株式会社ジェイ・ウォーカー","兵庫県尼崎市武庫町１丁目５３番１６号"]
[7140001072191,"株式会社マシンツール中央","兵庫県西宮市津門大塚町７-５"]
[7140001077356,"トラストメディカル株式会社","兵庫県加西市朝妻町１０４４番地"]
[7140002012353,"有限会社ヤンイー貿易","兵庫県神戸市垂水区日向２丁目６番２９"]
[7150001000399,"大浦貴金属工業株式会社","奈良県奈良市西ノ京町２８４"]
[7150001010786,"中村薬品工業株式会社","奈良県高市郡高取町大字丹生谷３１，３２"]
[7150001019712,"オペレーション・ジャパン株式会社","大阪府大阪市中央区西心斎橋１-１２-２１"]
[7160001005372,"滋賀県製薬株式会社","滋賀県甲賀市甲賀町滝８７９番地"]
[7160001008417,"株式会社惣田製作所","滋賀県彦根市鳥居本町４９２"]
[7160001010678,"株式会社近江兄弟社","滋賀県近江八幡市魚屋町元２９番地"]
[7170001011304,"ノーリツプレシジョン株式会社","和歌山県和歌山市梅原５７９-１"]
[7170002010726,"有限会社大師陀羅尼製薬","和歌山県伊都郡高野町高野山２５８"]
[7180001004785,"株式会社東永","愛知県名古屋市千種区穂波町２-７１"]
[7180001012689,"株式会社ダリヤ","愛知県名古屋市中区丸の内三丁目５番２４号"]
[7180001012689,"株式会社美香園","愛知県名古屋市中区丸の内三丁目５番２４号"]
[7180001013613,"株式会社名城ラボ・メルト化学研究所","愛知県名古屋市北区志賀本通２－１３"]
[7180001017589,"株式会社メニコン本社","愛知県名古屋市中区葵三丁目２１番１９号"]
[7180001038412,"株式会社データ・デザイン名古屋本社","愛知県名古屋市中区錦三丁目４番６号桜通大津第一生命ビルディング１２Ｆ"]
[7180001052842,"武田テバファーマ株式会社","愛知県名古屋市中村区太閤一丁目２４番１１号"]
[7180001056496,"名古屋眼鏡株式会社","愛知県名古屋市中区新栄１-３５-１９"]
[7180001074556,"株式会社東海メディカルプロダクツ","愛知県春日井市田楽町字更屋敷１４８５番地"]
[7180001094042,"株式会社ミクロ薬品","愛知県名古屋市北区上飯田東町２丁目６８番地の１"]
[7180001127818,"スノーロックジャパン株式会社","愛知県名古屋市中川区山王３-１６-２７"]
[7180301010806,"伊藤光学工業株式会社本館工場","愛知県蒲郡市宮成町３番１９号"]
[7180301011226,"ナカタ工業株式会社","愛知県蒲郡市大塚町柴垣１４２-１"]
[7180302015944,"ミカワ歯科技研工業有限会社","愛知県蒲郡市形原町西中田６-４"]
[7190001006574,"北浦工業株式会社","三重県伊勢市下野町４６２-２"]
[7190001011533,"株式会社ワールドキサス","三重県松阪市平成町８５-１"]
[7190001012119,"川瀬産業株式会社","三重県桑名市大字和泉５２４"]
[7200001011696,"株式会社高陽社","岐阜県羽島市舟橋町出須賀３丁目３８番地"]
[7200001014575,"川西工業株式会社","岐阜県安八郡神戸町大字神戸１７５３番地の５"]
[7200001025746,"株式会社奥田又右衛門膏本舗第２工場","岐阜県下呂市東上田５５２‐１"]
[7200002010978,"ドルド製薬有限会社","岐阜県羽島市足近町１丁目３０番地の１"]
[7200002023765,"有限会社角野製作所","岐阜県恵那市長島町久須見１０７４番地１５"]
[7210001002587,"株式会社ナカニシビジョン","福井県福井市下江守町５４-２-２７"]
[7210001002959,"株式会社ハセガワ","福井県福井市下荒井４-６"]
[7210001011480,"宇野酸素株式会社","福井県越前市府中三丁目１３番２０号"]
[7210001012826,"サンホープ株式会社","福井県鯖江市神明町４丁目７-３６"]
[7210001013270,"マツバ眼鏡工業株式会社","福井県鯖江市三六町２-８-３３"]
[7210001014797,"ＦＩＬＳＴＯＮＧＬＯＢＡＬＤＥＳＩＧＮＷＯＲＫＳ株式会社","福井県福井市大宮三丁目９番１２号ベルデ大宮"]
[7210002012833,"有限会社オプト．デュオ","福井県鯖江市北中町５３９"]
[7220001003337,"澁谷工業株式会社","石川県金沢市若宮２丁目２３２番地"]
[7220001009185,"株式会社歯愛メディカル","石川県白山市鹿島町一号９番地１"]
[7220001009532,"越屋メディカルケア株式会社","石川県金沢市河原市町１番地"]
[7230001000399,"株式会社延寿堂","富山県富山市下赤江町１-１３-３"]
[7230001000721,"協和薬品株式会社","富山県富山市経力１６３番地"]
[7230001002503,"阪神化成工業株式会社","富山県富山市小中１６３"]
[7230001010803,"協和ファーマケミカル株式会社本社工場","富山県高岡市長慶寺５３０番地"]
[7230001012675,"源平製薬株式会社","富山県射水市黒河新２６４３"]
[7240001008821,"白鶴綿業株式会社","広島県広島市安芸区矢野東６丁目１０番３２号"]
[7240001008929,"株式会社ハックベリー","広島県広島市東区牛田新町四丁目５-６-４"]
[7250001003367,"田中酸素株式会社","山口県宇部市大字妻崎開作１５８７番地の１６"]
[7260001002095,"協和ファインテック株式会社","岡山県岡山市東区金岡西町９４８番地９号"]
[7260001009917,"木下製薬株式会社","岡山県岡山市北区一宮７９２-１"]
[7260001012755,"株式会社小沢医科器械","岡山県倉敷市中島２３５５番地２５"]
[7260001030501,"ダイヤ工業株式会社","岡山県岡山市南区古新田１１２５"]
[7260001030501,"メディカルクラフトン株式会社","岡山県岡山市南区古新田１１２５"]
[7270001002243,"澤谷ゴム株式会社","鳥取県鳥取市河原町布袋２１-１"]
[7270001003662,"山陰酸素工業株式会社","鳥取県米子市旗ヶ崎２２０１番地１"]
[7290001000121,"株式会社オートシステム志摩工場","福岡県糸島市志摩松隈２８２番地５"]
[7290001014212,"セルコム株式会社","福岡県福岡市博多区東光寺町２-２-１３"]
[7290001041917,"株式会社悠香","福岡県大野城市御笠川５-１１-１７"]
[7290001047311,"大成薬品工業株式会社筑後工場","福岡県筑後市大字熊野字屋敷９９８-１"]
[7290002046907,"ソフトケア有限会社","福岡県福津市八並２４３-５"]
[7290801014064,"占部大観堂製薬株式会社","福岡県直方市大字知古１７６１‐７４"]
[7290801017942,"プレパワー製薬株式会社","福岡県北九州市戸畑区土取町１番１９号"]
[7300001006281,"久光製薬株式会社","佐賀県鳥栖市田代大官町４０８番地"]
[7320001007914,"トクソー技研株式会社","大分県宇佐市大字大根川３１８番地"]
[7330001010289,"株式会社地の塩社","熊本県山鹿市久原４２２２番地２"]
[7330001012748,"株式会社昇龍堂製薬","熊本県宇城市不知火町御領１７８-１"]
[7340001001898,"サツマ酸素工業株式会社","鹿児島県鹿児島市東開町３番地４２"]
[7340001007020,"株式会社メディコス・インターナショナル","鹿児島県鹿児島市紫原３丁目１７番２０号"]
[7350001001352,"株式会社ノムラ","宮崎県宮崎郡清武町大字今泉丙１８６４-１６"]
[7380001007685,"株式会社大木電子工業","福島県郡山市安積町荒井字外川原３７番１"]
[7380001007909,"株式会社オプトネクサス","福島県田村市常葉町大字久保字樋ノ口３５"]
[7400001004143,"株式会社グローバル伸和製薬","岩手県八幡平市松尾寄木２-５４６-１"]
[7430001007119,"株式会社ジェイマックシステム","北海道札幌市中央区北４条東１丁目２―３"]
[7460301002667,"株式会社ファーストスマイル","北海道北見市東陵町２８番地３１"]
[7470001007825,"株式会社ホーコーエン","香川県綾歌郡宇多津町２６２８番９９８"]
[7470001013360,"株式会社ルビアン","香川県高松市国分寺町新名７６０番地１"]
[7480001001777,"東光株式会社","徳島県徳島市応神町吉成字西吉成４３番地"]
[7480001007477,"池田薬草株式会社","徳島県三好市池田町州津中津１８０８-１"]
[7500001000149,"松田薬品工業株式会社","愛媛県松山市河野中須賀３１８番地"]
[7500001002566,"大和酸素工業株式会社東温工場","愛媛県東温市北方甲７０５番地"]
[7500001003754,"松山酸素株式会社","愛媛県松山市西垣生２８７７"]
[7500001003977,"三浦工業株式会社","愛媛県松山市堀江町７番地"]
[8010001002417,"啓芳堂製薬株式会社","東京都文京区千駄木１-２２-３"]
[8010001003183,"株式会社三昌製作所","東京都文京区湯島２－１７－７"]
[8010001004256,"全薬販売株式会社","東京都豊島区東池袋三丁目２２番１４号全薬池袋ビル"]
[8010001004636,"タクト医療株式会社本社","東京都中央区日本橋茅場町２-１６-１Ｋ＆Ｍビル"]
[8010001005576,"テクノウッド株式会社","東京都足立区江北４-３０-１９"]
[8010001007300,"株式会社桝水","東京都文京区本郷２－２５－２"]
[8010001011070,"インド・ジャパン・マーケティング株式会社","東京都千代田区東神田１-１４-１４東神田桜ビル"]
[8010001025707,"日進金属株式会社","東京都荒川区西日暮里２-３１-７"]
[8010001026399,"バクスター株式会社","東京都中央区晴海一丁目８番１０号"]
[8010001026688,"株式会社パルメディカル","東京都千代田区岩本町３-９-１７"]
[8010001033098,"日本計量器工業株式会社","東京都千代田区神田多町２-９"]
[8010001033338,"日本ゼトック株式会社","東京都新宿区西新宿１丁目２６番２号新宿野村ビル"]
[8010001034749,"エスエス製薬株式会社","東京都新宿区西新宿三丁目２０番２号東京オペラシティタワー"]
[8010001034749,"日医工サノフィ株式会社","東京都新宿区西新宿三丁目２０番２号東京オペラシティタワー"]
[8010001034749,"テルモＢＣＴ株式会社","東京都新宿区西新宿三丁目２０番２号東京オペラシティタワー"]
[8010001034831,"東邦アセチレン株式会社生産技術本部","宮城県多賀城市栄二丁目４番１号"]
[8010001036043,"株式会社センチュリーアークス","東京都港区西麻布三丁目１３番１号サンエス西麻布ビルディング"]
[8010001037842,"エア・ブラウン株式会社","東京都中央区銀座８-１３-１銀座三井ビルディング"]
[8010001039269,"小津産業株式会社","東京都中央区日本橋本町三丁目６番２号小津本館ビル"]
[8010001045845,"新日本薬業株式会社","東京都中央区日本橋小伝馬町１５番１０号"]
[8010001048022,"ゼリアヘルスウエイ株式会社","東京都中央区日本橋小舟町１０-６ＺＳ日本橋ビル５階"]
[8010001048162,"全薬工業株式会社","東京都文京区大塚５-６-１５"]
[8010001048699,"積水メディカル株式会社","東京都中央区日本橋二丁目１番３号"]
[8010001048781,"第一薬品産業株式会社","東京都中央区日本橋茅場町１-６-１６Ｋ・Ｋビル"]
[8010001050333,"ＣＢＣ株式会社","東京都中央区月島２-１５-１３"]
[8010001057337,"丸文株式会社","東京都中央区日本橋大伝馬町８番１号"]
[8010001062568,"日本薬興株式会社","東京都中央区東日本橋３-２-４八光ビル"]
[8010001062584,"日本理化学薬品株式会社","東京都中央区日本橋本町４-２-２日本理化学薬品ビル"]
[8010001062758,"株式会社柳屋本店","東京都中央区日本橋馬喰町１-１０-６プレクシ-ドビル"]
[8010001065026,"ファイバーテック株式会社","千葉県佐倉市西御門４０９-１"]
[8010001078242,"帝人ファーマ株式会社","東京都千代田区霞が関三丁目２番１号霞が関コモンゲート西館"]
[8010001079298,"株式会社アイ・シー・ジャパン","東京都千代田区九段南二丁目３番２５号平安堂ビル５Ｆ"]
[8010001086880,"株式会社アイビナ","東京都中央区銀座一丁目７番５号銀座中央通りビル"]
[8010001090016,"ジョンソン・エンド・ジョンソン株式会社","東京都千代田区西神田三丁目５番２号"]
[8010001094108,"ゲルベ・ジャパン株式会社","東京都千代田区紀尾井町３番８号第２紀尾井町ビル"]
[8010001097003,"第一三共ヘルスケア株式会社","東京都中央区日本橋三丁目１４番１０号第一三共日本橋ビル"]
[8010001103636,"第一三共プロファーマ株式会社","東京都中央区日本橋本町三丁目５番１号"]
[8010001103636,"第一三共株式会社","東京都中央区日本橋本町三丁目５番１号"]
[8010001103636,"第一三共エスファ株式会社","東京都中央区日本橋本町三丁目５番１号"]
[8010001116836,"ＥＬＧＣ株式会社","東京都千代田区永田町二丁目１１番１号　山王パークタワー"]
[8010001117000,"ヒルロムジャパン株式会社","東京都千代田区神田錦町三丁目１５番地　錦精社ビル６階"]
[8010001119657,"国際衛生株式会社","東京都中央区日本橋本町４-１４-７"]
[8010001139440,"日本マイクロバイオファーマ株式会社","東京都中央区京橋一丁目３番１号八重洲口大栄ビル"]
[8010001146429,"マイクロライン株式会社","東京都文京区湯島二丁目２番６号フジヤミウラビル３階"]
[8010001157211,"株式会社ユーティジャパン","埼玉県八潮市南後谷８５８-１"]
[8010001159653,"シカゴ東京メディカル株式会社","東京都中央区日本橋久松町９番１２号和円ビル"]
[8010001167929,"ＰｅｇａｖｉｓｉｏｎＪａｐａｎ株式会社","東京都千代田区外神田二丁目１５番８号永井第一ビル"]
[8010002001582,"有限会社カネハラトレーディング","東京都文京区湯島二丁目３１番１４号ファーストジェネシスビル"]
[8010101001673,"システム・インスツルメンツ株式会社","東京都八王子市小宮町７７６-２"]
[8010101008826,"株式会社マーベセラー","東京都八王子市中野山王一丁目６番１４号"]
[8010101010138,"株式会社ホットアルバム炭酸泉タブレット","東京都八王子市東町１-１０グランデハイツ八王子"]
[8010401008922,"クラランス株式会社","東京都港区六本木６-８-１０ステップ六本木"]
[8010401037038,"ブルーベル・ジャパン株式会社","東京都港区南青山二丁目２番３号南青山Ｍ－ＳＱＵＡＲＥ"]
[8010401049339,"マイクロポート・オーソペディックス・ジャパン株式会社","東京都港区赤坂１-７-１赤坂榎坂ビル"]
[8010401057878,"株式会社クィーン","東京都港区南青山五丁目１０番５号第２菅谷ビル"]
[8010401067159,"株式会社ドクターズ・キッツ","東京都港区浜松町１-２０-８浜松町一丁目ビル４階"]
[8010401075566,"ＳＢＩファーマ株式会社医薬開発本部","東京都港区六本木一丁目６番１号泉ガーデンタワー"]
[8010401075566,"株式会社ナチュラリープラス","東京都港区六本木一丁目６番１号泉ガーデンタワー"]
[8010401078461,"伊藤忠工業ガス株式会社","東京都港区虎ノ門二丁目１０番１号虎ノ門ツインビルディング"]
[8010401082240,"株式会社ナックイメージテクノロジー","東京都港区北青山二丁目１１番３号Ａ-ＰＬＡＣＥ青山"]
[8010401099268,"リチャードウルフ株式会社","東京都港区白金台二丁目２６番１０号グリーンオーク高輪台"]
[8010401105356,"ヴォーパル・テクノロジーズ株式会社","東京都港区虎ノ門二丁目７番１４号八洲ビル"]
[8010401129545,"カスク株式会社","東京都千代田区神田紺屋町４３番地紺屋町共同ビル"]
[8010402024992,"株式会社アルファメッド","東京都港区西麻布３-６-４麻布パレス"]
[8010403012146,"マイランＥＰＤ合同会社","東京都港区虎ノ門五丁目１１番２号オランダヒルズ森タワー"]
[8010403014051,"ＨＦＣプレステージジャパン合同会社","東京都港区北青山三丁目３番５号東京建物青山ビル"]
[8010501003278,"株式会社クロイスターズ","東京都港区浜松町１-３０-５浜松町スクエアスタジオ１７０３"]
[8010501030529,"ＶｉｅｗＳｅｎｄＩＣＴ株式会社","東京都豊島区西池袋３-１-１５西池袋ＴＳビル"]
[8010501039660,"日水製薬医薬品販売株式会社","東京都台東区上野一丁目１８番１１号西楽堂ビル７階"]
[8010601014605,"南開通商株式会社","東京都千代田区岩本町２-１-１９ファーストビル"]
[8010601016527,"株式会社ときわ商会本社","東京都墨田区立花二丁目３３番５号"]
[8010601038042,"株式会社日本ルミナス","東京都品川区大井１-１４-３Ｋ-３ビル"]
[8010701007236,"長田電機工業株式会社","東京都品川区西五反田５-１７-５"]
[8010701019339,"株式会社ポーラ","東京都品川区西五反田２丁目２番３号ポーラ五反田ビル"]
[8010701024280,"株式会社エービー・サイエックス","東京都品川区北品川４-７-３５御殿山トラストタワー２１階"]
[8010801006435,"太陽製薬株式会社","東京都大田区羽田５-１-１５"]
[8010801010040,"株式会社エヌ・ティ・ティ・データ・エンジニアリングシステムズ","東京都大田区西蒲田七丁目３７番１０号グリーンプレイス蒲田"]
[8010801020873,"ケーディークロート株式会社","東京都大田区大森西２-１７-１８"]
[8010801020873,"高電工業株式会社","東京都大田区大森西２-１７-１８"]
[8011001015607,"東阪電子機器株式会社","東京都渋谷区恵比寿一丁目３番１号朝日生命恵比寿ビル"]
[8011001037799,"株式会社エントリージャパン","東京都新宿区新宿６-１２-５新宿松喜ビル６階"]
[8011001041074,"株式会社ジュアンビューティ","東京都渋谷区恵比寿４-２０-３恵比寿ガーデンプレイスタワー日油株式会社社内"]
[8011001067128,"株式会社ジェーエムワールド","東京都千代田区岩本町三丁目１番５号信丸ビル"]
[8011001068654,"株式会社ガラヒューマンケア","東京都中央区日本橋蛎殻町２―３―８寿ビル"]
[8011101003057,"エステー株式会社","東京都新宿区下落合２-４-６"]
[8011101007990,"サニタ商事株式会社","東京都新宿区若葉１-２２ローヤル若葉"]
[8011101014590,"富山化学工業株式会社本社","東京都新宿区西新宿３-２-５"]
[8011101015300,"株式会社ナイツ","東京都千代田区一番町１５番地２１一番町コート４階"]
[8011101016199,"株式会社日本エム・ディ・エム","東京都新宿区市谷台町１２-２"]
[8011101026017,"和田商事株式会社西新宿工場","東京都新宿区西新宿４-４１-１２角筈ビル"]
[8011101055478,"ネイチャーレジオン株式会社羽村営業所","東京都羽村市神明台４-９-１５富士梱包輸送株式会社内"]
[8011101062490,"株式会社マイクロン","東京都中央区日本橋一丁目５番３号日本橋西川ビル"]
[8011101062499,"共和クリティケア株式会社","神奈川県厚木市旭町四丁目１８番２９号"]
[8011101065353,"日本シャクリー株式会社","東京都新宿区西新宿２-６-１新宿住友ビル"]
[8011101065353,"株式会社シーンズ","東京都新宿区西新宿２-６-１新宿住友ビル"]
[8011102025439,"有限会社ダイヤモンド電気","東京都新宿区高田馬場四丁目３２番６号グレイスハウス"]
[8011301014127,"株式会社チームフォーチューン","東京都板橋区板橋三丁目３２番８号ＹＡＭＡＭＯＴＯビル"]
[8011401000704,"イワツキ株式会社","東京都板橋区志村１-３２-１８"]
[8011401004903,"中村デンタル株式会社","東京都板橋区南町５９-２"]
[8011401011593,"株式会社ユニアル","東京都板橋区板橋２-６１-１７"]
[8011501012946,"スターデザイン株式会社","東京都新宿区大久保１-３-１４ワールドビジネスセンター"]
[8011502002582,"有限会社サンデックス","東京都北区中十条３-３６-２８"]
[8011502011476,"有限会社明通製作所本郷事業所","東京都文京区本郷３-２６-１本郷宮田ビル"]
[8011702010815,"有限会社松宮医科精器製作所","東京都江戸川区東小岩６-５-１０"]
[8011801002515,"綜美薬品株式会社立石工場","東京都葛飾区東立石３-３１-１"]
[8011801010303,"東光薬品工業株式会社","東京都足立区新田２-１６-２３"]
[8011801010831,"日本炭酸瓦斯株式会社","東京都足立区青井３-１２-１５"]
[8011801011581,"フィブロ製薬株式会社","東京都足立区谷在家３丁目１０番６号"]
[8011801012877,"ユコー株式会社営業サービス部","東京都荒川区西日暮里五丁目６番１０号大橋ビル"]
[8012301002732,"株式会社レクメド","東京都町田市森野１-７-２３三井生命町田ビル２階"]
[8012301007376,"株式会社プラトンジャパン","東京都町田市大蔵町５６番地鶴川アカデメイアビル"]
[8012401009941,"株式会社アクネスラボ","東京都調布市布田１-４０-３佐藤ビル"]
[8012402001798,"有限会社ティー・エヌ・エンタープライゼス","東京都新宿区新宿２-６-３藤和新宿コープ"]
[8012402019956,"有限会社吉徳製鍼","東京都三鷹市北野１-１-２３"]
[8012702009194,"有限会社メディカルトライシステム","東京都小平市小川東町四丁目５番１２号"]
[8012702013221,"有限会社アイエッジ","東京都東久留米市本町２-５-１オーヴ０２ビル"]
[8013101001288,"関東化学株式会社","東京都中央区日本橋室町２丁目２番１号室町東三井ビルディング"]
[8013201006138,"ヨーヨーダイン株式会社","東京都目黒区下目黒一丁目５番２１号目黒ＤＫウエスト"]
[8013301013109,"吉野石膏販売株式会社","東京都豊島区巣鴨１-８-１０"]
[8013301015253,"エルメッドエーザイ株式会社","東京都豊島区東池袋３-２３-５Ｄａｉｗａ東池袋ビル"]
[8013301028016,"株式会社ビィ・ソニック","東京都豊島区北大塚二丁目３-１３ライオンズステーションプラザ大塚第２-７０４号"]
[8020001007423,"株式会社佐鳴横浜工場","神奈川県横浜市戸塚区上矢部町２０９１-１９"]
[8020001012844,"株式会社コスメディアラボラトリーズ","神奈川県横浜市金沢区幸浦２-１９-９"]
[8020001019476,"株式会社イワサワ","神奈川県横浜市神奈川区神奈川２-１６-１５"]
[8020001020038,"株式会社クレモナ","神奈川県横浜市金沢区福浦二丁目１７番地１１号"]
[8020001020120,"コーア製薬株式会社","神奈川県横浜市港北区箕輪町２-１７-５"]
[8020001023643,"太陽油脂株式会社本社工場","神奈川県横浜市神奈川区守屋町２-７"]
[8020001047378,"株式会社ダナフォーム","神奈川県横浜市鶴見区小野町７５-１"]
[8020001052171,"株式会社イノアコーポレーション","東京都東久留米市下里五丁目９番１号"]
[8020001059159,"株式会社ＪＶＣケンウッドヘルスケア事業部","神奈川県横浜市緑区白山１-１６-２"]
[8020001059836,"ブルカージャパン株式会社","神奈川県横浜市神奈川区守屋町三丁目９番地"]
[8020001074835,"ユースキン製薬株式会社","神奈川県川崎市川崎区貝塚１-１-１１"]
[8020001085428,"株式会社ＱＤレーザ","神奈川県川崎市川崎区南渡田町１番１号"]
[8020001092531,"昭和電工ガスプロダクツ株式会社","神奈川県川崎市川崎区扇町７-１"]
[8021001002612,"株式会社アメニティーサービス","神奈川県藤沢市鵠沼花沢町３-１６ＡＳ本社ビル"]
[8021001021884,"株式会社宮内厚木工場","神奈川県厚木市戸田字沖１番４"]
[8021001025200,"株式会社コスメティック・アイーダ","神奈川県大和市中央林間５-２０-５"]
[8021001059454,"カレイド株式会社","神奈川県相模原市緑区橋本四丁目１９番１６号"]
[8030001009245,"メディカルトラスト株式会社","埼玉県さいたま市浦和区高砂３-１０-４"]
[8030001027486,"株式会社　医器研","埼玉県狭山市新狭山２－１２－２７"]
[8030001044837,"下村石膏株式会社埼玉工場","埼玉県朝霞市幸町３-１１-９"]
[8030001045637,"国際科学工業株式会社","埼玉県新座市野火止５ー４ー２４"]
[8030001055058,"大興製薬株式会社","埼玉県川越市大字下赤坂５６０番地１"]
[8030001055867,"大岩産業株式会社","埼玉県ふじみ野市ふじみ野２-２５-３３"]
[8030001058457,"株式会社日本コムテック","埼玉県入間郡三芳町大字上富６５０-３"]
[8030001064686,"株式会社ふじ","埼玉県越谷市大字平方１０９６番地"]
[8030001096069,"株式会社ＲａｙＶｉｓｉｏｎ","埼玉県さいたま市大宮区土手町一丁目１８番地１ロザール大宮４０４"]
[8030001098404,"株式会社マメディカ","埼玉県さいたま市見沼区東新井７１０-１１マローネヒルズ３０３号室"]
[8030002091275,"有限会社サンユーテクノロジー","埼玉県越谷市レイクタウン１丁目２番地８"]
[8040001006522,"株式会社福山医科","千葉県千葉市若葉区千城台西一丁目１１番１号"]
[8040001038383,"株式会社フクダ産業","千葉県流山市名都借９９６番地"]
[8040001041503,"シンメディコ株式会社","千葉県松戸市五香南１-１２-１０"]
[8050001016537,"ＣＹＢＥＲＤＹＮＥ株式会社","茨城県つくば市学園南Ｄ２５街区１"]
[8050001021719,"吉田精工株式会社","茨城県行方市八木蒔６６０"]
[8050001027914,"株式会社創健","茨城県取手市片町３００番地"]
[8050001033210,"茨城ガスセンター株式会社","茨城県筑西市小栗６２６８-１"]
[8060001010472,"株式会社スズキプレシオン","栃木県鹿沼市野尻１１３番地２"]
[8060001013731,"キヤノン医療用品株式会社","東京都文京区湯島２-１８-６夏目ビル"]
[8060001013731,"株式会社夏目製作所","東京都文京区湯島２-１８-６夏目ビル"]
[8070001009687,"株式会社免疫生物研究所","群馬県藤岡市中１０９１-１"]
[8070001013929,"東栄化学工業株式会社","群馬県伊勢崎市香林町二丁目１２８４番地"]
[8070001016576,"マクターエンジニアリング株式会社開発センター","群馬県太田市東新町２３９-１"]
[8070001020454,"株式会社　ハーメック","群馬県太田市由良町９５６－２"]
[8070001025008,"シェンペクス・インターナショナル株式会社","群馬県前橋市公田町５９０番地"]
[8070001029553,"サンデン・リテールシステム株式会社","群馬県前橋市粕川町中之沢７"]
[8080001008498,"セイリン株式会社","静岡県静岡市清水区袖師町１００７-１"]
[8080001010421,"株式会社エルゴミクス","静岡県静岡市清水区旭町４-１１"]
[8080001011254,"株式会社ノイフルス","静岡県静岡市駿河区西脇９１３番地"]
[8080001016294,"エフシー中央薬理研究所株式会社","静岡県藤枝市大西町２丁目８番地の６"]
[8080002003473,"ソタ・ジャパン有限会社","静岡県静岡市駿河区鎌田３１５-５"]
[8080101004884,"ヒノキ新薬アイディエフ株式会社","静岡県伊豆の国市長岡字上耕地山１４０７番地の４８"]
[8080101009099,"東海カプセル株式会社","静岡県富士市久沢１６８番地"]
[8080101009446,"富士酸素工業株式会社","静岡県富士市津田２２８-１"]
[8080401005087,"株式会社丸協酸素商会","静岡県浜松市東区中田町８２５番地"]
[8090001000149,"株式会社石友","山梨県甲府市川田町アリア１０６"]
[8090001004694,"株式会社ヴェルシーナ","山梨県南アルプス市下今諏訪６１０-２１"]
[8090001004991,"日東物産株式会社","山梨県南アルプス市下今諏訪４２３"]
[8100001001806,"大丸合成薬品株式会社豊栄工場","長野県長野市松代町豊栄字宮崎６３２０-１"]
[8100001003686,"株式会社ヨシオカ","長野県駒ヶ根市下平２９３４-５７７"]
[8100001011532,"日機工業株式会社","長野県埴科郡坂城町大字坂城８７２０-７"]
[8100001014931,"株式会社アルペン総合研究所","長野県松本市大字和田２９８"]
[8100001017604,"ラインハルト株式会社あづみ野工場","長野県大町市大字常盤字沓掛９７２９-４"]
[8100001017711,"株式会社イケタニ","長野県木曽郡木曽町日義２１９６"]
[8100001021275,"タカノ株式会社健康福祉部","長野県伊那市西春近下河原５３３１"]
[8100001021795,"株式会社イナコス","長野県上伊那郡辰野町伊那富９０１５"]
[8110001015722,"株式会社エビス","新潟県西蒲原郡吉田町佐渡山７２９７番地"]
[8110001027429,"日本メディカルオーダー株式会社","新潟県長岡市千秋２丁目２７８８-１千秋が原ビル２階"]
[8120001000731,"大和化成工業株式会社中宮工場","大阪府大阪市旭区中宮３-１-２７"]
[8120001001432,"株式会社アサヒケミカ","大阪府大阪市鶴見区鶴見４-１０-７"]
[8120001002736,"吉川化成株式会社","大阪府大阪市鶴見区横堤５-６-３４"]
[8120001007891,"大衛株式会社","大阪府大阪市都島区都島本通２-３-３"]
[8120001013857,"矢田化学工業株式会社","大阪府大阪市東成区神路４丁目７-１"]
[8120001014649,"牛乳石鹸共進社株式会社本社","大阪府大阪市城東区今福西２-４-７"]
[8120001017206,"川本光学工業株式会社","大阪府大阪市平野区加美北２-３-８"]
[8120001017255,"株式会社北尾化粧品部","大阪府大阪市生野区中川西１-２-２０"]
[8120001022932,"株式会社カンダオプティカル","大阪府大阪市天王寺区真法院町１９-１"]
[8120001033351,"中川セラミックス株式会社","大阪府大阪市住吉区山之内１丁目１７番１４号"]
[8120001035810,"株式会社栃本天海堂扇町営業所","大阪府大阪市北区末広町３-２１"]
[8120001044043,"株式会社サンレーコーポレーション","大阪府大阪市西区北堀江１丁目１６番７号"]
[8120001049240,"株式会社ウラタニ・ラボ","大阪府大阪市西淀川区姫里３丁目１０番２２号"]
[8120001059660,"ダイキン工業株式会社特機事業部","大阪府摂津市西一津屋１-１"]
[8120001060544,"アズワン株式会社","大阪府大阪市西区江戸堀２丁目１番２７号"]
[8120001060643,"エルセラーン化粧品株式会社","大阪府大阪市北区梅田１丁目１番３-５００号"]
[8120001077357,"岩谷産業株式会社","大阪府大阪市中央区本町三丁目６番４号"]
[8120001077571,"森下仁丹株式会社","大阪府大阪市中央区玉造一丁目２番４０号"]
[8120001080154,"サンデンタル株式会社","大阪府大阪市中央区南船場４丁目８-９"]
[8120001081169,"株式会社シー・ビー・エィ","大阪府大阪市中央区南久宝寺町２丁目４番５号"]
[8120001083009,"株式会社ソフト９９コーポレーション","大阪府大阪市中央区谷町二丁目６番５号"]
[8120001085434,"東洋アルミニウム株式会社","大阪府大阪市中央区久太郎町三丁目６番８号"]
[8120001087876,"日野薬品株式会社","大阪府大阪市中央区道修町２-３-１５"]
[8120001089922,"丸石製薬株式会社","大阪府大阪市鶴見区今津中２-４-２"]
[8120001094170,"ジョアプロモート株式会社","大阪府大阪市西区新町１-１７-５"]
[8120001100903,"株式会社美容薬理研究所大阪研究所","大阪府大阪市淀川区塚本３丁目４-２２"]
[8120001113649,"コスモ・メディカル・システム株式会社","大阪府大阪市中央区道修町２丁目２番６号"]
[8120001114110,"株式会社ＳＨソリューションズ","大阪府大阪市阿倍野区阪南町４丁目１８番２５号"]
[8120001122195,"ジョンソンヘルスケア株式会社","大阪府吹田市南金田２丁目２番７号"]
[8120001129967,"マニス・コスメティクス株式会社","大阪府大阪市生野区巽中２-１-９Ｉ号"]
[8120001132582,"株式会社ジャパンコスメ本社","大阪府大阪市平野区背戸口５丁目６番１７号"]
[8120001140164,"株式会社ビゴン・ジャポン","大阪府大阪市中央区平野町四丁目６番３号大明ビル５階"]
[8120001195737,"シオノギヘルスケア株式会社","大阪府大阪市中央区北浜二丁目６番１８号（淀屋橋スクエア）"]
[8120001197642,"株式会社ＹＵＮＯ","大阪府大阪市平野区加美南５-６-１３"]
[8120001210545,"トーヨー株式会社","大阪府東大阪市加納４丁目１０-４１"]
[8120101007536,"株式会社マスター","大阪府堺市西区北条町２-３０-２"]
[8120101031016,"株式会社大和漢","大阪府藤井寺市道明寺２丁目１番５３号"]
[8120101039050,"株式会社シラック・ジャパン","大阪府泉佐野市南中安松６３３-１"]
[8120101044232,"株式会社高田ベッド製作所","大阪府泉南市りんくう南浜２番地の２７"]
[8120901005945,"株式会社カーヤ","大阪府吹田市垂水町３丁目４-１１"]
[8120901009970,"プリマ―ル株式会社","大阪府摂津市鳥飼下３丁目２-９"]
[8120901011027,"サンスター株式会社","大阪府高槻市朝日町３番１号"]
[8120901016397,"株式会社モレキュラーイメージングラボ","大阪府吹田市江の木町１３-９-５０５"]
[8120901038680,"株式会社コスメクリエーション","大阪府池田市豊島南２-１２-２"]
[8120902008105,"有限会社リーバンオハラ","大阪府吹田市西御旅町７-１６"]
[8122001001214,"株式会社大島製作所大阪工場","大阪府東大阪市本庄西３-７-３８"]
[8122001003152,"自然美生薬株式会社大阪工場","大阪府東大阪市中新開２-１３-７"]
[8122001005165,"濤和化学株式会社八尾工場","大阪府八尾市桂町１丁目５２-３"]
[8122001019660,"日本石鹸株式会社","大阪府八尾市跡部南の町２丁目２番４号"]
[8122001021006,"株式会社セブン化学","大阪府柏原市太平寺１丁目１２番１号"]
[8130001014391,"株式会社ケンシントン","京都府京都市伏見区淀下津町１０１番地"]
[8130001021628,"株式会社地球人クラブ","京都府京都市下京区西洞院通綾小路上る妙伝寺町７２０番地"]
[8130001022007,"西村器械株式会社","京都府京都市中京区河原町通夷川上ル指物町３３０番地"]
[8130001029910,"江崎器械株式会社","京都府長岡京市神足下八ノ坪４４-２"]
[8130001033581,"株式会社メディエート","京都府宇治市槙島町目川１１７-５"]
[8130001036353,"応用電機株式会社京都事業部","京都府城陽市平川中道表６３-１"]
[8130001038630,"京都リフレ新薬株式会社","京都府城陽市平川山道３３-１"]
[8140001006966,"株式会社加美乃素本舗","兵庫県神戸市中央区熊内橋通３-３-２５"]
[8140001028671,"株式会社アスター企画","兵庫県神戸市北区谷上東町３番１１-１００２号"]
[8140001033639,"株式会社アインズラボ","兵庫県神戸市中央区栄町通５丁目１番１７号２Ｆ２０６号"]
[8140001041055,"小寺産業株式会社","兵庫県丹波市氷上町常楽７８１番地"]
[8140001050634,"株式会社ネリキ神戸工場","兵庫県神戸市西区室谷２-７-６"]
[8140001068684,"株式会社コーナン・メディカル","兵庫県西宮市宮西町１０-２９"]
[8140001069518,"デンタルエイド株式会社","兵庫県西宮市湯元町２番１号"]
[8140001070021,"株式会社阪神技術研究所","兵庫県西宮市久保町４-１８"]
[8140001071218,"中央産業貿易株式会社","兵庫県西宮市神楽町４-７"]
[8140002068881,"洲本製紙有限会社","兵庫県洲本市下加茂１丁目３番４１号"]
[8150001010661,"ダイヤ製薬株式会社","奈良県橿原市上品寺町５１５"]
[8150001010959,"増田製薬株式会社","奈良県橿原市川西町４２９番地"]
[8150001012914,"成光薬品工業株式会社","奈良県北葛城郡広陵町大塚７３９"]
[8150001013185,"浪華ゴム工業株式会社","奈良県大和高田市曽大根２-６-１"]
[8150001013664,"吉田製薬株式会社","奈良県北葛城郡新庄町大字東室３４"]
[8150001013904,"大佛堂製薬株式会社","奈良県御所市大字冨田２３番地の５"]
[8150001013994,"森本製薬株式会社","奈良県御所市７８３番地"]
[8150001015438,"金陽製薬株式会社テクノ奈良工場","奈良県五條市住川町１４２０"]
[8150002011287,"大峯山陀羅尼助製薬有限会社","奈良県吉野郡天川村洞川４８５番地の１"]
[8160001005388,"日新薬品工業株式会社","滋賀県甲賀市甲賀町田堵野８０-１"]
[8160001006444,"伊吹薬草株式会社","滋賀県米原市伊吹４７３番地"]
[8160001010999,"前出産業株式会社","滋賀県近江八幡市上田町１２８８-１８"]
[8160001011808,"伊丹製薬株式会社","滋賀県高島市今津町下弘部２８０番地"]
[8160001013300,"株式会社オーミック栗東事業所","滋賀県栗東市辻６００番地１"]
[8160001017350,"株式会社メディカルフロント","滋賀県草津市野路東１丁目１番１号立命館大学ＢＫＣインキュベ-タ"]
[8170001000636,"笠野興産株式会社","和歌山県和歌山市井ノ口５５０番地の１"]
[8170001005040,"株式会社マグスタイル","和歌山県和歌山市出水９７番地"]
[8170001007854,"東和製薬株式会社","和歌山県紀の川市貴志川町丸栖１２２９番地"]
[8180001015261,"株式会社日本点眼薬研究所","愛知県名古屋市南区西桜町７６"]
[8180001024956,"オオサキメディカル株式会社本社","愛知県名古屋市西区玉池町２０３番地"]
[8180001030021,"共立機巧株式会社","愛知県名古屋市中村区稲上町１丁目１２番地"]
[8180001044475,"株式会社東亜産業","東京都千代田区外神田２-５-１２タカラビル"]
[8180001045829,"ケミカルジャパン株式会社中部ベースキャンプ","愛知県大府市共和町西流レ８９番２"]
[8180001068375,"ＢＪＨＯＬＤＩＮＧＳ株式会社","愛知県名古屋市北区丸新町３９０番地リンクスビル３、４Ｆ"]
[8180001072121,"株式会社ヘルスビューティー","愛知県名古屋市南区菊住二丁目５番８号"]
[8180001093051,"株式会社中央技研","愛知県知多郡美浜町北方一丁目５５"]
[8180002081212,"有限会社メイヨー稲沢研究所","愛知県稲沢市高御堂２-２５-２２"]
[8180003002431,"合資会社増山自然堂","愛知県名古屋市東区筒井３-２-２０"]
[8180301006902,"株式会社東三河総合ガスセンター","愛知県豊橋市牛川通１-２０-２"]
[8180301020416,"アルゴキュアシステム株式会社","愛知県豊田市花園町屋敷１９８番地２"]
[8180301021942,"エヌ電子工業株式会社","愛知県豊田市篠原町片坂３６番地１"]
[8190001008628,"ビーグラッド株式会社","三重県伊賀市西明寺字長楽山２７５６-３１２"]
[8190001019030,"伊勢くすり本舗株式会社","三重県伊勢市二見町松下１７５７番地１０"]
[8200001026974,"株式会社今仙技術研究所","岐阜県各務原市テクノプラザ三丁目１番８号"]
[8200002017551,"大橋精密工業有限会社","岐阜県可児郡兼山町１１４０番地の４"]
[8210001007305,"イワタニ理化株式会社","福井県坂井市三国町米納津第４９号１１１-１２"]
[8210001009573,"株式会社バンコーポレーション","福井県福井市下荒井町４-１４"]
[8210001012924,"株式会社サンルックス","福井県鯖江市丸山町３-５-２５"]
[8210001012932,"株式会社サンリーブ","福井県鯖江市杉本町１５-２２"]
[8210001012981,"株式会社ユーロビジョン","福井県鯖江市鳥羽町１０６-８-１"]
[8210001013369,"株式会社吉田眼鏡","福井県鯖江市神中町２丁目４番１０号"]
[8210002003880,"有限会社メイソウ","福井県福井市田原２-３０-２４"]
[8210002004061,"株式会社山内スプリング製作所","福井県福井市成和２丁目４０６"]
[8210002013054,"有限会社彩明","福井県鯖江市水落町４-１１-４"]
[8220001006776,"丸文通商株式会社金沢支店白山センター","石川県白山市福留町２４８-１"]
[8220001009300,"ＥＩＺＯ株式会社","石川県白山市下柏野町１５３番地"]
[8230001002262,"日本ビタミン化学株式会社","富山県富山市中大久保１９６-１１"]
[8230001003434,"渡辺薬品工業株式会社","富山県富山市水橋北馬場１番７"]
[8230001003517,"リードケミカル株式会社","富山県富山市日俣７７-３"]
[8230001004770,"新生薬品工業株式会社","富山県中新川郡上市町三日市２２番地"]
[8230001004787,"北日本製薬株式会社","富山県中新川郡上市町若杉５５"]
[8230001007848,"中新薬業株式会社","富山県滑川市上小泉５０４-２"]
[8240001022672,"株式会社広島樹脂コーティング","広島県東広島市高屋台１―５―１６"]
[8240001038553,"丸善製薬株式会社","広島県尾道市向東町１４７０３-１０"]
[8240001043909,"ＲＴＱＭシステム株式会社","広島県広島市南区霞一丁目２-３広島大学霞総合研究棟３２３"]
[8250001002203,"株式会社平和医療器械","山口県防府市戎町２丁目４番３７号"]
[8250001006253,"藤井物産株式会社小月工場","山口県下関市王喜本町４丁目１０２７番１１号"]
[8260001008703,"備前化成株式会社","岡山県赤磐市徳富３６３"]
[8260001022415,"日本家庭用塩株式会社","岡山県玉野市胸上２４７１番地の１"]
[8270001000469,"三洋テクノソリューションズ鳥取株式会社","鳥取県鳥取市立川町７丁目１０１番地"]
[8270001000650,"日ノ丸産業株式会社","鳥取県鳥取市五反田町１番地"]
[8290001011662,"株式会社ヴァーナル","福岡県福岡市博多区博多駅前四丁目６番１５号"]
[8290001014483,"高杉製薬株式会社","福岡県粕屋郡粕屋町大字仲原２６１７"]
[8290001017800,"株式会社タイムリーポスト多の津工場","福岡県福岡市東区多の津４丁目１８番１８号"]
[8290001019029,"株式会社ＪＩＭＯＳ","福岡県福岡市博多区冷泉町２番１号"]
[8300001007329,"株式会社ブルーム","佐賀県唐津市浜玉町浜崎１９０１-４５７"]
[8310001001834,"平坂製薬株式会社","長崎県西彼杵郡時津町久留里郷字新開１４３９番地５２"]
[8310002014991,"有限会社エル・アイ・ビー","長崎県諫早市仲沖町１９-１０"]
[8320001010990,"株式会社山国商会","大分県中津市沖代町１丁目３番１号"]
[8320002012219,"有限会社福泉製薬所","大分県別府市京町３番１８号"]
[8320002012615,"有限会社村上商会","大分県別府市上田の湯町１６番７号"]
[8330001000628,"株式会社王樹製薬","熊本県熊本市近見７丁目１０―１"]
[8330001009116,"阿蘇製薬株式会社菊陽工場","熊本県菊池郡菊陽町津久礼９１-１"]
[8330001011245,"グッド・プロジェクト株式会社","熊本県上益城郡御船町高木吹上４２３０番地２"]
[8330002012523,"株式会社ブランディングラボ","福岡県福岡市中央区天神二丁目７番９号天神２７ビル７階"]
[8330002021524,"株式会社田尻３００年製薬","熊本県玉名市岱明町開田３２９番地１"]
[8360001021638,"ｌａｔｅｌｌｕｓ株式会社","沖縄県うるま市州崎１２-７５沖縄健康バイオテクノロジー研究開発センター１０４号室"]
[8370001004716,"株式会社エーゼット","宮城県仙台市青葉区木町通２丁目３-１９"]
[8370001012025,"株式会社細胞科学研究所","宮城県仙台市青葉区西花苑１-１６-１６"]
[8380001023327,"株式会社マイステック","福島県郡山市田村町徳定字中河原１-１郡山地域テクノポリスものづくりインキュベーションセンター５号"]
[8400501000574,"株式会社サクシーディング","岩手県一関市川崎町門崎字銚子１５３"]
[8410001008010,"株式会社タニタ秋田","秋田県大仙市堀見内字下田茂木添２８番地１"]
[8430001044607,"ナチュラルケア株式会社","北海道恵庭市恵み野北３丁目１番１３"]
[8430002031141,"有限会社ニュートン・グラフィックス","北海道札幌市中央区南３条西６丁目７-４ＡＲＫ３６ビル７Ｆ"]
[8450001002406,"日本メディカルプロダクツ株式会社","北海道旭川市豊岡２条４丁目４-１４"]
[8470001001265,"協和化学工業株式会社医薬製剤事業所","香川県木田郡三木町井上２８７６-２"]
[8470001005225,"千金丹ケアーズ株式会社","香川県高松市国分寺町福家甲１５４ー２"]
[8470001007824,"芳香園製薬株式会社","香川県綾歌郡宇多津町浜八番丁１３４番地５"]
[8470001014044,"株式会社ディーエム","香川県観音寺市出作町７２８-１"]
[8490001005446,"三昭紙業株式会社","高知県土佐市北地２４２４-７"]
[8500001008439,"丸三産業株式会社大洲工場","愛媛県大洲市徳森１３４９番地"]
[8500002009725,"有限会社オレンジコスメ","愛媛県松山市姫原３丁目７番５５号"]
[9010001001021,"ビー・ブラウンエースクラップ株式会社","東京都文京区本郷２-３８-１６"]
[9010001001450,"株式会社太田胃散","東京都文京区千石二丁目３番２号"]
[9010001001987,"株式会社キアゲン","東京都中央区勝どき三丁目１３番１号フォーフロント・タワーⅡ"]
[9010001003273,"三立医科工業株式会社","東京都文京区本郷３-３９-７"]
[9010001004098,"星盛堂医療器工業株式会社","東京都文京区本郷３-２４-９"]
[9010001005014,"株式会社デー・エス・サプライ","東京都文京区本郷３-３７-３富士見ビル"]
[9010001006763,"株式会社フジタ医科器械","東京都文京区本郷三丁目６番１号フジタビル"]
[9010001007761,"株式会社ムラコメディカル","東京都文京区本郷３-２５-９第２三恵ビル"]
[9010001007836,"株式会社メディカルリーダース","東京都文京区湯島４-２-１"]
[9010001008289,"株式会社ワールドデジタル","東京都文京区本郷三丁目１８番１１号ＴＹビル"]
[9010001013784,"化成品商事株式会社","東京都中央区東日本橋三丁目１０番６号Ｄａｉｗａ東日本橋ビル"]
[9010001021606,"株式会社太陽医療品製作所","東京都千代田区神田紺屋町３８"]
[9010001023973,"東菱薬品工業株式会社本社事業所","東京都千代田区有楽町１-１０-１有楽町ビル"]
[9010001028394,"株式会社プラネットプロダクツ","東京都千代田区六番町１-１０山陽六番町ビル５階"]
[9010001031687,"吉野石膏株式会社東京工場","東京都足立区江北２-１-１"]
[9010001034137,"株式会社東京甲子社本社","東京都千代田区岩本町３-１０-９"]
[9010001034748,"イワキ株式会社","東京都中央区日本橋本町４-８-２"]
[9010001037692,"株式会社ウチダ和漢薬医薬部外品製造販売事務所","東京都荒川区東日暮里四丁目３番３号"]
[9010001037692,"株式会社ウチダ和漢薬医薬品製造販売事務所","東京都荒川区東日暮里四丁目３番３号"]
[9010001047163,"ジヤパンオプテイカル株式会社","東京都千代田区岩本町３-５-５"]
[9010001048285,"生化学工業株式会社","東京都千代田区丸の内一丁目６番１号丸の内センタービルディング"]
[9010001063879,"株式会社バリアンメディカルシステムズ","東京都中央区日本橋兜町５番１号"]
[9010001063920,"株式会社エッシェンバッハ光学ジャパン","東京都千代田区神田司町２-１５-４第二進盛ビル"]
[9010001067260,"エル・シー・エス株式会社","東京都千代田区平河町２-１-１住友不動産平河町ビル"]
[9010001069083,"株式会社キナリ","東京都品川区東品川二丁目２番４号天王洲ファーストタワー"]
[9010001069372,"株式会社ジェーシー","東京都中央区日本橋人形町１-７-７笠原ビル"]
[9010001073655,"ケイティティ株式会社","東京都中央区日本橋人形町２-７-１５日本橋トグチビル"]
[9010001076393,"株式会社センス・イット・スマート","東京都千代田区麹町５-２-１Ｋ-ＷＩＮＧ９階"]
[9010001090270,"メディエンス株式会社","東京都中央区日本橋室町一丁目６番３号山本ビル別館"]
[9010001095798,"ミックインターナショナル株式会社","東京都文京区本郷４-１-１７"]
[9010001106464,"ケアストリームヘルス株式会社","東京都江東区冬木１１番１７号"]
[9010001119375,"株式会社ソノコ東京事務所","東京都中央区銀座５-９-１銀座幸ビル"]
[9010001130522,"株式会社大瀧","東京都千代田区三番町７-１-３０８朝日三番町プラザ"]
[9010001132989,"株式会社スリープシステム研究所","東京都千代田区猿楽町一丁目４番地の４ＳＴビル"]
[9010001144290,"フィジオコントロールジャパン株式会社","東京都千代田区麹町五丁目３番地３麹町ＫＳスクエア"]
[9010001146584,"株式会社ハニック・ホワイトラボ","東京都千代田区一番町１３-６レグノ・グランデ一番町タワー"]
[9010001157532,"日本アビオメッド株式会社","東京都中央区日本橋室町２-２-１室町東三井ビルディング１２階"]
[9010001158844,"ＳＥＬエナジー株式会社引田事業所","東京都あきる野市引田４５５番地"]
[9010001162391,"ＦＱＪａｐａｎ株式会社","東京都千代田区一番町２０番地３プレミエール一番町１３０１号"]
[9010001170980,"株式会社モノケロウス","東京都中央区東日本橋一丁目９番２号ＴｅｎＴａｌｅｎｔＢｕｉｌｄｉｎｇ"]
[9010001174602,"コンメッド・ジャパン株式会社","東京都港区西新橋三丁目４番２号ヤマキ第２ビル８階"]
[9010002004329,"有限会社豊原医科器械店","東京都文京区本郷３丁目７-２"]
[9010002006077,"メディポートホック有限会社","東京都文京区湯島４-５-２星ビル"]
[9010003015275,"ヘモネティクスジャパン合同会社","東京都千代田区一番町１６番地共同ビル（一番町）"]
[9010101002927,"日本ビニールコード株式会社","東京都八王子市下恩方町４２４番地６"]
[9010401008590,"株式会社グライナー・ジャパン","東京都港区赤坂二丁目１７番４４号福吉坂ビル"]
[9010401018375,"あすか製薬株式会社","東京都港区芝浦二丁目５番１号"]
[9010401037895,"株式会社ソフトメディカル","東京都大田区山王２-４１-６秋葉ビル２Ｆ"]
[9010401073346,"株式会社ｐｄｃ","東京都港区南麻布四丁目２番３４号天現寺スクエア４階"]
[9010401074526,"フェリング・ファーマ株式会社","東京都港区虎ノ門二丁目３番１７号虎ノ門２丁目タワー"]
[9010401076290,"アンブロシア株式会社","神奈川県川崎市高津区坂戸三丁目２番１号かながわサイエンスパーク東棟２１２号室"]
[9010401081290,"株式会社レイナカンパニー","東京都港区南青山２-２-１５ウィン青山７１５号"]
[9010401085572,"アラガン・ジャパン株式会社","東京都渋谷区恵比寿四丁目２０番３号恵比寿ガーデンプレイスタワー３５階"]
[9010401088617,"エム・シー・メディカル株式会社","東京都港区港南２-１６-１品川イーストワンタワー"]
[9010401099993,"株式会社ＣＵ","東京都港区虎ノ門一丁目２番１０号虎ノ門桜田通ビル８Ｆ"]
[9010401102864,"ギリアド・サイエンシズ株式会社","東京都千代田区丸の内一丁目９番２号グラントウキョウサウスタワー"]
[9010401102864,"日立化成株式会社","東京都千代田区丸の内一丁目９番２号グラントウキョウサウスタワー"]
[9010403013663,"ＬａｂＰＭＭ合同会社","神奈川県川崎市川崎区殿町三丁目２５番１３号"]
[9010501007410,"株式会社高山医療機械製作所","東京都台東区谷中３-４-４"]
[9010501010447,"株式会社日本歯科工業社本社","東京都台東区上野５-１２-８"]
[9010501011627,"不二電子株式会社","東京都台東区池之端２丁目２番８号ウェルシャン池之端"]
[9010501020537,"株式会社ノルメカエイシア","東京都台東区浅草橋３-１９-３星和クレストビル"]
[9010501023044,"日水製薬株式会社","東京都台東区上野三丁目２４番６号"]
[9010501029066,"日本メルクス株式会社","東京都立川市錦町４-５-３丸木ビル"]
[9010601002575,"オリヂナル株式会社","東京都江東区毛利２-１-２"]
[9010601004290,"ベルモントテクノロジー株式会社","東京都江東区大島８-１９-１３"]
[9010601018745,"フィンガルリンク株式会社","東京都台東区元浅草２-６-６東京日産台東ビル"]
[9010601026129,"ドレーゲル・メディカルジャパン株式会社","東京都品川区上大崎２-１３-１７目黒東急ビル"]
[9010602010494,"有限会社木村鉗子製作所","東京都墨田区向島１丁目１８番９号"]
[9010701001808,"シーメンスヘルスケア・ダイアグノスティクス株式会社","東京都品川区大崎一丁目１１番１号ゲートシティ大崎ウエストタワー"]
[9010701008596,"株式会社ブレーンベース","東京都品川区大井１-４９-１５アクセス大井町ビル６階"]
[9010701010032,"ユーロメディテック株式会社","東京都品川区東五反田２-２０-４ＮＭＦ高輪ビル"]
[9010701018240,"ゲティンゲグループ・ジャパン株式会社","東京都品川区東品川２-２-８スフィアタワー天王洲"]
[9010701018240,"ヘンケルジャパン株式会社","東京都品川区東品川２-２-８スフィアタワー天王洲"]
[9010701018372,"株式会社ポーラファルマ","東京都品川区西五反田八丁目９番５号ＦＯＲＥＣＡＳＴ五反田ＷＥＳＴ"]
[9010801010089,"株式会社ビューロ","東京都大田区中央７-１４-１１"]
[9010801012671,"株式会社ジュポンインターナショナル","東京都大田区西糀谷４-３１-５"]
[9010801016607,"三恵製薬株式会社","東京都大田区池上３-１０-１４"]
[9010901004395,"三栄製薬株式会社","東京都世田谷区北烏山８-１３-２３"]
[9010901006020,"株式会社杉浦研究所","東京都世田谷区玉川四丁目５番４号"]
[9010901027727,"株式会社パネシアン","東京都世田谷区上馬４-１１-１６"]
[9011001010433,"株式会社シーケービー","東京都渋谷区渋谷二丁目１０番６号山田青山ビル"]
[9011001016224,"東京高圧山崎株式会社","東京都渋谷区渋谷１-９-８"]
[9011001040232,"サージテック株式会社","東京都千代田区九段南三丁目４番１５号清新九段ビル"]
[9011001049950,"イリアール株式会社","東京都渋谷区恵比寿西２-２０-１７代官山サンライトビル"]
[9011001070477,"バイオトロニックジャパン株式会社","東京都渋谷区恵比寿１-１９-１９恵比寿ビジネスタワー"]
[9011101002149,"株式会社イメージワン","東京都新宿区新宿６-２７-３０新宿イーストサイドスクエア"]
[9011101005507,"協立機電工業株式会社","東京都新宿区四谷１-２３-６協立四谷ビル"]
[9011101019390,"セルマーク・ジャパン株式会社","東京都新宿区西新宿６-５-１新宿アイランドタワー"]
[9011101019705,"ボストン・サイエンティフィックジャパン株式会社","東京都中野区中野４-１０-２中野セントラルパークサウス"]
[9011101021173,"持田製薬株式会社","東京都新宿区四谷１-７"]
[9011101036923,"日本シグマックス株式会社","東京都新宿区西新宿６-８-１新宿オークタワー"]
[9011101037888,"オリンパステルモバイオマテリアル株式会社","東京都渋谷区笹塚１-５０-１笹塚ＮＡビル"]
[9011101044273,"ブリストル・マイヤーズスクイブ株式会社","東京都新宿区西新宿六丁目５番１号新宿アイランドタワー"]
[9011101049982,"メンリッケヘルスケア株式会社","東京都新宿区西新宿６-２０-７"]
[9011101054330,"株式会社ＰＭＯＤ","東京都新宿区西新宿６-１２-６コアロード西新宿"]
[9011101063133,"アイクオリティ株式会社","東京都港区麻布台二丁目４番５号メソニック３９ＭＴビル"]
[9011101063273,"ユーシービージャパン株式会社","東京都新宿区西新宿８-１７-１新宿グランドタワー"]
[9011101069774,"株式会社Ｉ・ＶＩＣＥ","福岡県福岡市博多区博多駅東二丁目２番２号"]
[9011101070476,"株式会社ＭＯＺＵ","東京都新宿区西新宿三丁目１７番７号西新宿ＴＯＫビル"]
[9011101074246,"メリットメディカル・ジャパン株式会社","東京都新宿区西新宿一丁目２６番２号新宿野村ビル"]
[9011201002668,"城田電気炉材株式会社","東京都中野区若宮２-５５-３"]
[9011201003344,"株式会社千代田化学","東京都中野区東中野１-５３-１９"]
[9011201003740,"同仁医薬化工株式会社","東京都中野区弥生町５-２-２"]
[9011202000943,"有限会社エスアンドエムイー","東京都中野区中央４-６１-４フォルトゥーナ中野"]
[9011501003647,"株式会社日進工","東京都荒川区西尾久７-１５-８"]
[9011601006203,"ディーブイエックス株式会社","東京都豊島区高田２-１７-２２目白中野ビル"]
[9011601016053,"株式会社ＩｎｓｅｃｔＳｈｉｅｌｄＪａｐａｎ","東京都府中市白糸台１-１３-２太成倉庫株式会社府中第二営業所内"]
[9011701001913,"株式会社オネストメディカル","東京都江戸川区松本１-２-２"]
[9011801004808,"株式会社ミリオンライト","東京都葛飾区東四つ木３-４７-１２"]
[9011801008263,"三祐医科工業株式会社","東京都足立区六木１-１２-９"]
[9011801011465,"フジケミカル株式会社","東京都足立区舎人１-１８-２７"]
[9012401010717,"ａｒｔｍｅｄｉｃａ株式会社","東京都調布市菊野台２丁目４１番３号"]
[9012801000152,"市村酸素株式会社","東京都立川市錦町２-１１-５"]
[9012801002438,"日本電子株式会社","東京都昭島市武蔵野３-１-２"]
[9012801004500,"富士アイティ株式会社本社","東京都立川市曙町２-４-３ＴＩＳビル"]
[9012801009417,"光電メディカル株式会社","東京都日野市大字日野１１５２番地の２"]
[9013201012242,"株式会社ウィズ・アス","東京都港区南青山二丁目２１番３７号青山Ｓビル"]
[9013301016275,"ビエン・エア・アジア株式会社","東京都豊島区池袋２-４０-１２西池袋第一生命ビルディング"]
[9013301020252,"日本生化学株式会社","東京都豊島区西池袋一丁目２１番２号"]
[9013301024336,"株式会社コスモビューティー","大阪府大阪市此花区島屋４丁目３-４３"]
[9013301027074,"ラシーヌ株式会社","東京都豊島区南大塚三丁目５２番１０号今井第五ビル"]
[9013301028279,"ライフサイエンスコンピューティング株式会社","東京都豊島区南池袋二丁目３０番１２号ＢＩＴビル"]
[9013303002372,"合同会社アダム医健本社","東京都豊島区西巣鴨一丁目３４番９号プチアビオン"]
[9013401000518,"株式会社東洋厚生製薬所","東京都日野市日野１３２１"]
[9013401001978,"東京医研株式会社","東京都稲城市東長沼１１３１-１"]
[9020001009682,"エイシン電機株式会社","神奈川県横浜市保土ヶ谷区天王町２丁目３９-３"]
[9020001012166,"株式会社やまひら","神奈川県横浜市青葉区荏田北３-１-４江田佐藤ビル３Ｆ"]
[9020001016340,"横浜油脂工業株式会社","神奈川県横浜市西区南浅間町１-１"]
[9020001021159,"トーレック株式会社本社工場","神奈川県横浜市港北区綱島東５-６-２０"]
[9020001023519,"株式会社ゼオシステム","神奈川県横浜市神奈川区二ッ谷町１０-１０"]
[9020001033872,"株式会社タイオックス","神奈川県横浜市都筑区茅ヶ崎中央８番３３号サウス・コア３Ｆ"]
[9020001034846,"株式会社ケミックス","神奈川県横浜市港北区新横浜二丁目１５番１０"]
[9020001057054,"ＧＮヒアリングジャパン株式会社","神奈川県横浜市西区みなとみらい３-６-３ＭＭパークビル８階"]
[9020001057459,"株式会社コンフォートジャパン","神奈川県横浜市西区平沼一丁目１番３号６Ｆ"]
[9020001067656,"株式会社協同インターナショナル本社","神奈川県川崎市宮前区宮崎二丁目１０番９号オーミヤ宮崎台ビル"]
[9020001068340,"株式会社Ｈａｄｅｃｏ","神奈川県川崎市宮前区有馬２-７-１１"]
[9020001078892,"株式会社Ｓ＆Ｓエンジニアリング技術センター","東京都品川区勝島１-４-３日本通運大井２号倉庫内"]
[9020001085286,"株式会社プランＡ","東京都渋谷区本町１-１６-１７ＴＨＥＣＬＡＹＴＯＮＰＬＡＣＥ"]
[9021001001605,"ナショナル・トータル・プロダクト株式会社石川工場","神奈川県藤沢市石川４-８-７"]
[9021001012478,"シバントス株式会社","神奈川県大和市下鶴間１６２３-１４三機大和ビル６Ｆ"]
[9021001020308,"デジタルプロセス株式会社","神奈川県厚木市中町２-９-６厚木会田ビル３Ｆ"]
[9021001033029,"中谷産業株式会社","神奈川県足柄上郡中井町遠藤１３６"]
[9021001042384,"株式会社ＴＡＣ２１","神奈川県逗子市小坪三丁目１９番２号"]
[9030001003544,"株式会社サイサン伊奈高圧ガスセンター","埼玉県北足立郡伊奈町大字小室字道上１０３６０"]
[9030001005755,"東邦歯科産業株式会社","埼玉県さいたま市南区内谷２丁目１０番２号"]
[9030001007330,"株式会社フルモンツ","埼玉県さいたま市緑区上野田２２８-１"]
[9030001008436,"株式会社モリタ東京製作所","埼玉県北足立郡伊奈町小室７１２９番地"]
[9030001034853,"協和新薬株式会社","埼玉県草加市小山１-２８-８"]
[9030001036437,"大和化成工業株式会社","埼玉県草加市稲荷２-１-８"]
[9030001044828,"城北冶金工業株式会社朝霞工場","埼玉県朝霞市膝折町２-１１-６８"]
[9030001048639,"株式会社ちばら","埼玉県新座市野火止８丁目８番１９号"]
[9030001055593,"株式会社的場電機製作所","埼玉県川越市的場２６２７番地５号"]
[9030001060098,"メディカ・ウェーブ株式会社","埼玉県入間郡三芳町大字上富字中西１１８０番地２"]
[9030001065196,"株式会社コンデックステクニカルセンター","埼玉県越谷市相模町３-２２９-１"]
[9030001066145,"モディアシステムズ株式会社越谷工場","埼玉県越谷市東越谷１０-３１-３"]
[9030001079510,"株式会社杏林システマック","埼玉県川口市青木１-１３-１"]
[9030001093791,"株式会社ユニークス","埼玉県川口市榛松１７９６"]
[9030001110530,"ギネマム株式会社","埼玉県さいたま市南区太田窪１９５７第三星野ビル５Ｆ"]
[9040001025397,"株式会社イーエスコスメチックス","千葉県市川市原木１-３-３１"]
[9040001037483,"プレシジョン・システム・サイエンス株式会社","千葉県松戸市上本郷８８"]
[9040001057028,"イオントップバリュ株式会社","千葉県千葉市美浜区中瀬１-４"]
[9040001065047,"サンケイ薬品株式会社","千葉県旭市鎌数９３９３"]
[9040001066474,"グローバルマイクロニクス株式会社","千葉県柏市高田字上野台子１４００番地１"]
[9040001066664,"リョートーファイン株式会社","千葉県柏市高田１４１０番地"]
[9040001090937,"株式会社アイネクスト","千葉県千葉市美浜区中瀬１-９-１"]
[9050001009515,"株式会社つくば本草研究所","茨城県土浦市虫掛３６９８-３"]
[9050001021040,"株式会社宝山産業","茨城県神栖市太田３２３４-１"]
[9050001023739,"株式会社東日本技術研究所","茨城県日立市大みか町４丁目８番２０号"]
[9050001026799,"ダイアデム工業株式会社","茨城県常陸大宮市姥賀町５８２-７"]
[9050002019983,"有限会社台製作所","茨城県坂東市神田山１５３８-２０番地"]
[9060001001801,"三弘製薬株式会社","栃木県宇都宮市平出工業団地６番地１"]
[9060001001801,"三和生薬株式会社","栃木県宇都宮市平出工業団地６番地１"]
[9070001014133,"株式会社中島ハッカ","群馬県伊勢崎市境中島３２５"]
[9070001014273,"株式会社英技研","群馬県佐波郡玉村町大字上之手２１１０-３"]
[9080001002772,"静岡酸素株式会社","静岡県静岡市駿河区曲金５丁目１６-６"]
[9080001004075,"株式会社日本ゲルマニウム研究所","静岡県静岡市葵区春日２-１１-９"]
[9080101009684,"増田紙工株式会社","静岡県富士市宮下５３４番地の１"]
[9080102010914,"有限会社たまエンタープライズ","静岡県三島市本町１３-７"]
[9080103001334,"シークレットダイレクトジャパン合同会社","東京都中央区日本橋茅場町二丁目７番６号晴花ビル"]
[9080401017890,"ローラーマックス株式会社","静岡県袋井市川井９０８番地の４"]
[9090001005428,"株式会社加藤商会","山梨県甲府市住吉１丁目２番７号"]
[9100001006192,"チヨダエレクトリック株式会社","長野県千曲市大字新田１２４"]
[9100001015251,"日本電熱株式会社","長野県安曇野市三郷温３７８８番地"]
[9100001018394,"新和工機株式会社","長野県諏訪市大字中洲５６６番地５"]
[9100001020466,"株式会社中日諏訪オプト電子中日電子カンパニー","愛知県名古屋市南区塩屋町一丁目３番地４株式会社タイテック本社工場内"]
[9100001025944,"株式会社サンメディカル技術研究所","長野県諏訪市四賀２９９０"]
[9100001027404,"シェルハメディカル株式会社","長野県茅野市玉川２１２３-２"]
[9110001001060,"株式会社環境科学","新潟県新潟市西区山田字中道下の西３３８０番"]
[9110001007207,"竹井機器工業株式会社","新潟県新潟市矢代田６１９番地"]
[9110001012306,"株式会社ツインズ","新潟県燕市東太田１０２９番地"]
[9110001026223,"株式会社オーヒラ","新潟県南魚沼市新堀新田６２９-９６１"]
[9120001010250,"株式会社田村治照堂本社","大阪府大阪市東住吉区山坂３-６-１５"]
[9120001021520,"株式会社不動化学","大阪府大阪市平野区加美南５丁目８-７"]
[9120001021933,"ヤマザキ産業株式会社","大阪府大阪市平野区加美東２-３-４０"]
[9120001025208,"藤原歯科貴金属株式会社","大阪府大阪市天王寺区餌差町８-２明星合同ハイツ１階"]
[9120001034679,"株式会社かわかみ佃工場","大阪府大阪市西淀川区佃５丁目１０番１２号"]
[9120001035958,"株式会社ナリス化粧品本社","大阪府大阪市福島区海老江１-１１-１７"]
[9120001049850,"スモカ歯磨株式会社本社工場","大阪府大阪市西淀川区御幣島１丁目３番９号"]
[9120001051170,"株式会社イクザス商品管理部","大阪府大阪市東淀川区上新庄２-６-７"]
[9120001053266,"和田精密歯研株式会社","大阪府大阪市東淀川区西淡路５-７-１６"]
[9120001055312,"コリン・ジャパン株式会社","大阪府大阪市淀川区宮原５-１-１８新大阪サンアールセンタービル１０階"]
[9120001073652,"アストラゼネカ株式会社","大阪府大阪市北区大深町３番１号"]
[9120001076746,"カイゲンファーマ株式会社本社","大阪府大阪市中央区道修町二丁目５番１４号"]
[9120001076993,"兼一薬品工業株式会社本社","大阪府大阪市西淀川区姫島３-５-２３"]
[9120001077414,"コニシ株式会社","大阪府大阪市中央区道修町一丁目７番１号"]
[9120001077430,"塩野義製薬株式会社","大阪府大阪市中央区道修町３-１-８"]
[9120001077463,"田辺三菱製薬株式会社","大阪府大阪市中央区道修町三丁目２番１０号"]
[9120001078916,"健栄製薬株式会社","大阪府大阪市中央区伏見町２丁目５番８号"]
[9120001081721,"白井松器械株式会社","大阪府大阪市中央区森ノ宮中央一丁目１９番１６号"]
[9120001085466,"東洋製薬化成株式会社城東工場","大阪府大阪市鶴見区鶴見２丁目５-４"]
[9120001086687,"日進化学株式会社富田林工場","大阪府富田林市川面町２丁目２番１８号"]
[9120001086687,"日進化学株式会社　富田林工場","大阪府大阪市中央区久太郎町一丁目６番２９号"]
[9120001087900,"株式会社ビーブランド・メディコーデンタル","大阪府大阪市東淀川区西淡路五丁目２０番１９号"]
[9120001090219,"萬星衛生材料株式会社","大阪府大阪市中央区松屋町９番２号"]
[9120001090689,"村中医療器株式会社総合センター","大阪府和泉市あゆみ野二丁目８番２号"]
[9120001093188,"日本コルマー株式会社","大阪府大阪市中央区伏見町４-４-１"]
[9120001106965,"ヨック株式会社","大阪府大阪市中央区内本町１-２-１４"]
[9120001122384,"大阪佐々木化学株式会社","大阪府大阪市中央区道修町１-５-１２"]
[9120001130288,"東洋紡ＳＴＣ株式会社","大阪府大阪市北区堂島浜二丁目２番８号"]
[9120001138975,"株式会社ドクターピュアラボ","大阪府大阪市中央区北浜二丁目２番２２号"]
[9120001140345,"小松貿易株式会社","大阪府大阪市西淀川区御幣島５丁目１１番１号"]
[9120001162991,"吉村メディカル福祉株式会社","大阪府枚方市楠葉野田２丁目３０番１０号"]
[9120001183609,"株式会社ＰｏｉｎｔＯｓｌａｍ","大阪府大阪市淀川区西中島３ー１９ー１５第３三ツ矢ビル９階"]
[9120001186165,"株式会社ＨＥＬＩＯＪＡＰＡＮ","大阪府大阪市中央区本町一丁目２番２号ラシーヌ本町４Ｆ"]
[9120001188814,"エレコムヘルスケア株式会社","大阪府大阪市中央区伏見町４丁目１番１号Ｌ．Ａタワー８Ｆ"]
[9120001198994,"株式会社ｍｅｄｉＶＲ","大阪府大阪市中央区南船場四丁目１０番５号南船場ＳＯＨＯビル７０２"]
[9120003001297,"合名会社金田直隆商店淀川工場","大阪府大阪市淀川区田川北１丁目６-１９"]
[9120101030735,"株式会社エレクトロンチャージャー研究所","大阪府富田林市若松町東３丁目３-２２"]
[9120101031097,"日本技研工業株式会社","大阪府富田林市若松町東３-３-１７"]
[9120101047589,"株式会社コスメプラニング","大阪府堺市南区原山台５丁１１番１号"]
[9120901001357,"チベン製薬株式会社","大阪府茨木市西穂積町３-８"]
[9120901001514,"株式会社ナンバースリー","兵庫県神戸市中央区港島南町７-１-２７"]
[9120901007511,"株式会社デューク","大阪府吹田市江の木町２５番２号"]
[9120901014499,"エムジーファーマ株式会社","大阪府茨木市彩都あさぎ７丁目７番２５号"]
[9120901017023,"ＤＳファーマバイオメディカル株式会社","大阪府吹田市江の木町３３番９４号"]
[9120902002593,"有限会社日本サージ","大阪府吹田市豊津町１５-１１江坂石周ビル４Ｆ"]
[9120902005480,"有限会社エフケアーネッツ","大阪府大阪市中央区内本町２-３-８ダイアパレスビル９階"]
[9120903001669,"合同会社リーバンオハラ","大阪府吹田市千里山竹園１丁目２８-３"]
[9122001004752,"株式会社立石春洋堂","大阪府東大阪市小阪１丁目１３-２０"]
[9122001005759,"株式会社日新医療器製作所","大阪府東大阪市吉松２丁目６-７"]
[9122001007961,"山本光学株式会社","大阪府東大阪市長堂３丁目２５-８"]
[9122001008571,"大東電機工業株式会社","大阪府東大阪市新家東町２-３８"]
[9122001015741,"ニッポー株式会社本社工場","大阪府大東市氷野２丁目３番７号"]
[9122001018430,"株式会社コムラ製作所","大阪府八尾市西弓削３丁目９"]
[9122001020378,"ヤマトエスロン株式会社","大阪府八尾市光町一丁目６１番地八尾駅前嶋野・住友生命ビル４階"]
[9122001021376,"株式会社ルビー","大阪府柏原市法善寺１丁目１３-１"]
[9122001024610,"株式会社オーゾラ","大阪府大阪市西区新町１-３-１６ＢＱＣビル７階"]
[9122002004891,"モリ眼鏡有限会社","大阪府東大阪市菱屋西１丁目１３-３３"]
[9130001000052,"ローム株式会社","京都府京都市右京区西院溝崎町２１番地"]
[9130001001983,"株式会社ミヤコケミカル","京都府京都市右京区西院平町１９番地"]
[9130001011520,"ビタエックス薬品工業株式会社","京都府京都市伏見区竹田向代町７番地"]
[9130001012972,"竹中オプトニック株式会社本社工場","京都府京都市山科区北花山大林町６０-６"]
[9130001014151,"河利産業株式会社","京都府京都市伏見区淀美豆町５２３番地"]
[9130001016288,"日本ケミコス株式会社","京都府京都市伏見区淀生津町９８-１"]
[9130001021908,"中嶋生薬株式会社","京都府京都市中京区二条通東洞院西入仁王門町２９番地の２"]
[9130001022732,"三木化学工業株式会社","京都府京都市中京区西ノ京西中合町１８"]
[9130001023400,"京都薬品工業株式会社","京都府京都市中京区西ノ京月輪町３８番地"]
[9130001023441,"ＮＩＳＳＨＡ株式会社","京都府京都市中京区壬生花井町３番地"]
[9130001027087,"コスメディ製薬株式会社京都工場","京都府京都市南区東九条河西町３２番地"]
[9130001033317,"コタ株式会社","京都府久世郡久御山町田井新荒見７７番地"]
[9130001039074,"新和精工株式会社","京都府八幡市上津屋南村５番地５"]
[9130001049024,"株式会社リハビテック","京都府京都市北区大北山原谷乾町２２番地の１６"]
[9140001009530,"シスメックス株式会社","兵庫県神戸市中央区脇浜海岸通１丁目５番１号"]
[9140001017847,"株式会社ビッグライン","兵庫県神戸市須磨区北落合３-２８-２エイゼンビル２０２"]
[9140001035650,"株式会社ユーア化学研究所岩岡工場","兵庫県神戸市西区岩岡町岩岡２１９３-１"]
[9140001051152,"株式会社エバメール化粧品","兵庫県尼崎市額田町１７番１号"]
[9140001059947,"高浜酸素株式会社","兵庫県姫路市飾磨区構１０７３-９"]
[9140001066968,"株式会社セレス","兵庫県三田市テクノパーク１８-１"]
[9140001076190,"株式会社木下技研","兵庫県加西市畑町１１２６"]
[9140001091784,"株式会社メディカロイド","兵庫県神戸市中央区港島南町一丁目６番５号"]
[9140002049716,"有限会社デンタルグラフィック・コム","兵庫県姫路市北条口三丁目３２番地"]
[9150001004927,"清栄薬品株式会社","奈良県生駒市北田原町１６７４-１０"]
[9150001010553,"新生薬品工業株式会社","奈良県高市郡高取町大字清水谷１２６９番地"]
[9150001010644,"太陽堂製薬株式会社","奈良県高市郡高取町大字下土佐５７８"]
[9150001010784,"中田薬品産業株式会社","奈良県橿原市今井町２-８-５"]
[9150001011048,"株式会社雪の元本店","奈良県橿原市大谷町１８２"]
[9150001013903,"株式会社大毎代理部薬品部","奈良県御所市大字今住６７"]
[9150001013944,"日本医薬品製造株式会社","奈良県御所市大字古瀬１８"]
[9150001014034,"御所薬舗株式会社","奈良県御所市１２０７番地"]
[9150001015577,"株式会社パンドラファームグループ","奈良県五條市霊安寺町良峰１５５４"]
[9150001016063,"株式会社前忠","奈良県吉野郡下市町大字下市２４２６番地"]
[9150001016138,"株式会社藤井利三郎薬房","奈良県吉野郡吉野町吉野山２４１３番地"]
[9150001016600,"株式会社フジフレックス","奈良県生駒市北田原町１０６７番２５号"]
[9160001005346,"大原薬品工業株式会社","滋賀県甲賀市甲賀町鳥居野１２１番地１５"]
[9160001005370,"昭和化学工業株式会社","滋賀県甲賀市甲賀町大原市場１５７番地"]
[9160001005627,"ジェイドルフ製薬株式会社","滋賀県甲賀市土山町北土山２７３９-１番地"]
[9160001010081,"東洋化学株式会社","滋賀県蒲生郡日野町寺尻１００８番地"]
[9160001012994,"東西電工株式会社","滋賀県草津市岡本町１０００番地６６"]
[9160001013712,"株式会社日本ジー・アイ・ティー","滋賀県栗東市野尻５９０番地"]
[9160001015304,"サンメディカル株式会社","滋賀県守山市古高町５７１-２"]
[9170001000775,"株式会社キクタニ","和歌山県和歌山市中之島１４２６"]
[9180001009312,"株式会社朋友メディカル","愛知県名古屋市瑞穂区松園町１-８５-２"]
[9180001023610,"株式会社ビーエスエーサクライ","愛知県名古屋市天白区高島一丁目１１７番１"]
[9180001026407,"株式会社メニコンネクト","愛知県名古屋市西区市場木町３９０番地"]
[9180001027132,"松前衛生材料株式会社","愛知県名古屋市西区天塚町３丁目５７番地"]
[9180001027933,"長田電機工業株式会社","愛知県名古屋市緑区大高町字中道１１"]
[9180001040894,"松浦薬業株式会社本社営業所","愛知県名古屋市昭和区円上町２４番２１号"]
[9180001049671,"株式会社トーメーコーポレーション","愛知県名古屋市西区則武新町二丁目１１番３３号トーメービル"]
[9180001060546,"アワーズ株式会社","愛知県名古屋市中区錦１丁目１１番２０号大永ビル４階"]
[9180001098280,"サニア工業株式会社","愛知県あま市七宝町遠島上江越１５３０番地"]
[9180001114228,"ハンルイ医薬株式会社","愛知県名古屋市中区錦三丁目５番３１号ジブラルタ生命名古屋錦ビル８階"]
[9180002070370,"有限会社ＭＡＳＩ","愛知県名古屋市守山区大字上志段味字竹の腰３５４番地２"]
[9180301005829,"昭和製薬株式会社","愛知県豊橋市天伯町字西雲雀ヶ丘４番地の２"]
[9180301010671,"東海精密工業株式会社","愛知県豊川市穂ノ原３丁目２-８"]
[9180301011439,"山八歯材工業株式会社本社工場","愛知県蒲郡市西浦町大知柄５４-１"]
[9190001003223,"株式会社プリンシプル","三重県津市垂水字入江１３７-２"]
[9190001003479,"ヴィーヴィック化粧品株式会社","三重県亀山市東御幸町５９"]
[9190001003594,"株式会社赤塚生研","三重県津市高野尾町１８６８-３"]
[9190001010608,"三重化学工業株式会社","三重県松阪市大口町２６２-１"]
[9190001010896,"万協製薬株式会社","三重県多気郡多気町五桂１１６９-１４２"]
[9200002007196,"有限会社上善","岐阜県各務原市蘇原東栄町２ー４３"]
[9200003000101,"合名会社東宝製薬","岐阜県岐阜市沖ノ橋町３丁目４５番地"]
[9210001001785,"セーレン株式会社","福井県福井市毛矢１-１０-１"]
[9210001012411,"山下ラテックス工業株式会社","福井県丹生郡越前町樫津２７-２１-４"]
[9210001013021,"タイヨー電子株式会社","福井県鯖江市平井町２０号３番地"]
[9210001013129,"株式会社西村金属","福井県鯖江市丸山町３-５-１８"]
[9210001015538,"エイショウ光学株式会社","福井県福井市西開発１丁目２３１０"]
[9210001015538,"メガネバンク株式会社","福井県福井市西開発１丁目２３１０"]
[9210002012930,"有限会社グラシック","福井県鯖江市東鯖江２丁目５０７番地"]
[9220001008631,"株式会社キュービクス","石川県野々市市末松３丁目５７０いしかわ大学連携インキュベーター"]
[9220001008722,"イーストメディック株式会社","石川県金沢市割出町７０２番２"]
[9230001004720,"池田薬品工業株式会社","富山県中新川郡上市町若杉１２"]
[9230001005925,"新生薬品株式会社","富山県中新川郡上市町横越１６番１"]
[9230001016922,"新内田製薬株式会社","富山県富山市水橋伊勢屋１５８番地１"]
[9240001000933,"株式会社イノテック","広島県広島市南区金屋町２-１５ＫＤＸ広島ビル２Ｆ"]
[9240001035632,"ｉｓｍ株式会社","広島県廿日市市宮島口東二丁目８番２号"]
[9250001003415,"中国アセチレン株式会社","山口県宇部市大字東須恵３９０３番地の３"]
[9260001005451,"株式会社林原","岡山県岡山市北区下石井一丁目１番３号日本生命岡山第二ビル新館６階"]
[9260001014873,"水アセ株式会社","岡山県倉敷市福江４８８番地"]
[9260001015269,"テイメン株式会社","岡山県倉敷市連島町連島１１０-３５"]
[9260001021507,"岡山大鵬薬品株式会社","岡山県備前市久々井字沖１７７５-１"]
[9290001003824,"株式会社林衛材","福岡県福岡市東区箱崎１丁目２０-１９"]
[9290001011562,"株式会社イックス","福岡県福岡市中央区高砂１丁目９番３号六月田ビル２Ｆ"]
[9290001024077,"株式会社生活科学研究会","福岡県福岡市博多区榎田二丁目３番２３号"]
[9290001033219,"株式会社吉田酸素二丈工場","福岡県糸島市二丈上深江５５２番地１"]
[9290001041576,"株式会社プラッツ","福岡県大野城市仲畑２-３-１７"]
[9290001042194,"株式会社イーピーメディック","福岡県筑紫野市上古賀三丁目２番１６号クリエイション・コア福岡１０７号室"]
[9290001042467,"株式会社メディカルイングス","福岡県大野城市川久保１丁目１７番地１３号"]
[9290001045701,"福豊帝酸株式会社筑豊工場","福岡県飯塚市佐与１４８０番地１"]
[9290001053175,"株式会社ファインテック","福岡県柳川市西浜武５７５-１"]
[9290802004582,"有限会社浪速酸素商会","福岡県北九州市小倉南区横代南町５-１-１５"]
[9300001006379,"佐賀製薬株式会社","佐賀県三養基郡基山町大字小倉４８１"]
[9300001006800,"日本薬品株式会社工場","佐賀県鳥栖市村田町五反三歩１４８３番１３"]
[9320001004868,"株式会社メディカル・アート","大分県大分市大字下郡３６１０番地の３"]
[9330001010816,"肌美和株式会社","熊本県上益城郡御船町高木４１９３番地"]
[9330001013570,"櫻井精技株式会社","熊本県八代市岡町谷川１３５"]
[9330003004023,"苓州製薬合資会社","熊本県天草市下浦町１３４０-１"]
[9340001003991,"丸一製薬株式会社","鹿児島県鹿児島市西千石町７ー３"]
[9340002024442,"有限会社森回春堂","鹿児島県川辺郡知覧町塩屋２９００７番地"]
[9370001006050,"北斗精機株式会社","宮城県仙台市宮城野区扇町４-６-３"]
[9370001009268,"株式会社テムジン東北工場","宮城県仙台市青葉区郷六岩下５-３"]
[9410001000370,"秋田住友ベーク株式会社","秋田県秋田市土崎港相染町字中島下２７-４"]
[9420001008140,"陸奥高圧ガス株式会社","青森県五所川原市字栄町５０"]
[9430001001144,"株式会社活里","北海道札幌市北区新川西２条１-２-３５"]
[9430001015004,"北都製薬株式会社","北海道札幌市豊平区平岸２条５丁目２-６"]
[9430001033625,"ヤクハン製薬株式会社","北海道北広島市北の里２７番地"]
[9430002034358,"ノースバイオラボラトリーズ","北海道札幌市厚別区大谷地東２丁目５-２０-１０３"]
[9470001010414,"第一衛材株式会社","香川県観音寺市豊浜町和田浜１６１０番地の２"]
[9470001013879,"株式会社エリーゼント観音寺事務所","香川県観音寺市出作町７５７番地"]
[9480001000876,"シー・エイチ・オー新薬株式会社","徳島県徳島市国府町府中４３９番地"]
[9480001004480,"コロナ工業株式会社","徳島県吉野川市鴨島町上浦４００番地の１"]
[9480001007293,"株式会社河野メリクロン","徳島県美馬市脇町大字北庄５６０番地１"]
[9480001007384,"ファインケミコス株式会社","徳島県美馬市穴吹町穴吹字明連１９-１"]
[9490001001551,"土佐酸素株式会社高知工場","高知県高知市長浜７７１"]
[9490001006484,"大三株式会社","高知県香南市赤岡町２２５８番地３"]
[9500001003380,"株式会社ファインデックス","愛媛県松山市三番町４‐９‐６ＮＢＦ松山日銀前ビル１１Ｆ"]
[9500001006945,"株式会社ミヤタニ","愛媛県松山市和気町１丁目４４６番地６"]
[9500001015186,"新タック化成株式会社第一工場","香川県三豊市豊中町上高野４１４８番地"]
["1010001010351","アルゴフアイルジヤパン株式会社","東京都千代田区神田美土代町３-４ニュー楓ビル"]
["1010001036545","甘糟化学産業株式会社","東京都中央区日本橋本町一丁目５番９号"]
["1010001112453","株式会社アドバンス","東京都府中市是政１-２０-１７"]
["1010701012647","株式会社アピポルファーマジャパン","東京都品川区二葉４-１３-１２"]
["1011101001430","株式会社アリミノ","東京都新宿区下落合１-５-２２"]
["1011101031345","アームエレクトロニクス株式会社","東京都小平市学園西町二丁目９番１４号"]
["1011801005796","株式会社荒井製作所","東京都文京区本郷１-２８-１７"]
["1012401004619","アニマ株式会社","東京都調布市下石原３-６５-１"]
["1013301031827","株式会社アイレ","東京都豊島区東池袋一丁目３３番８号ＮＢＦ池袋タワー"]
["1021001002692","株式会社エイアンドティー","神奈川県藤沢市遠藤２０２３番地１"]
["1030001073413","株式会社アサヒ医療器","埼玉県川口市東本郷１-７-２１"]
["1100001006092","アップル医療機器株式会社","長野県千曲市大字雨宮２３５１-１"]
["1120001027046","株式会社アテックス","大阪府大阪市平野区長吉川辺３-３-２４"]
["1120001060063","旭産業株式会社堺工場","大阪府堺市南区富蔵２５１８番地１６"]
["1120001212804","株式会社アローズ","大阪府大阪市淀川区西宮原２丁目７-５０ＹＳサクラビル７階"]
["1120101031451","株式会社アイワ","大阪府大阪市城東区東中浜９丁目７-２９"]
["1210001012641","株式会社アオヤギ","福井県鯖江市北野町１丁目３-１０"]
["1290001027087","株式会社アップワード管理事業部","福岡県福岡市中央区白金１-７-１３"]
["1340001010517","株式会社アーダン","鹿児島県大島郡龍郷町大字赤尾木字手廣１６８０-２"]
["2010001017825","旭化成ファーマ株式会社","東京都千代田区神田神保町一丁目１０５番地神保町三井ビルディング"]
["2010001076573","株式会社アイ・インターナショナル","東京都渋谷区代々木２-２６-５-３１０バロール代々木"]
["2010401000348","株式会社アムテック","東京都杉並区宮前２-１０-４２宮前ヴィレッジＣ-１０４"]
["2010701012167","株式会社アスカコーポレーション","東京都品川区西五反田５-５-５塩谷ビル５階"]
["2011101030899","株式会社アントレックス","東京都新宿区新宿２-１９-１ビックス"]
["2011201009810","テレフレックスメディカルジャパン株式会社","東京都新宿区西新宿二丁目４番１号新宿ＮＳビル"]
["2011801018467","株式会社朝日","東京都小平市上水本町二丁目１８番２０号"]
["2012801018622","株式会社アムコ","東京都千代田区飯田橋４-８-７"]
["2013301033814","エレックス株式会社","東京都中央区晴海二丁目５番２４号晴海センタービル５階"]
["2021001027210","株式会社アンファティ総合研究所","神奈川県綾瀬市上土棚中３-７-１"]
["2030001034604","株式会社新井製作所","埼玉県越谷市相模町二丁目１２２番地"]
["2090001011250","株式会社アルソア本社","山梨県北杜市小淵沢町２９６１"]
["2120001149005","株式会社アダチ本社","大阪府大阪市中央区内平野町３丁目２番１０号"]
["2140001004414","株式会社アジュバンコスメティック","兵庫県神戸市中央区港島南町３丁目３-１１"]
["2140001064045","株式会社アイナリー","兵庫県姫路市御国野町御着４２０番地１"]
["2150001016755","朝日製薬株式会社","奈良県大和高田市曽大根５００"]
["2210001000125","青山眼鏡株式会社","福井県鯖江市神中町２-３-３０"]
["3010001131022","ラブルネッサンス株式会社","東京都中央区銀座５-６-１６銀座西五番館ビル"]
["3011001001413","アレイ株式会社本社事業所","東京都渋谷区代々木３-４２-１０"]
["3011001041269","キュテラ株式会社","東京都渋谷区桜丘町１２-１０住友不動産渋谷インフォスアネックス"]
["3011101000018","株式会社アイ・エー・シー","東京都港区南麻布二丁目７番２９号"]
["3040001000199","株式会社アイ・メデックス","千葉県千葉市花見川区宇那谷町１５０４ー６"]
["3120001074185","アールイーメディカル株式会社","大阪府大阪市中央区農人橋２丁目１番２９号"]
["3120001075753","エーピーエス株式会社","大阪府大阪市中央区久太郎町二丁目４番２７号"]
["3120002072147","有限会社秋山産業","大阪府寝屋川市小路北町７番２９号"]
["3120901010347","アルインコ株式会社高槻事業所","大阪府高槻市三島江１丁目１-１"]
["3122001017586","アザレプロダクツ株式会社","大阪府八尾市太田新町４-７６"]
["3200001022722","アダプトゲン製薬株式会社","岐阜県恵那市山岡町久保原字梅平１７８８番地―１"]
["3290001047075","株式会社アグリス","福岡県八女市鵜池４７７-１"]
["3290801009019","株式会社有薗製作所","福岡県北九州市八幡東区東田１-７-５"]
["3480001007258","株式会社アバンス","徳島県美馬市穴吹町三島字舞中島２０６４"]
["4010001068164","アライアンス・メディカル・グループ株式会社","東京都文京区本郷２-４０-１３本郷コーポレイション"]
["4010401000552","株式会社アイスター商事","東京都港区三田１-４-２８三田国際ビル"]
["4010701000434","安西メディカル株式会社","東京都品川区西品川３-９-１５"]
["4010701000434","安西メディカル株式会社第２ビル","東京都品川区西品川３-６-２５"]
["4010901025363","アルトテクス株式会社","東京都世田谷区若林１-２０-１１"]
["4021001016384","アドバンスドメディカル株式会社","神奈川県横浜市港北区新横浜３丁目２４番１１ユニオンビル２Ｆ"]
["4030001065028","株式会社アルファテクノ","埼玉県所沢市中富７５２-２８"]
["4040002031944","有限会社アイ・デント","千葉県千葉市中央区寒川町１-２２９-１"]
["4120101044839","アポロ衛材株式会社","大阪府泉南郡岬町淡輪４３９１"]
["4130001009908","朝日レントゲン工業株式会社","京都府京都市南区久世築山町３７６番地の３"]
["4140001019022","アサヒプリテック株式会社テクノセンター","兵庫県神戸市西区室谷１-６-３"]
["4240001016389","アルファテクノ","広島県広島市佐伯区五日市中央５-１４-３９"]
["5010001077346","ＣＳＬベーリング株式会社本社","東京都江東区東雲一丁目７番１２号ＫＤＸ豊洲グランスクエア"]
["5010001086644","株式会社ＡＺＥ","東京都港区港南二丁目１３番２９号キヤノン港南ビル"]
["5010401001896","株式会社アビステ","東京都港区南青山３-１８-１７エイジービル"]
["5010701025629","株式会社アイビジョン","東京都文京区湯島３-１-７妻恋木工第二ビル"]
["5011101061990","株式会社朝日技研工業","東京都中央区京橋二丁目２番１号京橋エドグラン"]
["5011401000319","株式会社アタゴ","東京都港区芝公園２-６-３芝公園フロントタワー２３階"]
["5020001043669","株式会社アスター電機","神奈川県横浜市都筑区南山田３丁目６-４０"]
["5080401015675","アポロ電気株式会社","静岡県磐田市匂坂中１６００-１１"]
["5120902000072","有限会社アイデント化学工業","大阪府茨木市見付山１-２-２４"]
["5122001020729","朝日衛生材料株式会社","大阪府柏原市大正２丁目９番６号"]
["5160001005408","株式会社アークレイファクトリー本社工場","滋賀県甲賀市甲南町柑子１４８０番地"]
["5160001008006","有川製薬株式会社","滋賀県彦根市鳥居本町４２５番地"]
["5180001015958","アスゲン製薬株式会社","岐阜県瑞浪市山田町字小洞２００８番地"]
["5180001045757","アサヒ晶脳株式会社","愛知県西春日井郡西春町大字沖村字六反６８番地"]
["5190001008853","株式会社アスター美容","三重県伊賀市ゆめが丘７-９-２"]
["5210001012646","アイテック株式会社","福井県鯖江市神中町２丁目６-８"]
["6010401016712","アボットジャパン株式会社栄養剤製品事業部","東京都港区三田三丁目５番２７号住友不動産三田ツインビル西館"]
["6010401135347","株式会社アリエ","東京都千代田区一番町２２-２０"]
["6020001000017","株式会社アテニア","神奈川県横浜市中区山下町８９-１"]
["6100001017110","アルペンローゼ株式会社","長野県大町市大字常盤字沓掛９７２９－２"]
["6180301022232","株式会社相生発酵開発センター","愛知県半田市州の崎町２-１１０"]
["6210001000162","株式会社アサヒオプティカル鯖江工場","福井県鯖江市下河端町４７-２６"]
["6320001007584","アドテック株式会社","大分県宇佐市大字上田１７７０番地の１"]
["6340002023389","有限会社青木流芳院","鹿児島県南さつま市大浦町１４００１"]
["7010701011239","シナリー株式会社","東京都品川区上大崎２-１１-１３"]
["7011001000072","株式会社アイ・エッチ・エス","東京都渋谷区広尾１-１１-２アイオス広尾ビル"]
["7011501010694","株式会社アレックスケア","東京都北区赤羽１-６７-５４みなもとビル"]
["7011601000100","アイエヌティー株式会社","東京都豊島区東池袋２-３１-１４"]
["7011801023099","株式会社荒川製作所","東京都足立区弘道一丁目３番２６号"]
["7040001015573","株式会社アンターク本舗","千葉県習志野市茜浜３-２-１"]
["7050001015291","株式会社アステック","茨城県つくば市東新井１４-３"]
["7080001000282","アロエ製薬株式会社","静岡県島田市大柳２９０番地の９"]
["7180001033982","株式会社アラクス","愛知県名古屋市中区丸の内三丁目２番２６号"]
["7210001012636","株式会社青山光学","福井県鯖江市丸山町３-６-１６"]
["7210001012652","株式会社アイランド","福井県鯖江市神中町２丁目９-１"]
["7230001005340","日東メディック株式会社","富山県富山市八尾町保内１-１４-１"]
["8010001066585","メドライン・ジャパン合同会社","東京都文京区小石川１-４-１住友不動産後楽園ビル"]
["8010002031217","アイ・ツー・ケー・リミテッド有限会社","東京都文京区千駄木５-４９-１９"]
["8010802000916","亞麻仁有限会社","東京都世田谷区東玉川１-１２-４"]
["8013201011963","アライン・テクノロジー・ジャパン株式会社","東京都品川区上大崎三丁目１番１号ＪＲ東急目黒ビル"]
["8030001030606","朝日ライフサイエンス株式会社所沢事業所","埼玉県所沢市新郷２１２番地"]
["8100001000080","株式会社アールエフ中央研究所","長野県長野市大字大豆島字上之島３３９７番地９"]
["8120001002884","アポロ医療器株式会社","大阪府大阪市平野区西脇４丁目１-２３"]
["8120001073372","株式会社コラントッテ","大阪府大阪市中央区南船場２-１０-２６"]
["8120001109944","ニッコー・ハンセン株式会社","大阪府大阪市此花区島屋４丁目１番１３１号"]
["8180001018826","株式会社アモオル","愛知県名古屋市中川区供米田１-９１７"]
["8180001023157","愛知電子工業株式会社","愛知県名古屋市天白区池見２丁目８８"]
["8180001049706","朝日インテック株式会社瀬戸工場","愛知県瀬戸市暁町３-１００"]
["9010001009832","アース製薬株式会社","東京都千代田区神田司町二丁目１２番地１"]
["9010001036307","株式会社アンプリー","東京都中央区銀座４-８-１２コチワビル"]
["9010501000349","アスカビーエフ株式会社テクノセンター","東京都荒川区東日暮里６-５７-２"]
["9011001000731","アコードインターナショナル株式会社","東京都渋谷区幡ヶ谷１-９-４タワーズ-１０"]
["9013301000386","株式会社ジャパンギャルズＳＣ","東京都港区虎ノ門五丁目２番６号虎ノ門第２ワイコービル"]
["9030001073612","株式会社アペレ川口工場","埼玉県川口市大字安行領根岸字鹿島９５１"]
["9030001073612","株式会社アペレ医薬品製造所","埼玉県川口市大字安行領根岸字鹿島９５３-１"]
["9060002025048","有限会社有川製薬所","栃木県大田原市佐久山２００４"]
["9070001018646","株式会社安眠","群馬県太田市内ヶ島町１１７４-１"]
["9080401019128","株式会社アイリード","静岡県静岡市清水区長崎新田４３２-１"]
["9100001025226","株式会社アルテック","長野県伊那市西町５１４２-３"]
["9120001014185","株式会社アスカメディカル","大阪府大阪市城東区関目２丁目１２-１０"]
["9120001094938","株式会社アルタデント","大阪府大阪市北区芝田２丁目８-３１第三東洋ビル２階"]
["9120001104977","株式会社アルボース","大阪府大阪市中央区備後町二丁目４番９号"]
["9180001094156","愛知製鋼株式会社知多工場","愛知県東海市荒尾町ワノ割１番地"]

{"sheet":"国マスタ","index":5,"n_rows":231,"n_cols":2,"rows_kept":231,"cut":false,"hidden":false,"merged":[]}
["番号","国又は地域"]
[100,"アジア州（国・地域は不明）"]
[200,"ヨーロッパ州（国・地域は不明）"]
[300,"北アメリカ州（国・地域は不明）"]
[400,"南アメリカ州（国・地域は不明）"]
[500,"アフリカ州（国・地域は不明）"]
[600,"大洋州（国・地域は不明）"]
["exp","国・地域は不明だが、輸出予定"]
["afg","アフガニスタン"]
["ago","アンゴラ"]
["aia","英領アンギラ"]
["alb","アルバニア"]
["and","アンドラ"]
["ant","蘭領アンティール"]
["are","アラブ首長国連邦"]
["arg","アルゼンチン"]
["arm","アルメニア"]
["asm","米領サモア"]
["ata","英領南極地域"]
["atg","アンティグア・バーブーダ"]
["aus","オーストラリア"]
["aut","オーストリア"]
["aze","アゼルバイジャン"]
["azo","アゾレス（葡）"]
["bdi","ブルンジ"]
["bel","ベルギー"]
["ben","ベナン"]
["bfa","ブルキナファソ"]
["bgd","バングラデシュ"]
["bgr","ブルガリア"]
["bhr","バーレーン"]
["bhs","バハマ"]
["bih","ボスニア・ヘルツェゴビナ"]
["blr","ベラルーシ"]
["blz","ベリーズ"]
["bmu","バーミュダ（英）"]
["bol","ボリビア"]
["bra","ブラジル"]
["brb","バルバドス"]
["brn","ブルネイ"]
["btn","ブータン"]
["caf","中央アフリカ"]
["can","カナダ"]
["cas","カナリー諸島（西）"]
["cck","その他のオーストラリア領"]
["cem","セウタ及びメリリヤ（西）"]
["che","スイス"]
["chl","チリ"]
["chn","中華人民共和国"]
["civ","コートジボワール"]
["cmr","カメルーン"]
["cod","コンゴ民主共和国"]
["cog","コンゴ共和国"]
["cok","クック諸島（ニュージーランド）"]
["col","コロンビア"]
["cpv","カーボヴェルデ"]
["cri","コスタリカ"]
["cub","キューバ"]
["cym","ケイマン諸島（英）"]
["cyp","キプロス"]
["cze","チェコ"]
["deu","ドイツ"]
["dji","ジブチ"]
["dma","ドミニカ"]
["dnk","デンマーク"]
["dom","ドミニカ共和国"]
["dza","アルジェリア"]
["ecu","エクアドル"]
["egy","エジプト"]
["esh","西サハラ"]
["esp","スペイン"]
["est","エストニア"]
["eth","エチオピア"]
["fii","仏領西インド諸島"]
["fin","フィンランド"]
["fji","フィジー"]
["flk","フォークランド諸島及びその附属諸島（英）"]
["fra","フランス"]
["fsm","ミクロネシア"]
["gab","ガボン"]
["gbr","英国"]
["geo","グルジア"]
["gha","ガーナ"]
["gib","ジブラルタル（英）"]
["gin","ギニア"]
["gmb","ガンビア"]
["gnb","ギニア・ビサウ"]
["gnq","赤道ギニア"]
["grc","ギリシャ"]
["grd","グレナダ"]
["grl","グリーンランド（デンマーク）"]
["gtm","グアテマラ"]
["guf","仏領ギアナ"]
["gum","グアム（米）"]
["guy","ガイアナ"]
["hkg","香港"]
["hnd","ホンジュラス"]
["hrv","クロアチア"]
["hti","ハイチ"]
["hun","ハンガリー"]
["idn","インドネシア"]
["imn","マン島"]
["ind","インド"]
["irl","アイルランド"]
["irn","イラン"]
["irq","イラク"]
["isl","アイスランド"]
["isr","イスラエル"]
["ita","イタリア"]
["jam","ジャマイカ"]
["jor","ヨルダン"]
["jpn","日本国"]
["kaz","カザフスタン"]
["ken","ケニア"]
["kgz","キルギス"]
["khm","カンボジア"]
["kir","キリバス"]
["kna","セントクリストファー・ネーヴィス"]
["kor","大韓民国"]
["kos","コソボ"]
["kwt","クウェート"]
["lao","ラオス"]
["lbn","レバノン"]
["lbr","リベリア"]
["lby","リビア"]
["lca","セントルシア"]
["lie","リヒテンシュタイン"]
["lka","スリランカ"]
["ltu","リトアニア"]
["lux","ルクセンブルク"]
["lva","ラトビア"]
["mac","マカオ"]
["mar","モロッコ"]
["mco","モナコ"]
["mda","モルドバ"]
["mdg","マダガスカル"]
["mdv","モルディブ"]
["mex","メキシコ"]
["mhl","マーシャル"]
["mkd","マケドニア旧ユーゴスラヴィア共和国"]
["mli","マリ"]
["mlt","マルタ"]
["mmr","ミャンマー"]
["mne","モンテネグロ"]
["mng","モンゴル"]
["mnp","北マリアナ諸島（米）"]
["moz","モザンビーク"]
["mrt","モーリタニア"]
["msr","モントセラト（英）"]
["mus","モーリシャス"]
["mys","マレーシア"]
["nam","ナミビア"]
["ncl","ニューカレドニア（仏）"]
["ner","ニジェール"]
["nga","ナイジェリア"]
["nic","ニカラグア"]
["niu","ニウエ"]
["nld","オランダ"]
["nor","ノルウェー"]
["npl","ネパール"]
["nru","ナウル"]
["nzl","ニュージーランド"]
["omn","オマーン"]
["pak","パキスタン"]
["pan","パナマ"]
["pcn","ピットケルン（英）"]
["per","ペルー"]
["phl","フィリピン"]
["plw","パラオ"]
["png","パプアニューギニア"]
["pol","ポーランド"]
["pri","プエルトリコ（米）"]
["prk","北朝鮮"]
["prt","ポルトガル"]
["pry","パラグアイ"]
["pse","ヨルダン川西岸及びガザ"]
["pyf","仏領ポリネシア"]
["qat","カタール"]
["reu","レユニオン（仏）"]
["rou","ルーマニア"]
["rus","ロシア"]
["rwa","ルワンダ"]
["sau","サウジアラビア"]
["sdn","スーダン"]
["sen","セネガル"]
["sgp","シンガポール"]
["shn","セントヘレナ及びその附属諸島（英）"]
["slb","ソロモン"]
["sle","シエラレオネ"]
["slv","エルサルバドル"]
["smr","サンマリノ"]
["som","ソマリア"]
["spm","サンピエール及びミクロン（仏）"]
["srb","セルビア"]
["stp","サントメ・プリンシペ"]
["sur","スリナム"]
["svk","スロバキア"]
["svn","スロベニア"]
["swe","スウェーデン"]
["syc","セーシェル"]
["syr","シリア"]
["tca","タークス及びカイコス諸島（英）"]
["tcd","チャド"]
["tgo","トーゴ"]
["tha","タイ"]
["tjk","タジキスタン"]
["tkl","トケラウ諸島（ニュージーランド）"]
["tkm","トルクメニスタン"]
["tls","東ティモール"]
["ton","トンガ"]
["tto","トリニダード・トバゴ"]
["tun","チュニジア"]
["tur","トルコ"]
["tuv","ツバル"]
["twn","台湾"]
["tza","タンザニア"]
["uga","ウガンダ"]
["ukr","ウクライナ"]
["umo","米領オセアニア"]
["ury","ウルグアイ"]
["usa","アメリカ合衆国"]
["uzb","ウズベキスタン"]
["vct","セントビンセント"]
["ven","ベネズエラ"]
["vgb","英領ヴァージン諸島"]
["vir","米領ヴァージン諸島"]
["vnm","ベトナム"]
["vut","バヌアツ"]
["wsm","サモア"]
["yem","イエメン"]
["zwe","ジンバブエ"]

{"sheet":"再生医療等製品マスタ","index":6,"n_rows":5,"n_cols":4,"rows_kept":5,"cut":false,"hidden":false,"merged":[[0,2,0,3]]}
["コード","販売名","記入単位"]
["00000001","ヒト（同種）骨髄由来間葉系幹細胞","一","個"]
["00000002","ヒト（自己）骨格筋由来細胞シート","一","個"]
["00000003","ヒト（自己）軟骨由来組織","一","個"]
["00000004","ヒト（自己）表皮由来細胞シート","一","個"]

{"sheet":"chosahyosystem","index":7,"n_rows":11,"n_cols":1,"rows_kept":11,"cut":false,"hidden":true,"merged":[]}
["00450151"]
["YAKUJI0000001617"]
[]
["9NC7"]
[]
["XXXX"]
["00450151"]
["1518"]
["YAKUJI0000001617"]
["004501510011"]
["00"]

{"sheet":"外国製造業者マスタ","index":8,"n_rows":3,"n_cols":2,"rows_kept":3,"cut":false,"hidden":false,"merged":[]}
["認定・登録番号","名称"]
["FG22510001","Ｂｏｅｈｒｉｎｇｅｒ　Ｉｎｇｅｌｈｅｉｍ　ＲＣＶ　ＧｍｂＨ　＆　Ｃｏ　ＫＧ"]
["FG30410001","Ｃａｎｇｅｎｅ　ｂｉｏＰｈａｒｍａ，ＬＬＣ"]